{"text_format":"1","workbook":"xlsx","n_sheets":10,"sheets":["Data","Data2","Strategic Plans","Comparatives","Objectives","Form","Input Form","Councils","Form (3)","Form (4)"],"not_rendered":{"charts":0,"images":2,"macros":1,"external_links":0,"defined_names":10,"comments":0,"pivot_tables":0},"unopened":[],"bounds":{"document_bytes":16777216,"sheet_cells":100000,"rows_first":2000,"rows_last":500,"rows_between":2000,"halvings":0,"cell_chars":16384,"cell_head_chars":4096},"cells_cut":0,"cells_raw":0,"read":"whole","date_system":"1900"}

{"sheet":"Data","index":0,"n_rows":268,"n_cols":31,"rows_kept":268,"cut":false,"hidden":true,"merged":[]}
["Reg#","Area","Council#","CouncilName","CouncilGrade","SalaryCOL","HeadquartersCity","HeadquartersState","Councils",null," -",null,"Item","Objective",null,"JTE Objective",null,"Councils with HQ",null,"Council","StrategicPlanExpire",null,"CouncilNo.","CouncilName","HQCity","HQState","JTE Objective 1","JTE Objective 2","JTE Objective 3","JTE Objective 4","JTE Objective 5"]
[2,2,"561","Texas Trails",500,"G1","Abilene","TX",{"$f":"_xlfn.CONCAT(C2) & \"-\" & (D2) & \" Council, \" & (G2) &  \", \" & (H2)","v":"561-Texas Trails Council, Abilene, TX"},null,"NONE",null,"JTE 1","Fiscal management",null,{"$f":"_xlfn.CONCAT(M2) & \"-\" & (N2)","v":"JTE 1-Fiscal management"},null,"001-Greater Alabama Council, Birmingham, AL",null,"001 Greater Alabama","2021-12-31",null,1,"Greater Alabama","Birmingham","AL","JTE 13-Youth-serving executives","JTE 15-Unit contacts","JTE 17-District leadership","JTE 5-Membership/youth growth","JTE 10-Cub Scout camping"]
[3,4,"433","Great Trail",300,"G2","Akron","OH",{"$f":"_xlfn.CONCAT(C3) & \"-\" & (D3) & \" Council, \" & (G3) &  \", \" & (H3)","v":"433-Great Trail Council, Akron, OH"},null,"SAME AS MEMBERSHIP",null,"JTE 2","Fundraising",null,{"$f":"_xlfn.CONCAT(M3) & \"-\" & (N3)","v":"JTE 2-Fundraising"},null,"003-Alabama-Florida Council, Dothan, AL",null,"003 Alabama-Florida","2019-12-31",null,3,"Alabama-Florida","Dothan","AL","JTE 2-Fundraising","JTE 5-Membership/youth growth","JTE 6-New member recruiting","JTE 10-Cub Scout camping","JTE 15-Unit contacts"]
[4,3,"022","Alameda",500,"G4","Alameda","CA","022-Alameda Council, Alameda, CA",null,"001-Greater Alabama",null,"JTE 3","Endowment",null,"JTE 3-Endowment",null,"004-Mobile Area Council, Mobile, AL",null,"004 Mobile Area",null,null,"004","Mobile Area","Mobile","AL","JTE 3-Endowment","JTE 12-Community service","JTE 17-District leadership","JTE 11-Boy Scout camping","JTE 10-Cub Scout camping"]
[1,3,"364","Twin Rivers",300,"G2","Albany","NY","364-Twin Rivers Council, Albany, NY",null,"003-Alabama-Florida",null,"JTE 4","Community impact",null,"JTE 4-Community impact",null,"005-Tukabatchee Area Council, Montgomery, AL",null,"005 Tukabatchee Area",null,null,5,"Tukabatchee Area","Montgomery","AL","JTE 1-Fiscal management","JTE 2-Fundraising","JTE 14-Unit retention/growth","JTE 17-District leadership","JTE 4-Community impact"]
[2,5,"416","Central North Carolina",400,"G1","Albemarle","NC","416-Central North Carolina Council, Albemarle, NC",null,"004-Mobile Area",null,"JTE 5","Membership/youth growth",null,"JTE 5-Membership/youth growth",null,"006-Black Warrior Council, Tuscaloosa, AL",null,"006 Black Warrior","2020-12-31",null,6,"Black Warrior","Tuscaloosa","AL","JTE 5-Membership/youth growth","JTE 2-Fundraising","JTE 17-District leadership","JTE 8-Cub Scout advancement","JTE 12-Community service"]
[4,6,"412","Great Southwest",400,"G2","Albuquerque","NM","412-Great Southwest Council, Albuquerque, NM",null,"005-Tukabatchee Area",null,"JTE 6","New member recruiting",null,"JTE 6-New member recruiting",null,"010-Grand Canyon Council, Phoenix, AZ",null,"010 Grand Canyon","2019-12-31",null,10,"Grand Canyon","Phoenix","AZ","JTE 10-Cub Scout camping","JTE 11-Boy Scout camping","JTE 12-Community service","JTE 17-District leadership","JTE 18-Unit leadership"]
[2,2,"562","Golden Spread",400,"G1","Amarillo","TX","562-Golden Spread Council, Amarillo, TX",null,"006-Black Warrior",null,"JTE 7","Youth retention",null,"JTE 7-Youth retention",null,"011-Catalina Council, Tucson, AZ",null,"011 Catalina","2021-12-31",null,11,"Catalina","Tucson","AZ","JTE 1-Fiscal management","JTE 2-Fundraising","JTE 3-Endowment","JTE 10-Cub Scout camping","JTE 18-Unit leadership"]
[4,1,"610","Great Alaska",300,"G3","Anchorage","AK","610-Great Alaska Council, Anchorage, AK",null,"010-Grand Canyon",null,"JTE 8","Cub Scout advancement",null,"JTE 8-Cub Scout advancement",null,"013-De Soto Area Council, El Dorado, AR",null,"013 De Soto Area","2020-12-31",null,"013","De Soto Area","El Dorado","AR","JTE 1-Fiscal management","JTE 5-Membership/youth growth","JTE 6-New member recruiting","JTE 14-Unit retention/growth","JTE 18-Unit leadership"]
[3,1,"635","Bay-Lakes",200,"G2","Appleton","WI","635-Bay-Lakes Council, Appleton, WI",null,"011-Catalina",null,"JTE 9","Scouts BSA advancement",null,"JTE 9-Scouts BSA advancement",null,"016-Westark Area Council, Fort Smith, AR",null,"016 Westark Area",null,null,16,"Westark Area","Fort Smith","AR","JTE 5-Membership/youth growth","JTE 1-Fiscal management","JTE 2-Fundraising","JTE 6-New member recruiting","JTE 18-Unit leadership"]
[2,8,"468","Arbuckle Area",500,"G1","Ardmore","OK","468-Arbuckle Area Council, Ardmore, OK",null,"013-De Soto Area",null,"JTE 10","Cub Scout camping",null,"JTE 10-Cub Scout camping",null,"018-Quapaw Area Council, Little Rock, AR",null,"018 Quapaw Area","2023-12-31",null,18,"Quapaw Area","Little Rock","AR","JTE 2-Fundraising","JTE 18-Unit leadership","JTE 14-Unit retention/growth","JTE 8-Cub Scout advancement","JTE 11-Boy Scout camping"]
[2,5,"414","Daniel Boone",300,"G1","Asheville","NC","414-Daniel Boone Council, Asheville, NC",null,"016-Westark Area",null,"JTE 11","Scouts BSA camping",null,"JTE 11-Scouts BSA camping",null,"022-Alameda Council, Alameda, CA",null,"022 Alameda","2021-12-31",null,22,"Alameda","Alameda","CA","JTE 1-Fiscal management","JTE 3-Endowment","JTE 5-Membership/youth growth","JTE 8-Cub Scout advancement","JTE 10-Cub Scout camping"]
[2,9,"092","Atlanta Area",100,"G2","Atlanta","GA","092-Atlanta Area Council, Atlanta, GA",null,"018-Quapaw Area",null,"JTE 12","Community service",null,"JTE 12-Community service",null,"023-Mount Diablo Silverado Council, Pleasant Hill, CA",null,"023 Mount Diablo Silverado","2020-12-31",null,23,"Mount Diablo Silverado","Pleasant Hill","CA","JTE 1-Fiscal management","JTE 2-Fundraising","JTE 5-Membership/youth growth","JTE 11-Boy Scout camping","JTE 14-Unit retention/growth"]
[2,5,"093","Georgia-Carolina",500,"G2","Augusta","GA","093-Georgia-Carolina Council, Augusta, GA",null,"022-Alameda",null,"JTE 13","Youth-serving executives",null,"JTE 13-Youth-serving executives",null,"027-Sequoia Council, Fresno, CA",null,"027 Sequoia","2022-12-31",null,27,"Sequoia","Fresno","CA","JTE 2-Fundraising","JTE 5-Membership/youth growth","JTE 8-Cub Scout advancement","JTE 9-Boy Scout advancement","JTE 18-Unit leadership"]
[2,3,"564","Capitol Area",200,"G2","Austin","TX","564-Capitol Area Council, Austin, TX",null,"023-Mount Diablo Silverado",null,"JTE 14","Unit growth/retention",null,"JTE 14-Unit growth/retention",null,"028-San Francisco Bay Area Council, San Leandro, CA",null,"028 San Francisco Bay Area","2018-12-31",null,28,"San Francisco Bay Area","San Leandro","CA","JTE 1-Fiscal management","JTE 6-New member recruiting","JTE 11-Boy Scout camping","JTE 5-Membership/youth growth","JTE 12-Community service"]
[4,4,"030","Southern Sierra",500,"G3","Bakersfield","CA","030-Southern Sierra Council, Bakersfield, CA",null,"027-Sequoia",null,"JTE 15","Unit contacts",null,"JTE 15-Unit contacts",null,"030-Southern Sierra Council, Bakersfield, CA",null,"030 Southern Sierra","2020-12-31",null,30,"Southern Sierra","Bakersfield","CA","JTE 2-Fundraising","JTE 5-Membership/youth growth","JTE 10-Cub Scout camping","JTE 9-Boy Scout advancement","JTE 17-District leadership"]
[1,6,"220","Baltimore Area",200,"G2","Baltimore","MD","220-Baltimore Area Council, Baltimore, MD",null,"028-San Francisco Bay Area",null,"JTE 16","Council leadership",null,"JTE 16-Council leadership",null,"031-Pacific Skyline Council, Foster City, CA",null,"031 Pacific Skyline","2019-12-31",null,31,"Pacific Skyline","Foster City","CA","JTE 5-Membership/youth growth","JTE 2-Fundraising","JTE 17-District leadership","JTE 11-Boy Scout camping","JTE 18-Unit leadership"]
[1,1,"216","Katahdin Area",400,"G1","Bangor","ME","216-Katahdin Area Council, Bangor, ME",null,"030-Southern Sierra",null,"JTE 17","District leadership",null,"JTE 17-District leadership",null,"032-Long Beach Area Council, Long Beach, CA",null,"032 Long Beach Area","2018-12-31",null,32,"Long Beach Area","Long Beach","CA","JTE 5-Membership/youth growth","JTE 6-New member recruiting","JTE 17-District leadership","JTE 2-Fundraising","JTE 18-Unit leadership"]
[2,8,"469","Cherokee Area",500,"G1","Bartlesville","OK","469-Cherokee Area Council, Bartlesville, OK",null,"031-Pacific Skyline",null,"JTE 18","Unit leadership",null,"JTE 18-Unit leadership",null,"033-Greater Los Angeles Area Council, Los Angeles, CA",null,"033 Greater Los Angeles Area","2019-12-31",null,33,"Greater Los Angeles Area","Los Angeles","CA","JTE 1-Fiscal management","JTE 7-Youth retention","JTE 5-Membership/youth growth","JTE 8-Cub Scout advancement","JTE 18-Unit leadership"]
[1,3,"376","Iroquois Trail",500,"G2","Batavia","NY","376-Iroquois Trail Council, Batavia, NY",null,"032-Long Beach Area",null,null,null,null,null,null,"035-Marin Council, San Rafael, CA",null,"035 Marin","2020-12-31",null,35,"Marin","San Rafael","CA","JTE 5-Membership/youth growth","JTE 2-Fundraising","JTE 4-Community impact","JTE 1-Fiscal management","JTE 14-Unit retention/growth"]
[2,1,"211","Istrouma Area",400,"G1","Baton Rouge","LA","211-Istrouma Area Council, Baton Rouge, LA",null,"033-Greater Los Angeles Area",null,null,null,null,null,null,"039-Orange County Council, Santa Ana, CA",null,"039 Orange County","2018-12-31",null,39,"Orange County","Santa Ana","CA","JTE 5-Membership/youth growth","JTE 6-New member recruiting","JTE 10-Cub Scout camping","JTE 11-Boy Scout camping","JTE 18-Unit leadership"]
[2,3,"578","Three Rivers",500,"G2","Beaumont","TX","578-Three Rivers Council, Beaumont, TX",null,"035-Marin",null,null,null,null,null,null,"041-Redwood Empire Council, Santa Rosa, CA",null,"041 Redwood Empire","2018-12-31",null,41,"Redwood Empire","Santa Rosa","CA","JTE 2-Fundraising","JTE 5-Membership/youth growth","JTE 17-District leadership","JTE 10-Cub Scout camping","JTE 12-Community service"]
[1,6,"082","National Capital Area",100,"G3","Bethesda","MD","082-National Capital Area Council, Bethesda, MD",null,"039-Orange County",null,null,null,null,null,null,"042-Piedmont Council, Piedmont, CA",null,"042 Piedmont","2019-12-31",null,42,"Piedmont","Piedmont","CA","JTE 5-Membership/youth growth","JTE 8-Cub Scout advancement","JTE 12-Community service","JTE 15-Unit contacts","JTE 18-Unit leadership"]
[1,3,"368","Baden-Powell",400,"G2","Binghamton","NY","368-Baden-Powell Council, Binghamton, NY",null,"041-Redwood Empire",null,null,null,null,null,null,"045-California Inland Empire Council, Redlands, CA",null,"045 California Inland Empire","2018-12-31",null,45,"California Inland Empire","Redlands","CA","JTE 1-Fiscal management","JTE 18-Unit leadership","JTE 5-Membership/youth growth","JTE 11-Boy Scout camping","JTE 17-District leadership"]
[2,9,"001","Greater Alabama",200,"G2","Birmingham","AL","001-Greater Alabama Council, Birmingham, AL",null,"042-Piedmont",null,null,null,null,null,null,"047-Golden Empire Council, Sacramento, CA",null,"047 Golden Empire","2019-12-31",null,47,"Golden Empire","Sacramento","CA","JTE 2-Fundraising","JTE 3-Endowment","JTE 5-Membership/youth growth","JTE 17-District leadership","JTE 18-Unit leadership"]
[3,6,"145","Hoosier Trails",400,"G1","Bloomington","IN","145-Hoosier Trails Council, Bloomington, IN",null,"045-California Inland Empire",null,null,null,null,null,null,"049-San Diego-Imperial Council, San Diego, CA",null,"049 San Diego-Imperial","2020-12-31",null,49,"San Diego-Imperial","San Diego","CA","JTE 5-Membership/youth growth","JTE 6-New member recruiting","JTE 11-Boy Scout camping","JTE 15-Unit contacts","JTE 18-Unit leadership"]
[1,4,"504","Columbia-Montour",500,"G1","Bloomsburg","PA","504-Columbia-Montour Council, Bloomsburg, PA",null,"047-Golden Empire",null,null,null,null,null,null,"051-Western Los Angeles County Council, Van Nuys, CA",null,"051 Western Los Angeles County","2019-12-31",null,51,"Western Los Angeles County","Van Nuys","CA","JTE 2-Fundraising","JTE 3-Endowment","JTE 5-Membership/youth growth","JTE 6-New member recruiting","JTE 17-District leadership"]
[4,1,"106","Ore-Ida",400,"G2","Boise","ID","106-Ore-Ida Council, Boise, ID",null,"049-San Diego-Imperial",null,null,null,null,null,null,"053-Los Padres Council, Santa Barbara, CA",null,"053 Los Padres","2018-12-31",null,53,"Los Padres","Santa Barbara","CA","JTE 17-District leadership","JTE 2-Fundraising","JTE 4-Community impact","JTE 10-Cub Scout camping","JTE 18-Unit leadership"]
[1,1,"227","Spirit of Adventure",200,"G3","Boston","MA","227-Spirit of Adventure Council, Boston, MA",null,"051-Western Los Angeles County",null,null,null,null,null,null,"055-Silicon Valley Monterey Bay Council, San Jose, CA",null,"055 Silicon Valley Monterey Bay","2018-12-31",null,55,"Silicon Valley Monterey Bay","San Jose","CA","JTE 6-New member recruiting","JTE 2-Fundraising","JTE 18-Unit leadership","JTE 15-Unit contacts","JTE 8-Cub Scout advancement"]
[1,5,"802","Transatlantic",400,"G2","Brussels","Belgium","802-Transatlantic Council, Brussels, Belgium",null,"053-Los Padres",null,null,null,null,null,null,"057-Ventura County Council, Camarillo, CA",null,"057 Ventura County","2021-12-31",null,57,"Ventura County","Camarillo","CA","JTE 1-Fiscal management","JTE 2-Fundraising","JTE 3-Endowment","JTE 6-New member recruiting","JTE 18-Unit leadership"]
[1,3,"380","Greater Niagara Frontier",300,"G2","Buffalo","NY","380-Greater Niagara Frontier Council, Buffalo, NY",null,"055-Silicon Valley Monterey Bay",null,null,null,null,null,null,"058-Verdugo Hills Council, Glendale, CA",null,"058 Verdugo Hills","2020-12-31",null,58,"Verdugo Hills","Glendale","CA","JTE 2-Fundraising","JTE 1-Fiscal management","JTE 5-Membership/youth growth","JTE 14-Unit retention/growth","JTE 6-New member recruiting"]
[1,4,"500","Moraine Trails",500,"G2","Butler","PA","500-Moraine Trails Council, Butler, PA",null,"057-Ventura County",null,null,null,null,null,null,"059-Greater Yosemite Council, Modesto, CA",null,"059 Greater Yosemite","2020-12-31",null,59,"Greater Yosemite","Modesto","CA","JTE 1-Fiscal management","JTE 2-Fundraising","JTE 5-Membership/youth growth","JTE 17-District leadership","JTE 18-Unit leadership"]
[4,4,"057","Ventura County",400,"G3","Camarillo","CA","057-Ventura County Council, Camarillo, CA",null,"058-Verdugo Hills",null,null,null,null,null,null,"060-Pikes Peak Council, Colorado Springs, CO",null,"060 Pikes Peak","2020-12-31",null,60,"Pikes Peak","Colorado Springs","CO","JTE 1-Fiscal management","JTE 6-New member recruiting","JTE 11-Boy Scout camping","JTE 15-Unit contacts","JTE 18-Unit leadership"]
[3,4,"436","Buckeye",300,"G2","Canton","OH","436-Buckeye Council, Canton, OH",null,"059-Greater Yosemite",null,null,null,null,null,null,"061-Denver Area Council, Denver, CO",null,"061 Denver Area",null,null,61,"Denver Area","Denver","CO","JTE 1-Fiscal management","JTE 6-New member recruiting","JTE 18-Unit leadership","JTE 15-Unit contacts","JTE 10-Cub Scout camping"]
[4,2,"638","Greater Wyoming",500,"G1","Casper","WY","638-Greater Wyoming Council, Casper, WY",null,"060-Pikes Peak",null,null,null,null,null,null,"062-Longs Peak Council, Greeley, CO",null,"062 Longs Peak","2021-12-31",null,62,"Longs Peak","Greeley","CO","JTE 1-Fiscal management","JTE 2-Fundraising","JTE 5-Membership/youth growth","JTE 11-Boy Scout camping","JTE 18-Unit leadership"]
[1,5,"358","Patriots' Path",200,"G3","Cedar Knolls","NJ","358-Patriots' Path Council, Cedar Knolls, NJ",null,"061-Denver Area",null,null,null,null,null,null,"063-Rocky Mountain Council, Pueblo, CO",null,"063 Rocky Mountain","2019-12-31",null,63,"Rocky Mountain","Pueblo","CO","JTE 2-Fundraising","JTE 5-Membership/youth growth","JTE 7-Youth retention","JTE 12-Community service","JTE 18-Unit leadership"]
[3,3,"172","Hawkeye Area",400,"G2","Cedar Rapids","IA","172-Hawkeye Area Council, Cedar Rapids, IA",null,"062-Longs Peak",null,null,null,null,null,null,"064-Western Colorado Council, Grand Junction, CO",null,"064 Western Colorado",null,null,64,"Western Colorado","Grand Junction","CO","JTE 1-Fiscal management","JTE 6-New member recruiting","JTE 10-Cub Scout camping","JTE 17-District leadership","JTE 18-Unit leadership"]
[4,1,"491","Crater Lake",400,"G2","Central Point","OR","491-Crater Lake Council, Central Point, OR",null,"063-Rocky Mountain",null,null,null,null,null,null,"066-Connecticut Rivers Council, East Hartford, CT",null,"066 Connecticut Rivers","2018-12-31",null,66,"Connecticut Rivers","East Hartford","CT","JTE 2-Fundraising","JTE 18-Unit leadership","JTE 9-Boy Scout advancement","JTE 15-Unit contacts","JTE 5-Membership/youth growth"]
[3,3,"117","Prairielands",500,"G2","Champaign","IL","117-Prairielands Council, Champaign, IL",null,"064-Western Colorado",null,null,null,null,null,null,"067-Greenwich Council, Greenwich, CT",null,"067 Greenwich","2018-12-31",null,67,"Greenwich","Greenwich","CT","JTE 5-Membership/youth growth","JTE 7-Youth retention","JTE 1-Fiscal management","JTE 2-Fundraising","JTE 3-Endowment"]
[3,4,"617","Buckskin",400,"G1","Charleston","WV","617-Buckskin Council, Charleston, WV",null,"066-Connecticut Rivers",null,null,null,null,null,null,"069-Housatonic Council, Derby, CT",null,"069 Housatonic","2020-12-31",null,69,"Housatonic","Derby","CT","JTE 3-Endowment","JTE 4-Community impact","JTE 5-Membership/youth growth","JTE 17-District leadership","JTE 18-Unit leadership"]
[2,5,"550","Coastal Carolina",400,"G1","Charleston","SC","550-Coastal Carolina Council, Charleston, SC",null,"067-Greenwich",null,null,null,null,null,null,"070-Old North State Council, Greensboro, NC",null,"070 Old North State","2021-12-31",null,70,"Old North State","Greensboro","NC","JTE 1-Fiscal management","JTE 3-Endowment","JTE 5-Membership/youth growth","JTE 11-Boy Scout camping","JTE 8-Cub Scout advancement"]
[2,5,"415","Mecklenburg County",300,"G2","Charlotte","NC","415-Mecklenburg County Council, Charlotte, NC",null,"069-Housatonic",null,null,null,null,null,null,"072-Connecticut Yankee Council, Milford, CT",null,"072 Connecticut Yankee","2021-12-31",null,72,"Connecticut Yankee","Milford","CT","JTE 1-Fiscal management","JTE 2-Fundraising","JTE 5-Membership/youth growth","JTE 6-New member recruiting","JTE 10-Cub Scout camping"]
[2,6,"556","Cherokee Area",400,"G1","Chattanooga","TN","556-Cherokee Area Council, Chattanooga, TN",null,"070-Old North State",null,null,null,null,null,null,"081-Del-Mar-Va Council, Wilmington, DE",null,"081 Del-Mar-Va","2020-12-31",null,81,"Del-Mar-Va","Wilmington","DE","JTE 2-Fundraising","JTE 7-Youth retention","JTE 8-Cub Scout advancement","JTE 17-District leadership","JTE 10-Cub Scout camping"]
[3,7,"456","Pathway to Adventure",100,"G3","Chicago","IL","456-Pathway to Adventure Council, Chicago, IL",null,"072-Connecticut Yankee",null,null,null,null,null,null,"082-National Capital Area Council, Bethesda, MD",null,"082 National Capital Area","2022-12-31",null,82,"National Capital Area","Bethesda","MD","JTE 2-Fundraising","JTE 5-Membership/youth growth","JTE 4-Community impact","JTE 10-Cub Scout camping","JTE 11-Boy Scout camping"]
[3,6,"438","Dan Beard",200,"G2","Cincinnati","OH","438-Dan Beard Council, Cincinnati, OH",null,"081-Del-Mar-Va",null,null,null,null,null,null,"083-Central Florida Council, Orlando, FL",null,"083 Central Florida","2019-12-31",null,83,"Central Florida","Orlando","FL","JTE 11-Boy Scout camping","JTE 10-Cub Scout camping","JTE 2-Fundraising","JTE 5-Membership/youth growth","JTE 7-Youth retention"]
[3,4,"440","Lake Erie",200,"G2","Cleveland","OH","440-Lake Erie Council, Cleveland, OH",null,"082-National Capital Area",null,null,null,null,null,null,"084-South Florida Council, Miami Lakes, FL",null,"084 South Florida","2018-12-31",null,84,"South Florida","Miami Lakes","FL","JTE 1-Fiscal management","JTE 2-Fundraising","JTE 9-Boy Scout advancement","JTE 13-Youth-serving executives","JTE 15-Unit contacts"]
[4,2,"060","Pikes Peak",300,"G2","Colorado Springs","CO","060-Pikes Peak Council, Colorado Springs, CO",null,"083-Central Florida",null,null,null,null,null,null,"085-Gulf Stream Council, Palm Beach Gardens, FL",null,"085 Gulf Stream","2020-12-31",null,85,"Gulf Stream","Palm Beach Gardens","FL","JTE 2-Fundraising","JTE 5-Membership/youth growth","JTE 3-Endowment","JTE 15-Unit contacts","JTE 12-Community service"]
[2,5,"553","Indian Waters",400,"G1","Columbia","SC","553-Indian Waters Council, Columbia, SC",null,"084-South Florida",null,null,null,null,null,null,"087-North Florida Council, Jacksonville, FL",null,"087 North Florida",null,null,87,"North Florida","Jacksonville","FL","JTE 2-Fundraising","JTE 5-Membership/youth growth","JTE 11-Boy Scout camping","JTE 15-Unit contacts","JTE 17-District leadership"]
[3,5,"653","Great Rivers",400,"G1","Columbia","MO","653-Great Rivers Council, Columbia, MO",null,"085-Gulf Stream",null,null,null,null,null,null,"088-Southwest Florida Council, Fort Myers, FL",null,"088 Southwest Florida","2020-12-31",null,88,"Southwest Florida","Fort Myers","FL","JTE 1-Fiscal management","JTE 2-Fundraising","JTE 5-Membership/youth growth","JTE 14-Unit retention/growth","JTE 17-District leadership"]
[2,9,"091","Chattahoochee",400,"G1","Columbus","GA","091-Chattahoochee Council, Columbus, GA",null,"087-North Florida",null,null,null,null,null,null,"089-Greater Tampa Bay Area Council, Tampa, FL",null,"089 Greater Tampa Bay Area",null,null,89,"Greater Tampa Bay Area","Tampa","FL","JTE 2-Fundraising","JTE 1-Fiscal management","JTE 5-Membership/youth growth","JTE 18-Unit leadership","JTE 14-Unit retention/growth"]
[3,4,"441","Simon Kenton",200,"G2","Columbus","OH","441-Simon Kenton Council, Columbus, OH",null,"088-Southwest Florida",null,null,null,null,null,null,"091-Chattahoochee Council, Columbus, GA",null,"091 Chattahoochee","2020-12-31",null,91,"Chattahoochee","Columbus","GA","JTE 1-Fiscal management","JTE 2-Fundraising","JTE 11-Boy Scout camping","JTE 15-Unit contacts","JTE 6-New member recruiting"]
[2,1,"691","Pushmataha Area",500,"G1","Columbus","MS","691-Pushmataha Area Council, Columbus, MS",null,"089-Greater Tampa Bay Area",null,null,null,null,null,null,"092-Atlanta Area Council, Atlanta, GA",null,"092 Atlanta Area",null,null,92,"Atlanta Area","Atlanta","GA","JTE 1-Fiscal management","JTE 10-Cub Scout camping","JTE 11-Boy Scout camping","JTE 5-Membership/youth growth","JTE 17-District leadership"]
[2,3,"577","South Texas",400,"G2","Corpus Christi","TX","577-South Texas Council, Corpus Christi, TX",null,"091-Chattahoochee",null,null,null,null,null,null,"093-Georgia-Carolina Council, Augusta, GA",null,"093 Georgia-Carolina",null,null,93,"Georgia-Carolina","Augusta","GA","JTE 2-Fundraising","JTE 4-Community impact","JTE 6-New member recruiting","JTE 18-Unit leadership","JTE 14-Unit retention/growth"]
[2,2,"571","Circle Ten",100,"G2","Dallas","TX","571-Circle Ten Council, Dallas, TX",null,"092-Atlanta Area",null,null,null,null,null,null,"095-Flint River Council, Griffin, GA",null,"095 Flint River","2020-12-31",null,95,"Flint River","Griffin","GA","JTE 3-Endowment","JTE 5-Membership/youth growth","JTE 6-New member recruiting","JTE 15-Unit contacts","JTE 17-District leadership"]
[3,3,"133","Illowa",400,"G2","Davenport","IA","133-Illowa Council, Davenport, IA",null,"093-Georgia-Carolina",null,null,null,null,null,null,"096-Central Georgia Council, Macon, GA",null,"096 Central Georgia","2019-12-31",null,96,"Central Georgia","Macon","GA","JTE 1-Fiscal management","JTE 5-Membership/youth growth","JTE 7-Youth retention","JTE 14-Unit retention/growth","JTE 18-Unit leadership"]
[3,6,"444","Miami Valley",400,"G2","Dayton","OH","444-Miami Valley Council, Dayton, OH",null,"095-Flint River",null,null,null,null,null,null,"098-South Georgia Council, Valdosta, GA",null,"098 South Georgia","2020-12-31",null,98,"South Georgia","Valdosta","GA","JTE 15-Unit contacts","JTE 17-District leadership","JTE 18-Unit leadership","JTE 7-Youth retention","JTE 10-Cub Scout camping"]
[3,3,"121","Lincoln Trails",500,"G2","Decatur","IL","121-Lincoln Trails Council, Decatur, IL",null,"096-Central Georgia",null,null,null,null,null,null,"099-Coastal Georgia Council, Savannah, GA",null,"099 Coastal Georgia","2019-12-31",null,99,"Coastal Georgia","Savannah","GA","JTE 1-Fiscal management","JTE 5-Membership/youth growth","JTE 6-New member recruiting","JTE 2-Fundraising","JTE 17-District leadership"]
[4,2,"061","Denver Area",100,"G3","Denver","CO","061-Denver Area Council, Denver, CO",null,"098-South Georgia",null,null,null,null,null,null,"100-Northwest Georgia Council, Rome, GA",null,"100 Northwest Georgia","2020-12-31",null,100,"Northwest Georgia","Rome","GA","JTE 2-Fundraising","JTE 8-Cub Scout advancement","JTE 9-Boy Scout advancement","JTE 5-Membership/youth growth","JTE 7-Youth retention"]
[1,2,"069","Housatonic",500,"G3","Derby","CT","069-Housatonic Council, Derby, CT",null,"099-Coastal Georgia",null,null,null,null,null,null,"101-Northeast Georgia Council, Jefferson, GA",null,"101 Northeast Georgia","2021-12-31",null,101,"Northeast Georgia","Jefferson","GA","JTE 5-Membership/youth growth","JTE 9-Boy Scout advancement","JTE 10-Cub Scout camping","JTE 12-Community service","JTE 14-Unit retention/growth"]
[3,5,"177","Mid-Iowa",300,"G2","Des Moines","IA","177-Mid-Iowa Council, Des Moines, IA",null,"100-Northwest Georgia",null,null,null,null,null,null,"102-Maui County Council, Wailuku, Maui, HI",null,"102 Maui County","2020-12-31",null,102,"Maui County","Wailuku, Maui","HI","JTE 1-Fiscal management","JTE 5-Membership/youth growth","JTE 2-Fundraising","JTE 18-Unit leadership","JTE 14-Unit retention/growth"]
[3,2,"272","Great Lakes",100,"G3","Detroit","MI","272-Great Lakes Council, Detroit, MI",null,"101-Northeast Georgia",null,null,null,null,null,null,"104-Aloha Council, Honolulu, HI",null,"104 Aloha","2020-12-31",null,104,"Aloha","Honolulu","HI","JTE 1-Fiscal management","JTE 2-Fundraising","JTE 6-New member recruiting","JTE 11-Boy Scout camping","JTE 18-Unit leadership"]
[2,1,"003","Alabama-Florida",500,"G1","Dothan","AL","003-Alabama-Florida Council, Dothan, AL",null,"102-Maui County",null,null,null,null,null,null,"106-Ore-Ida Council, Boise, ID",null,"106 Ore-Ida","2019-12-31",null,106,"Ore-Ida","Boise","ID","JTE 1-Fiscal management","JTE 6-New member recruiting","JTE 8-Cub Scout advancement","JTE 14-Unit retention/growth","JTE 17-District leadership"]
[1,5,"777","Washington Crossing",300,"G2","Doylestown","PA","777-Washington Crossing Council, Doylestown, PA",null,"104-Aloha",null,null,null,null,null,null,"107-Grand Teton Council, Idaho Falls, ID",null,"107 Grand Teton","2018-12-31",null,107,"Grand Teton","Idaho Falls","ID","JTE 3-Endowment","JTE 2-Fundraising","JTE 1-Fiscal management","JTE 18-Unit leadership","JTE 15-Unit contacts"]
[1,4,"509","Bucktail",500,"G1","DuBois","PA","509-Bucktail Council, DuBois, PA",null,"106-Ore-Ida",null,null,null,null,null,null,"111-Snake River Council, Twin Falls, ID",null,"111 Snake River","2022-12-31",null,111,"Snake River","Twin Falls","ID","JTE 2-Fundraising","JTE 5-Membership/youth growth","JTE 12-Community service","JTE 15-Unit contacts","JTE 18-Unit leadership"]
[3,3,"178","Northeast Iowa",500,"G1","Dubuque","IA","178-Northeast Iowa Council, Dubuque, IA",null,"107-Grand Teton",null,null,null,null,null,null,"117-Prairielands Council, Champaign, IL",null,"117 Prairielands","2020-12-31",null,117,"Prairielands","Champaign","IL","JTE 2-Fundraising","JTE 12-Community service","JTE 15-Unit contacts","JTE 13-Youth-serving executives","JTE 18-Unit leadership"]
[1,2,"066","Connecticut Rivers",200,"G3","East Hartford","CT","066-Connecticut Rivers Council, East Hartford, CT",null,"111-Snake River",null,null,null,null,null,null,"121-Lincoln Trails Council, Decatur, IL",null,"121 Lincoln Trails","2018-12-31",null,121,"Lincoln Trails","Decatur","IL","JTE 5-Membership/youth growth","JTE 14-Unit retention/growth","JTE 1-Fiscal management","JTE 17-District leadership","JTE 2-Fundraising"]
[3,1,"637","Chippewa Valley",400,"G2","Eau Claire","WI",{"$f":"_xlfn.CONCAT(C67) & \"-\" & (D67) & \" Council, \" & (G67) &  \", \" & (H67)","v":"637-Chippewa Valley Council, Eau Claire, WI"},null,"117-Prairielands",null,null,null,null,null,null,"127-Three Fires Council, St. Charles, IL",null,"127 Three Fires","2020-12-31",null,127,"Three Fires","St. Charles","IL","JTE 2-Fundraising","JTE 6-New member recruiting","JTE 10-Cub Scout camping","JTE 15-Unit contacts","JTE 17-District leadership"]
[2,8,"013","De Soto Area",500,"G1","El Dorado","AR","013-De Soto Area Council, El Dorado, AR",null,"121-Lincoln Trails",null,null,null,null,null,null,"129-Northeast Illinois Council, Highland Park, IL",null,"129 Northeast Illinois",null,null,129,"Northeast Illinois","Highland Park","IL","JTE 1-Fiscal management","JTE 3-Endowment","JTE 6-New member recruiting","JTE 10-Cub Scout camping","JTE 18-Unit leadership"]
[4,6,"573","Yucca",500,"G1","El Paso","TX","573-Yucca Council, El Paso, TX",null,"127-Three Fires",null,null,null,null,null,null,"133-Illowa Council, Davenport, IA",null,"133 Illowa","2019-12-31",null,133,"Illowa","Davenport","IA","JTE 1-Fiscal management","JTE 8-Cub Scout advancement","JTE 17-District leadership","JTE 15-Unit contacts","JTE 12-Community service"]
[2,8,"474","Cimarron",500,"G1","Enid","OK","474-Cimarron Council, Enid, OK",null,"129-Northeast Illinois",null,null,null,null,null,null,"138-W.D. Boyce Council, Peoria, IL",null,"138 W.D. Boyce","2022-12-31",null,138,"W.D. Boyce","Peoria","IL","JTE 5-Membership/youth growth","JTE 12-Community service","JTE 3-Endowment","JTE 18-Unit leadership","JTE 8-Cub Scout advancement"]
[1,4,"532","French Creek",500,"G1","Erie","PA","532-French Creek Council, Erie, PA",null,"133-Illowa",null,null,null,null,null,null,"141-Mississippi Valley Council, Quincy, IL",null,"141 Mississippi Valley","2019-12-31",null,141,"Mississippi Valley","Quincy","IL","JTE 3-Endowment","JTE 5-Membership/youth growth","JTE 6-New member recruiting","JTE 14-Unit retention/growth","JTE 18-Unit leadership"]
[4,1,"697","Oregon Trail",400,"G2","Eugene","OR","697-Oregon Trail Council, Eugene, OR",null,"138-W.D. Boyce",null,null,null,null,null,null,"144-Abraham Lincoln Council, Springfield, IL",null,"144 Abraham Lincoln","2018-12-31",null,144,"Abraham Lincoln","Springfield","IL","JTE 5-Membership/youth growth","JTE 6-New member recruiting","JTE 8-Cub Scout advancement","JTE 12-Community service","JTE 4-Community impact"]
[3,6,"156","Buffalo Trace",400,"G2","Evansville","IN","156-Buffalo Trace Council, Evansville, IN",null,"141-Mississippi Valley",null,null,null,null,null,null,"145-Hoosier Trails Council, Bloomington, IN",null,"145 Hoosier Trails","2020-12-31",null,145,"Hoosier Trails","Bloomington","IN","JTE 1-Fiscal management","JTE 8-Cub Scout advancement","JTE 9-Boy Scout advancement","JTE 18-Unit leadership","JTE 6-New member recruiting"]
[4,1,"606","Mount Baker",400,"G3","Everett","WA","606-Mount Baker Council, Everett, WA",null,"144-Abraham Lincoln",null,null,null,null,null,null,"156-Buffalo Trace Council, Evansville, IN",null,"156 Buffalo Trace","2020-12-31",null,156,"Buffalo Trace","Evansville","IN","JTE 10-Cub Scout camping","JTE 15-Unit contacts","JTE 5-Membership/youth growth","JTE 18-Unit leadership","JTE 6-New member recruiting"]
[4,1,"696","Midnight Sun",500,"G3","Fairbanks","AK","696-Midnight Sun Council, Fairbanks, AK",null,"145-Hoosier Trails",null,null,null,null,null,null,"157-Anthony Wayne Area Council, Fort Wayne, IN",null,"157 Anthony Wayne Area","2019-12-31",null,157,"Anthony Wayne Area","Fort Wayne","IN","JTE 1-Fiscal management","JTE 5-Membership/youth growth","JTE 7-Youth retention","JTE 10-Cub Scout camping","JTE 18-Unit leadership"]
[3,4,"615","Mountaineer Area",500,"G1","Fairmont","WV","615-Mountaineer Area Council, Fairmont, WV",null,"156-Buffalo Trace",null,null,null,null,null,null,"160-Crossroads of America Council, Indianapolis, IN",null,"160 Crossroads of America","2018-12-31",null,160,"Crossroads of America","Indianapolis","IN","JTE 3-Endowment","JTE 5-Membership/youth growth","JTE 7-Youth retention","JTE 9-Boy Scout advancement","JTE 10-Cub Scout camping"]
[1,4,"382","Allegheny Highlands",500,"G2","Falconer","NY","382-Allegheny Highlands Council, Falconer, NY",null,"157-Anthony Wayne Area",null,null,null,null,null,null,"162-Sagamore Council, Kokomo, IN",null,"162 Sagamore","2021-12-31",null,162,"Sagamore","Kokomo","IN","JTE 2-Fundraising","JTE 5-Membership/youth growth","JTE 10-Cub Scout camping","JTE 14-Unit retention/growth","JTE 18-Unit leadership"]
[3,1,"429","Northern Lights",300,"G1","Fargo","ND","429-Northern Lights Council, Fargo, ND",null,"160-Crossroads of America",null,null,null,null,null,null,"165-LaSalle Council, South Bend, IN",null,"165 LaSalle","2018-12-31",null,165,"LaSalle","South Bend","IN","JTE 5-Membership/youth growth","JTE 2-Fundraising","JTE 6-New member recruiting","JTE 14-Unit retention/growth","JTE 12-Community service"]
[3,6,"449","Black Swamp Area",400,"G2","Findlay","OH","449-Black Swamp Area Council, Findlay, OH",null,"162-Sagamore",null,null,null,null,null,null,"172-Hawkeye Area Council, Cedar Rapids, IA",null,"172 Hawkeye Area","2020-12-31",null,172,"Hawkeye Area","Cedar Rapids","IA","JTE 2-Fundraising","JTE 5-Membership/youth growth","JTE 10-Cub Scout camping","JTE 17-District leadership","JTE 3-Endowment"]
[3,2,"782","Water and Woods",400,"G3","Flint","MI","782-Water and Woods Council, Flint, MI",null,"165-LaSalle",null,null,null,null,null,null,"173-Winnebago Council, Waterloo, IA",null,"173 Winnebago",null,null,173,"Winnebago","Waterloo","IA","JTE 2-Fundraising","JTE 17-District leadership","JTE 18-Unit leadership","JTE 9-Boy Scout advancement","JTE 15-Unit contacts"]
[2,5,"552","Pee Dee Area",500,"G1","Florence","SC","552-Pee Dee Area Council, Florence, SC",null,"172-Hawkeye Area",null,null,null,null,null,null,"177-Mid-Iowa Council, Des Moines, IA",null,"177 Mid-Iowa","2021-12-31",null,"177","Mid-Iowa","Des Moines","IA","JTE 10-Cub Scout camping","JTE 2-Fundraising","JTE 3-Endowment","JTE 6-New member recruiting","JTE 5-Membership/youth growth"]
[2,4,"088","Southwest Florida",400,"G2","Fort Myers","FL","088-Southwest Florida Council, Fort Myers, FL",null,"173-Winnebago",null,null,null,null,null,null,"178-Northeast Iowa Council, Dubuque, IA",null,"178 Northeast Iowa","2019-12-31",null,178,"Northeast Iowa","Dubuque","IA","JTE 3-Endowment","JTE 18-Unit leadership","JTE 8-Cub Scout advancement","JTE 9-Boy Scout advancement","JTE 6-New member recruiting"]
[2,8,"016","Westark Area",400,"G1","Fort Smith","AR","016-Westark Area Council, Fort Smith, AR",null,"177-Mid-Iowa",null,null,null,null,null,null,"192-Coronado Area Council, Salina, KS",null,"192 Coronado Area","2018-12-31",null,192,"Coronado Area","Salina","KS","JTE 13-Youth-serving executives","JTE 18-Unit leadership","JTE 12-Community service","JTE 10-Cub Scout camping","JTE 14-Unit retention/growth"]
[3,6,"157","Anthony Wayne Area",400,"G2","Fort Wayne","IN","157-Anthony Wayne Area Council, Fort Wayne, IN",null,"178-Northeast Iowa",null,null,null,null,null,null,"194-Santa Fe Trail Council, Garden City, KS",null,"194 Santa Fe Trail","2020-12-31",null,194,"Santa Fe Trail","Garden City","KS","JTE 2-Fundraising","JTE 5-Membership/youth growth","JTE 3-Endowment","JTE 12-Community service","JTE 15-Unit contacts"]
[2,2,"662","Longhorn",200,"G2","Fort Worth","TX","662-Longhorn Council, Fort Worth, TX",null,"192-Coronado Area",null,null,null,null,null,null,"197-Jayhawk Area Council, Topeka, KS",null,"197 Jayhawk Area","2019-12-31",null,197,"Jayhawk Area","Topeka","KS","JTE 5-Membership/youth growth","JTE 8-Cub Scout advancement","JTE 9-Boy Scout advancement","JTE 12-Community service","JTE 15-Unit contacts"]
[4,3,"031","Pacific Skyline",300,"G4","Foster City","CA","031-Pacific Skyline Council, Foster City, CA",null,"194-Santa Fe Trail",null,null,null,null,null,null,"198-Quivira Council, Wichita, KS",null,"198 Quivira","2021-12-31",null,198,"Quivira","Wichita","KS","JTE 3-Endowment","JTE 5-Membership/youth growth","JTE 8-Cub Scout advancement","JTE 10-Cub Scout camping","JTE 18-Unit leadership"]
[4,3,"027","Sequoia",300,"G2","Fresno","CA","027-Sequoia Council, Fresno, CA",null,"197-Jayhawk Area",null,null,null,null,null,null,"204-Blue Grass Council, Lexington, KY",null,"204 Blue Grass","2019-12-31",null,204,"Blue Grass","Lexington","KY","JTE 1-Fiscal management","JTE 2-Fundraising","JTE 4-Community impact","JTE 5-Membership/youth growth","JTE 15-Unit contacts"]
[2,3,"574","Bay Area",400,"G2","Galveston","TX","574-Bay Area Council, Galveston, TX",null,"198-Quivira",null,null,null,null,null,null,"205-Lincoln Heritage Council, Louisville, KY",null,"205 Lincoln Heritage","2018-12-31",null,205,"Lincoln Heritage","Louisville","KY","JTE 2-Fundraising","JTE 5-Membership/youth growth","JTE 11-Boy Scout camping","JTE 14-Unit retention/growth","JTE 18-Unit leadership"]
[3,5,"194","Santa Fe Trail",500,"G1","Garden City","KS","194-Santa Fe Trail Council, Garden City, KS",null,"204-Blue Grass",null,null,null,null,null,null,"209-Calcasieu Area Council, Lake Charles, LA",null,"209 Calcasieu Area",null,null,209,"Calcasieu Area","Lake Charles","LA","JTE 2-Fundraising","JTE 6-New member recruiting","JTE 9-Boy Scout advancement","JTE 14-Unit retention/growth","JTE 17-District leadership"]
[2,5,"420","Piedmont",300,"G2","Gastonia","NC","420-Piedmont Council, Gastonia, NC",null,"205-Lincoln Heritage",null,null,null,null,null,null,"211-Istrouma Area Council, Baton Rouge, LA",null,"211 Istrouma Area","2020-12-31",null,211,"Istrouma Area","Baton Rouge","LA","JTE 6-New member recruiting","JTE 1-Fiscal management","JTE 4-Community impact","JTE 13-Youth-serving executives","JTE 15-Unit contacts"]
[4,4,"058","Verdugo Hills",500,"G3","Glendale","CA","058-Verdugo Hills Council, Glendale, CA",null,"209-Calcasieu Area",null,null,null,null,null,null,"212-Evangeline Area Council, Lafayette, LA",null,"212 Evangeline Area",null,null,212,"Evangeline Area","Lafayette","LA","JTE 3-Endowment","JTE 5-Membership/youth growth","JTE 8-Cub Scout advancement","JTE 2-Fundraising","JTE 15-Unit contacts"]
[2,7,"424","Tuscarora",500,"G1","Goldsboro","NC","424-Tuscarora Council, Goldsboro, NC",null,"211-Istrouma Area",null,null,null,null,null,null,"213-Louisiana Purchase Council, Monroe, LA",null,"213 Louisiana Purchase","2019-12-31",null,213,"Louisiana Purchase","Monroe","LA","JTE 8-Cub Scout advancement","JTE 9-Boy Scout advancement","JTE 10-Cub Scout camping","JTE 11-Boy Scout camping","JTE 1-Fiscal management"]
[3,5,"322","Overland Trails",500,"G1","Grand Island","NE","322-Overland Trails Council, Grand Island, NE",null,"212-Evangeline Area",null,null,null,null,null,null,"214-Southeast Louisiana Council, New Orleans, LA",null,"214 Southeast Louisiana",null,null,214,"Southeast Louisiana","New Orleans","LA","JTE 1-Fiscal management","JTE 5-Membership/youth growth","JTE 6-New member recruiting","JTE 14-Unit retention/growth","JTE 17-District leadership"]
[4,2,"064","Western Colorado",500,"G1","Grand Junction","CO","064-Western Colorado Council, Grand Junction, CO",null,"213-Louisiana Purchase",null,null,null,null,null,null,"215-Norwela Council, Shreveport, LA",null,"215 Norwela","2020-12-31",null,215,"Norwela","Shreveport","LA","JTE 5-Membership/youth growth","JTE 4-Community impact","JTE 8-Cub Scout advancement","JTE 15-Unit contacts","JTE 17-District leadership"]
[3,2,"781","President Gerald R. Ford",300,"G2","Grand Rapids","MI","781-President Gerald R. Ford Council, Grand Rapids, MI",null,"214-Southeast Louisiana",null,null,null,null,null,null,"216-Katahdin Area Council, Bangor, ME",null,"216 Katahdin Area",null,null,216,"Katahdin Area","Bangor","ME","JTE 2-Fundraising","JTE 4-Community impact","JTE 6-New member recruiting","JTE 15-Unit contacts","JTE 17-District leadership"]
[4,2,"315","Montana",300,"G1","Great Falls","MT","315-Montana Council, Great Falls, MT",null,"215-Norwela",null,null,null,null,null,null,"218-Pine Tree Council, Portland, ME",null,"218 Pine Tree",null,null,218,"Pine Tree","Portland","ME","JTE 2-Fundraising","JTE 5-Membership/youth growth","JTE 17-District leadership","JTE 18-Unit leadership","JTE 10-Cub Scout camping"]
[4,2,"062","Longs Peak",300,"G2","Greeley","CO","062-Longs Peak Council, Greeley, CO",null,"216-Katahdin Area",null,null,null,null,null,null,"220-Baltimore Area Council, Baltimore, MD",null,"220 Baltimore Area","2021-12-31",null,220,"Baltimore Area","Baltimore","MD","JTE 6-New member recruiting","JTE 11-Boy Scout camping","JTE 18-Unit leadership","JTE 3-Endowment","JTE 8-Cub Scout advancement"]
[2,7,"070","Old North State",300,"G2","Greensboro","NC","070-Old North State Council, Greensboro, NC",null,"218-Pine Tree",null,null,null,null,null,null,"221-Mason-Dixon Council, Hagerstown, MD",null,"221 Mason-Dixon","2019-12-31",null,221,"Mason-Dixon","Hagerstown","MD","JTE 5-Membership/youth growth","JTE 14-Unit retention/growth","JTE 2-Fundraising","JTE 6-New member recruiting","JTE 1-Fiscal management"]
[1,4,"512","Westmoreland-Fayette",400,"G2","Greensburg","PA","512-Westmoreland-Fayette Council, Greensburg, PA",null,"220-Baltimore Area",null,null,null,null,null,null,"224-Cape Cod and Islands Council, Yarmouth Port, MA",null,"224 Cape Cod and Islands","2018-12-31",null,224,"Cape Cod and Islands","Yarmouth Port","MA","JTE 1-Fiscal management","JTE 2-Fundraising","JTE 5-Membership/youth growth","JTE 6-New member recruiting","JTE 14-Unit retention/growth"]
[2,5,"551","Blue Ridge",300,"G1","Greenville","SC","551-Blue Ridge Council, Greenville, SC",null,"221-Mason-Dixon",null,null,null,null,null,null,"227-Spirit of Adventure Council, Boston, MA",null,"227 Spirit of Adventure","2021-12-31",null,"227","Spirit of Adventure","Boston","MA"]
[1,2,"067","Greenwich",400,"G4","Greenwich","CT","067-Greenwich Council, Greenwich, CT",null,"224-Cape Cod and Islands",null,null,"230-Nashua Valley",null,null,null,"230-Nashua Valley Council, Lancaster, MA",null,"230 Nashua Valley","2021-12-31",null,230,"Nashua Valley","Lancaster","MA","JTE 2-Fundraising","JTE 17-District leadership","JTE 4-Community impact","JTE 10-Cub Scout camping","JTE 11-Boy Scout camping"]
[2,9,"095","Flint River",400,"G2","Griffin","GA","095-Flint River Council, Griffin, GA",null,"227-Spirit of Adventure",null,null,"254-Mohegan",null,null,null,"234-Western Massachusetts Council, Westfield, MA",null,"234 Western Massachusetts","2019-12-31",null,234,"Western Massachusetts","Westfield","MA","JTE 2-Fundraising","JTE 4-Community impact","JTE 5-Membership/youth growth","JTE 10-Cub Scout camping","JTE 11-Boy Scout camping"]
[1,5,"661","Puerto Rico",400,"G1","Guaynabo","PR","661-Puerto Rico Council, Guaynabo, PR",null,"230-Heart of New England",null,null,null,null,null,null,"250-Northern Star Council, St. Paul, MN",null,"250 Northern Star",null,null,250,"Northern Star","St. Paul","MN","JTE 6-New member recruiting","JTE 10-Cub Scout camping","JTE 18-Unit leadership","JTE 1-Fiscal management","JTE 8-Cub Scout advancement"]
[1,6,"221","Mason-Dixon",500,"G2","Hagerstown","MD","221-Mason-Dixon Council, Hagerstown, MD",null,"234-Western Massachusetts",null,null,null,null,null,null,"251-Mayflower Council, Marlborough, MA",null,"251 Mayflower",null,null,251,"Mayflower","Marlborough","MA","JTE 1-Fiscal management","JTE 2-Fundraising","JTE 5-Membership/youth growth","JTE 17-District leadership","JTE 6-New member recruiting"]
[2,3,"775","Rio Grande",500,"G1","Harlingen","TX","775-Rio Grande Council, Harlingen, TX",null,"250-Northern Star",null,null,null,null,null,null,"254-Mohegan Council, Worcester, MA",null,"254 Mohegan",null,null,254,"Mohegan","Worcester","MA","JTE 2-Fundraising","JTE 5-Membership/youth growth","JTE 17-District leadership","JTE 6-New member recruiting","JTE 15-Unit contacts"]
[2,1,"304","Pine Burr Area",400,"G1","Hattiesburg","MS","304-Pine Burr Area Council, Hattiesburg, MS",null,"251-Mayflower",null,null,null,null,null,null,"272-Great Lakes Council, Detroit, MI",null,"272 Great Lakes","2019-12-31",null,272,"Great Lakes","Detroit","MI","JTE 5-Membership/youth growth","JTE 10-Cub Scout camping","JTE 15-Unit contacts","JTE 2-Fundraising","JTE 8-Cub Scout advancement"]
[1,2,"388","Westchester-Putnam",300,"G4","Hawthorne","NY","388-Westchester-Putnam Council, Hawthorne, NY",null,"272-Great Lakes",null,null,null,null,null,null,"283-Twin Valley Council, Mankato, MN",null,"283 Twin Valley","2019-12-31",null,283,"Twin Valley","Mankato","MN","JTE 2-Fundraising","JTE 6-New member recruiting","JTE 7-Youth retention","JTE 14-Unit retention/growth","JTE 18-Unit leadership"]
[3,1,"286","Voyageurs Area",500,"G2","Hermantown","MN","286-Voyageurs Area Council, Hermantown, MN",null,"283-Twin Valley",null,null,null,null,null,null,"286-Voyageurs Area Council, Hermantown, MN",null,"286 Voyageurs Area","2018-12-31",null,286,"Voyageurs Area","Hermantown","MN","JTE 2-Fundraising","JTE 3-Endowment","JTE 5-Membership/youth growth","JTE 14-Unit retention/growth","JTE 18-Unit leadership"]
[3,7,"129","Northeast Illinois",300,"G3","Highland Park","IL","129-Northeast Illinois Council, Highland Park, IL",null,"286-Voyageurs Area",null,null,null,null,null,null,"296-Central Minnesota Council, Sartell, MN",null,"296 Central Minnesota",null,null,296,"Central Minnesota","Sartell","MN","JTE 18-Unit leadership","JTE 12-Community service","JTE 15-Unit contacts","JTE 17-District leadership","JTE 14-Unit retention/growth"]
[4,6,"104","Aloha",300,"G3","Honolulu","HI","104-Aloha Council, Honolulu, HI",null,"296-Central Minnesota",null,null,null,null,null,null,"299-Gamehaven Council, Rochester, MN",null,"299 Gamehaven","2020-12-31",null,299,"Gamehaven","Rochester","MN","JTE 2-Fundraising","JTE 4-Community impact","JTE 10-Cub Scout camping","JTE 13-Youth-serving executives","JTE 8-Cub Scout advancement"]
[1,3,"375","Five Rivers",400,"G2","Horseheads","NY","375-Five Rivers Council, Horseheads, NY",null,"299-Gamehaven",null,null,null,null,null,null,"302-Choctaw Area Council, Meridian, MS",null,"302 Choctaw Area","2021-12-31",null,302,"Choctaw Area","Meridian","MS","JTE 2-Fundraising","JTE 7-Youth retention","JTE 8-Cub Scout advancement","JTE 10-Cub Scout camping","JTE 18-Unit leadership"]
[2,3,"576","Sam Houston Area",100,"G3","Houston","TX","576-Sam Houston Area Council, Houston, TX",null,"302-Choctaw Area",null,null,null,null,null,null,"303-Andrew Jackson Council, Jackson, MS",null,"303 Andrew Jackson","2021-12-31",null,303,"Andrew Jackson","Jackson","MS","JTE 11-Boy Scout camping","JTE 10-Cub Scout camping","JTE 5-Membership/youth growth","JTE 14-Unit retention/growth","JTE 3-Endowment"]
[4,2,"107","Grand Teton",300,"G1","Idaho Falls","ID","107-Grand Teton Council, Idaho Falls, ID",null,"303-Andrew Jackson",null,null,null,null,null,null,"304-Pine Burr Area Council, Hattiesburg, MS",null,"304 Pine Burr Area","2022-12-31",null,304,"Pine Burr Area","Hattiesburg","MS","JTE 2-Fundraising","JTE 5-Membership/youth growth","JTE 8-Cub Scout advancement","JTE 11-Boy Scout camping","JTE 17-District leadership"]
[3,6,"160","Crossroads of America",100,"G2","Indianapolis","IN","160-Crossroads of America Council, Indianapolis, IN",null,"304-Pine Burr Area",null,null,null,null,null,null,"306-Ozark Trails Council, Springfield, MO",null,"306 Ozark Trails","2019-12-31",null,306,"Ozark Trails","Springfield","MO","JTE 2-Fundraising","JTE 5-Membership/youth growth","JTE 13-Youth-serving executives","JTE 17-District leadership","JTE 11-Boy Scout camping"]
[2,6,"559","West Tennessee Area",400,"G1","Jackson","TN","559-West Tennessee Area Council, Jackson, TN",null,"306-Ozark Trails",null,null,null,null,null,null,"307-Heart of America Council, Kansas City, MO",null,"307 Heart of America","2018-12-31",null,307,"Heart of America","Kansas City","MO","JTE 5-Membership/youth growth","JTE 8-Cub Scout advancement","JTE 9-Boy Scout advancement","JTE 14-Unit retention/growth","JTE 6-New member recruiting"]
[2,1,"303","Andrew Jackson",400,"G1","Jackson","MS","303-Andrew Jackson Council, Jackson, MS",null,"307-Heart of America",null,null,null,null,null,null,"311-Pony Express Council, St. Joseph, MO",null,"311 Pony Express","2022-12-31",null,311,"Pony Express","St. Joseph","MO","JTE 3-Endowment","JTE 5-Membership/youth growth","JTE 10-Cub Scout camping","JTE 1-Fiscal management","JTE 11-Boy Scout camping"]
[2,4,"087","North Florida",200,"G2","Jacksonville","FL","087-North Florida Council, Jacksonville, FL",null,"311-Pony Express",null,null,null,null,null,null,"312-Greater St. Louis Area Council, St. Louis, MO",null,"312 Greater St. Louis Area","2020-12-31",null,312,"Greater St. Louis Area","St. Louis","MO","JTE 1-Fiscal management","JTE 3-Endowment","JTE 14-Unit retention/growth","JTE 17-District leadership","JTE 10-Cub Scout camping"]
[2,9,"101","Northeast Georgia",200,"G2","Jefferson","GA","101-Northeast Georgia Council, Jefferson, GA",null,"312-Greater St. Louis Area",null,null,null,null,null,null,"315-Montana Council, Great Falls, MT",null,"315 Montana","2021-12-31",null,315,"Montana","Great Falls","MT","JTE 10-Cub Scout camping","JTE 18-Unit leadership","JTE 17-District leadership","JTE 2-Fundraising","JTE 6-New member recruiting"]
[2,6,"713","Sequoyah",400,"G1","Johnson City","TN","713-Sequoyah Council, Johnson City, TN",null,"315-Montana",null,null,null,null,null,null,"322-Overland Trails Council, Grand Island, NE",null,"322 Overland Trails","2020-12-31",null,322,"Overland Trails","Grand Island","NE","JTE 1-Fiscal management","JTE 5-Membership/youth growth","JTE 17-District leadership","JTE 18-Unit leadership","JTE 2-Fundraising"]
[3,5,"307","Heart of America",100,"G2","Kansas City","MO","307-Heart of America Council, Kansas City, MO",null,"322-Overland Trails",null,null,null,null,null,null,"324-Cornhusker Council, Lincoln, NE",null,"324 Cornhusker","2018-12-31",null,324,"Cornhusker","Lincoln","NE","JTE 1-Fiscal management","JTE 3-Endowment","JTE 6-New member recruiting","JTE 12-Community service","JTE 10-Cub Scout camping"]
[4,1,"604","Blue Mountain",500,"G3","Kennewick","WA","604-Blue Mountain Council, Kennewick, WA",null,"324-Cornhusker",null,null,null,null,null,null,"326-Mid-America Council, Omaha, NE",null,"326 Mid-America",null,null,326,"Mid-America","Omaha","NE","JTE 1-Fiscal management","JTE 6-New member recruiting","JTE 8-Cub Scout advancement","JTE 14-Unit retention/growth","JTE 18-Unit leadership"]
[1,2,"405","Rip Van Winkle",500,"G2","Kingston","NY","405-Rip Van Winkle Council, Kingston, NY",null,"326-Mid-America",null,null,null,null,null,null,"328-Las Vegas Area Council, Las Vegas, NV",null,"328 Las Vegas Area",null,null,328,"Las Vegas Area","Las Vegas","NV","JTE 2-Fundraising","JTE 3-Endowment","JTE 11-Boy Scout camping","JTE 9-Boy Scout advancement","JTE 18-Unit leadership"]
[2,7,"426","East Carolina",300,"G1","Kinston","NC","426-East Carolina Council, Kinston, NC",null,"328-Las Vegas Area",null,null,null,null,null,null,"329-Nevada Area Council, Reno, NV",null,"329 Nevada Area","2021-12-31",null,329,"Nevada Area","Reno","NV","JTE 1-Fiscal management","JTE 5-Membership/youth growth","JTE 15-Unit contacts","JTE 17-District leadership","JTE 18-Unit leadership"]
[2,6,"557","Great Smoky Mountain",300,"G2","Knoxville","TN","557-Great Smoky Mountain Council, Knoxville, TN",null,"329-Nevada Area",null,null,null,null,null,null,"330-Daniel Webster Council, Manchester, NH",null,"330 Daniel Webster","2020-12-31",null,330,"Daniel Webster","Manchester","NH","JTE 1-Fiscal management","JTE 5-Membership/youth growth","JTE 11-Boy Scout camping","JTE 15-Unit contacts","JTE 18-Unit leadership"]
[3,6,"162","Sagamore",400,"G2","Kokomo","IN","162-Sagamore Council, Kokomo, IN",null,"330-Daniel Webster",null,null,null,null,null,null,"333-Northern New Jersey Council, Oakland, NJ",null,"333 Northern New Jersey","2018-12-31",null,333,"Northern New Jersey","Oakland","NJ","JTE 1-Fiscal management","JTE 5-Membership/youth growth","JTE 2-Fundraising","JTE 15-Unit contacts","JTE 10-Cub Scout camping"]
[3,1,"624","Gateway Area",500,"G1","La Crosse","WI","624-Gateway Area Council, La Crosse, WI",null,"333-Northern New Jersey",null,null,null,null,null,null,"341-Jersey Shore Council, Toms River, NJ",null,"341 Jersey Shore","2018-12-31",null,341,"Jersey Shore","Toms River","NJ","JTE 5-Membership/youth growth","JTE 18-Unit leadership","JTE 8-Cub Scout advancement","JTE 15-Unit contacts","JTE 12-Community service"]
[2,1,"212","Evangeline Area",400,"G1","Lafayette","LA","212-Evangeline Area Council, Lafayette, LA",null,"341-Jersey Shore",null,null,null,null,null,null,"347-Monmouth Council, Morganville, NJ",null,"347 Monmouth","2020-12-31",null,347,"Monmouth","Morganville","NJ","JTE 5-Membership/youth growth","JTE 2-Fundraising","JTE 6-New member recruiting","JTE 10-Cub Scout camping","JTE 3-Endowment"]
[2,1,"209","Calcasieu Area",500,"G2","Lake Charles","LA","209-Calcasieu Area Council, Lake Charles, LA",null,"347-Monmouth",null,null,null,null,null,null,"358-Patriots' Path Council, Cedar Knolls, NJ",null,"358 Patriots' Path","2018-12-31",null,358,"Patriots' Path","Cedar Knolls","NJ","JTE 5-Membership/youth growth","JTE 2-Fundraising","JTE 10-Cub Scout camping","JTE 3-Endowment","JTE 4-Community impact"]
[1,6,"524","Pennsylvania Dutch",300,"G2","Lancaster","PA","524-Pennsylvania Dutch Council, Lancaster, PA",null,"358-Patriots' Path",null,null,null,null,null,null,"364-Twin Rivers Council, Albany, NY",null,"364 Twin Rivers","2018-12-31",null,364,"Twin Rivers","Albany","NY","JTE 5-Membership/youth growth","JTE 14-Unit retention/growth","JTE 1-Fiscal management","JTE 17-District leadership","JTE 18-Unit leadership"]
[1,1,"230","Nashua Valley",400,"G3","Lancaster","MA","230-Nashua Valley Council, Lancaster, MA",null,"364-Twin Rivers",null,null,null,null,null,null,"368-Baden-Powell Council, Binghamton, NY",null,"368 Baden-Powell","2021-12-31",null,368,"Baden-Powell","Binghamton","NY","JTE 1-Fiscal management","JTE 4-Community impact","JTE 10-Cub Scout camping","JTE 15-Unit contacts","JTE 17-District leadership"]
[4,6,"328","Las Vegas Area",300,"G3","Las Vegas","NV",{"$f":"_xlfn.CONCAT(C131) & \"-\" & (D131) & \" Council, \" & (G131) &  \", \" & (H131)","v":"328-Las Vegas Area Council, Las Vegas, NV"},null,"368-Baden-Powell",null,null,null,null,null,null,"373-Longhouse Council, Syracuse, NY",null,"373 Longhouse",null,null,373,"Longhouse","Syracuse","NY","JTE 3-Endowment","JTE 5-Membership/youth growth","JTE 6-New member recruiting","JTE 10-Cub Scout camping","JTE 18-Unit leadership"]
[1,5,"502","Minsi Trails",300,"G2","Lehigh Valley","PA","502-Minsi Trails Council, Lehigh Valley, PA",null,"373-Longhouse",null,null,null,null,null,null,"374-Hudson Valley Council, Newburgh, NY",null,"374 Hudson Valley","2020-12-31",null,374,"Hudson Valley","Newburgh","NY","JTE 2-Fundraising","JTE 5-Membership/youth growth","JTE 8-Cub Scout advancement","JTE 14-Unit retention/growth","JTE 17-District leadership"]
[2,6,"204","Blue Grass",400,"G1","Lexington","KY","204-Blue Grass Council, Lexington, KY",null,"374-Hudson Valley",null,null,null,null,null,null,"375-Five Rivers Council, Horseheads, NY",null,"375 Five Rivers","2019-12-31",null,375,"Five Rivers","Horseheads","NY","JTE 5-Membership/youth growth","JTE 6-New member recruiting","JTE 10-Cub Scout camping","JTE 3-Endowment","JTE 18-Unit leadership"]
[3,5,"324","Cornhusker",400,"G1","Lincoln","NE","324-Cornhusker Council, Lincoln, NE",null,"375-Five Rivers",null,null,null,null,null,null,"376-Iroquois Trail Council, Batavia, NY",null,"376 Iroquois Trail","2020-12-31",null,"376","Iroquois Trail","Batavia","NY","JTE 2-Fundraising","JTE 5-Membership/youth growth","JTE 8-Cub Scout advancement","JTE  14 Unit Retention","JTE 17 District leadership "]
[2,8,"018","Quapaw Area",300,"G1","Little Rock","AR","018-Quapaw Area Council, Little Rock, AR",null,"376-Iroquois Trail",null,null,null,null,null,null,"380-Greater Niagara Frontier Council, Buffalo, NY",null,"380 Greater Niagara Frontier","2019-12-31",null,380,"Greater Niagara Frontier","Buffalo","NY","JTE 1-Fiscal management","JTE 6-New member recruiting","JTE 10-Cub Scout camping","JTE 15-Unit contacts","JTE 17-District leadership"]
[4,4,"032","Long Beach Area",400,"G3","Long Beach","CA","032-Long Beach Area Council, Long Beach, CA",null,"380-Greater Niagara Frontier",null,null,null,null,null,null,"382-Allegheny Highlands Council, Falconer, NY",null,"382 Allegheny Highlands","2018-12-31",null,382,"Allegheny Highlands","Falconer","NY","JTE 2-Fundraising","JTE 10-Cub Scout camping","JTE 12-Community service","JTE 15-Unit contacts","JTE 17-District leadership"]
[4,4,"033","Greater Los Angeles Area",100,"G3","Los Angeles","CA","033-Greater Los Angeles Area Council, Los Angeles, CA",null,"382-Allegheny Highlands",null,null,null,null,null,null,"386-Theodore Roosevelt Council, Massapequa, NY",null,"386 Theodore Roosevelt",null,null,386,"Theodore Roosevelt","Massapequa","NY","JTE 3-Endowment","JTE 6-New member recruiting","JTE 10-Cub Scout camping","JTE 12-Community service","JTE 15-Unit contacts"]
[2,6,"205","Lincoln Heritage",200,"G2","Louisville","KY","205-Lincoln Heritage Council, Louisville, KY",null,"386-Theodore Roosevelt",null,null,null,null,null,null,"388-Westchester-Putnam Council, Hawthorne, NY",null,"388 Westchester-Putnam","2018-12-31",null,388,"Westchester-Putnam","Hawthorne","NY","JTE 1-Fiscal management","JTE 5-Membership/youth growth","JTE 6-New member recruiting","JTE 8-Cub Scout advancement","JTE 10-Cub Scout camping"]
[2,2,"694","South Plains",500,"G1","Lubbock","TX","694-South Plains Council, Lubbock, TX",null,"388-Westchester-Putnam",null,null,null,null,null,null,"397-Seneca Waterways Council, Rochester, NY",null,"397 Seneca Waterways","2019-12-31",null,397,"Seneca Waterways","Rochester","NY","JTE 17-District leadership","JTE 15-Unit contacts","JTE 10-Cub Scout camping","JTE 12-Community service","JTE 5-Membership/youth growth"]
[2,9,"096","Central Georgia",500,"G1","Macon","GA","096-Central Georgia Council, Macon, GA",null,"397-Seneca Waterways",null,null,null,null,null,null,"400-Leatherstocking Council, Utica, NY",null,"400 Leatherstocking",null,null,400,"Leatherstocking","Utica","NY","JTE 2-Fundraising","JTE 8-Cub Scout advancement","JTE 12-Community service","JTE 15-Unit contacts","JTE 17-District leadership"]
[3,7,"620","Glacier's Edge",400,"G2","Madison","WI","620-Glacier's Edge Council, Madison, WI",null,"400-Leatherstocking",null,null,null,null,null,null,"404-Suffolk County Council, Medford, NY",null,"404 Suffolk County",null,null,"404","Suffolk County","Medford","NY","JTE 10-Cub Scout camping","JTE 18-Unit leadership","JTE 12-Community service","JTE 6-New member recruiting","JTE 3-Endowment"]
[1,1,"330","Daniel Webster",200,"G2","Manchester","NH","330-Daniel Webster Council, Manchester, NH",null,"404-Suffolk County",null,null,null,null,null,null,"405-Rip Van Winkle Council, Kingston, NY",null,"405 Rip Van Winkle","2019-12-31",null,405,"Rip Van Winkle","Kingston","NY","JTE 10-Cub Scout camping","JTE 15-Unit contacts","JTE 17-District leadership","JTE 12-Community service","JTE 6-New member recruiting"]
[3,1,"283","Twin Valley",400,"G1","Mankato","MN","283-Twin Valley Council, Mankato, MN",null,"405-Rip Van Winkle",null,null,null,null,null,null,"412-Great Southwest Council, Albuquerque, NM",null,"412 Great Southwest","2020-12-31",null,412,"Great Southwest","Albuquerque","NM","JTE 1-Fiscal management","JTE 5-Membership/youth growth","JTE 8-Cub Scout advancement","JTE 15-Unit contacts","JTE 18-Unit leadership"]
[1,1,"251","Mayflower",300,"G3","Marlborough","MA","251-Mayflower Council, Marlborough, MA",null,"412-Great Southwest",null,null,null,null,null,null,"413-Conquistador Council, Roswell, NM",null,"413 Conquistador","2019-12-31",null,413,"Conquistador","Roswell","NM","JTE 14-Unit retention/growth","JTE 17-District leadership","JTE 10-Cub Scout camping","JTE 13-Youth-serving executives","JTE 18-Unit leadership"]
[1,2,"386","Theodore Roosevelt",400,"G3","Massapequa","NY","386-Theodore Roosevelt Council, Massapequa, NY",null,"413-Conquistador",null,null,null,null,null,null,"414-Daniel Boone Council, Asheville, NC",null,"414 Daniel Boone","2020-12-31",null,414,"Daniel Boone","Asheville","NC","JTE 1-Fiscal management","JTE 2-Fundraising","JTE 5-Membership/youth growth","JTE 8-Cub Scout advancement","JTE 15-Unit contacts"]
[1,6,"544","New Birth of Freedom",300,"G2","Mechanicsburg","PA","544-New Birth of Freedom Council, Mechanicsburg, PA",null,"414-Daniel Boone",null,null,null,null,null,null,"415-Mecklenburg County Council, Charlotte, NC",null,"415 Mecklenburg County","2020-12-31",null,415,"Mecklenburg County","Charlotte","NC","JTE 7-Youth retention","JTE 3-Endowment","JTE 10-Cub Scout camping","JTE 6-New member recruiting","JTE 2-Fundraising"]
[1,2,"404","Suffolk County",400,"G3","Medford","NY","404-Suffolk County Council, Medford, NY",null,"415-Mecklenburg County",null,null,null,null,null,null,"416-Central North Carolina Council, Albemarle, NC",null,"416 Central North Carolina","2018-12-31",null,416,"Central North Carolina","Albemarle","NC","JTE 3-Endowment","JTE 5-Membership/youth growth","JTE 8-Cub Scout advancement","JTE 17-District leadership","JTE 18-Unit leadership"]
[2,6,"558","Chickasaw",300,"G2","Memphis","TN","558-Chickasaw Council, Memphis, TN",null,"416-Central North Carolina",null,null,null,null,null,null,"420-Piedmont Council, Gastonia, NC",null,"420 Piedmont","2020-12-31",null,420,"Piedmont","Gastonia","NC","JTE 1-Fiscal management","JTE 5-Membership/youth growth","JTE 13-Youth-serving executives","JTE 12-Community service","JTE 3-Endowment"]
[2,1,"302","Choctaw Area",500,"G1","Meridian","MS","302-Choctaw Area Council, Meridian, MS",null,"420-Piedmont",null,null,null,null,null,null,"421-Occoneechee Council, Raleigh, NC",null,"421 Occoneechee","2020-12-31",null,421,"Occoneechee","Raleigh","NC","JTE 2-Fundraising","JTE 5-Membership/youth growth","JTE 10-Cub Scout camping","JTE 12-Community service","JTE 18-Unit leadership"]
[2,4,"084","South Florida",300,"G2","Miami Lakes","FL","084-South Florida Council, Miami Lakes, FL",null,"421-Occoneechee",null,null,null,null,null,null,"424-Tuscarora Council, Goldsboro, NC",null,"424 Tuscarora","2022-12-31",null,424,"Tuscarora","Goldsboro","NC","JTE 6-New member recruiting","JTE 5-Membership/youth growth","JTE 7-Youth retention","JTE 1-Fiscal management","JTE 2-Fundraising"]
[2,3,"567","Buffalo Trail",300,"G2","Midland","TX","567-Buffalo Trail Council, Midland, TX",null,"424-Tuscarora",null,null,null,null,null,null,"425-Cape Fear Council, Wilmington, NC",null,"425 Cape Fear","2022-12-31",null,425,"Cape Fear","Wilmington","NC","JTE 15-Unit contacts","JTE 10-Cub Scout camping","JTE 18-Unit leadership","JTE 17-District leadership","JTE 8-Cub Scout advancement"]
[1,2,"072","Connecticut Yankee",300,"G3","Milford","CT","072-Connecticut Yankee Council, Milford, CT",null,"425-Cape Fear",null,null,null,null,null,null,"426-East Carolina Council, Kinston, NC",null,"426 East Carolina","2020-12-31",null,426,"East Carolina","Kinston","NC","JTE 2-Fundraising","JTE 8-Cub Scout advancement","JTE 14-Unit retention/growth","JTE 17-District leadership","JTE 18-Unit leadership"]
[3,7,"636","Three Harbors",300,"G3","Milwaukee","WI","636-Three Harbors Council, Milwaukee, WI",null,"426-East Carolina",null,null,null,null,null,null,"427-Old Hickory Council, Winston-Salem, NC",null,"427 Old Hickory","2019-12-31",null,427,"Old Hickory","Winston-Salem","NC","JTE 3-Endowment","JTE 5-Membership/youth growth","JTE 7-Youth retention","JTE 11-Boy Scout camping","JTE 8-Cub Scout advancement"]
[2,1,"004","Mobile Area",500,"G1","Mobile","AL","004-Mobile Area Council, Mobile, AL",null,"427-Old Hickory",null,null,null,null,null,null,"429-Northern Lights Council, Fargo, ND",null,"429 Northern Lights","2019-12-31",null,"429","Northern Lights","Fargo","ND","JTE 2-Fundraising","JTE 8-Cub Scout advancement","JTE 15-Unit contacts","JTE 17-District leadership","JTE 18-Unit leadership"]
[4,3,"059","Greater Yosemite",400,"G3","Modesto","CA","059-Greater Yosemite Council, Modesto, CA",null,"429-Northern Lights",null,null,null,null,null,null,"433-Great Trail Council, Akron, OH",null,"433 Great Trail","2018-12-31",null,433,"Great Trail","Akron","OH","JTE 18-Unit leadership","JTE 15-Unit contacts","JTE 10-Cub Scout camping","JTE 8-Cub Scout advancement","JTE 13-Youth-serving executives"]
[2,1,"213","Louisiana Purchase",400,"G1","Monroe","LA","213-Louisiana Purchase Council, Monroe, LA",null,"433-Great Trail",null,null,null,null,null,null,"436-Buckeye Council, Canton, OH",null,"436 Buckeye","2019-12-31",null,436,"Buckeye","Canton","OH","JTE 3-Endowment","JTE 6-New member recruiting","JTE 8-Cub Scout advancement","JTE 10-Cub Scout camping","JTE 18-Unit leadership"]
[2,9,"005","Tukabatchee Area",400,"G1","Montgomery","AL","005-Tukabatchee Area Council, Montgomery, AL",null,"436-Buckeye",null,null,null,null,null,null,"438-Dan Beard Council, Cincinnati, OH",null,"438 Dan Beard","2021-12-31",null,438,"Dan Beard","Cincinnati","OH","JTE 2-Fundraising","JTE 5-Membership/youth growth","JTE 10-Cub Scout camping","JTE 11-Boy Scout camping","JTE 18-Unit leadership"]
[1,5,"501","Northeastern Pennsylvania",400,"G1","Moosic","PA","501-Northeastern Pennsylvania Council, Moosic, PA",null,"438-Dan Beard",null,null,null,null,null,null,"439-Tecumseh Council, Springfield, OH",null,"439 Tecumseh","2022-12-31",null,439,"Tecumseh","Springfield","OH","JTE 1-Fiscal management","JTE 2-Fundraising","JTE 5-Membership/youth growth","JTE 15-Unit contacts","JTE 17-District leadership"]
[1,5,"347","Monmouth",400,"G3","Morganville","NJ","347-Monmouth Council, Morganville, NJ",null,"439-Tecumseh",null,null,null,null,null,null,"440-Lake Erie Council, Cleveland, OH",null,"440 Lake Erie","2018-12-31",null,440,"Lake Erie","Cleveland","OH","JTE 8-Cub Scout advancement","JTE 10-Cub Scout camping","JTE 12-Community service","JTE 15-Unit contacts","JTE 18-Unit leadership"]
[3,7,"702","Rainbow",400,"G3","Morris","IL","702-Rainbow Council, Morris, IL",null,"440-Lake Erie",null,null,null,null,null,null,"441-Simon Kenton Council, Columbus, OH",null,"441 Simon Kenton","2021-12-31",null,441,"Simon Kenton","Columbus","OH","JTE 2-Fundraising","JTE 5-Membership/youth growth","JTE 6-New member recruiting","JTE 14-Unit retention/growth","JTE 18-Unit leadership"]
[2,6,"560","Middle Tennessee",200,"G2","Nashville","TN","560-Middle Tennessee Council, Nashville, TN",null,"441-Simon Kenton",null,null,null,null,null,null,"444-Miami Valley Council, Dayton, OH",null,"444 Miami Valley","2020-12-31",null,444,"Miami Valley","Dayton","OH","JTE 5-Membership/youth growth","JTE 9-Boy Scout advancement","JTE 11-Boy Scout camping","JTE 12-Community service","JTE 15-Unit contacts"]
[2,1,"214","Southeast Louisiana",300,"G2","New Orleans","LA","214-Southeast Louisiana Council, New Orleans, LA",null,"444-Miami Valley",null,null,null,null,null,null,"449-Black Swamp Area Council, Findlay, OH",null,"449 Black Swamp Area",null,null,449,"Black Swamp Area","Findlay","OH","JTE 5-Membership/youth growth","JTE 2-Fundraising","JTE 10-Cub Scout camping","JTE 17-District leadership","JTE 8-Cub Scout advancement"]
[1,2,"640","Greater New York",100,"G4","New York","NY","640-Greater New York Council, New York, NY",null,"449-Black Swamp Area",null,null,null,null,null,null,"456-Pathway to Adventure Council, Chicago, IL",null,"456 Pathway to Adventure","2021-12-31",null,456,"Pathway to Adventure","Chicago","IL","JTE 2-Fundraising","JTE 17-District leadership","JTE 10-Cub Scout camping","JTE 11-Boy Scout camping","JTE 8-Cub Scout advancement"]
[1,2,"374","Hudson Valley",400,"G3","Newburgh","NY","374-Hudson Valley Council, Newburgh, NY",null,"456-Pathway to Adventure",null,null,null,null,null,null,"460-Erie Shores Council, Toledo, OH",null,"460 Erie Shores","2023-12-31",null,460,"Erie Shores","Toledo","OH","JTE 3-Endowment","JTE 5-Membership/youth growth","JTE 6-New member recruiting","JTE 12-Community service","JTE 18-Unit leadership"]
[2,7,"595","Colonial Virginia",400,"G2","Newport News","VA","595-Colonial Virginia Council, Newport News, VA",null,"460-Erie Shores",null,null,null,null,null,null,"467-Muskingum Valley Council, Zanesville, OH",null,"467 Muskingum Valley","2018-12-31",null,467,"Muskingum Valley","Zanesville","OH","JTE 2-Fundraising","JTE 8-Cub Scout advancement","JTE 5-Membership/youth growth","JTE 14-Unit retention/growth","JTE 12-Community service"]
[1,5,"333","Northern New Jersey",300,"G4","Oakland","NJ","333-Northern New Jersey Council, Oakland, NJ",null,"467-Muskingum Valley",null,null,null,null,null,null,"468-Arbuckle Area Council, Ardmore, OK",null,"468 Arbuckle Area",null,null,468,"Arbuckle Area","Ardmore","OK","JTE 17-District leadership","JTE 3-Endowment","JTE 7-Youth retention","JTE 11-Boy Scout camping","JTE 12-Community service"]
[4,2,"589","Trapper Trails",200,"G2","Ogden","UT","589-Trapper Trails Council, Ogden, UT",null,"468-Arbuckle Area",null,null,null,null,null,null,"469-Cherokee Area Council, Bartlesville, OK",null,"469 Cherokee Area","2021-12-31",null,469,"Cherokee Area","Bartlesville","OK","JTE 5-Membership/youth growth","JTE 8-Cub Scout advancement","JTE 12-Community service","JTE 15-Unit contacts","JTE 3-Endowment"]
[4,6,"803","Far East",500,"G2","Okinawa","Japan","803-Far East Council, Okinawa, Japan",null,"469-Cherokee Area",null,null,null,null,null,null,"474-Cimarron Council, Enid, OK",null,"474 Cimarron","2020-12-31",null,474,"Cimarron","Enid","OK","JTE 1-Fiscal management","JTE 14-Unit retention/growth","JTE 15-Unit contacts","JTE 17-District leadership","JTE 4-Community impact"]
[2,8,"480","Last Frontier",300,"G1","Oklahoma City","OK","480-Last Frontier Council, Oklahoma City, OK",null,"474-Cimarron",null,null,null,null,null,null,"480-Last Frontier Council, Oklahoma City, OK",null,"480 Last Frontier","2020-12-31",null,480,"Last Frontier","Oklahoma City","OK","JTE 5-Membership/youth growth","JTE 8-Cub Scout advancement","JTE 9-Boy Scout advancement","JTE 17-District leadership","JTE 18-Unit leadership"]
[3,5,"326","Mid-America",200,"G2","Omaha","NE","326-Mid-America Council, Omaha, NE",null,"480-Last Frontier",null,null,null,null,null,null,"488-Indian Nations Council, Tulsa, OK",null,"488 Indian Nations","2020-12-31",null,488,"Indian Nations","Tulsa","OK","JTE 5-Membership/youth growth","JTE 14-Unit retention/growth","JTE 17-District leadership","JTE 2-Fundraising","JTE 3-Endowment"]
[4,2,"591","Utah National Parks",200,"G2","Orem","UT","591-Utah National Parks Council, Orem, UT",null,"488-Indian Nations",null,null,null,null,null,null,"491-Crater Lake Council, Central Point, OR",null,"491 Crater Lake","2020-12-31",null,491,"Crater Lake","Central Point","OR","JTE 2-Fundraising","JTE 6-New member recruiting","JTE 15-Unit contacts","JTE 17-District leadership","JTE 18-Unit leadership"]
[2,4,"083","Central Florida",200,"G2","Orlando","FL","083-Central Florida Council, Orlando, FL",null,"491-Crater Lake",null,null,null,null,null,null,"492-Cascade Pacific Council, Portland, OR",null,"492 Cascade Pacific","2019-12-31",null,492,"Cascade Pacific","Portland","OR","JTE 1-Fiscal management","JTE 6-New member recruiting","JTE 14-Unit retention/growth","JTE 13-Youth-serving executives","JTE 17-District leadership"]
[2,4,"085","Gulf Stream",300,"G2","Palm Beach Gardens","FL","085-Gulf Stream Council, Palm Beach Gardens, FL",null,"492-Cascade Pacific",null,null,null,null,null,null,"497-Juniata Valley Council, Reedsville, PA",null,"497 Juniata Valley","2022-12-31",null,497,"Juniata Valley","Reedsville","PA","JTE 6-New member recruiting","JTE 2-Fundraising","JTE 10-Cub Scout camping","JTE 17-District leadership","JTE 12-Community service"]
[3,4,"618","Allohak",500,"G1","Parkersburg","WV","618-Allohak Council, Parkersburg, WV",null,"497-Juniata Valley",null,null,null,null,null,null,"500-Moraine Trails Council, Butler, PA",null,"500 Moraine Trails",null,null,500,"Moraine Trails","Butler","PA","JTE 2-Fundraising","JTE 3-Endowment","JTE 4-Community impact","JTE 13-Youth-serving executives","JTE 14-Unit retention/growth"]
[2,1,"773","Gulf Coast",500,"G2","Pensacola","FL","773-Gulf Coast Council, Pensacola, FL",null,"500-Moraine Trails",null,null,null,null,null,null,"501-Northeastern Pennsylvania Council, Moosic, PA",null,"501 Northeastern Pennsylvania","2021-12-31",null,501,"Northeastern Pennsylvania","Moosic","PA","JTE 2-Fundraising","JTE 6-New member recruiting","JTE 5-Membership/youth growth","JTE 1-Fiscal management","JTE 18-Unit leadership"]
[3,3,"138","W.D. Boyce",300,"G2","Peoria","IL","138-W.D. Boyce Council, Peoria, IL",null,"501-Northeastern Pennsylvania",null,null,null,null,null,null,"502-Minsi Trails Council, Lehigh Valley, PA",null,"502 Minsi Trails","2018-12-31",null,502,"Minsi Trails","Lehigh Valley","PA","JTE 5-Membership/youth growth","JTE 8-Cub Scout advancement","JTE 10-Cub Scout camping","JTE 15-Unit contacts","JTE 17-District leadership"]
[1,5,"525","Cradle of Liberty",200,"G3","Philadelphia","PA","525-Cradle of Liberty Council, Philadelphia, PA",null,"502-Minsi Trails",null,null,null,null,null,null,"504-Columbia-Montour Council, Bloomsburg, PA",null,"504 Columbia-Montour",null,null,504,"Columbia-Montour","Bloomsburg","PA","JTE 2-Fundraising","JTE 5-Membership/youth growth","JTE 9-Boy Scout advancement","JTE 18-Unit leadership","JTE 11-Boy Scout camping"]
[4,6,"010","Grand Canyon",200,"G2","Phoenix","AZ","010-Grand Canyon Council, Phoenix, AZ",null,"504-Columbia-Montour",null,null,null,null,null,null,"509-Bucktail Council, DuBois, PA",null,"509 Bucktail","2018-12-31",null,509,"Bucktail","DuBois","PA","JTE 1-Fiscal management","JTE 2-Fundraising","JTE 8-Cub Scout advancement","JTE 10-Cub Scout camping","JTE 15-Unit contacts"]
[4,3,"042","Piedmont",500,"G4","Piedmont","CA","042-Piedmont Council, Piedmont, CA",null,"509-Bucktail",null,null,null,null,null,null,"512-Westmoreland-Fayette Council, Greensburg, PA",null,"512 Westmoreland-Fayette","2020-12-31",null,512,"Westmoreland-Fayette","Greensburg","PA","JTE 4-Community impact","JTE 5-Membership/youth growth","JTE 6-New member recruiting","JTE 18-Unit leadership","JTE 10-Cub Scout camping"]
[1,4,"527","Laurel Highlands",200,"G2","Pittsburgh","PA","527-Laurel Highlands Council, Pittsburgh, PA",null,"512-Westmoreland-Fayette",null,null,null,null,null,null,"524-Pennsylvania Dutch Council, Lancaster, PA",null,"524 Pennsylvania Dutch","2020-12-31",null,524,"Pennsylvania Dutch","Lancaster","PA","JTE 15-Unit contacts","JTE 5-Membership/youth growth","JTE 1-Fiscal management","JTE 3-Endowment","JTE 4-Community impact"]
[4,3,"023","Mount Diablo Silverado",300,"G4","Pleasant Hill","CA","023-Mount Diablo Silverado Council, Pleasant Hill, CA",null,"524-Pennsylvania Dutch",null,null,null,null,null,null,"525-Cradle of Liberty Council, Philadelphia, PA",null,"525 Cradle of Liberty","2019-12-31",null,525,"Cradle of Liberty","Philadelphia","PA","JTE 3-Endowment","JTE 5-Membership/youth growth","JTE 10-Cub Scout camping","JTE 15-Unit contacts","JTE 17-District leadership"]
[1,1,"218","Pine Tree",400,"G2","Portland","ME","218-Pine Tree Council, Portland, ME",null,"525-Cradle of Liberty",null,null,null,null,null,null,"527-Laurel Highlands Council, Pittsburgh, PA",null,"527 Laurel Highlands","2018-12-31",null,527,"Laurel Highlands","Pittsburgh","PA","JTE 2-Fundraising","JTE 5-Membership/youth growth","JTE 10-Cub Scout camping","JTE 11-Boy Scout camping","JTE 17-District leadership"]
[4,1,"492","Cascade Pacific",200,"G3","Portland","OR","492-Cascade Pacific Council, Portland, OR",null,"527-Laurel Highlands",null,null,null,null,null,null,"528-Hawk Mountain Council, Reading, PA",null,"528 Hawk Mountain","2020-12-31",null,528,"Hawk Mountain","Reading","PA","JTE 2-Fundraising","JTE 10-Cub Scout camping","JTE 6-New member recruiting","JTE 15-Unit contacts","JTE 17-District leadership"]
[1,1,"546","Narragansett",200,"G3","Providence","RI","546-Narragansett Council, Providence, RI",null,"528-Hawk Mountain",null,null,null,null,null,null,"532-French Creek Council, Erie, PA",null,"532 French Creek","2019-12-31",null,532,"French Creek","Erie","PA","JTE 5-Membership/youth growth","JTE 1-Fiscal management","JTE 4-Community impact","JTE 17-District leadership","JTE 15-Unit contacts"]
[4,2,"063","Rocky Mountain",400,"G2","Pueblo","CO","063-Rocky Mountain Council, Pueblo, CO",null,"532-French Creek",null,null,null,null,null,null,"533-Susquehanna Council, Williamsport, PA",null,"533 Susquehanna","2018-12-31",null,533,"Susquehanna","Williamsport","PA","JTE 1-Fiscal management","JTE 2-Fundraising","JTE 4-Community impact","JTE 12-Community service","JTE 15-Unit contacts"]
[3,3,"141","Mississippi Valley",400,"G1","Quincy","IL","141-Mississippi Valley Council, Quincy, IL",null,"533-Susquehanna",null,null,null,null,null,null,"538-Chief Cornplanter Council, Warren, PA",null,"538 Chief Cornplanter",null,null,538,"Chief Cornplanter","Warren","PA","JTE 1-Fiscal management","JTE 2-Fundraising","JTE 14-Unit retention/growth","JTE 15-Unit contacts","JTE 17-District leadership"]
[2,7,"421","Occoneechee",200,"G2","Raleigh","NC","421-Occoneechee Council, Raleigh, NC",null,"538-Chief Cornplanter",null,null,null,null,null,null,"539-Chester County Council, West Chester, PA",null,"539 Chester County","2021-12-31",null,539,"Chester County","West Chester","PA","JTE 5-Membership/youth growth","JTE 17-District leadership","JTE 2-Fundraising","JTE 15-Unit contacts","JTE 8-Cub Scout advancement"]
[4,2,"695","Black Hills Area",500,"G1","Rapid City","SD","695-Black Hills Area Council, Rapid City, SD",null,"539-Chester County",null,null,null,null,null,null,"544-New Birth of Freedom Council, Mechanicsburg, PA",null,"544 New Birth of Freedom","2018-12-31",null,544,"New Birth of Freedom","Mechanicsburg","PA","JTE 1-Fiscal management","JTE 2-Fundraising","JTE 5-Membership/youth growth","JTE 11-Boy Scout camping","JTE 10-Cub Scout camping"]
[1,6,"528","Hawk Mountain",300,"G2","Reading","PA","528-Hawk Mountain Council, Reading, PA",null,"544-New Birth of Freedom",null,null,null,null,null,null,"546-Narragansett Council, Providence, RI",null,"546 Narragansett","2019-12-31",null,546,"Narragansett","Providence","RI","JTE 5-Membership/youth growth","JTE 2-Fundraising","JTE 8-Cub Scout advancement","JTE 14-Unit retention/growth","JTE 15-Unit contacts"]
[4,4,"045","California Inland Empire",300,"G3","Redlands","CA","045-California Inland Empire Council, Redlands, CA",null,"546-Narragansett",null,null,null,null,null,null,"549-Palmetto Council, Spartanburg, SC",null,"549 Palmetto","2021-12-31",null,549,"Palmetto","Spartanburg","SC","JTE 3-Endowment","JTE 10-Cub Scout camping","JTE 12-Community service","JTE 17-District leadership","JTE 18-Unit leadership"]
[1,4,"497","Juniata Valley",500,"G1","Reedsville","PA","497-Juniata Valley Council, Reedsville, PA",null,"549-Palmetto",null,null,null,null,null,null,"550-Coastal Carolina Council, Charleston, SC",null,"550 Coastal Carolina","2019-12-31",null,550,"Coastal Carolina","Charleston","SC","JTE 5-Membership/youth growth","JTE 6-New member recruiting","JTE 13-Youth-serving executives","JTE 1-Fiscal management","JTE 14-Unit retention/growth"]
[4,3,"329","Nevada Area",400,"G3","Reno","NV","329-Nevada Area Council, Reno, NV",null,"550-Coastal Carolina",null,null,null,null,null,null,"551-Blue Ridge Council, Greenville, SC",null,"551 Blue Ridge","2022-12-31",null,551,"Blue Ridge","Greenville","SC","JTE 7-Youth retention","JTE 14-Unit retention/growth","JTE 17-District leadership","JTE 1-Fiscal management","JTE 11-Boy Scout camping"]
[2,7,"602","Heart of Virginia",300,"G2","Richmond","VA","602-Heart of Virginia Council, Richmond, VA",null,"551-Blue Ridge",null,null,null,null,null,null,"552-Pee Dee Area Council, Florence, SC",null,"552 Pee Dee Area","2019-12-31",null,552,"Pee Dee Area","Florence","SC","JTE 2-Fundraising","JTE 5-Membership/youth growth","JTE 12-Community service","JTE 8-Cub Scout advancement","JTE 4-Community impact"]
[2,7,"599","Blue Ridge Mountains",200,"G2","Roanoke","VA","599-Blue Ridge Mountains Council, Roanoke, VA",null,"552-Pee Dee Area",null,null,null,null,null,null,"553-Indian Waters Council, Columbia, SC",null,"553 Indian Waters","2020-12-31",null,553,"Indian Waters","Columbia","SC","JTE 1-Fiscal management","JTE 5-Membership/youth growth","JTE 2-Fundraising","JTE 13-Youth-serving executives","JTE 10-Cub Scout camping"]
[1,3,"397","Seneca Waterways",200,"G2","Rochester","NY",{"$f":"_xlfn.CONCAT(C195) & \"-\" & (D195) & \" Council, \" & (G195) &  \", \" & (H195)","v":"397-Seneca Waterways Council, Rochester, NY"},null,"553-Indian Waters",null,null,null,null,null,null,"556-Cherokee Area Council, Chattanooga, TN",null,"556 Cherokee Area",null,null,556,"Cherokee Area","Chattanooga","TN","JTE 1-Fiscal management","JTE 2-Fundraising","JTE 5-Membership/youth growth","JTE 15-Unit contacts","JTE 17-District leadership"]
[3,1,"299","Gamehaven",500,"G2","Rochester","MN","299-Gamehaven Council, Rochester, MN",null,"556-Cherokee Area",null,null,null,null,null,null,"557-Great Smoky Mountain Council, Knoxville, TN",null,"557 Great Smoky Mountain","2018-12-31",null,557,"Great Smoky Mountain","Knoxville","TN","JTE 1-Fiscal management","JTE 2-Fundraising","JTE 5-Membership/youth growth","JTE 17-District leadership","JTE 10-Cub Scout camping"]
[3,7,"660","Blackhawk Area",300,"G2","Rockford","IL","660-Blackhawk Area Council, Rockford, IL",null,"557-Great Smoky Mountain",null,null,null,null,null,null,"558-Chickasaw Council, Memphis, TN",null,"558 Chickasaw",null,null,558,"Chickasaw","Memphis","TN","JTE 2-Fundraising","JTE 4-Community impact","JTE 7-Youth retention","JTE 17-District leadership","JTE 15-Unit contacts"]
[2,9,"100","Northwest Georgia",500,"G1","Rome","GA","100-Northwest Georgia Council, Rome, GA",null,"558-Chickasaw",null,null,null,null,null,null,"559-West Tennessee Area Council, Jackson, TN",null,"559 West Tennessee Area",null,null,559,"West Tennessee Area","Jackson","TN","JTE 1-Fiscal management","JTE 2-Fundraising","JTE 4-Community impact","JTE 5-Membership/youth growth","JTE 11-Boy Scout camping"]
[4,6,"413","Conquistador",500,"G1","Roswell","NM","413-Conquistador Council, Roswell, NM",null,"559-West Tennessee Area",null,null,null,null,null,null,"560-Middle Tennessee Council, Nashville, TN",null,"560 Middle Tennessee",null,null,560,"Middle Tennessee","Nashville","TN","JTE 1-Fiscal management","JTE 2-Fundraising","JTE 5-Membership/youth growth","JTE 6-New member recruiting","JTE 11-Boy Scout camping"]
[4,3,"047","Golden Empire",300,"G3","Sacramento","CA","047-Golden Empire Council, Sacramento, CA",null,"560-Middle Tennessee",null,null,null,null,null,null,"561-Texas Trails Council, Abilene, TX",null,"561 Texas Trails",null,null,561,"Texas Trails","Abilene","TX","JTE 2-Fundraising","JTE 5-Membership/youth growth","JTE 7-Youth retention","JTE 14-Unit retention/growth","JTE 3-Endowment"]
[3,5,"192","Coronado Area",400,"G1","Salina","KS","192-Coronado Area Council, Salina, KS",null,"561-Texas Trails",null,null,null,null,null,null,"562-Golden Spread Council, Amarillo, TX",null,"562 Golden Spread","2020-12-31",null,562,"Golden Spread","Amarillo","TX","JTE 14-Unit retention/growth","JTE 7-Youth retention","JTE 5-Membership/youth growth","JTE 4-Community impact","JTE 11-Boy Scout camping"]
[4,2,"590","Great Salt Lake",100,"G2","Salt Lake City","UT","590-Great Salt Lake Council, Salt Lake City, UT",null,"562-Golden Spread",null,null,null,null,null,null,"564-Capitol Area Council, Austin, TX",null,"564 Capitol Area","2020-12-31",null,564,"Capitol Area","Austin","TX","JTE 5-Membership/youth growth","JTE 2-Fundraising","JTE 18-Unit leadership","JTE 15-Unit contacts","JTE 17-District leadership"]
[2,3,"741","Texas Southwest",500,"G1","San Angelo","TX","741-Texas Southwest Council, San Angelo, TX",null,"564-Capitol Area",null,null,null,null,null,null,"567-Buffalo Trail Council, Midland, TX",null,"567 Buffalo Trail","2019-12-31",null,567,"Buffalo Trail","Midland","TX","JTE 2-Fundraising","JTE 1-Fiscal management","JTE 6-New member recruiting","JTE 4-Community impact","JTE 10-Cub Scout camping"]
[2,3,"583","Alamo Area",200,"G2","San Antonio","TX","583-Alamo Area Council, San Antonio, TX",null,"567-Buffalo Trail",null,null,null,null,null,null,"571-Circle Ten Council, Dallas, TX",null,"571 Circle Ten","2020-12-31",null,571,"Circle Ten","Dallas","TX","JTE 5-Membership/youth growth","JTE 6-New member recruiting","JTE 10-Cub Scout camping","JTE 11-Boy Scout camping","JTE 18-Unit leadership"]
[4,6,"049","San Diego-Imperial",200,"G3","San Diego","CA","049-San Diego-Imperial Council, San Diego, CA",null,"571-Circle Ten",null,null,null,null,null,null,"573-Yucca Council, El Paso, TX",null,"573 Yucca","2020-12-31",null,573,"Yucca","El Paso","TX","JTE 1-Fiscal management","JTE 2-Fundraising","JTE 5-Membership/youth growth","JTE 10-Cub Scout camping","JTE 12-Community service"]
[4,3,"055","Silicon Valley Monterey Bay",200,"G4","San Jose","CA","055-Silicon Valley Monterey Bay Council, San Jose, CA",null,"573-Yucca",null,null,null,null,null,null,"574-Bay Area Council, Galveston, TX",null,"574 Bay Area",null,null,574,"Bay Area","Galveston","TX","JTE 2-Fundraising","JTE 5-Membership/youth growth","JTE 17-District leadership","JTE 15-Unit contacts","JTE 7-Youth retention"]
[4,3,"028","San Francisco Bay Area",200,"G4","San Leandro","CA","028-San Francisco Bay Area Council, San Leandro, CA",null,"574-Bay Area",null,null,null,null,null,null,"576-Sam Houston Area Council, Houston, TX",null,"576 Sam Houston Area","2020-12-31",null,576,"Sam Houston Area","Houston","TX","JTE 1-Fiscal management","JTE 3-Endowment","JTE 6-New member recruiting","JTE 15-Unit contacts","JTE 17-District leadership"]
[4,3,"035","Marin",400,"G4","San Rafael","CA","035-Marin Council, San Rafael, CA",null,"576-Sam Houston Area",null,null,null,null,null,null,"577-South Texas Council, Corpus Christi, TX",null,"577 South Texas",null,null,577,"South Texas","Corpus Christi","TX","JTE 4-Community impact","JTE 2-Fundraising","JTE 5-Membership/youth growth","JTE 6-New member recruiting","JTE 7-Youth retention"]
[4,4,"039","Orange County",100,"G3","Santa Ana","CA","039-Orange County Council, Santa Ana, CA",null,"577-South Texas",null,null,null,null,null,null,"578-Three Rivers Council, Beaumont, TX",null,"578 Three Rivers","2018-12-31",null,578,"Three Rivers","Beaumont","TX","JTE 2-Fundraising","JTE 1-Fiscal management","JTE 5-Membership/youth growth","JTE 6-New member recruiting","JTE 3-Endowment"]
[4,4,"053","Los Padres",300,"G3","Santa Barbara","CA","053-Los Padres Council, Santa Barbara, CA",null,"578-Three Rivers",null,null,null,null,null,null,"583-Alamo Area Council, San Antonio, TX",null,"583 Alamo Area","2018-12-31",null,583,"Alamo Area","San Antonio","TX","JTE 7-Youth retention","JTE 8-Cub Scout advancement","JTE 9-Boy Scout advancement","JTE 11-Boy Scout camping","JTE 18-Unit leadership"]
[4,3,"041","Redwood Empire",500,"G3","Santa Rosa","CA","041-Redwood Empire Council, Santa Rosa, CA",null,"583-Alamo Area",null,null,null,null,null,null,"584-Caddo Area Council, Texarkana, TX",null,"584 Caddo Area",null,null,"584","Caddo Area","Texarkana","TX"]
[3,1,"296","Central Minnesota",400,"G2","Sartell","MN","296-Central Minnesota Council, Sartell, MN",null,"584-Caddo Area",null,null,null,null,null,null,"585-East Texas Area Council, Tyler, TX",null,"585 East Texas Area","2019-12-31",null,585,"East Texas Area","Tyler","TX","JTE 17-District leadership","JTE 4-Community impact","JTE 5-Membership/youth growth","JTE 14-Unit retention/growth","JTE 2-Fundraising"]
[2,9,"099","Coastal Georgia",400,"G1","Savannah","GA","099-Coastal Georgia Council, Savannah, GA",null,"585-East Texas Area",null,null,null,null,null,null,"587-Northwest Texas Council, Wichita Falls, TX",null,"587 Northwest Texas",null,null,587,"Northwest Texas","Wichita Falls","TX","JTE 3-Endowment","JTE 18-Unit leadership","JTE 14-Unit retention/growth","JTE 17-District leadership","JTE 8-Cub Scout advancement"]
[4,1,"609","Chief Seattle",200,"G3","Seattle","WA","609-Chief Seattle Council, Seattle, WA",null,"587-Northwest Texas",null,null,null,null,null,null,"589-Trapper Trails Council, Ogden, UT",null,"589 Trapper Trails","2020-12-31",null,589,"Trapper Trails","Ogden","UT","JTE 1-Fiscal management","JTE 10-Cub Scout camping","JTE 12-Community service","JTE 13-Youth-serving executives","JTE 17-District leadership"]
[2,2,"215","Norwela",500,"G1","Shreveport","LA","215-Norwela Council, Shreveport, LA",null,"589-Trapper Trails",null,null,null,null,null,null,"590-Great Salt Lake Council, Salt Lake City, UT",null,"590 Great Salt Lake","2018-12-31",null,590,"Great Salt Lake","Salt Lake City","UT","JTE 2-Fundraising","JTE 15-Unit contacts","JTE 17-District leadership","JTE 18-Unit leadership","JTE 1-Fiscal management"]
[3,1,"733","Sioux",400,"G1","Sioux Falls","SD","733-Sioux Council, Sioux Falls, SD",null,"590-Great Salt Lake",null,null,null,null,null,null,"591-Utah National Parks Council, Orem, UT",null,"591 Utah National Parks","2020-12-31",null,591,"Utah National Parks","Orem","UT","JTE 10-Cub Scout camping","JTE 8-Cub Scout advancement","JTE 12-Community service","JTE 18-Unit leadership","JTE 17-District leadership"]
[3,6,"165","LaSalle",400,"G2","South Bend","IN","165-LaSalle Council, South Bend, IN",null,"591-Utah National Parks",null,null,null,null,null,null,"592-Green Mountain Council, Waterbury, VT",null,"592 Green Mountain","2020-12-31",null,592,"Green Mountain","Waterbury","VT","JTE 10-Cub Scout camping","JTE 11-Boy Scout camping","JTE 5-Membership/youth growth","JTE 2-Fundraising","JTE 3-Endowment"]
[2,5,"549","Palmetto",400,"G2","Spartanburg","SC","549-Palmetto Council, Spartanburg, SC",null,"592-Green Mountain",null,null,null,null,null,null,"595-Colonial Virginia Council, Newport News, VA",null,"595 Colonial Virginia","2018-12-31",null,595,"Colonial Virginia","Newport News","VA","JTE 1-Fiscal management","JTE 5-Membership/youth growth","JTE 6-New member recruiting","JTE 8-Cub Scout advancement","JTE 10-Cub Scout camping"]
[4,1,"611","Inland Northwest",300,"G2","Spokane","WA","611-Inland Northwest Council, Spokane, WA",null,"595-Colonial Virginia",null,null,null,null,null,null,"596-Tidewater Council, Virginia Beach, VA",null,"596 Tidewater","2018-12-31",null,596,"Tidewater","Virginia Beach","VA","JTE 1-Fiscal management","JTE 6-New member recruiting","JTE 8-Cub Scout advancement","JTE 10-Cub Scout camping","JTE 18-Unit leadership"]
[3,3,"144","Abraham Lincoln",400,"G2","Springfield","IL","144-Abraham Lincoln Council, Springfield, IL",null,"596-Tidewater",null,null,null,null,null,null,"598-Shenandoah Area Council, Winchester, VA",null,"598 Shenandoah Area","2021-12-31",null,598,"Shenandoah Area","Winchester","VA","JTE 1-Fiscal management","JTE 2-Fundraising","JTE 3-Endowment","JTE 5-Membership/youth growth","JTE 7-Youth retention"]
[3,5,"306","Ozark Trails",400,"G1","Springfield","MO","306-Ozark Trails Council, Springfield, MO",null,"598-Shenandoah Area",null,null,null,null,null,null,"599-Blue Ridge Mountains Council, Roanoke, VA",null,"599 Blue Ridge Mountains","2018-12-31",null,599,"Blue Ridge Mountains","Roanoke","VA","JTE 1-Fiscal management","JTE 5-Membership/youth growth","JTE 2-Fundraising","JTE 10-Cub Scout camping","JTE 11-Boy Scout camping"]
[3,6,"439","Tecumseh",500,"G2","Springfield","OH","439-Tecumseh Council, Springfield, OH",null,"599-Blue Ridge Mountains",null,null,null,null,null,null,"602-Heart of Virginia Council, Richmond, VA",null,"602 Heart of Virginia","2019-12-31",null,602,"Heart of Virginia","Richmond","VA","JTE 2-Fundraising","JTE 14-Unit retention/growth","JTE 5-Membership/youth growth","JTE 8-Cub Scout advancement","JTE 3-Endowment"]
[3,7,"127","Three Fires",300,"G3","St. Charles","IL","127-Three Fires Council, St. Charles, IL",null,"602-Heart of Virginia",null,null,null,null,null,null,"604-Blue Mountain Council, Kennewick, WA",null,"604 Blue Mountain","2020-12-31",null,604,"Blue Mountain","Kennewick","WA","JTE 2-Fundraising","JTE 5-Membership/youth growth","JTE 6-New member recruiting","JTE 12-Community service","JTE 18-Unit leadership"]
[3,5,"311","Pony Express",400,"G1","St. Joseph","MO","311-Pony Express Council, St. Joseph, MO",null,"604-Blue Mountain",null,null,null,null,null,null,"606-Mount Baker Council, Everett, WA",null,"606 Mount Baker","2025-12-31",null,606,"Mount Baker","Everett","WA","JTE 8-Cub Scout advancement","JTE 9-Boy Scout advancement","JTE 10-Cub Scout camping","JTE 11-Boy Scout camping","JTE 15-Unit contacts"]
[3,3,"312","Greater St. Louis Area",100,"G2","St. Louis","MO","312-Greater St. Louis Area Council, St. Louis, MO",null,"606-Mount Baker",null,null,null,null,null,null,"609-Chief Seattle Council, Seattle, WA",null,"609 Chief Seattle","2020-12-31",null,609,"Chief Seattle","Seattle","WA","JTE 8-Cub Scout advancement","JTE 9-Boy Scout advancement","JTE 10-Cub Scout camping","JTE 11-Boy Scout camping","JTE 15-Unit contacts"]
[3,1,"250","Northern Star",100,"G3","St. Paul","MN","250-Northern Star Council, St. Paul, MN",null,"609-Chief Seattle",null,null,null,null,null,null,"610-Great Alaska Council, Anchorage, AK",null,"610 Great Alaska","2018-12-31",null,610,"Great Alaska","Anchorage","AK","JTE 1-Fiscal management","JTE 2-Fundraising","JTE 17-District leadership","JTE 6-New member recruiting","JTE 14-Unit retention/growth"]
[1,3,"373","Longhouse",400,"G2","Syracuse","NY","373-Longhouse Council, Syracuse, NY",null,"610-Great Alaska",null,null,null,null,null,null,"611-Inland Northwest Council, Spokane, WA",null,"611 Inland Northwest","2022-12-31",null,611,"Inland Northwest","Spokane","WA","JTE 1-Fiscal management","JTE 8-Cub Scout advancement","JTE 10-Cub Scout camping","JTE 15-Unit contacts","JTE 18-Unit leadership"]
[4,1,"612","Pacific Harbors",300,"G3","Tacoma","WA","612-Pacific Harbors Council, Tacoma, WA",null,"611-Inland Northwest",null,null,null,null,null,null,"612-Pacific Harbors Council, Tacoma, WA",null,"612 Pacific Harbors","2030-12-31",null,612,"Pacific Harbors","Tacoma","WA","JTE 1-Fiscal management","JTE 2-Fundraising","JTE 12-Community service","JTE 17-District leadership","JTE 11-Boy Scout camping"]
[2,4,"664","Suwannee River Area",500,"G2","Tallahassee","FL","664-Suwannee River Area Council, Tallahassee, FL",null,"612-Pacific Harbors",null,null,null,null,null,null,"614-Grand Columbia Council, Yakima, WA",null,"614 Grand Columbia","2018-12-31",null,614,"Grand Columbia","Yakima","WA","JTE 2-Fundraising","JTE 14-Unit retention/growth","JTE 17-District leadership","JTE 8-Cub Scout advancement","JTE 3-Endowment"]
[2,4,"089","Greater Tampa Bay Area",300,"G2","Tampa","FL","089-Greater Tampa Bay Area Council, Tampa, FL",null,"614-Grand Columbia",null,null,null,null,null,null,"615-Mountaineer Area Council, Fairmont, WV",null,"615 Mountaineer Area","2018-12-31",null,"615","Mountaineer Area","Fairmont","WV","JTE 1-Fiscal management","JTE 3-Endowment","JTE 5-Membership/youth growth","JTE 8-Cub Scout advancement","JTE 9-Boy Scout advancement"]
[2,2,"584","Caddo Area",400,"G1","Texarkana","TX","584-Caddo Area Council, Texarkana, TX",null,"615-Mountaineer Area",null,null,null,null,null,null,"617-Buckskin Council, Charleston, WV",null,"617 Buckskin","2020-12-31",null,617,"Buckskin","Charleston","WV","JTE 4-Community impact","JTE 1-Fiscal management","JTE 14-Unit retention/growth","JTE 18-Unit leadership","JTE 10-Cub Scout camping"]
[3,6,"460","Erie Shores",300,"G2","Toledo","OH","460-Erie Shores Council, Toledo, OH",null,"617-Buckskin",null,null,null,null,null,null,"618-Allohak Council, Parkersburg, WV",null,"618 Allohak","2019-12-31",null,"618","Allohak","Parkersburg","WV","JTE 12-Community service","JTE 17-District leadership","JTE 18-Unit leadership","JTE 6-New member recruiting","JTE 4-Community impact"]
[1,5,"341","Jersey Shore",400,"G3","Toms River","NJ","341-Jersey Shore Council, Toms River, NJ",null,"618-Allohak",null,null,null,null,null,null,"619-Ohio River Valley Council, Wheeling, WV",null,"619 Ohio River Valley","2020-12-31",null,"619","Ohio River Valley","Wheeling","WV","JTE 2-Fundraising","JTE 1-Fiscal management","JTE 5-Membership/youth growth","JTE 14-Unit retention/growth","JTE 7-Youth retention"]
[3,5,"197","Jayhawk Area",400,"G1","Topeka","KS","197-Jayhawk Area Council, Topeka, KS",null,"619-Ohio River Valley",null,null,null,null,null,null,"620-Glacier's Edge Council, Madison, WI",null,"620 Glacier's Edge","2020-12-31",null,620,"Glacier's Edge","Madison","WI","JTE 1-Fiscal management","JTE 8-Cub Scout advancement","JTE 9-Boy Scout advancement","JTE 18-Unit leadership","JTE 14-Unit retention/growth"]
[4,6,"011","Catalina",400,"G1","Tucson","AZ","011-Catalina Council, Tucson, AZ",null,"620-Glacier's Edge",null,null,null,null,null,null,"624-Gateway Area Council, La Crosse, WI",null,"624 Gateway Area","2020-12-31",null,624,"Gateway Area","La Crosse","WI","JTE 12-Community service","JTE 5-Membership/youth growth","JTE 1-Fiscal management","JTE 10-Cub Scout camping","JTE 11-Boy Scout camping"]
[2,8,"488","Indian Nations",200,"G2","Tulsa","OK","488-Indian Nations Council, Tulsa, OK",null,"624-Gateway Area",null,null,null,null,null,null,"627-Samoset Council, Weston, WI",null,"627 Samoset","2018-12-31",null,627,"Samoset","Weston","WI","JTE 17-District leadership","JTE 6-New member recruiting","JTE 9-Boy Scout advancement","JTE 10-Cub Scout camping","JTE 7-Youth retention"]
[2,6,"748","Yocona Area",500,"G1","Tupelo","MS","748-Yocona Area Council, Tupelo, MS",null,"627-Samoset",null,null,null,null,null,null,"635-Bay-Lakes Council, Appleton, WI",null,"635 Bay-Lakes","2024-12-31",null,635,"Bay-Lakes","Appleton","WI","JTE 1-Fiscal management","JTE 2-Fundraising","JTE 5-Membership/youth growth","JTE 10-Cub Scout camping","JTE 14-Unit retention/growth"]
[2,9,"006","Black Warrior",400,"G1","Tuscaloosa","AL","006-Black Warrior Council, Tuscaloosa, AL",null,"635-Bay-Lakes",null,null,null,null,null,null,"636-Three Harbors Council, Milwaukee, WI",null,"636 Three Harbors","2020-12-31",null,636,"Three Harbors","Milwaukee","WI","JTE 2-Fundraising","JTE 3-Endowment","JTE 1-Fiscal management","JTE 15-Unit contacts","JTE 8-Cub Scout advancement"]
[4,2,"111","Snake River",500,"G1","Twin Falls","ID","111-Snake River Council, Twin Falls, ID",null,"636-Three Harbors",null,null,null,null,null,null,"637-Chippewa Valley Council, Eau Claire, WI",null,"637 Chippewa Valley","2019-12-31",null,637,"Chippewa Valley","Eau Claire","WI","JTE 5-Membership/youth growth","JTE 7-Youth retention","JTE 12-Community service","JTE 18-Unit leadership","JTE 8-Cub Scout advancement"]
[2,2,"585","East Texas Area",400,"G2","Tyler","TX","585-East Texas Area Council, Tyler, TX",null,"637-Chippewa Valley",null,null,null,null,null,null,"638-Greater Wyoming Council, Casper, WY",null,"638 Greater Wyoming","2019-12-31",null,638,"Greater Wyoming","Casper","WY","JTE 1-Fiscal management","JTE 6-New member recruiting","JTE 9-Boy Scout advancement","JTE 12-Community service","JTE 17-District leadership"]
[1,3,"400","Leatherstocking",400,"G2","Utica","NY","400-Leatherstocking Council, Utica, NY",null,"638-Greater Wyoming",null,null,null,null,null,null,"640-Greater New York Council, New York, NY",null,"640 Greater New York","2018-12-31",null,"640","Greater New York","New York","NY"]
[2,9,"098","South Georgia",500,"G1","Valdosta","GA","098-South Georgia Council, Valdosta, GA",null,"640-Greater New York",null,null,null,null,null,null,"651-Potawatomi Area Council, Waukesha, WI",null,"651 Potawatomi Area","2018-12-31",null,651,"Potawatomi Area","Waukesha","WI","JTE 1-Fiscal management","JTE 5-Membership/youth growth","JTE 6-New member recruiting","JTE 2-Fundraising","JTE 14-Unit retention/growth"]
[4,4,"051","Western Los Angeles County",100,"G3","Van Nuys","CA","051-Western Los Angeles County Council, Van Nuys, CA",null,"651-Potawatomi Area",null,null,null,null,null,null,"653-Great Rivers Council, Columbia, MO",null,"653 Great Rivers",null,null,653,"Great Rivers","Columbia","MO","JTE 2-Fundraising","JTE 5-Membership/youth growth","JTE 10-Cub Scout camping","JTE 18-Unit leadership","JTE 15-Unit contacts"]
[2,7,"596","Tidewater",400,"G2","Virginia Beach","VA","596-Tidewater Council, Virginia Beach, VA",null,"653-Great Rivers",null,null,null,null,null,null,"660-Blackhawk Area Council, Rockford, IL",null,"660 Blackhawk Area",null,null,"660","Blackhawk Area","Rockford","IL"]
[4,6,"102","Maui County",500,"G2","Wailuku, Maui","HI","102-Maui County Council, Wailuku, Maui, HI",null,"660-Blackhawk Area",null,null,null,null,null,null,"661-Puerto Rico Council, Guaynabo, PR",null,"661 Puerto Rico","2020-12-31",null,661,"Puerto Rico","Guaynabo","PR","JTE 5-Membership/youth growth","JTE 14-Unit retention/growth","JTE 2-Fundraising","JTE 12-Community service","JTE 17-District leadership"]
[1,4,"538","Chief Cornplanter",500,"G1","Warren","PA","538-Chief Cornplanter Council, Warren, PA",null,"661-Puerto Rico",null,null,null,null,null,null,"662-Longhorn Council, Fort Worth, TX",null,"662 Longhorn","2022-12-31",null,662,"Longhorn","Fort Worth","TX","JTE 1-Fiscal management","JTE 4-Community impact","JTE 11-Boy Scout camping","JTE 14-Unit retention/growth","JTE 18-Unit leadership"]
[1,3,"592","Green Mountain",400,"G2","Waterbury","VT","592-Green Mountain Council, Waterbury, VT",null,"662-Longhorn",null,null,null,null,null,null,"664-Suwannee River Area Council, Tallahassee, FL",null,"664 Suwannee River Area","2022-12-31",null,664,"Suwannee River Area","Tallahassee","FL","JTE 4-Community impact","JTE 6-New member recruiting","JTE 10-Cub Scout camping","JTE 13-Youth-serving executives","JTE 18-Unit leadership"]
[3,3,"173","Winnebago",500,"G1","Waterloo","IA","173-Winnebago Council, Waterloo, IA",null,"664-Suwannee River Area",null,null,null,null,null,null,"690-Garden State Council, Westampton, NJ",null,"690 Garden State","2019-12-31",null,690,"Garden State","Westampton","NJ","JTE 1-Fiscal management","JTE 2-Fundraising","JTE 3-Endowment","JTE 5-Membership/youth growth","JTE 6-New member recruiting"]
[3,7,"651","Potawatomi Area",400,"G3","Waukesha","WI","651-Potawatomi Area Council, Waukesha, WI",null,"690-Garden State",null,null,null,null,null,null,"691-Pushmataha Area Council, Columbus, MS",null,"691 Pushmataha Area",null,null,691,"Pushmataha Area","Columbus","MS","JTE 5-Membership/youth growth","JTE 11-Boy Scout camping","JTE 15-Unit contacts","JTE 4-Community impact","JTE 18-Unit leadership"]
[2,7,"763","Stonewall Jackson Area",400,"G1","Waynesboro","VA","763-Stonewall Jackson Area Council, Waynesboro, VA",null,"691-Pushmataha Area",null,null,null,null,null,null,"694-South Plains Council, Lubbock, TX",null,"694 South Plains","2018-12-31",null,694,"South Plains","Lubbock","TX","JTE 1-Fiscal management","JTE 2-Fundraising","JTE 5-Membership/youth growth","JTE 15-Unit contacts","JTE 18-Unit leadership"]
[1,6,"539","Chester County",300,"G2","West Chester","PA","539-Chester County Council, West Chester, PA",null,"694-South Plains",null,null,null,null,null,null,"695-Black Hills Area Council, Rapid City, SD",null,"695 Black Hills Area","2021-12-31",null,695,"Black Hills Area","Rapid City","SD","JTE 18-Unit leadership","JTE 17-District leadership","JTE 5-Membership/youth growth","JTE 14-Unit retention/growth","JTE 15-Unit contacts"]
[1,5,"690","Garden State",300,"G3","Westampton","NJ","690-Garden State Council, Westampton, NJ",null,"695-Black Hills Area",null,null,null,null,null,null,"696-Midnight Sun Council, Fairbanks, AK",null,"696 Midnight Sun",null,null,696,"Midnight Sun","Fairbanks","AK","JTE 3-Endowment","JTE 4-Community impact","JTE 8-Cub Scout advancement","JTE 9-Boy Scout advancement","JTE 15-Unit contacts"]
[1,2,"234","Western Massachusetts",500,"G2","Westfield","MA","234-Western Massachusetts Council, Westfield, MA",null,"696-Midnight Sun",null,null,null,null,null,null,"697-Oregon Trail Council, Eugene, OR",null,"697 Oregon Trail",null,null,697,"Oregon Trail","Eugene","OR","JTE 4-Community impact","JTE 2-Fundraising","JTE 17-District leadership","JTE 18-Unit leadership","JTE 14-Unit retention/growth"]
[3,1,"627","Samoset",300,"G2","Weston","WI","627-Samoset Council, Weston, WI",null,"697-Oregon Trail",null,null,null,null,null,null,"702-Rainbow Council, Morris, IL",null,"702 Rainbow",null,null,702,"Rainbow","Morris","IL","JTE 2-Fundraising","JTE 5-Membership/youth growth","JTE 14-Unit retention/growth","JTE 4-Community impact","JTE 18-Unit leadership"]
[3,4,"619","Ohio River Valley",500,"G1","Wheeling","WV","619-Ohio River Valley Council, Wheeling, WV",null,"702-Rainbow",null,null,null,null,null,null,"713-Sequoyah Council, Johnson City, TN",null,"713 Sequoyah","2020-12-31",null,713,"Sequoyah","Johnson City","TN","JTE 2-Fundraising","JTE 7-Youth retention","JTE 1-Fiscal management","JTE 17-District leadership","JTE 14-Unit retention/growth"]
[3,5,"198","Quivira",300,"G2","Wichita","KS","198-Quivira Council, Wichita, KS",null,"713-Sequoyah",null,null,null,null,null,null,"733-Sioux Council, Sioux Falls, SD",null,"733 Sioux","2018-12-31",null,733,"Sioux","Sioux Falls","SD","JTE 5-Membership/youth growth","JTE 6-New member recruiting","JTE 8-Cub Scout advancement","JTE 15-Unit contacts","JTE 17-District leadership"]
[2,2,"587","Northwest Texas",500,"G1","Wichita Falls","TX","587-Northwest Texas Council, Wichita Falls, TX",null,"733-Sioux",null,null,null,null,null,null,"741-Texas Southwest Council, San Angelo, TX",null,"741 Texas Southwest","2018-12-31",null,741,"Texas Southwest","San Angelo","TX","JTE 1-Fiscal management","JTE 2-Fundraising","JTE 3-Endowment","JTE 5-Membership/youth growth","JTE 6-New member recruiting"]
[1,4,"533","Susquehanna",500,"G1","Williamsport","PA","533-Susquehanna Council, Williamsport, PA",null,"741-Texas Southwest",null,null,null,null,null,null,"748-Yocona Area Council, Tupelo, MS",null,"748 Yocona Area","2022-12-31",null,748,"Yocona Area","Tupelo","MS","JTE 3-Endowment","JTE 12-Community service","JTE 15-Unit contacts","JTE 17-District leadership","JTE 18-Unit leadership"]
[1,6,"081","Del-Mar-Va",200,"G3","Wilmington","DE",{"$f":"_xlfn.CONCAT(C259) & \"-\" & (D259) & \" Council, \" & (G259) &  \", \" & (H259)","v":"081-Del-Mar-Va Council, Wilmington, DE"},null,"748-Yocona Area",null,null,null,null,null,null,"763-Stonewall Jackson Area Council, Waynesboro, VA",null,"763 Stonewall Jackson Area","2020-12-31",null,763,"Stonewall Jackson Area","Waynesboro","VA","JTE 2-Fundraising","JTE 7-Youth retention","JTE 5-Membership/youth growth","JTE 15-Unit contacts","JTE 17-District leadership"]
[2,7,"425","Cape Fear",400,"G2","Wilmington","NC","425-Cape Fear Council, Wilmington, NC",null,"763-Stonewall Jackson Area",null,null,null,null,null,null,"773-Gulf Coast Council, Pensacola, FL",null,"773 Gulf Coast","2020-12-31",null,773,"Gulf Coast","Pensacola","FL","JTE 2-Fundraising","JTE 6-New member recruiting","JTE 17-District leadership","JTE 5-Membership/youth growth","JTE 15-Unit contacts"]
[2,7,"598","Shenandoah Area",500,"G1","Winchester","VA","598-Shenandoah Area Council, Winchester, VA",null,"773-Gulf Coast",null,null,null,null,null,null,"775-Rio Grande Council, Harlingen, TX",null,"775 Rio Grande","2022-12-31",null,775,"Rio Grande","Harlingen","TX","JTE 5-Membership/youth growth","JTE 6-New member recruiting","JTE 7-Youth retention","JTE 1-Fiscal management","JTE 2-Fundraising"]
[2,7,"427","Old Hickory",300,"G2","Winston-Salem","NC","427-Old Hickory Council, Winston-Salem, NC",null,"775-Rio Grande",null,null,null,null,null,null,"777-Washington Crossing Council, Doylestown, PA",null,"777 Washington Crossing","2018-12-31",null,"777","Washington Crossing","Doylestown","PA","JTE 1-Fiscal management","JTE 2-Fundraising","JTE 5-Membership/youth growth","JTE 6-New member recruiting","JTE 9-Boy Scout advancement"]
[1,1,"254","Mohegan",400,"G3","Worcester","MA","254-Mohegan Council, Worcester, MA",null,"777-Washington Crossing",null,null,null,null,null,null,"781-President Gerald R. Ford Council, Grand Rapids, MI",null,"781 President Gerald R. Ford","2019-12-31",null,781,"President Gerald R. Ford","Grand Rapids","MI","JTE 17-District leadership","JTE 6-New member recruiting","JTE 14-Unit retention/growth","JTE 18-Unit leadership","JTE 5-Membership/youth growth"]
[4,1,"614","Grand Columbia",500,"G2","Yakima","WA","614-Grand Columbia Council, Yakima, WA",null,"781-President Gerald R. Ford",null,null,null,null,null,null,"782-Water and Woods Council, Flint, MI",null,"782 Water and Woods","2019-12-31",null,782,"Water and Woods","Flint","MI","JTE 2-Fundraising","JTE 5-Membership/youth growth","JTE 10-Cub Scout camping","JTE 15-Unit contacts","JTE 17-District leadership"]
[1,1,"224","Cape Cod and Islands",500,"G2","Yarmouth Port","MA","224-Cape Cod and Islands Council, Yarmouth Port, MA",null,"782-Water and Woods",null,null,null,null,null,null,"783-Southern Shores Council, Ypsilanti, MI",null,"783 Southern Shores","2019-12-31",null,783,"Southern Shores","Ypsilanti","MI","JTE 2-Fundraising","JTE 4-Community impact","JTE 10-Cub Scout camping","JTE 15-Unit contacts","JTE 17-District leadership"]
[3,2,"783","Southern Shores",400,"G3","Ypsilanti","MI","783-Southern Shores Council, Ypsilanti, MI",null,"783-Southern Shores",null,null,null,null,null,null,"802-Transatlantic Council, Brussels, Belgium",null,"802 Transatlantic","2023-12-31",null,802,"Transatlantic","Brussels","Belgium","JTE 2-Fundraising","JTE 1-Fiscal management","JTE 6-New member recruiting","JTE 5-Membership/youth growth","JTE 14-Unit retention/growth"]
[3,4,"467","Muskingum Valley",500,"G1","Zanesville","OH","467-Muskingum Valley Council, Zanesville, OH",null,"802-Transatlantic",null,null,null,null,null,null,"803-Far East Council, Okinawa, Japan",null,"803 Far East","2021-12-31",null,803,"Far East","Okinawa","Japan","JTE 6-New member recruiting","JTE 17-District leadership","JTE 18-Unit leadership","JTE 10-Cub Scout camping","JTE 11-Boy Scout camping"]
[null,null,null,null,null,null,null,null,null,null,"803-Far East",null,null,null,null,null,null,null,null,null,null,null,null,null,null,"12/31/2017"]

{"sheet":"Data2","index":1,"n_rows":533,"n_cols":13,"rows_kept":533,"cut":false,"hidden":true,"merged":[]}
["Reg#","Area","Council#","CouncilName","HeadquartersCity","HeadquartersState","PlanDate/Comparatives","1","2","3","4","5","Submitter"]
[4,3,"028","San Francisco Bay Area","San Leandro","CA","12/31/2018-SP exp date","JTE 1-Fiscal management","JTE 6-New member recruiting","JTE 11-Boy Scout camping","JTE 5-Membership/youth growth","JTE 12-Community service","Joe Barton"]
[4,4,"032","Long Beach Area","Long Beach","CA","12/31/2018-SP exp date","JTE 5-Membership/youth growth","JTE 6-New member recruiting","JTE 17-District leadership","JTE 2-Fundraising","JTE 18-Unit leadership","John Fullerton"]
[4,3,"041","Redwood Empire","Santa Rosa","CA","12/31/2018-SP exp date","JTE 2-Fundraising","JTE 5-Membership/youth growth","JTE 17-District leadership","JTE 10-Cub Scout camping","JTE 12-Community service","Charles A. Howard-Gibbon"]
[4,4,"045","California Inland Empire","Redlands","CA","12/31/2018-SP exp date","JTE 1-Fiscal management","JTE 18-Unit leadership","JTE 5-Membership/youth growth","JTE 11-Boy Scout camping","JTE 17-District leadership","Daniela Silva"]
[4,4,"053","Los Padres","Santa Barbara","CA","12/31/2018-SP exp date","JTE 17-District leadership","JTE 2-Fundraising","JTE 4-Community impact","JTE 10-Cub Scout camping","JTE 18-Unit leadership","Carlos Cortez"]
[4,3,"055","Silicon Valley Monterey Bay","San Jose","CA","12/31/2018-SP exp date","JTE 6-New member recruiting","JTE 2-Fundraising","JTE 18-Unit leadership","JTE 15-Unit contacts","JTE 8-Cub Scout advancement","Jason Stein"]
[1,2,"066","Connecticut Rivers","East Hartford","CT","12/31/2018-SP exp date","JTE 2-Fundraising","JTE 18-Unit leadership","JTE 9-Boy Scout advancement","JTE 15-Unit contacts","JTE 5-Membership/youth growth","steven smith"]
[1,2,"067","Greenwich","Greenwich","CT","12/31/2018-SP exp date","JTE 5-Membership/youth growth","JTE 7-Youth retention","JTE 1-Fiscal management","JTE 2-Fundraising","JTE 3-Endowment","Kevin Oâ€™Shea"]
[2,4,"084","South Florida","Miami Lakes","FL","12/31/2018-SP exp date","JTE 1-Fiscal management","JTE 2-Fundraising","JTE 9-Boy Scout advancement","JTE 13-Youth-serving executives","JTE 15-Unit contacts","Brick Huffman"]
[4,2,"107","Grand Teton","Idaho Falls","ID","12/31/2018-SP exp date","JTE 3-Endowment","JTE 2-Fundraising","JTE 1-Fiscal management","JTE 18-Unit leadership","JTE 15-Unit contacts","Clarke Farrer"]
[3,3,"121","Lincoln Trails","Decatur","IL","12/31/2018-SP exp date","JTE 5-Membership/youth growth","JTE 14-Unit retention/growth","JTE 1-Fiscal management","JTE 17-District leadership","JTE 2-Fundraising","Christian J. Long"]
[3,3,"144","Abraham Lincoln","Springfield","IL","12/31/2018-SP exp date","JTE 5-Membership/youth growth","JTE 6-New member recruiting","JTE 8-Cub Scout advancement","JTE 12-Community service","JTE 4-Community impact","Daniel A. O'Brien"]
[3,6,"160","Crossroads of America","Indianapolis","IN","12/31/2018-SP exp date","JTE 3-Endowment","JTE 5-Membership/youth growth","JTE 7-Youth retention","JTE 9-Boy Scout advancement","JTE 10-Cub Scout camping","patrick sterrett"]
[3,5,"192","Coronado Area","Salina","KS","12/31/2018-SP exp date","JTE 13-Youth-serving executives","JTE 18-Unit leadership","JTE 12-Community service","JTE 10-Cub Scout camping","JTE 14-Unit retention/growth","Wendy Shaw"]
[2,6,"205","Lincoln Heritage","Louisville","KY","12/31/2018-SP exp date","JTE 2-Fundraising","JTE 5-Membership/youth growth","JTE 11-Boy Scout camping","JTE 14-Unit retention/growth","JTE 18-Unit leadership","Clint Scharff"]
[1,1,"224","Cape Cod and Islands","Yarmouth Port","MA","12/31/2018-SP exp date","JTE 1-Fiscal management","JTE 2-Fundraising","JTE 5-Membership/youth growth","JTE 6-New member recruiting","JTE 14-Unit retention/growth","Michael Riley"]
[3,1,"286","Voyageurs Area","Hermantown","MN","12/31/2018-SP exp date","JTE 2-Fundraising","JTE 3-Endowment","JTE 5-Membership/youth growth","JTE 14-Unit retention/growth","JTE 18-Unit leadership","Michael Jenkins"]
[3,5,"307","Heart of America","Kansas City","MO","12/31/2018-SP exp date","JTE 5-Membership/youth growth","JTE 8-Cub Scout advancement","JTE 9-Boy Scout advancement","JTE 14-Unit retention/growth","JTE 6-New member recruiting","Kendrick Miller"]
[3,5,"324","Cornhusker","Lincoln","NE","12/31/2018-SP exp date","JTE 1-Fiscal management","JTE 3-Endowment","JTE 6-New member recruiting","JTE 12-Community service","JTE 10-Cub Scout camping","Chris Blum"]
[1,5,"333","Northern New Jersey","Oakland","NJ","12/31/2018-SP exp date","JTE 1-Fiscal management","JTE 5-Membership/youth growth","JTE 2-Fundraising","JTE 15-Unit contacts","JTE 10-Cub Scout camping","Rebecca Fields"]
[1,5,"341","Jersey Shore","Toms River","NJ","12/31/2018-SP exp date","JTE 5-Membership/youth growth","JTE 18-Unit leadership","JTE 8-Cub Scout advancement","JTE 15-Unit contacts","JTE 12-Community service","James Gillick"]
[1,5,"358","Patriots' Path","Cedar Knolls","NJ","12/31/2018-SP exp date","JTE 5-Membership/youth growth","JTE 2-Fundraising","JTE 10-Cub Scout camping","JTE 3-Endowment","JTE 4-Community impact","Mark Spaldo"]
[1,3,"364","Twin Rivers","Albany","NY","12/31/2018-SP exp date","JTE 5-Membership/youth growth","JTE 14-Unit retention/growth","JTE 1-Fiscal management","JTE 17-District leadership","JTE 18-Unit leadership","Dennis Dugan"]
[1,4,"382","Allegheny Highlands","Falconer","NY","12/31/2018-SP exp date","JTE 2-Fundraising","JTE 10-Cub Scout camping","JTE 12-Community service","JTE 15-Unit contacts","JTE 17-District leadership","John Wojciechowicz"]
[1,2,"388","Westchester-Putnam","Hawthorne","NY","12/31/2018-SP exp date","JTE 1-Fiscal management","JTE 5-Membership/youth growth","JTE 6-New member recruiting","JTE 8-Cub Scout advancement","JTE 10-Cub Scout camping","Richard Stockton"]
[2,5,"416","Central North Carolina","Albemarle","NC","12/31/2018-SP exp date","JTE 3-Endowment","JTE 5-Membership/youth growth","JTE 8-Cub Scout advancement","JTE 17-District leadership","JTE 18-Unit leadership","Bob McGowan"]
[3,4,"433","Great Trail","Akron","OH","12/31/2018-SP exp date","JTE 18-Unit leadership","JTE 15-Unit contacts","JTE 10-Cub Scout camping","JTE 8-Cub Scout advancement","JTE 13-Youth-serving executives","Patrick Scherer"]
[3,4,"440","Lake Erie","Cleveland","OH","12/31/2018-SP exp date","JTE 8-Cub Scout advancement","JTE 10-Cub Scout camping","JTE 12-Community service","JTE 15-Unit contacts","JTE 18-Unit leadership","Marc Ryan"]
[3,4,"467","Muskingum Valley","Zanesville","OH","12/31/2018-SP exp date","JTE 2-Fundraising","JTE 8-Cub Scout advancement","JTE 5-Membership/youth growth","JTE 14-Unit retention/growth","JTE 12-Community service","Ed Mulholland"]
[1,5,"502","Minsi Trails","Lehigh Valley","PA","12/31/2018-SP exp date","JTE 5-Membership/youth growth","JTE 8-Cub Scout advancement","JTE 10-Cub Scout camping","JTE 15-Unit contacts","JTE 17-District leadership","Karen Scherer"]
[1,4,"509","Bucktail","DuBois","PA","12/31/2018-SP exp date","JTE 1-Fiscal management","JTE 2-Fundraising","JTE 8-Cub Scout advancement","JTE 10-Cub Scout camping","JTE 15-Unit contacts","Gregg Bennett"]
[1,4,"527","Laurel Highlands","Pittsburgh","PA","12/31/2018-SP exp date","JTE 2-Fundraising","JTE 5-Membership/youth growth","JTE 10-Cub Scout camping","JTE 11-Boy Scout camping","JTE 17-District leadership","Sharon M. Moulds"]
[1,4,"533","Susquehanna","Williamsport","PA","12/31/2018-SP exp date","JTE 1-Fiscal management","JTE 2-Fundraising","JTE 4-Community impact","JTE 12-Community service","JTE 15-Unit contacts","Jon Brennan"]
[1,6,"544","New Birth of Freedom","Mechanicsburg","PA","12/31/2018-SP exp date","JTE 1-Fiscal management","JTE 2-Fundraising","JTE 5-Membership/youth growth","JTE 11-Boy Scout camping","JTE 10-Cub Scout camping","Ron Gardner"]
[2,6,"557","Great Smoky Mountain","Knoxville","TN","12/31/2018-SP exp date","JTE 1-Fiscal management","JTE 2-Fundraising","JTE 5-Membership/youth growth","JTE 17-District leadership","JTE 10-Cub Scout camping","David Williams"]
[2,3,"578","Three Rivers","Beaumont","TX","12/31/2018-SP exp date","JTE 2-Fundraising","JTE 1-Fiscal management","JTE 5-Membership/youth growth","JTE 6-New member recruiting","JTE 3-Endowment","Les Bentley"]
[4,2,"590","Great Salt Lake","Salt Lake City","UT","12/31/2018-SP exp date","JTE 2-Fundraising","JTE 15-Unit contacts","JTE 17-District leadership","JTE 18-Unit leadership","JTE 1-Fiscal management","Mark Griffin"]
[2,7,"595","Colonial Virginia","Newport News","VA","12/31/2018-SP exp date","JTE 1-Fiscal management","JTE 5-Membership/youth growth","JTE 6-New member recruiting","JTE 8-Cub Scout advancement","JTE 10-Cub Scout camping","Scott Rehrauer"]
[2,7,"596","Tidewater","Virginia Beach","VA","12/31/2018-SP exp date","JTE 1-Fiscal management","JTE 6-New member recruiting","JTE 8-Cub Scout advancement","JTE 10-Cub Scout camping","JTE 18-Unit leadership","Bill Deany"]
[2,7,"599","Blue Ridge Mountains","Roanoke","VA","12/31/2018-SP exp date","JTE 1-Fiscal management","JTE 5-Membership/youth growth","JTE 2-Fundraising","JTE 10-Cub Scout camping","JTE 11-Boy Scout camping","Dan Johnson"]
[4,1,"610","Great Alaska","Anchorage","AK","12/31/2018-SP exp date","JTE 1-Fiscal management","JTE 2-Fundraising","JTE 17-District leadership","JTE 6-New member recruiting","JTE 14-Unit retention/growth","Clifford Crismore"]
[4,1,"614","Grand Columbia","Yakima","WA","12/31/2018-SP exp date","JTE 2-Fundraising","JTE 14-Unit retention/growth","JTE 17-District leadership","JTE 8-Cub Scout advancement","JTE 3-Endowment","Barry McDonald"]
[3,4,"615","Mountaineer Area","Fairmont","WV","12/31/2018-SP exp date","JTE 1-Fiscal management","JTE 3-Endowment","JTE 5-Membership/youth growth","JTE 8-Cub Scout advancement","JTE 9-Boy Scout advancement","Jeff Doty"]
[3,1,"627","Samoset","Weston","WI","12/31/2018-SP exp date","JTE 17-District leadership","JTE 6-New member recruiting","JTE 9-Boy Scout advancement","JTE 10-Cub Scout camping","JTE 7-Youth retention","Jeff Ottosen"]
[1,2,"640","Greater New York","New York","NY","12/31/2018-SP exp date","","","","","",""]
[3,7,"651","Potawatomi Area","Waukesha","WI","12/31/2018-SP exp date","JTE 1-Fiscal management","JTE 5-Membership/youth growth","JTE 6-New member recruiting","JTE 2-Fundraising","JTE 14-Unit retention/growth","Paul Schwartz"]
[2,2,"694","South Plains","Lubbock","TX","12/31/2018-SP exp date","JTE 1-Fiscal management","JTE 2-Fundraising","JTE 5-Membership/youth growth","JTE 15-Unit contacts","JTE 18-Unit leadership","Nathan Baie"]
[3,1,"733","Sioux","Sioux Falls","SD","12/31/2018-SP exp date","JTE 5-Membership/youth growth","JTE 6-New member recruiting","JTE 8-Cub Scout advancement","JTE 15-Unit contacts","JTE 17-District leadership","Thomas Smotherman"]
[2,3,"741","Texas Southwest","San Angelo","TX","12/31/2018-SP exp date","JTE 1-Fiscal management","JTE 2-Fundraising","JTE 3-Endowment","JTE 5-Membership/youth growth","JTE 6-New member recruiting","Devin Koehler"]
[1,5,"777","Washington Crossing","Doylestown","PA","12/31/2018-SP exp date","JTE 1-Fiscal management","JTE 2-Fundraising","JTE 5-Membership/youth growth","JTE 6-New member recruiting","JTE 9-Boy Scout advancement","Magne Gundersen"]
[2,1,"003","Alabama-Florida","Dothan","AL","12/31/2019-SP exp date","JTE 2-Fundraising","JTE 5-Membership/youth growth","JTE 6-New member recruiting","JTE 10-Cub Scout camping","JTE 15-Unit contacts","Jerry Freyberg"]
[4,6,"010","Grand Canyon","Phoenix","AZ","12/31/2019-SP exp date","JTE 10-Cub Scout camping","JTE 11-Boy Scout camping","JTE 12-Community service","JTE 17-District leadership","JTE 18-Unit leadership","Larry Abbott"]
[4,3,"031","Pacific Skyline","Foster City","CA","12/31/2019-SP exp date","JTE 5-Membership/youth growth","JTE 2-Fundraising","JTE 17-District leadership","JTE 11-Boy Scout camping","JTE 18-Unit leadership","Brian Curtis"]
[4,3,"042","Piedmont","Piedmont","CA","12/31/2019-SP exp date","JTE 5-Membership/youth growth","JTE 8-Cub Scout advancement","JTE 12-Community service","JTE 15-Unit contacts","JTE 18-Unit leadership","Josephine Pegrum Hazelett"]
[4,3,"047","Golden Empire","Sacramento","CA","12/31/2019-SP exp date","JTE 2-Fundraising","JTE 3-Endowment","JTE 5-Membership/youth growth","JTE 17-District leadership","JTE 18-Unit leadership","Chuck Brasfeild"]
[4,2,"063","Rocky Mountain","Pueblo","CO","12/31/2019-SP exp date","JTE 2-Fundraising","JTE 5-Membership/youth growth","JTE 7-Youth retention","JTE 12-Community service","JTE 18-Unit leadership","Philip Eborn"]
[2,4,"083","Central Florida","Orlando","FL","12/31/2019-SP exp date","JTE 11-Boy Scout camping","JTE 10-Cub Scout camping","JTE 2-Fundraising","JTE 5-Membership/youth growth","JTE 7-Youth retention","Eric Magendantz"]
[2,9,"099","Coastal Georgia","Savannah","GA","12/31/2019-SP exp date","JTE 1-Fiscal management","JTE 5-Membership/youth growth","JTE 6-New member recruiting","JTE 2-Fundraising","JTE 17-District leadership","Clif Morris"]
[4,1,"106","Ore-Ida","Boise","ID","12/31/2019-SP exp date","JTE 1-Fiscal management","JTE 6-New member recruiting","JTE 8-Cub Scout advancement","JTE 14-Unit retention/growth","JTE 17-District leadership","David Kemper"]
[3,3,"133","Illowa","Davenport","IA","12/31/2019-SP exp date","JTE 1-Fiscal management","JTE 8-Cub Scout advancement","JTE 17-District leadership","JTE 15-Unit contacts","JTE 12-Community service","Thomas P. McDermott"]
[3,3,"141","Mississippi Valley","Quincy","IL","12/31/2019-SP exp date","JTE 3-Endowment","JTE 5-Membership/youth growth","JTE 6-New member recruiting","JTE 14-Unit retention/growth","JTE 18-Unit leadership","Todd Lamison"]
[3,6,"157","Anthony Wayne Area","Fort Wayne","IN","12/31/2019-SP exp date","JTE 1-Fiscal management","JTE 5-Membership/youth growth","JTE 7-Youth retention","JTE 10-Cub Scout camping","JTE 18-Unit leadership","John Gliot"]
[3,3,"178","Northeast Iowa","Dubuque","IA","12/31/2019-SP exp date","JTE 3-Endowment","JTE 18-Unit leadership","JTE 8-Cub Scout advancement","JTE 9-Boy Scout advancement","JTE 6-New member recruiting","Matt Klutzaritz"]
[3,5,"197","Jayhawk Area","Topeka","KS","12/31/2019-SP exp date","JTE 5-Membership/youth growth","JTE 8-Cub Scout advancement","JTE 9-Boy Scout advancement","JTE 12-Community service","JTE 15-Unit contacts","Wayne Pancoast"]
[2,6,"204","Blue Grass","Lexington","KY","12/31/2019-SP exp date","JTE 1-Fiscal management","JTE 2-Fundraising","JTE 4-Community impact","JTE 5-Membership/youth growth","JTE 15-Unit contacts","James Armishaw"]
[2,1,"213","Louisiana Purchase","Monroe","LA","12/31/2019-SP exp date","JTE 8-Cub Scout advancement","JTE 9-Boy Scout advancement","JTE 10-Cub Scout camping","JTE 11-Boy Scout camping","JTE 1-Fiscal management","Shane Cooley"]
[1,6,"221","Mason-Dixon","Hagerstown","MD","12/31/2019-SP exp date","JTE 5-Membership/youth growth","JTE 14-Unit retention/growth","JTE 2-Fundraising","JTE 6-New member recruiting","JTE 1-Fiscal management","Rob Stone"]
[1,2,"234","Western Massachusetts","Westfield","MA","12/31/2019-SP exp date","JTE 2-Fundraising","JTE 4-Community impact","JTE 5-Membership/youth growth","JTE 10-Cub Scout camping","JTE 11-Boy Scout camping","David Kruse"]
[3,2,"272","Great Lakes","Detroit","MI","12/31/2019-SP exp date","JTE 5-Membership/youth growth","JTE 10-Cub Scout camping","JTE 15-Unit contacts","JTE 2-Fundraising","JTE 8-Cub Scout advancement","Vic Pooler"]
[3,1,"283","Twin Valley","Mankato","MN","12/31/2019-SP exp date","JTE 2-Fundraising","JTE 6-New member recruiting","JTE 7-Youth retention","JTE 14-Unit retention/growth","JTE 18-Unit leadership","Ray Brauer"]
[3,5,"306","Ozark Trails","Springfield","MO","12/31/2019-SP exp date","JTE 2-Fundraising","JTE 5-Membership/youth growth","JTE 13-Youth-serving executives","JTE 17-District leadership","JTE 11-Boy Scout camping","John Feick"]
[1,3,"375","Five Rivers","Horseheads","NY","12/31/2019-SP exp date","JTE 5-Membership/youth growth","JTE 6-New member recruiting","JTE 10-Cub Scout camping","JTE 3-Endowment","JTE 18-Unit leadership","Gary Decker"]
[1,3,"380","Greater Niagara Frontier","Buffalo","NY","12/31/2019-SP exp date","JTE 1-Fiscal management","JTE 6-New member recruiting","JTE 10-Cub Scout camping","JTE 15-Unit contacts","JTE 17-District leadership","Russell Etzenhouser"]
[1,3,"397","Seneca Waterways","Rochester","NY","12/31/2019-SP exp date","JTE 17-District leadership","JTE 15-Unit contacts","JTE 10-Cub Scout camping","JTE 12-Community service","JTE 5-Membership/youth growth","Stephen T. Hoitt"]
[1,2,"405","Rip Van Winkle","Kingston","NY","12/31/2019-SP exp date","JTE 10-Cub Scout camping","JTE 15-Unit contacts","JTE 17-District leadership","JTE 12-Community service","JTE 6-New member recruiting","Ray Braun"]
[4,6,"413","Conquistador","Roswell","NM","12/31/2019-SP exp date","JTE 14-Unit retention/growth","JTE 17-District leadership","JTE 10-Cub Scout camping","JTE 13-Youth-serving executives","JTE 18-Unit leadership","Jacob Armstrong"]
[2,7,"427","Old Hickory","Winston-Salem","NC","12/31/2019-SP exp date","JTE 3-Endowment","JTE 5-Membership/youth growth","JTE 7-Youth retention","JTE 11-Boy Scout camping","JTE 8-Cub Scout advancement","Steve Wilburn"]
[3,1,"429","Northern Lights","Fargo","ND","12/31/2019-SP exp date","JTE 2-Fundraising","JTE 8-Cub Scout advancement","JTE 15-Unit contacts","JTE 17-District leadership","JTE 18-Unit leadership","Roger B. Hoyt"]
[3,4,"436","Buckeye","Canton","OH","12/31/2019-SP exp date","JTE 3-Endowment","JTE 6-New member recruiting","JTE 8-Cub Scout advancement","JTE 10-Cub Scout camping","JTE 18-Unit leadership","Nathan Hopper"]
[4,1,"492","Cascade Pacific","Portland","OR","12/31/2019-SP exp date","JTE 1-Fiscal management","JTE 6-New member recruiting","JTE 14-Unit retention/growth","JTE 13-Youth-serving executives","JTE 17-District leadership","Matt Devore"]
[1,5,"525","Cradle of Liberty","Philadelphia","PA","12/31/2019-SP exp date","JTE 3-Endowment","JTE 5-Membership/youth growth","JTE 10-Cub Scout camping","JTE 15-Unit contacts","JTE 17-District leadership","Veronica Coyle"]
[1,4,"532","French Creek","Erie","PA","12/31/2019-SP exp date","JTE 5-Membership/youth growth","JTE 1-Fiscal management","JTE 4-Community impact","JTE 17-District leadership","JTE 15-Unit contacts","Duane Havard"]
[1,1,"546","Narragansett","Providence","RI","12/31/2019-SP exp date","JTE 5-Membership/youth growth","JTE 2-Fundraising","JTE 8-Cub Scout advancement","JTE 14-Unit retention/growth","JTE 15-Unit contacts","Tim McCandless"]
[2,5,"550","Coastal Carolina","Charleston","SC","12/31/2019-SP exp date","JTE 5-Membership/youth growth","JTE 6-New member recruiting","JTE 13-Youth-serving executives","JTE 1-Fiscal management","JTE 14-Unit retention/growth","Legare Clement"]
[2,5,"552","Pee Dee Area","Florence","SC","12/31/2019-SP exp date","JTE 2-Fundraising","JTE 5-Membership/youth growth","JTE 12-Community service","JTE 8-Cub Scout advancement","JTE 4-Community impact","Michael Hesbach"]
[2,3,"567","Buffalo Trail","Midland","TX","12/31/2019-SP exp date","JTE 2-Fundraising","JTE 1-Fiscal management","JTE 6-New member recruiting","JTE 4-Community impact","JTE 10-Cub Scout camping","David Chapman"]
[2,2,"585","East Texas Area","Tyler","TX","12/31/2019-SP exp date","JTE 17-District leadership","JTE 4-Community impact","JTE 5-Membership/youth growth","JTE 14-Unit retention/growth","JTE 2-Fundraising","Daniel Anderson"]
[2,7,"602","Heart of Virginia","Richmond","VA","12/31/2019-SP exp date","JTE 2-Fundraising","JTE 14-Unit retention/growth","JTE 5-Membership/youth growth","JTE 8-Cub Scout advancement","JTE 3-Endowment","Bradford M. Nesheim"]
[3,4,"618","Allohak","Parkersburg","WV","12/31/2019-SP exp date","JTE 12-Community service","JTE 17-District leadership","JTE 18-Unit leadership","JTE 6-New member recruiting","JTE 4-Community impact","Todd Walter"]
[3,1,"637","Chippewa Valley","Eau Claire","WI","12/31/2019-SP exp date","JTE 5-Membership/youth growth","JTE 7-Youth retention","JTE 12-Community service","JTE 18-Unit leadership","JTE 8-Cub Scout advancement","Joe Carlson"]
[4,2,"638","Greater Wyoming","Casper","WY","12/31/2019-SP exp date","JTE 1-Fiscal management","JTE 6-New member recruiting","JTE 9-Boy Scout advancement","JTE 12-Community service","JTE 17-District leadership","Brad Bodoh"]
[1,5,"690","Garden State","Westampton","NJ","12/31/2019-SP exp date","JTE 1-Fiscal management","JTE 2-Fundraising","JTE 3-Endowment","JTE 5-Membership/youth growth","JTE 6-New member recruiting","Kevin Bishop"]
[3,2,"781","President Gerald R. Ford","Grand Rapids","MI","12/31/2019-SP exp date","JTE 17-District leadership","JTE 6-New member recruiting","JTE 14-Unit retention/growth","JTE 18-Unit leadership","JTE 5-Membership/youth growth","Kevin Nichols"]
[3,2,"782","Water and Woods","Flint","MI","12/31/2019-SP exp date","JTE 2-Fundraising","JTE 5-Membership/youth growth","JTE 10-Cub Scout camping","JTE 15-Unit contacts","JTE 17-District leadership","Gary Gilger"]
[3,2,"783","Southern Shores","Ypsilanti","MI","12/31/2019-SP exp date","JTE 2-Fundraising","JTE 4-Community impact","JTE 10-Cub Scout camping","JTE 15-Unit contacts","JTE 17-District leadership","Melissa Stricherz"]
[2,9,"006","Black Warrior","Tuscaloosa","AL","12/31/2020-SP exp date","JTE 5-Membership/youth growth","JTE 2-Fundraising","JTE 17-District leadership","JTE 8-Cub Scout advancement","JTE 12-Community service","Bill Gosselin"]
[2,8,"013","De Soto Area","El Dorado","AR","12/31/2020-SP exp date","JTE 1-Fiscal management","JTE 5-Membership/youth growth","JTE 6-New member recruiting","JTE 14-Unit retention/growth","JTE 18-Unit leadership","Ted Woodlock"]
[4,3,"023","Mount Diablo Silverado","Pleasant Hill","CA","12/31/2020-SP exp date","JTE 1-Fiscal management","JTE 2-Fundraising","JTE 5-Membership/youth growth","JTE 11-Boy Scout camping","JTE 14-Unit retention/growth","John Fenoglio"]
[4,4,"030","Southern Sierra","Bakersfield","CA","12/31/2020-SP exp date","JTE 2-Fundraising","JTE 5-Membership/youth growth","JTE 10-Cub Scout camping","JTE 9-Boy Scout advancement","JTE 17-District leadership","Jesse Lopez"]
[4,3,"035","Marin","San Rafael","CA","12/31/2020-SP exp date","JTE 5-Membership/youth growth","JTE 2-Fundraising","JTE 4-Community impact","JTE 1-Fiscal management","JTE 14-Unit retention/growth","Michael Dybeck"]
[4,6,"049","San Diego-Imperial","San Diego","CA","12/31/2020-SP exp date","JTE 5-Membership/youth growth","JTE 6-New member recruiting","JTE 11-Boy Scout camping","JTE 15-Unit contacts","JTE 18-Unit leadership","Trent McClure"]
[4,3,"059","Greater Yosemite","Modesto","CA","12/31/2020-SP exp date","JTE 1-Fiscal management","JTE 2-Fundraising","JTE 5-Membership/youth growth","JTE 17-District leadership","JTE 18-Unit leadership","Sonya Greene"]
[4,2,"060","Pikes Peak","Colorado Springs","CO","12/31/2020-SP exp date","JTE 1-Fiscal management","JTE 6-New member recruiting","JTE 11-Boy Scout camping","JTE 15-Unit contacts","JTE 18-Unit leadership","Jim Machamer"]
[1,6,"081","Del-Mar-Va","Wilmington","DE","12/31/2020-SP exp date","JTE 2-Fundraising","JTE 7-Youth retention","JTE 8-Cub Scout advancement","JTE 17-District leadership","JTE 10-Cub Scout camping","Bill Garrett"]
[2,4,"085","Gulf Stream","Palm Beach Gardens","FL","12/31/2020-SP exp date","JTE 2-Fundraising","JTE 5-Membership/youth growth","JTE 3-Endowment","JTE 15-Unit contacts","JTE 12-Community service","Terrence Hamilton"]
[2,4,"088","Southwest Florida","Fort Myers","FL","12/31/2020-SP exp date","JTE 1-Fiscal management","JTE 2-Fundraising","JTE 5-Membership/youth growth","JTE 14-Unit retention/growth","JTE 17-District leadership","Greg Graham"]
[2,9,"091","Chattahoochee","Columbus","GA","12/31/2020-SP exp date","JTE 1-Fiscal management","JTE 2-Fundraising","JTE 11-Boy Scout camping","JTE 15-Unit contacts","JTE 6-New member recruiting","Philip Wright"]
[2,9,"095","Flint River","Griffin","GA","12/31/2020-SP exp date","JTE 3-Endowment","JTE 5-Membership/youth growth","JTE 6-New member recruiting","JTE 15-Unit contacts","JTE 17-District leadership","Kelvin Williams"]
[2,9,"098","South Georgia","Valdosta","GA","12/31/2020-SP exp date","JTE 15-Unit contacts","JTE 17-District leadership","JTE 18-Unit leadership","JTE 7-Youth retention","JTE 10-Cub Scout camping","Matt Hart"]
[2,9,"100","Northwest Georgia","Rome","GA","12/31/2020-SP exp date","JTE 2-Fundraising","JTE 8-Cub Scout advancement","JTE 9-Boy Scout advancement","JTE 5-Membership/youth growth","JTE 7-Youth retention","Jeff Brasher"]
[4,6,"102","Maui County","Wailuku, Maui","HI","12/31/2020-SP exp date","JTE 1-Fiscal management","JTE 5-Membership/youth growth","JTE 2-Fundraising","JTE 18-Unit leadership","JTE 14-Unit retention/growth","Duc Button"]
[4,6,"104","Aloha","Honolulu","HI","12/31/2020-SP exp date","JTE 1-Fiscal management","JTE 2-Fundraising","JTE 6-New member recruiting","JTE 11-Boy Scout camping","JTE 18-Unit leadership","Jeff Sulzbach"]
[3,3,"117","Prairielands","Champaign","IL","12/31/2020-SP exp date","JTE 2-Fundraising","JTE 12-Community service","JTE 15-Unit contacts","JTE 13-Youth-serving executives","JTE 18-Unit leadership","Steve Adams"]
[3,7,"127","Three Fires","St. Charles","IL","12/31/2020-SP exp date","JTE 2-Fundraising","JTE 6-New member recruiting","JTE 10-Cub Scout camping","JTE 15-Unit contacts","JTE 17-District leadership","Nick Roberts"]
[3,6,"145","Hoosier Trails","Bloomington","IN","12/31/2020-SP exp date","JTE 1-Fiscal management","JTE 8-Cub Scout advancement","JTE 9-Boy Scout advancement","JTE 18-Unit leadership","JTE 6-New member recruiting","Glen R Steenberger"]
[3,6,"156","Buffalo Trace","Evansville","IN","12/31/2020-SP exp date","JTE 10-Cub Scout camping","JTE 15-Unit contacts","JTE 5-Membership/youth growth","JTE 18-Unit leadership","JTE 6-New member recruiting","John Harding"]
[3,3,"172","Hawkeye Area","Cedar Rapids","IA","12/31/2020-SP exp date","JTE 2-Fundraising","JTE 5-Membership/youth growth","JTE 10-Cub Scout camping","JTE 17-District leadership","JTE 3-Endowment","Sarah Dawson"]
[3,5,"194","Santa Fe Trail","Garden City","KS","12/31/2020-SP exp date","JTE 2-Fundraising","JTE 5-Membership/youth growth","JTE 3-Endowment","JTE 12-Community service","JTE 15-Unit contacts","Michael Stewart"]
[2,1,"211","Istrouma Area","Baton Rouge","LA","12/31/2020-SP exp date","JTE 6-New member recruiting","JTE 1-Fiscal management","JTE 4-Community impact","JTE 13-Youth-serving executives","JTE 15-Unit contacts","Gary Mertz"]
[2,2,"215","Norwela","Shreveport","LA","12/31/2020-SP exp date","JTE 5-Membership/youth growth","JTE 4-Community impact","JTE 8-Cub Scout advancement","JTE 15-Unit contacts","JTE 17-District leadership","Sedrick Robinson"]
[3,1,"299","Gamehaven","Rochester","MN","12/31/2020-SP exp date","JTE 2-Fundraising","JTE 4-Community impact","JTE 10-Cub Scout camping","JTE 13-Youth-serving executives","JTE 8-Cub Scout advancement","Rich Avery"]
[3,3,"312","Greater St. Louis Area","St. Louis","MO","12/31/2020-SP exp date","JTE 1-Fiscal management","JTE 3-Endowment","JTE 14-Unit retention/growth","JTE 17-District leadership","JTE 10-Cub Scout camping","Ronald Green"]
[3,5,"322","Overland Trails","Grand Island","NE","12/31/2020-SP exp date","JTE 1-Fiscal management","JTE 5-Membership/youth growth","JTE 17-District leadership","JTE 18-Unit leadership","JTE 2-Fundraising","David Plond"]
[1,1,"330","Daniel Webster","Manchester","NH","12/31/2020-SP exp date","JTE 1-Fiscal management","JTE 5-Membership/youth growth","JTE 11-Boy Scout camping","JTE 15-Unit contacts","JTE 18-Unit leadership","Michelle Tickler"]
[1,5,"347","Monmouth","Morganville","NJ","12/31/2020-SP exp date","JTE 5-Membership/youth growth","JTE 2-Fundraising","JTE 6-New member recruiting","JTE 10-Cub Scout camping","JTE 3-Endowment","Michael P. Mahon"]
[1,2,"374","Hudson Valley","Newburgh","NY","12/31/2020-SP exp date","JTE 2-Fundraising","JTE 5-Membership/youth growth","JTE 8-Cub Scout advancement","JTE 14-Unit retention/growth","JTE 17-District leadership","David Horton"]
[1,3,"376","Iroquois Trail","Batavia","NY","12/31/2020-SP exp date","JTE 2-Fundraising","JTE 5-Membership/youth growth","JTE 8-Cub Scout advancement","JTE  14 Unit Retention","JTE 17 District leadership ","Brad Bowersox"]
[4,6,"412","Great Southwest","Albuquerque","NM","12/31/2020-SP exp date","JTE 1-Fiscal management","JTE 5-Membership/youth growth","JTE 8-Cub Scout advancement","JTE 15-Unit contacts","JTE 18-Unit leadership","Christopher W. Shelby"]
[2,5,"414","Daniel Boone","Asheville","NC","12/31/2020-SP exp date","JTE 1-Fiscal management","JTE 2-Fundraising","JTE 5-Membership/youth growth","JTE 8-Cub Scout advancement","JTE 15-Unit contacts","Joshua Christ"]
[2,5,"415","Mecklenburg County","Charlotte","NC","12/31/2020-SP exp date","JTE 7-Youth retention","JTE 3-Endowment","JTE 10-Cub Scout camping","JTE 6-New member recruiting","JTE 2-Fundraising","Mark Turner"]
[2,5,"420","Piedmont","Gastonia","NC","12/31/2020-SP exp date","JTE 1-Fiscal management","JTE 5-Membership/youth growth","JTE 13-Youth-serving executives","JTE 12-Community service","JTE 3-Endowment","Jesse C Bowes Jr"]
[2,7,"421","Occoneechee","Raleigh","NC","12/31/2020-SP exp date","JTE 2-Fundraising","JTE 5-Membership/youth growth","JTE 10-Cub Scout camping","JTE 12-Community service","JTE 18-Unit leadership","John Akerman"]
[2,7,"426","East Carolina","Kinston","NC","12/31/2020-SP exp date","JTE 2-Fundraising","JTE 8-Cub Scout advancement","JTE 14-Unit retention/growth","JTE 17-District leadership","JTE 18-Unit leadership","Doug Brown, Jr."]
[3,6,"444","Miami Valley","Dayton","OH","12/31/2020-SP exp date","JTE 5-Membership/youth growth","JTE 9-Boy Scout advancement","JTE 11-Boy Scout camping","JTE 12-Community service","JTE 15-Unit contacts","Jeffrey Schiavone"]
[2,8,"474","Cimarron","Enid","OK","12/31/2020-SP exp date","JTE 1-Fiscal management","JTE 14-Unit retention/growth","JTE 15-Unit contacts","JTE 17-District leadership","JTE 4-Community impact","Bobby Schultz"]
[2,8,"480","Last Frontier","Oklahoma City","OK","12/31/2020-SP exp date","JTE 5-Membership/youth growth","JTE 8-Cub Scout advancement","JTE 9-Boy Scout advancement","JTE 17-District leadership","JTE 18-Unit leadership","Jeff Woolsey"]
[2,8,"488","Indian Nations","Tulsa","OK","12/31/2020-SP exp date","JTE 5-Membership/youth growth","JTE 14-Unit retention/growth","JTE 17-District leadership","JTE 2-Fundraising","JTE 3-Endowment","Bill Haines"]
[4,1,"491","Crater Lake","Central Point","OR","12/31/2020-SP exp date","JTE 2-Fundraising","JTE 6-New member recruiting","JTE 15-Unit contacts","JTE 17-District leadership","JTE 18-Unit leadership","Kevin Patterson"]
[1,4,"512","Westmoreland-Fayette","Greensburg","PA","12/31/2020-SP exp date","JTE 4-Community impact","JTE 5-Membership/youth growth","JTE 6-New member recruiting","JTE 18-Unit leadership","JTE 10-Cub Scout camping","Martin Barbie"]
[1,6,"524","Pennsylvania Dutch","Lancaster","PA","12/31/2020-SP exp date","JTE 15-Unit contacts","JTE 5-Membership/youth growth","JTE 1-Fiscal management","JTE 3-Endowment","JTE 4-Community impact","Matthew S. Adams"]
[1,6,"528","Hawk Mountain","Reading","PA","12/31/2020-SP exp date","JTE 2-Fundraising","JTE 10-Cub Scout camping","JTE 6-New member recruiting","JTE 15-Unit contacts","JTE 17-District leadership","James Milham"]
[2,5,"553","Indian Waters","Columbia","SC","12/31/2020-SP exp date","JTE 1-Fiscal management","JTE 5-Membership/youth growth","JTE 2-Fundraising","JTE 13-Youth-serving executives","JTE 10-Cub Scout camping","Douglas W. Stone"]
[2,2,"562","Golden Spread","Amarillo","TX","12/31/2020-SP exp date","JTE 14-Unit retention/growth","JTE 7-Youth retention","JTE 5-Membership/youth growth","JTE 4-Community impact","JTE 11-Boy Scout camping","Phillip Shipley"]
[2,3,"564","Capitol Area","Austin","TX","12/31/2020-SP exp date","JTE 5-Membership/youth growth","JTE 2-Fundraising","JTE 18-Unit leadership","JTE 15-Unit contacts","JTE 17-District leadership","Jon C Yates"]
[2,2,"571","Circle Ten","Dallas","TX","12/31/2020-SP exp date","JTE 5-Membership/youth growth","JTE 6-New member recruiting","JTE 10-Cub Scout camping","JTE 11-Boy Scout camping","JTE 18-Unit leadership","sam thompson"]
[4,6,"573","Yucca","El Paso","TX","12/31/2020-SP exp date","JTE 1-Fiscal management","JTE 2-Fundraising","JTE 5-Membership/youth growth","JTE 10-Cub Scout camping","JTE 12-Community service","Mario Perez"]
[2,3,"576","Sam Houston Area","Houston","TX","12/31/2020-SP exp date","JTE 1-Fiscal management","JTE 3-Endowment","JTE 6-New member recruiting","JTE 15-Unit contacts","JTE 17-District leadership","Tom Varnell"]
[4,2,"589","Trapper Trails","Ogden","UT","12/31/2020-SP exp date","JTE 1-Fiscal management","JTE 10-Cub Scout camping","JTE 12-Community service","JTE 13-Youth-serving executives","JTE 17-District leadership","Allen Endicott"]
[4,2,"591","Utah National Parks","Orem","UT","12/31/2020-SP exp date","JTE 10-Cub Scout camping","JTE 8-Cub Scout advancement","JTE 12-Community service","JTE 18-Unit leadership","JTE 17-District leadership","David Pack"]
[1,3,"592","Green Mountain","Waterbury","VT","12/31/2020-SP exp date","JTE 10-Cub Scout camping","JTE 11-Boy Scout camping","JTE 5-Membership/youth growth","JTE 2-Fundraising","JTE 3-Endowment","Ed McCollin"]
[4,1,"604","Blue Mountain","Kennewick","WA","12/31/2020-SP exp date","JTE 2-Fundraising","JTE 5-Membership/youth growth","JTE 6-New member recruiting","JTE 12-Community service","JTE 18-Unit leadership","Brett Bybee"]
[4,1,"609","Chief Seattle","Seattle","WA","12/31/2020-SP exp date","JTE 8-Cub Scout advancement","JTE 9-Boy Scout advancement","JTE 10-Cub Scout camping","JTE 11-Boy Scout camping","JTE 15-Unit contacts","Michael Quirk"]
[3,4,"617","Buckskin","Charleston","WV","12/31/2020-SP exp date","JTE 4-Community impact","JTE 1-Fiscal management","JTE 14-Unit retention/growth","JTE 18-Unit leadership","JTE 10-Cub Scout camping","Jeffrey L. Purdy"]
[3,4,"619","Ohio River Valley","Wheeling","WV","12/31/2020-SP exp date","JTE 2-Fundraising","JTE 1-Fiscal management","JTE 5-Membership/youth growth","JTE 14-Unit retention/growth","JTE 7-Youth retention","Bob Drury"]
[3,7,"620","Glacier's Edge","Madison","WI","12/31/2020-SP exp date","JTE 1-Fiscal management","JTE 8-Cub Scout advancement","JTE 9-Boy Scout advancement","JTE 18-Unit leadership","JTE 14-Unit retention/growth","Alex Tyms"]
[3,1,"624","Gateway Area","La Crosse","WI","12/31/2020-SP exp date","JTE 12-Community service","JTE 5-Membership/youth growth","JTE 1-Fiscal management","JTE 10-Cub Scout camping","JTE 11-Boy Scout camping","Sean Henneman"]
[3,7,"636","Three Harbors","Milwaukee","WI","12/31/2020-SP exp date","JTE 2-Fundraising","JTE 3-Endowment","JTE 1-Fiscal management","JTE 15-Unit contacts","JTE 8-Cub Scout advancement","Andrew Hardin"]
[1,5,"661","Puerto Rico","Guaynabo","PR","12/31/2020-SP exp date","JTE 5-Membership/youth growth","JTE 14-Unit retention/growth","JTE 2-Fundraising","JTE 12-Community service","JTE 17-District leadership","Jim Hans"]
[2,6,"713","Sequoyah","Johnson City","TN","12/31/2020-SP exp date","JTE 2-Fundraising","JTE 7-Youth retention","JTE 1-Fiscal management","JTE 17-District leadership","JTE 14-Unit retention/growth","Royce Fox"]
[2,7,"763","Stonewall Jackson Area","Waynesboro","VA","12/31/2020-SP exp date","JTE 2-Fundraising","JTE 7-Youth retention","JTE 5-Membership/youth growth","JTE 15-Unit contacts","JTE 17-District leadership","Jim Battaglia"]
[2,1,"773","Gulf Coast","Pensacola","FL","12/31/2020-SP exp date","JTE 2-Fundraising","JTE 6-New member recruiting","JTE 17-District leadership","JTE 5-Membership/youth growth","JTE 15-Unit contacts","Spencer Page"]
[4,6,"011","Catalina","Tucson","AZ","12/31/2021-SP exp date","JTE 1-Fiscal management","JTE 2-Fundraising","JTE 3-Endowment","JTE 10-Cub Scout camping","JTE 18-Unit leadership","Ken Tucker"]
[4,3,"022","Alameda","Alameda","CA","12/31/2021-SP exp date","JTE 1-Fiscal management","JTE 3-Endowment","JTE 5-Membership/youth growth","JTE 8-Cub Scout advancement","JTE 10-Cub Scout camping","Brian Fasci"]
[4,4,"057","Ventura County","Camarillo","CA","12/31/2021-SP exp date","JTE 1-Fiscal management","JTE 2-Fundraising","JTE 3-Endowment","JTE 6-New member recruiting","JTE 18-Unit leadership","David Jones"]
[4,2,"062","Longs Peak","Greeley","CO","12/31/2021-SP exp date","JTE 1-Fiscal management","JTE 2-Fundraising","JTE 5-Membership/youth growth","JTE 11-Boy Scout camping","JTE 18-Unit leadership","John Coleman "]
[2,7,"070","Old North State","Greensboro","NC","12/31/2021-SP exp date","JTE 1-Fiscal management","JTE 3-Endowment","JTE 5-Membership/youth growth","JTE 11-Boy Scout camping","JTE 8-Cub Scout advancement","Ed Martin"]
[1,2,"072","Connecticut Yankee","Milford","CT","12/31/2021-SP exp date","JTE 1-Fiscal management","JTE 2-Fundraising","JTE 5-Membership/youth growth","JTE 6-New member recruiting","JTE 10-Cub Scout camping","Charles L Flowers"]
[2,9,"101","Northeast Georgia","Jefferson","GA","12/31/2021-SP exp date","JTE 5-Membership/youth growth","JTE 9-Boy Scout advancement","JTE 10-Cub Scout camping","JTE 12-Community service","JTE 14-Unit retention/growth","Rodney Brundidge"]
[3,6,"162","Sagamore","Kokomo","IN","12/31/2021-SP exp date","JTE 2-Fundraising","JTE 5-Membership/youth growth","JTE 10-Cub Scout camping","JTE 14-Unit retention/growth","JTE 18-Unit leadership","Ben Blumenberg"]
[3,5,"177","Mid-Iowa","Des Moines","IA","12/31/2021-SP exp date","JTE 10-Cub Scout camping","JTE 2-Fundraising","JTE 3-Endowment","JTE 6-New member recruiting","JTE 5-Membership/youth growth","Robert Hopper"]
[3,5,"198","Quivira","Wichita","KS","12/31/2021-SP exp date","JTE 3-Endowment","JTE 5-Membership/youth growth","JTE 8-Cub Scout advancement","JTE 10-Cub Scout camping","JTE 18-Unit leadership","Brian Nastase"]
[1,6,"220","Baltimore Area","Baltimore","MD","12/31/2021-SP exp date","JTE 6-New member recruiting","JTE 11-Boy Scout camping","JTE 18-Unit leadership","JTE 3-Endowment","JTE 8-Cub Scout advancement","Brian L. Steger"]
[1,1,"227","Spirit of Adventure","Boston","MA","12/31/2021-SP exp date","","","","","",""]
[1,1,"230","Nashua Valley","Lancaster","MA","12/31/2021-SP exp date","JTE 2-Fundraising","JTE 17-District leadership","JTE 4-Community impact","JTE 10-Cub Scout camping","JTE 11-Boy Scout camping","Gary Savignano"]
[2,1,"302","Choctaw Area","Meridian","MS","12/31/2021-SP exp date","JTE 2-Fundraising","JTE 7-Youth retention","JTE 8-Cub Scout advancement","JTE 10-Cub Scout camping","JTE 18-Unit leadership","Kenneth P. Kercheval"]
[2,1,"303","Andrew Jackson","Jackson","MS","12/31/2021-SP exp date","JTE 11-Boy Scout camping","JTE 10-Cub Scout camping","JTE 5-Membership/youth growth","JTE 14-Unit retention/growth","JTE 3-Endowment","Anthony D. Haines"]
[4,2,"315","Montana","Great Falls","MT","12/31/2021-SP exp date","JTE 10-Cub Scout camping","JTE 18-Unit leadership","JTE 17-District leadership","JTE 2-Fundraising","JTE 6-New member recruiting","Don Bean"]
[4,3,"329","Nevada Area","Reno","NV","12/31/2021-SP exp date","JTE 1-Fiscal management","JTE 5-Membership/youth growth","JTE 15-Unit contacts","JTE 17-District leadership","JTE 18-Unit leadership","Paul Penttila"]
[1,3,"368","Baden-Powell","Binghamton","NY","12/31/2021-SP exp date","JTE 1-Fiscal management","JTE 4-Community impact","JTE 10-Cub Scout camping","JTE 15-Unit contacts","JTE 17-District leadership","Rick Christ"]
[3,4,"441","Simon Kenton","Columbus","OH","12/31/2021-SP exp date","JTE 2-Fundraising","JTE 5-Membership/youth growth","JTE 6-New member recruiting","JTE 14-Unit retention/growth","JTE 18-Unit leadership","Jeff Moe"]
[3,7,"456","Pathway to Adventure","Chicago","IL","12/31/2021-SP exp date","JTE 2-Fundraising","JTE 17-District leadership","JTE 10-Cub Scout camping","JTE 11-Boy Scout camping","JTE 8-Cub Scout advancement","Aaron Gach"]
[2,8,"469","Cherokee Area","Bartlesville","OK","12/31/2021-SP exp date","JTE 5-Membership/youth growth","JTE 8-Cub Scout advancement","JTE 12-Community service","JTE 15-Unit contacts","JTE 3-Endowment","David G. Richardson"]
[1,5,"501","Northeastern Pennsylvania","Moosic","PA","12/31/2021-SP exp date","JTE 2-Fundraising","JTE 6-New member recruiting","JTE 5-Membership/youth growth","JTE 1-Fiscal management","JTE 18-Unit leadership","Mark Barbernitz"]
[1,6,"539","Chester County","West Chester","PA","12/31/2021-SP exp date","JTE 5-Membership/youth growth","JTE 17-District leadership","JTE 2-Fundraising","JTE 15-Unit contacts","JTE 8-Cub Scout advancement","Charlie Rogers"]
[2,7,"598","Shenandoah Area","Winchester","VA","12/31/2021-SP exp date","JTE 1-Fiscal management","JTE 2-Fundraising","JTE 3-Endowment","JTE 5-Membership/youth growth","JTE 7-Youth retention","Stuart A. Williams"]
[4,2,"695","Black Hills Area","Rapid City","SD","12/31/2021-SP exp date","JTE 18-Unit leadership","JTE 17-District leadership","JTE 5-Membership/youth growth","JTE 14-Unit retention/growth","JTE 15-Unit contacts","Timothy P. Bouchard"]
[1,6,"082","National Capital Area","Bethesda","MD","12/31/2022-SP exp date","JTE 2-Fundraising","JTE 5-Membership/youth growth","JTE 4-Community impact","JTE 10-Cub Scout camping","JTE 11-Boy Scout camping","Jeffrey Berger"]
[2,9,"096","Central Georgia","Macon","GA","12/31/2022-SP exp date","JTE 1-Fiscal management","JTE 5-Membership/youth growth","JTE 7-Youth retention","JTE 14-Unit retention/growth","JTE 18-Unit leadership","Garrett L. Williams"]
[4,2,"111","Snake River","Twin Falls","ID","12/31/2022-SP exp date","JTE 2-Fundraising","JTE 5-Membership/youth growth","JTE 12-Community service","JTE 15-Unit contacts","JTE 18-Unit leadership","David Kirk"]
[3,3,"138","W.D. Boyce","Peoria","IL","12/31/2022-SP exp date","JTE 5-Membership/youth growth","JTE 12-Community service","JTE 3-Endowment","JTE 18-Unit leadership","JTE 8-Cub Scout advancement","Greg Voyzey"]
[2,1,"304","Pine Burr Area","Hattiesburg","MS","12/31/2022-SP exp date","JTE 2-Fundraising","JTE 5-Membership/youth growth","JTE 8-Cub Scout advancement","JTE 11-Boy Scout camping","JTE 17-District leadership","Casey Norwood"]
[3,5,"311","Pony Express","St. Joseph","MO","12/31/2022-SP exp date","JTE 3-Endowment","JTE 5-Membership/youth growth","JTE 10-Cub Scout camping","JTE 1-Fiscal management","JTE 11-Boy Scout camping","Alan Franks"]
[2,7,"424","Tuscarora","Goldsboro","NC","12/31/2022-SP exp date","JTE 6-New member recruiting","JTE 5-Membership/youth growth","JTE 7-Youth retention","JTE 1-Fiscal management","JTE 2-Fundraising","Jason Smith"]
[2,7,"425","Cape Fear","Wilmington","NC","12/31/2022-SP exp date","JTE 15-Unit contacts","JTE 10-Cub Scout camping","JTE 18-Unit leadership","JTE 17-District leadership","JTE 8-Cub Scout advancement","Jonathan Widmark "]
[3,6,"439","Tecumseh","Springfield","OH","12/31/2022-SP exp date","JTE 1-Fiscal management","JTE 2-Fundraising","JTE 5-Membership/youth growth","JTE 15-Unit contacts","JTE 17-District leadership","Rob Lavoie"]
[1,4,"497","Juniata Valley","Reedsville","PA","12/31/2022-SP exp date","JTE 6-New member recruiting","JTE 2-Fundraising","JTE 10-Cub Scout camping","JTE 17-District leadership","JTE 12-Community service","Jim Kennedy"]
[2,5,"551","Blue Ridge","Greenville","SC","12/31/2022-SP exp date","JTE 7-Youth retention","JTE 14-Unit retention/growth","JTE 17-District leadership","JTE 1-Fiscal management","JTE 11-Boy Scout camping","Mike Butler"]
[4,1,"611","Inland Northwest","Spokane","WA","12/31/2022-SP exp date","JTE 1-Fiscal management","JTE 8-Cub Scout advancement","JTE 10-Cub Scout camping","JTE 15-Unit contacts","JTE 18-Unit leadership","Karen Meier"]
[2,2,"662","Longhorn","Fort Worth","TX","12/31/2022-SP exp date","JTE 1-Fiscal management","JTE 4-Community impact","JTE 11-Boy Scout camping","JTE 14-Unit retention/growth","JTE 18-Unit leadership","John Coyle"]
[2,4,"664","Suwannee River Area","Tallahassee","FL","12/31/2022-SP exp date","JTE 4-Community impact","JTE 6-New member recruiting","JTE 10-Cub Scout camping","JTE 13-Youth-serving executives","JTE 18-Unit leadership","Kevin Kilduff"]
[2,6,"748","Yocona Area","Tupelo","MS","12/31/2022-SP exp date","JTE 3-Endowment","JTE 12-Community service","JTE 15-Unit contacts","JTE 17-District leadership","JTE 18-Unit leadership","Rick Chapman"]
[2,3,"775","Rio Grande","Harlingen","TX","12/31/2022-SP exp date","JTE 5-Membership/youth growth","JTE 6-New member recruiting","JTE 7-Youth retention","JTE 1-Fiscal management","JTE 2-Fundraising","Rudy Gonzalez"]
[2,8,"018","Quapaw Area","Little Rock","AR","12/31/2023-SP exp date","JTE 2-Fundraising","JTE 18-Unit leadership","JTE 14-Unit retention/growth","JTE 8-Cub Scout advancement","JTE 11-Boy Scout camping","John Carman"]
[1,5,"802","Transatlantic","Brussels","Belgium","12/31/2023-SP exp date","JTE 2-Fundraising","JTE 1-Fiscal management","JTE 6-New member recruiting","JTE 5-Membership/youth growth","JTE 14-Unit retention/growth","Vince Cozzone"]
[3,1,"635","Bay-Lakes","Appleton","WI","12/31/2024-SP exp date","JTE 1-Fiscal management","JTE 2-Fundraising","JTE 5-Membership/youth growth","JTE 10-Cub Scout camping","JTE 14-Unit retention/growth","Jason Wolf"]
[4,1,"606","Mount Baker","Everett","WA","12/31/2025-SP exp date","JTE 8-Cub Scout advancement","JTE 9-Boy Scout advancement","JTE 10-Cub Scout camping","JTE 11-Boy Scout camping","JTE 15-Unit contacts","Duane Rhodes"]
[4,1,"612","Pacific Harbors","Tacoma","WA","12/31/2030-SP exp date","JTE 1-Fiscal management","JTE 2-Fundraising","JTE 12-Community service","JTE 17-District leadership","JTE 11-Boy Scout camping","Ralph Voelker"]
[2,9,"001","Greater Alabama","Birmingham","AL","12:00:00 AM-SP exp date","JTE 13-Youth-serving executives","JTE 15-Unit contacts","JTE 17-District leadership","JTE 5-Membership/youth growth","JTE 10-Cub Scout camping","J.T. Dabbs"]
[2,1,"004","Mobile Area","Mobile","AL","12:00:00 AM-SP exp date","JTE 3-Endowment","JTE 12-Community service","JTE 17-District leadership","JTE 11-Boy Scout camping","JTE 10-Cub Scout camping","phillip cranford"]
[2,9,"005","Tukabatchee Area","Montgomery","AL","12:00:00 AM-SP exp date","JTE 1-Fiscal management","JTE 2-Fundraising","JTE 14-Unit retention/growth","JTE 17-District leadership","JTE 4-Community impact","Marvin Smith"]
[2,8,"016","Westark Area","Fort Smith","AR","12:00:00 AM-SP exp date","JTE 5-Membership/youth growth","JTE 1-Fiscal management","JTE 2-Fundraising","JTE 6-New member recruiting","JTE 18-Unit leadership","Chris Daughtrey"]
[4,3,"027","Sequoia","Fresno","CA","12:00:00 AM-SP exp date","JTE 2-Fundraising","JTE 5-Membership/youth growth","JTE 8-Cub Scout advancement","JTE 9-Boy Scout advancement","JTE 18-Unit leadership","Albert Gallegos"]
[4,4,"033","Greater Los Angeles Area","Los Angeles","CA","12:00:00 AM-SP exp date","JTE 1-Fiscal management","JTE 7-Youth retention","JTE 5-Membership/youth growth","JTE 8-Cub Scout advancement","JTE 18-Unit leadership","Jeff Hunt"]
[4,4,"039","Orange County","Santa Ana","CA","12:00:00 AM-SP exp date","JTE 5-Membership/youth growth","JTE 6-New member recruiting","JTE 10-Cub Scout camping","JTE 11-Boy Scout camping","JTE 18-Unit leadership","Jeff Herrmann"]
[4,4,"051","Western Los Angeles County","Van Nuys","CA","12:00:00 AM-SP exp date","JTE 2-Fundraising","JTE 3-Endowment","JTE 5-Membership/youth growth","JTE 6-New member recruiting","JTE 17-District leadership","Matthew Thornton"]
[4,4,"058","Verdugo Hills","Glendale","CA","12:00:00 AM-SP exp date","JTE 2-Fundraising","JTE 1-Fiscal management","JTE 5-Membership/youth growth","JTE 14-Unit retention/growth","JTE 6-New member recruiting","Mark Kraus"]
[4,2,"061","Denver Area","Denver","CO","12:00:00 AM-SP exp date","JTE 1-Fiscal management","JTE 6-New member recruiting","JTE 18-Unit leadership","JTE 15-Unit contacts","JTE 10-Cub Scout camping","Nicole Cosme"]
[4,2,"064","Western Colorado","Grand Junction","CO","12:00:00 AM-SP exp date","JTE 1-Fiscal management","JTE 6-New member recruiting","JTE 10-Cub Scout camping","JTE 17-District leadership","JTE 18-Unit leadership","Mark Switzer"]
[1,2,"069","Housatonic","Derby","CT","12:00:00 AM-SP exp date","JTE 3-Endowment","JTE 4-Community impact","JTE 5-Membership/youth growth","JTE 17-District leadership","JTE 18-Unit leadership","John A. Zseller II"]
[2,4,"087","North Florida","Jacksonville","FL","12:00:00 AM-SP exp date","JTE 2-Fundraising","JTE 5-Membership/youth growth","JTE 11-Boy Scout camping","JTE 15-Unit contacts","JTE 17-District leadership","Jack Sears"]
[2,4,"089","Greater Tampa Bay Area","Tampa","FL","12:00:00 AM-SP exp date","JTE 2-Fundraising","JTE 1-Fiscal management","JTE 5-Membership/youth growth","JTE 18-Unit leadership","JTE 14-Unit retention/growth","jeff rock"]
[2,9,"092","Atlanta Area","Atlanta","GA","12:00:00 AM-SP exp date","JTE 1-Fiscal management","JTE 10-Cub Scout camping","JTE 11-Boy Scout camping","JTE 5-Membership/youth growth","JTE 17-District leadership","Jason Volz"]
[2,5,"093","Georgia-Carolina","Augusta","GA","12:00:00 AM-SP exp date","JTE 2-Fundraising","JTE 4-Community impact","JTE 6-New member recruiting","JTE 18-Unit leadership","JTE 14-Unit retention/growth","Daniel Rogers"]
[3,7,"129","Northeast Illinois","Highland Park","IL","12:00:00 AM-SP exp date","JTE 1-Fiscal management","JTE 3-Endowment","JTE 6-New member recruiting","JTE 10-Cub Scout camping","JTE 18-Unit leadership","Doug Nelson"]
[3,6,"165","LaSalle","South Bend","IN","12:00:00 AM-SP exp date","JTE 5-Membership/youth growth","JTE 2-Fundraising","JTE 6-New member recruiting","JTE 14-Unit retention/growth","JTE 12-Community service","Robert Hemmelgarn"]
[3,3,"173","Winnebago","Waterloo","IA","12:00:00 AM-SP exp date","JTE 2-Fundraising","JTE 17-District leadership","JTE 18-Unit leadership","JTE 9-Boy Scout advancement","JTE 15-Unit contacts","James R. Madison Jr."]
[2,1,"209","Calcasieu Area","Lake Charles","LA","12:00:00 AM-SP exp date","JTE 2-Fundraising","JTE 6-New member recruiting","JTE 9-Boy Scout advancement","JTE 14-Unit retention/growth","JTE 17-District leadership","Michael Beer"]
[2,1,"212","Evangeline Area","Lafayette","LA","12:00:00 AM-SP exp date","JTE 3-Endowment","JTE 5-Membership/youth growth","JTE 8-Cub Scout advancement","JTE 2-Fundraising","JTE 15-Unit contacts","Art Hawkins"]
[2,1,"214","Southeast Louisiana","New Orleans","LA","12:00:00 AM-SP exp date","JTE 1-Fiscal management","JTE 5-Membership/youth growth","JTE 6-New member recruiting","JTE 14-Unit retention/growth","JTE 17-District leadership","Ernesto Carballo"]
[1,1,"216","Katahdin Area","Bangor","ME","12:00:00 AM-SP exp date","JTE 2-Fundraising","JTE 4-Community impact","JTE 6-New member recruiting","JTE 15-Unit contacts","JTE 17-District leadership","R. Scott Harvey"]
[1,1,"218","Pine Tree","Portland","ME","12:00:00 AM-SP exp date","JTE 2-Fundraising","JTE 5-Membership/youth growth","JTE 17-District leadership","JTE 18-Unit leadership","JTE 10-Cub Scout camping","Eric Tarbox"]
[3,1,"250","Northern Star","St. Paul","MN","12:00:00 AM-SP exp date","JTE 6-New member recruiting","JTE 10-Cub Scout camping","JTE 18-Unit leadership","JTE 1-Fiscal management","JTE 8-Cub Scout advancement","John R. Andrews"]
[1,1,"251","Mayflower","Marlborough","MA","12:00:00 AM-SP exp date","JTE 1-Fiscal management","JTE 2-Fundraising","JTE 5-Membership/youth growth","JTE 17-District leadership","JTE 6-New member recruiting","Bryan Feather"]
[1,1,"254","Mohegan","Worcester","MA","12:00:00 AM-SP exp date","JTE 2-Fundraising","JTE 5-Membership/youth growth","JTE 17-District leadership","JTE 6-New member recruiting","JTE 15-Unit contacts","Jeff Hotchkiss"]
[3,1,"296","Central Minnesota","Sartell","MN","12:00:00 AM-SP exp date","JTE 18-Unit leadership","JTE 12-Community service","JTE 15-Unit contacts","JTE 17-District leadership","JTE 14-Unit retention/growth","David Trehey"]
[3,5,"326","Mid-America","Omaha","NE","12:00:00 AM-SP exp date","JTE 1-Fiscal management","JTE 6-New member recruiting","JTE 8-Cub Scout advancement","JTE 14-Unit retention/growth","JTE 18-Unit leadership","Chris S. Mehaffey"]
[4,6,"328","Las Vegas Area","Las Vegas","NV","12:00:00 AM-SP exp date","JTE 2-Fundraising","JTE 3-Endowment","JTE 11-Boy Scout camping","JTE 9-Boy Scout advancement","JTE 18-Unit leadership","Mike Marchese"]
[1,3,"373","Longhouse","Syracuse","NY","12:00:00 AM-SP exp date","JTE 3-Endowment","JTE 5-Membership/youth growth","JTE 6-New member recruiting","JTE 10-Cub Scout camping","JTE 18-Unit leadership","Grey Rolland"]
[1,2,"386","Theodore Roosevelt","Massapequa","NY","12:00:00 AM-SP exp date","JTE 3-Endowment","JTE 6-New member recruiting","JTE 10-Cub Scout camping","JTE 12-Community service","JTE 15-Unit contacts","chris coscia"]
[1,3,"400","Leatherstocking","Utica","NY","12:00:00 AM-SP exp date","JTE 2-Fundraising","JTE 8-Cub Scout advancement","JTE 12-Community service","JTE 15-Unit contacts","JTE 17-District leadership","Steven K. McEwan"]
[1,2,"404","Suffolk County","Medford","NY","12:00:00 AM-SP exp date","JTE 10-Cub Scout camping","JTE 18-Unit leadership","JTE 12-Community service","JTE 6-New member recruiting","JTE 3-Endowment","Ryan DiBernardo"]
[3,6,"438","Dan Beard","Cincinnati","OH","12:00:00 AM-SP exp date","JTE 2-Fundraising","JTE 5-Membership/youth growth","JTE 10-Cub Scout camping","JTE 11-Boy Scout camping","JTE 18-Unit leadership","Michael Kostic"]
[3,6,"449","Black Swamp Area","Findlay","OH","12:00:00 AM-SP exp date","JTE 5-Membership/youth growth","JTE 2-Fundraising","JTE 10-Cub Scout camping","JTE 17-District leadership","JTE 8-Cub Scout advancement","Marc Kogan"]
[3,6,"460","Erie Shores","Toledo","OH","12:00:00 AM-SP exp date","JTE 3-Endowment","JTE 5-Membership/youth growth","JTE 6-New member recruiting","JTE 12-Community service","JTE 18-Unit leadership","Ed Caldwell"]
[2,8,"468","Arbuckle Area","Ardmore","OK","12:00:00 AM-SP exp date","JTE 17-District leadership","JTE 3-Endowment","JTE 7-Youth retention","JTE 11-Boy Scout camping","JTE 12-Community service","Brett Matherly"]
[1,4,"500","Moraine Trails","Butler","PA","12:00:00 AM-SP exp date","JTE 2-Fundraising","JTE 3-Endowment","JTE 4-Community impact","JTE 13-Youth-serving executives","JTE 14-Unit retention/growth","Ray Tennent"]
[1,4,"504","Columbia-Montour","Bloomsburg","PA","12:00:00 AM-SP exp date","JTE 2-Fundraising","JTE 5-Membership/youth growth","JTE 9-Boy Scout advancement","JTE 18-Unit leadership","JTE 11-Boy Scout camping","Paul B Knox"]
[1,4,"538","Chief Cornplanter","Warren","PA","12:00:00 AM-SP exp date","JTE 1-Fiscal management","JTE 2-Fundraising","JTE 14-Unit retention/growth","JTE 15-Unit contacts","JTE 17-District leadership","Ray Tennent"]
[2,5,"549","Palmetto","Spartanburg","SC","12:00:00 AM-SP exp date","JTE 3-Endowment","JTE 10-Cub Scout camping","JTE 12-Community service","JTE 17-District leadership","JTE 18-Unit leadership","Greg Leitch"]
[2,6,"556","Cherokee Area","Chattanooga","TN","12:00:00 AM-SP exp date","JTE 1-Fiscal management","JTE 2-Fundraising","JTE 5-Membership/youth growth","JTE 15-Unit contacts","JTE 17-District leadership","Scott Fosse"]
[2,6,"558","Chickasaw","Memphis","TN","12:00:00 AM-SP exp date","JTE 2-Fundraising","JTE 4-Community impact","JTE 7-Youth retention","JTE 17-District leadership","JTE 15-Unit contacts","Richard L. Fisher"]
[2,6,"559","West Tennessee Area","Jackson","TN","12:00:00 AM-SP exp date","JTE 1-Fiscal management","JTE 2-Fundraising","JTE 4-Community impact","JTE 5-Membership/youth growth","JTE 11-Boy Scout camping","Adrian Hackett"]
[2,6,"560","Middle Tennessee","Nashville","TN","12:00:00 AM-SP exp date","JTE 1-Fiscal management","JTE 2-Fundraising","JTE 5-Membership/youth growth","JTE 6-New member recruiting","JTE 11-Boy Scout camping","Vance Lackey"]
[2,2,"561","Texas Trails","Abilene","TX","12:00:00 AM-SP exp date","JTE 2-Fundraising","JTE 5-Membership/youth growth","JTE 7-Youth retention","JTE 14-Unit retention/growth","JTE 3-Endowment","Mark Conrad"]
[2,3,"574","Bay Area","Galveston","TX","12:00:00 AM-SP exp date","JTE 2-Fundraising","JTE 5-Membership/youth growth","JTE 17-District leadership","JTE 15-Unit contacts","JTE 7-Youth retention","Charlie Tinsley"]
[2,3,"577","South Texas","Corpus Christi","TX","12:00:00 AM-SP exp date","JTE 4-Community impact","JTE 2-Fundraising","JTE 5-Membership/youth growth","JTE 6-New member recruiting","JTE 7-Youth retention","martin sepulveda"]
[2,3,"583","Alamo Area","San Antonio","TX","12:00:00 AM-SP exp date","JTE 7-Youth retention","JTE 8-Cub Scout advancement","JTE 9-Boy Scout advancement","JTE 11-Boy Scout camping","JTE 18-Unit leadership","Michael de los Santos"]
[2,2,"584","Caddo Area","Texarkana","TX","12:00:00 AM-SP exp date","","","","","",""]
[2,2,"587","Northwest Texas","Wichita Falls","TX","12:00:00 AM-SP exp date","JTE 3-Endowment","JTE 18-Unit leadership","JTE 14-Unit retention/growth","JTE 17-District leadership","JTE 8-Cub Scout advancement","Greg Brownfield"]
[3,5,"653","Great Rivers","Columbia","MO","12:00:00 AM-SP exp date","JTE 2-Fundraising","JTE 5-Membership/youth growth","JTE 10-Cub Scout camping","JTE 18-Unit leadership","JTE 15-Unit contacts","Doug Callahan"]
[3,7,"660","Blackhawk Area","Rockford","IL","12:00:00 AM-SP exp date","","","","","",""]
[2,1,"691","Pushmataha Area","Columbus","MS","12:00:00 AM-SP exp date","JTE 5-Membership/youth growth","JTE 11-Boy Scout camping","JTE 15-Unit contacts","JTE 4-Community impact","JTE 18-Unit leadership","Jeremy Whitmore"]
[4,1,"696","Midnight Sun","Fairbanks","AK","12:00:00 AM-SP exp date","JTE 3-Endowment","JTE 4-Community impact","JTE 8-Cub Scout advancement","JTE 9-Boy Scout advancement","JTE 15-Unit contacts","Stephen Smith"]
[4,1,"697","Oregon Trail","Eugene","OR","12:00:00 AM-SP exp date","JTE 4-Community impact","JTE 2-Fundraising","JTE 17-District leadership","JTE 18-Unit leadership","JTE 14-Unit retention/growth","Scott Impecoven"]
[3,7,"702","Rainbow","Morris","IL","12:00:00 AM-SP exp date","JTE 2-Fundraising","JTE 5-Membership/youth growth","JTE 14-Unit retention/growth","JTE 4-Community impact","JTE 18-Unit leadership","Ted Karns"]
[4,6,"803","Far East","Okinawa","Japan","12:00:00 AM-SP exp date","JTE 6-New member recruiting","JTE 17-District leadership","JTE 18-Unit leadership","JTE 10-Cub Scout camping","JTE 11-Boy Scout camping","Don A. Olsen"]
[1,1,"227","Spirit of Adventure","Boston","MA","Data not rcvd","","","","","",""]
[3,4,"618","Allohak","Parkersburg","WV","Data not rcvd","","","","","","Todd Walter"]
[3,4,"619","Ohio River Valley","Wheeling","WV","Data not rcvd","","","","","","Bob Drury"]
[1,2,"640","Greater New York","New York","NY","Data not rcvd","","","","","",""]
[3,7,"660","Blackhawk Area","Rockford","IL","Data not rcvd","","","","","",""]
[1,2,"404","Suffolk County","Medford","NY","None selected","","","","","","Ryan DiBernardo"]
[1,1,"218","Pine Tree","Portland","ME","Not provided","","","","","","Eric Tarbox"]
[3,3,"312","Greater St. Louis Area","St. Louis","MO","Not provided","","","","","","Ronald Green"]
[2,9,"001","Greater Alabama","Birmingham","AL","Not wanted","","","","","","J.T. Dabbs"]
[4,3,"027","Sequoia","Fresno","CA","Not wanted","","","","","","Albert Gallegos"]
[4,4,"039","Orange County","Santa Ana","CA","Not wanted","","","","","","Jeff Herrmann"]
[4,6,"049","San Diego-Imperial","San Diego","CA","Not wanted","","","","","","Trent McClure"]
[1,2,"069","Housatonic","Derby","CT","Not wanted","","","","","","John A. Zseller II"]
[2,4,"084","South Florida","Miami Lakes","FL","Not wanted","","","","","","Brick Huffman"]
[4,6,"102","Maui County","Wailuku, Maui","HI","Not wanted","","","","","","Duc Button"]
[4,2,"107","Grand Teton","Idaho Falls","ID","Not wanted","","","","","","Clarke Farrer"]
[2,1,"213","Louisiana Purchase","Monroe","LA","Not wanted","","","","","","Shane Cooley"]
[3,2,"272","Great Lakes","Detroit","MI","Not wanted","","","","","","Vic Pooler"]
[1,3,"364","Twin Rivers","Albany","NY","Not wanted","","","","","","Dennis Dugan"]
[1,4,"382","Allegheny Highlands","Falconer","NY","Not wanted","","","","","","John Wojciechowicz"]
[2,7,"425","Cape Fear","Wilmington","NC","Not wanted","","","","","","Jonathan Widmark "]
[4,1,"491","Crater Lake","Central Point","OR","Not wanted","","","","","","Kevin Patterson"]
[1,4,"538","Chief Cornplanter","Warren","PA","Not wanted","","","","","","Ray Tennent"]
[1,6,"544","New Birth of Freedom","Mechanicsburg","PA","Not wanted","","","","","","Ron Gardner"]
[2,5,"550","Coastal Carolina","Charleston","SC","Not wanted","","","","","","Legare Clement"]
[2,3,"576","Sam Houston Area","Houston","TX","Not wanted","","","","","","Tom Varnell"]
[2,3,"578","Three Rivers","Beaumont","TX","Not wanted","","","","","","Les Bentley"]
[2,3,"583","Alamo Area","San Antonio","TX","Not wanted","","","","","","Michael de los Santos"]
[2,2,"584","Caddo Area","Texarkana","TX","Not wanted","","","","","",""]
[4,2,"589","Trapper Trails","Ogden","UT","Not wanted","","","","","","Allen Endicott"]
[1,3,"592","Green Mountain","Waterbury","VT","Not wanted","","","","","","Ed McCollin"]
[2,7,"596","Tidewater","Virginia Beach","VA","Not wanted","","","","","","Bill Deany"]
[2,7,"602","Heart of Virginia","Richmond","VA","Not wanted","","","","","","Bradford M. Nesheim"]
[4,1,"609","Chief Seattle","Seattle","WA","Not wanted","","","","","","Michael Quirk"]
[4,1,"611","Inland Northwest","Spokane","WA","Not wanted","","","","","","Karen Meier"]
[3,4,"615","Mountaineer Area","Fairmont","WV","Not wanted","Allohak (618)","Ohio River Valley (619)","Muskingum Valley (467)","","","Jeff Doty"]
[1,5,"661","Puerto Rico","Guaynabo","PR","Not wanted","","","","","","Jim Hans"]
[2,4,"664","Suwannee River Area","Tallahassee","FL","Not wanted","","","","","","Kevin Kilduff"]
[2,2,"694","South Plains","Lubbock","TX","Not wanted","","","","","","Nathan Baie"]
[2,7,"763","Stonewall Jackson Area","Waynesboro","VA","Not wanted","","","","","","Jim Battaglia"]
[2,1,"773","Gulf Coast","Pensacola","FL","Not wanted","","","","","","Spencer Page"]
[2,3,"775","Rio Grande","Harlingen","TX","Not wanted","","","","","","Rudy Gonzalez"]
[3,2,"781","President Gerald R. Ford","Grand Rapids","MI","Not wanted","","","","","","Kevin Nichols"]
[3,2,"782","Water and Woods","Flint","MI","Not wanted","","","","","","Gary Gilger"]
[4,6,"803","Far East","Okinawa","Japan","Not wanted","","","","","","Don A. Olsen"]
[2,1,"003","Alabama-Florida","Dothan","AL","Selected","Choctaw Area - Meridian, MS (302)","Chattahoochee - Columbus, GA (091)","Mobile Area - Mobile, AL (004)","Tukabatchee Area - Montgomery, AL (005)","Pine Burr Area - Hattiesburg, MS (304)","Jerry Freyberg"]
[2,1,"004","Mobile Area","Mobile","AL","Selected","Gulf Coast - Pensacola, FL (773)","Andrew Jackson - Jackson, MS (303)","Louisiana Purchase - Monroe, LA (213)","Calcasieu Area - Lake Charles, LA (209)","Black Warrior - Tuscaloosa, AL (006)","phillip cranford"]
[2,9,"005","Tukabatchee Area","Montgomery","AL","Selected","Andrew Jackson - Jackson, MS (303)","Black Warrior - Tuscaloosa, AL (006)","Chattahoochee - Columbus, GA (091)","Central Georgia - Macon, GA (096)","","Marvin Smith"]
[2,9,"006","Black Warrior","Tuscaloosa","AL","Selected","Chattahoochee - Columbus, GA (091)","Southwest Florida - Fort Myers, FL (088)","Andrew Jackson - Jackson, MS (303)","Cherokee Area - Chattanooga, TN (556)","Green Mountain - Waterbury, VT (592)","Bill Gosselin"]
[4,6,"010","Grand Canyon","Phoenix","AZ","Selected","Cascade Pacific - Portland, OR (492)","Las Vegas Area - Las Vegas, NV (328)","Heart of America - Kansas City, MO (307)","","","Larry Abbott"]
[4,6,"011","Catalina","Tucson","AZ","Selected","Yucca - El Paso, TX (573)","Conquistador - Roswell, NM (413)","Southern Sierra - Bakersfield, CA (030)","Great Southwest - Albuquerque, NM (412)","Nevada Area - Reno, NV (329)","Ken Tucker"]
[2,8,"013","De Soto Area","El Dorado","AR","Selected","Cimarron - Enid, OK (474)","Caddo Area - Texarkana, TX (584)","Arbuckle Area - Ardmore, OK (468)","Cherokee Area - Bartlesville, OK (469)","Northwest Texas - Wichita Falls, TX (587)","Ted Woodlock"]
[2,8,"016","Westark Area","Fort Smith","AR","Selected","Buffalo Trail - Midland, TX (567)","Quivira - Wichita, KS (198)","Central North Carolina - Albemarle, NC (416)","Chattahoochee - Columbus, GA (091)","Golden Spread - Amarillo, TX (562)","Chris Daughtrey"]
[2,8,"018","Quapaw Area","Little Rock","AR","Selected","Chickasaw - Memphis, TN (558)","Westark Area - Fort Smith, AR (016)","Last Frontier - Oklahoma City, OK (480)","Louisiana Purchase - Monroe, LA (213)","West Tennessee Area - Jackson, TN (559)","John Carman"]
[4,3,"022","Alameda","Alameda","CA","Selected","Piedmont - Piedmont, CA (042)","Redwood Empire - Santa Rosa, CA (041)","San Francisco Bay Area - San Leandro, CA (028)","Mount Diablo Silverado - Pleasant Hill, CA (023)","Greenwich - Greenwich, CT (067)","Brian Fasci"]
[4,3,"023","Mount Diablo Silverado","Pleasant Hill","CA","Selected","Golden Empire - Sacramento, CA (047)","Silicon Valley Monterey Bay - San Jose, CA (055)","California Inland Empire - Redlands, CA (045)","Western Los Angeles County - Van Nuys, CA (051)","San Francisco Bay Area - San Leandro, CA (028)","John Fenoglio"]
[4,3,"028","San Francisco Bay Area","San Leandro","CA","Selected","Mount Diablo Silverado - Pleasant Hill, CA (023)","Connecticut Yankee - Milford, CT (072)","Pacific Harbors - Tacoma, WA (612)","Great Southwest - Albuquerque, NM (412)","Western Los Angeles County - Van Nuys, CA (051)","Joe Barton"]
[4,4,"030","Southern Sierra","Bakersfield","CA","Selected","Yucca - El Paso, TX (573)","Western Colorado - Grand Junction, CO (064)","Maui County - Wailuku, Maui, HI (102)","","","Jesse Lopez"]
[4,3,"031","Pacific Skyline","Foster City","CA","Selected","Pikes Peak - Colorado Springs, CO (060)","Mount Diablo Silverado - Pleasant Hill, CA (023)","California Inland Empire - Redlands, CA (045)","Sequoia - Fresno, CA (027)","Los Padres - Santa Barbara, CA (053)","Brian Curtis"]
[4,4,"032","Long Beach Area","Long Beach","CA","Selected","Verdugo Hills - Glendale, CA (058)","Los Padres - Santa Barbara, CA (053)","Southern Sierra - Bakersfield, CA (030)","","","John Fullerton"]
[4,4,"033","Greater Los Angeles Area","Los Angeles","CA","Selected","Atlanta Area - Atlanta, GA (092)","Orange County - Santa Ana, CA (039)","Circle Ten - Dallas, TX (571)","Denver Area - Denver, CO (061)","Greater New York - New York, NY (640)","Jeff Hunt"]
[4,3,"035","Marin","San Rafael","CA","Selected","Long Beach Area - Long Beach, CA (032)","Redwood Empire - Santa Rosa, CA (041)","Greenwich - Greenwich, CT (067)","Greater Yosemite - Modesto, CA (059)","Rocky Mountain - Pueblo, CO (063)","Michael Dybeck"]
[4,3,"041","Redwood Empire","Santa Rosa","CA","Selected","Marin - San Rafael, CA (035)","Alameda - Alameda, CA (022)","Mount Diablo Silverado - Pleasant Hill, CA (023)","Greater Yosemite - Modesto, CA (059)","San Francisco Bay Area - San Leandro, CA (028)","Charles A. Howard-Gibbon"]
[4,3,"042","Piedmont","Piedmont","CA","Selected","Alameda - Alameda, CA (022)","Marin - San Rafael, CA (035)","Redwood Empire - Santa Rosa, CA (041)","Piedmont - Piedmont, CA (042)","","Josephine Pegrum Hazelett"]
[4,4,"045","California Inland Empire","Redlands","CA","Selected","Las Vegas Area - Las Vegas, NV (328)","Golden Empire - Sacramento, CA (047)","Great Southwest - Albuquerque, NM (412)","Inland Northwest - Spokane, WA (611)","Nevada Area - Reno, NV (329)","Daniela Silva"]
[4,3,"047","Golden Empire","Sacramento","CA","Selected","Daniel Webster - Manchester, NH (330)","Blue Ridge - Greenville, SC (551)","California Inland Empire - Redlands, CA (045)","Cascade Pacific - Portland, OR (492)","Mount Diablo Silverado - Pleasant Hill, CA (023)","Chuck Brasfeild"]
[4,4,"051","Western Los Angeles County","Van Nuys","CA","Selected","Greater Los Angeles Area - Los Angeles, CA (033)","Orange County - Santa Ana, CA (039)","Narragansett - Providence, RI (546)","San Diego-Imperial - San Diego, CA (049)","","Matthew Thornton"]
[4,4,"053","Los Padres","Santa Barbara","CA","Selected","Ventura County - Camarillo, CA (057)","Sequoia - Fresno, CA (027)","Long Beach Area - Long Beach, CA (032)","Rio Grande - Harlingen, TX (775)","Potawatomi Area - Waukesha, WI (651)","Carlos Cortez"]
[4,3,"055","Silicon Valley Monterey Bay","San Jose","CA","Selected","San Francisco Bay Area - San Leandro, CA (028)","Pleasant Hill, CA (023)/San Diego, CA (049)","Foster City, CA (031)/Portland, OR (492)","San Diego, CA (049)/Seattle, WA (609)","Sacramento, CA (047)/Austin, TX (564)","Jason Stein"]
[4,4,"057","Ventura County","Camarillo","CA","Selected","Verdugo Hills - Glendale, CA (058)","Los Padres - Santa Barbara, CA (053)","Long Beach Area - Long Beach, CA (032)","Greater Yosemite - Modesto, CA (059)","Marin - San Rafael, CA (035)","David Jones"]
[4,4,"058","Verdugo Hills","Glendale","CA","Selected","Long Beach Area - Long Beach, CA (032)","Ventura County - Camarillo, CA (057)","Southern Sierra - Bakersfield, CA (030)","Alameda - Alameda, CA (022)","Grand Columbia - Yakima, WA (614)","Mark Kraus"]
[4,3,"059","Greater Yosemite","Modesto","CA","Selected","Bay Area - Galveston, TX (574)","Black Swamp Area - Findlay, OH (449)","Catalina - Tucson, AZ (011)","Alameda - Alameda, CA (022)","Caddo Area - Texarkana, TX (584)","Sonya Greene"]
[4,2,"060","Pikes Peak","Colorado Springs","CO","Selected","Rocky Mountain - Pueblo, CO (063)","Longs Peak - Greeley, CO (062)","Denver Area - Denver, CO (061)","","","Jim Machamer"]
[4,2,"061","Denver Area","Denver","CO","Selected","Greater Los Angeles Area - Los Angeles, CA (033)","Orange County - Santa Ana, CA (039)","Heart of America - Kansas City, MO (307)","Pikes Peak - Colorado Springs, CO (060)","Longs Peak - Greeley, CO (062)","Nicole Cosme"]
[4,2,"062","Longs Peak","Greeley","CO","Selected","Memphis, TN (558)/Colorado Springs, CO (060)","Davenport, IA (133)/Honolulu, HI (104)","Milford, CT (072)/Waukesha, WI (651)","Colorado Springs, CO (060)/Toledo, OH (460)","Sacramento, CA (047)/Palm Beach Gardens, FL (085)","John Coleman "]
[4,2,"063","Rocky Mountain","Pueblo","CO","Selected","Black Hills Area - Rapid City, SD (695)","Greater Wyoming - Casper, WY (638)","Blue Mountain - Kennewick, WA (604)","Western Colorado - Grand Junction, CO (064)","Conquistador - Roswell, NM (413)","Philip Eborn"]
[4,2,"064","Western Colorado","Grand Junction","CO","Selected","Snake River - Twin Falls, ID (111)","Rocky Mountain - Pueblo, CO (063)","Verdugo Hills - Glendale, CA (058)","Blue Mountain - Kennewick, WA (604)","Yucca - El Paso, TX (573)","Mark Switzer"]
[1,2,"066","Connecticut Rivers","East Hartford","CT","Selected","Connecticut Yankee - Milford, CT (072)","Narragansett - Providence, RI (546)","Daniel Webster - Manchester, NH (330)","Cradle of Liberty - Philadelphia, PA (525)","Seneca Waterways - Rochester, NY (397)","steven smith"]
[1,2,"067","Greenwich","Greenwich","CT","Selected","Housatonic - Derby, CT (069)","Suffolk County - Medford, NY (404)","Westchester-Putnam - Hawthorne, NY (388)","Theodore Roosevelt - Massapequa, NY (386)","Connecticut Yankee - Milford, CT (072)","Kevin Oâ€™Shea"]
[2,7,"070","Old North State","Greensboro","NC","Selected","Blue Ridge Mountains - Roanoke, VA (599)","Occoneechee - Raleigh, NC (421)","East Carolina - Kinston, NC (426)","Old Hickory - Winston-Salem, NC (427)","Piedmont - Gastonia, NC (420)","Ed Martin"]
[1,2,"072","Connecticut Yankee","Milford","CT","Selected","Connecticut Rivers - East Hartford, CT (066)","Theodore Roosevelt - Massapequa, NY (386)","Northern New Jersey - Oakland, NJ (333)","Westchester-Putnam - Hawthorne, NY (388)","Patriots' Path - Cedar Knolls, NJ (358)","Charles L Flowers"]
[1,6,"081","Del-Mar-Va","Wilmington","DE","Selected","Baltimore Area - Baltimore, MD (220)","Northern New Jersey - Oakland, NJ (333)","Cradle of Liberty - Philadelphia, PA (525)","","","Bill Garrett"]
[1,6,"082","National Capital Area","Bethesda","MD","Selected","Sam Houston Area - Houston, TX (576)","Circle Ten - Dallas, TX (571)","Heart of America - Kansas City, MO (307)","Greater St. Louis Area - St. Louis, MO (312)","Atlanta Area - Atlanta, GA (092)","Jeffrey Berger"]
[2,4,"083","Central Florida","Orlando","FL","Selected","North Florida - Jacksonville, FL (087)","Mid-America - Omaha, NE (326)","Middle Tennessee - Nashville, TN (560)","Capitol Area - Austin, TX (564)","Occoneechee - Raleigh, NC (421)","Eric Magendantz"]
[2,4,"085","Gulf Stream","Palm Beach Gardens","FL","Selected","Southeast Louisiana - New Orleans, LA (214)","Istrouma Area - Baton Rouge, LA (211)","Old North State - Greensboro, NC (070)","","","Terrence Hamilton"]
[2,4,"087","North Florida","Jacksonville","FL","Selected","Greater Alabama - Birmingham, AL (001)","Lincoln Heritage - Louisville, KY (205)","Heart of Virginia - Richmond, VA (602)","Middle Tennessee - Nashville, TN (560)","Northeast Georgia - Jefferson, GA (101)","Jack Sears"]
[2,4,"088","Southwest Florida","Fort Myers","FL","Selected","Gulf Stream - Palm Beach Gardens, FL (085)","South Florida - Miami Lakes, FL (084)","Catalina - Tucson, AZ (011)","Southeast Louisiana - New Orleans, LA (214)","Mount Diablo Silverado - Pleasant Hill, CA (023)","Greg Graham"]
[2,4,"089","Greater Tampa Bay Area","Tampa","FL","Selected","North Florida - Jacksonville, FL (087)","Greater Alabama - Birmingham, AL (001)","Occoneechee - Raleigh, NC (421)","South Florida - Miami Lakes, FL (084)","Capitol Area - Austin, TX (564)","jeff rock"]
[2,9,"091","Chattahoochee","Columbus","GA","Selected","Central Georgia - Macon, GA (096)","Mobile Area - Mobile, AL (004)","Northwest Georgia - Rome, GA (100)","Tukabatchee Area - Montgomery, AL (005)","Andrew Jackson - Jackson, MS (303)","Philip Wright"]
[2,9,"092","Atlanta Area","Atlanta","GA","Selected","Circle Ten - Dallas, TX (571)","Denver Area - Denver, CO (061)","Greater St. Louis Area - St. Louis, MO (312)","Sam Houston Area - Houston, TX (576)","Northern Star - St. Paul, MN (250)","Jason Volz"]
[2,5,"093","Georgia-Carolina","Augusta","GA","Selected","Central Georgia - Macon, GA (096)","South Georgia - Valdosta, GA (098)","Tuscarora - Goldsboro, NC (424)","Suwannee River Area - Tallahassee, FL (664)","Muskingum Valley - Zanesville, OH (467)","Daniel Rogers"]
[2,9,"095","Flint River","Griffin","GA","Selected","Chattahoochee - Columbus, GA (091)","Old North State - Greensboro, NC (070)","Tukabatchee Area - Montgomery, AL (005)","Gulf Stream - Palm Beach Gardens, FL (085)","Coastal Carolina - Charleston, SC (550)","Kelvin Williams"]
[2,9,"096","Central Georgia","Macon","GA","Selected","Istrouma Area - Baton Rouge, LA (211)","Blue Grass - Lexington, KY (204)","Cherokee Area - Chattanooga, TN (556)","Chippewa Valley - Eau Claire, WI (637)","Miami Valley - Dayton, OH (444)","Garrett L. Williams"]
[2,9,"098","South Georgia","Valdosta","GA","Selected","Suwannee River Area - Tallahassee, FL (664)","Central Georgia - Macon, GA (096)","Alabama-Florida - Dothan, AL (003)","","","Matt Hart"]
[2,9,"099","Coastal Georgia","Savannah","GA","Selected","Cape Fear - Wilmington, NC (425)","Southwest Florida - Fort Myers, FL (088)","West Tennessee Area - Jackson, TN (559)","East Carolina - Kinston, NC (426)","Coastal Carolina - Charleston, SC (550)","Clif Morris"]
[2,9,"100","Northwest Georgia","Rome","GA","Selected","Central Georgia - Macon, GA (096)","Northeast Iowa - Dubuque, IA (178)","Moraine Trails - Butler, PA (500)","Blue Mountain - Kennewick, WA (604)","Mobile Area - Mobile, AL (004)","Jeff Brasher"]
[2,9,"101","Northeast Georgia","Jefferson","GA","Selected","Baltimore Area - Baltimore, MD (220)","North Florida - Jacksonville, FL (087)","Greater Alabama - Birmingham, AL (001)","Lincoln Heritage - Louisville, KY (205)","Central Florida - Orlando, FL (083)","Rodney Brundidge"]
[4,6,"104","Aloha","Honolulu","HI","Selected","Pacific Harbors - Tacoma, WA (612)","Mount Diablo Silverado - Pleasant Hill, CA (023)","San Diego-Imperial - San Diego, CA (049)","","","Jeff Sulzbach"]
[4,1,"106","Ore-Ida","Boise","ID","Selected","Blue Mountain - Kennewick, WA (604)","Grand Teton - Idaho Falls, ID (107)","Snake River - Twin Falls, ID (111)","Great Salt Lake - Salt Lake City, UT (590)","Greater Wyoming - Casper, WY (638)","David Kemper"]
[4,2,"111","Snake River","Twin Falls","ID","Selected","Greater Wyoming - Casper, WY (638)","Longs Peak - Greeley, CO (062)","Pikes Peak - Colorado Springs, CO (060)","Ore-Ida - Boise, ID (106)","Montana - Great Falls, MT (315)","David Kirk"]
[3,3,"117","Prairielands","Champaign","IL","Selected","Muskingum Valley - Zanesville, OH (467)","Lincoln Trails - Decatur, IL (121)","Northeast Iowa - Dubuque, IA (178)","Tecumseh - Springfield, OH (439)","Winnebago - Waterloo, IA (173)","Steve Adams"]
[3,3,"121","Lincoln Trails","Decatur","IL","Selected","Abraham Lincoln - Springfield, IL (144)","Mississippi Valley - Quincy, IL (141)","Prairielands - Champaign, IL (117)","Northeast Iowa - Dubuque, IA (178)","Tecumseh - Springfield, OH (439)","Christian J. Long"]
[3,7,"127","Three Fires","St. Charles","IL","Selected","Bay-Lakes - Appleton, WI (635)","Lake Erie - Cleveland, OH (440)","Simon Kenton - Columbus, OH (441)","Three Harbors - Milwaukee, WI (636)","Northern Lights - Fargo, ND (429)","Nick Roberts"]
[3,7,"129","Northeast Illinois","Highland Park","IL","Selected","Mid-Iowa - Des Moines, IA (177)","Three Fires - St. Charles, IL (127)","Blackhawk Area - Rockford, IL (660)","Illowa - Davenport, IA (133)","Potawatomi Area - Waukesha, WI (651)","Doug Nelson"]
[3,3,"133","Illowa","Davenport","IA","Selected","Abraham Lincoln - Springfield, IL (144)","Mississippi Valley - Quincy, IL (141)","Blackhawk Area - Rockford, IL (660)","Hawkeye Area - Cedar Rapids, IA (172)","Northeast Iowa - Dubuque, IA (178)","Thomas P. McDermott"]
[3,3,"138","W.D. Boyce","Peoria","IL","Selected","Three Fires - St. Charles, IL (127)","Seneca Waterways - Rochester, NY (397)","Hawk Mountain - Reading, PA (528)","Mid-Iowa - Des Moines, IA (177)","Quivira - Wichita, KS (198)","Greg Voyzey"]
[3,3,"141","Mississippi Valley","Quincy","IL","Selected","Illowa - Davenport, IA (133)","Abraham Lincoln - Springfield, IL (144)","Hawkeye Area - Cedar Rapids, IA (172)","Winnebago - Waterloo, IA (173)","W.D. Boyce - Peoria, IL (138)","Todd Lamison"]
[3,3,"144","Abraham Lincoln","Springfield","IL","Selected","Lincoln Trails - Decatur, IL (121)","Blackhawk Area - Rockford, IL (660)","Mississippi Valley - Quincy, IL (141)","Prairielands - Champaign, IL (117)","Buffalo Trace - Evansville, IN (156)","Daniel A. O'Brien"]
[3,6,"145","Hoosier Trails","Bloomington","IN","Selected","Black Swamp Area - Findlay, OH (449)","Anthony Wayne Area - Fort Wayne, IN (157)","Buffalo Trace - Evansville, IN (156)","Sagamore - Kokomo, IN (162)","LaSalle - South Bend, IN (165)","Glen R Steenberger"]
[3,6,"156","Buffalo Trace","Evansville","IN","Selected","Black Swamp Area - Findlay, OH (449)","Hoosier Trails - Bloomington, IN (145)","LaSalle - South Bend, IN (165)","Sagamore - Kokomo, IN (162)","Anthony Wayne Area - Fort Wayne, IN (157)","John Harding"]
[3,6,"157","Anthony Wayne Area","Fort Wayne","IN","Selected","LaSalle - South Bend, IN (165)","Sagamore - Kokomo, IN (162)","Black Swamp Area - Findlay, OH (449)","Hoosier Trails - Bloomington, IN (145)","Miami Valley - Dayton, OH (444)","John Gliot"]
[3,6,"160","Crossroads of America","Indianapolis","IN","Selected","Dan Beard - Cincinnati, OH (438)","Greater St. Louis Area - St. Louis, MO (312)","Heart of America - Kansas City, MO (307)","Northern Star - St. Paul, MN (250)","Great Lakes - Detroit, MI (272)","patrick sterrett"]
[3,6,"162","Sagamore","Kokomo","IN","Selected","LaSalle - South Bend, IN (165)","Black Swamp Area - Findlay, OH (449)","Hoosier Trails - Bloomington, IN (145)","Anthony Wayne Area - Fort Wayne, IN (157)","Miami Valley - Dayton, OH (444)","Ben Blumenberg"]
[3,6,"165","LaSalle","South Bend","IN","Selected","Sagamore - Kokomo, IN (162)","Illowa - Davenport, IA (133)","Anthony Wayne Area - Fort Wayne, IN (157)","Hoosier Trails - Bloomington, IN (145)","Miami Valley - Dayton, OH (444)","Robert Hemmelgarn"]
[3,3,"172","Hawkeye Area","Cedar Rapids","IA","Selected","Illowa - Davenport, IA (133)","Chippewa Valley - Eau Claire, WI (637)","Samoset - Weston, WI (627)","Sioux - Sioux Falls, SD (733)","Coronado Area - Salina, KS (192)","Sarah Dawson"]
[3,3,"173","Winnebago","Waterloo","IA","Selected","Pony Express - St. Joseph, MO (311)","Illowa - Davenport, IA (133)","Allohak - Parkersburg, WV (618)","Black Warrior - Tuscaloosa, AL (006)","Gateway Area - La Crosse, WI (624)","James R. Madison Jr."]
[3,5,"177","Mid-Iowa","Des Moines","IA","Selected","Quivira - Wichita, KS (198)","Buckeye - Canton, OH (436)","W.D. Boyce - Peoria, IL (138)","Lake Erie - Cleveland, OH (440)","Northeast Illinois - Highland Park, IL (129)","Robert Hopper"]
[3,3,"178","Northeast Iowa","Dubuque","IA","Selected","Mississippi Valley - Quincy, IL (141)","Hawkeye Area - Cedar Rapids, IA (172)","Winnebago - Waterloo, IA (173)","Gamehaven - Rochester, MN (299)","Gateway Area - La Crosse, WI (624)","Matt Klutzaritz"]
[3,5,"192","Coronado Area","Salina","KS","Selected","Cornhusker - Lincoln, NE (324)","Jayhawk Area - Topeka, KS (197)","Hawkeye Area - Cedar Rapids, IA (172)","Mid-Iowa - Des Moines, IA (177)","Pony Express - St. Joseph, MO (311)","Wendy Shaw"]
[3,5,"194","Santa Fe Trail","Garden City","KS","Selected","Cimarron - Enid, OK (474)","Cornhusker - Lincoln, NE (324)","Coronado Area - Salina, KS (192)","Rocky Mountain - Pueblo, CO (063)","Overland Trails - Grand Island, NE (322)","Michael Stewart"]
[3,5,"197","Jayhawk Area","Topeka","KS","Selected","Cornhusker - Lincoln, NE (324)","Coronado Area - Salina, KS (192)","Great Rivers - Columbia, MO (653)","Miami Valley - Dayton, OH (444)","Abraham Lincoln - Springfield, IL (144)","Wayne Pancoast"]
[3,5,"198","Quivira","Wichita","KS","Selected","W.D. Boyce - Peoria, IL (138)","Mid-Iowa - Des Moines, IA (177)","Last Frontier - Oklahoma City, OK (480)","Northern Lights - Fargo, ND (429)","Pikes Peak - Colorado Springs, CO (060)","Brian Nastase"]
[2,6,"204","Blue Grass","Lexington","KY","Selected","Andrew Jackson - Jackson, MS (303)","Central North Carolina - Albemarle, NC (416)","Indian Waters - Columbia, SC (553)","","","James Armishaw"]
[2,6,"205","Lincoln Heritage","Louisville","KY","Selected","Dan Beard - Cincinnati, OH (438)","Greater Alabama - Birmingham, AL (001)","Great Smoky Mountain - Knoxville, TN (557)","Chickasaw - Memphis, TN (558)","Middle Tennessee - Nashville, TN (560)","Clint Scharff"]
[2,1,"209","Calcasieu Area","Lake Charles","LA","Selected","Norwela - Shreveport, LA (215)","Evangeline Area - Lafayette, LA (212)","Caddo Area - Texarkana, TX (584)","Black Warrior - Tuscaloosa, AL (006)","Three Rivers - Beaumont, TX (578)","Michael Beer"]
[2,1,"211","Istrouma Area","Baton Rouge","LA","Selected","Norwela - Shreveport, LA (215)","Andrew Jackson - Jackson, MS (303)","Bay Area - Galveston, TX (574)","","","Gary Mertz"]
[2,1,"212","Evangeline Area","Lafayette","LA","Selected","Mobile Area - Mobile, AL (004)","Alabama-Florida - Dothan, AL (003)","Pine Burr Area - Hattiesburg, MS (304)","Louisiana Purchase - Monroe, LA (213)","Bay Area - Galveston, TX (574)","Art Hawkins"]
[2,1,"214","Southeast Louisiana","New Orleans","LA","Selected","Chickasaw - Memphis, TN (558)","Bay Area - Galveston, TX (574)","Blue Ridge - Greenville, SC (551)","Blue Ridge Mountains - Roanoke, VA (599)","Abraham Lincoln - Springfield, IL (144)","Ernesto Carballo"]
[2,2,"215","Norwela","Shreveport","LA","Selected","South Plains - Lubbock, TX (694)","Calcasieu Area - Lake Charles, LA (209)","Rio Grande - Harlingen, TX (775)","Mobile Area - Mobile, AL (004)","Cherokee Area - Bartlesville, OK (469)","Sedrick Robinson"]
[1,1,"216","Katahdin Area","Bangor","ME","Selected","Pine Tree - Portland, ME (218)","Iroquois Trail - Batavia, NY (376)","Moraine Trails - Butler, PA (500)","","","R. Scott Harvey"]
[1,6,"220","Baltimore Area","Baltimore","MD","Selected","Laurel Highlands - Pittsburgh, PA (527)","Lincoln Heritage - Louisville, KY (205)","Greater New York - New York, NY (640)","Del-Mar-Va - Wilmington, DE (081)","Connecticut Rivers - East Hartford, CT (066)","Brian L. Steger"]
[1,6,"221","Mason-Dixon","Hagerstown","MD","Selected","Northwest Georgia - Rome, GA (100)","Columbia-Montour - Bloomsburg, PA (504)","Greenwich - Greenwich, CT (067)","Westmoreland-Fayette - Greensburg, PA (512)","Pine Tree - Portland, ME (218)","Rob Stone"]
[1,1,"224","Cape Cod and Islands","Yarmouth Port","MA","Selected","Iroquois Trail - Batavia, NY (376)","Rip Van Winkle - Kingston, NY (405)","Susquehanna - Williamsport, PA (533)","Columbia-Montour - Bloomsburg, PA (504)","Nashua Valley - Lancaster, MA (230)","Michael Riley"]
[1,1,"230","Nashua Valley","Lancaster","MA","Selected","Mohegan - Worcester, MA (254)","Western Massachusetts - Westfield, MA (234)","Mayflower - Marlborough, MA (251)","Pine Tree - Portland, ME (218)","Cape Cod and Islands - Yarmouth Port, MA (224)","Gary Savignano"]
[1,2,"234","Western Massachusetts","Westfield","MA","Selected","Mohegan - Worcester, MA (254)","Green Mountain - Waterbury, VT (592)","Nashua Valley - Lancaster, MA (230)","Leatherstocking - Utica, NY (400)","Five Rivers - Horseheads, NY (375)","David Kruse"]
[3,1,"250","Northern Star","St. Paul","MN","Selected","National Capital Area - Bethesda, MD (082)","Sam Houston Area - Houston, TX (576)","Heart of America - Kansas City, MO (307)","Greater St. Louis Area - St. Louis, MO (312)","Crossroads of America - Indianapolis, IN (160)","John R. Andrews"]
[1,1,"251","Mayflower","Marlborough","MA","Selected","Daniel Webster - Manchester, NH (330)","Narragansett - Providence, RI (546)","Spirit of Adventure - Boston, MA (227)","Last Frontier - Oklahoma City, OK (480)","North Florida - Jacksonville, FL (087)","Bryan Feather"]
[1,1,"254","Mohegan","Worcester","MA","Selected","Long Beach Area - Long Beach, CA (032)","Anthony Wayne Area - Fort Wayne, IN (157)","Nashua Valley - Lancaster, MA (230)","Pony Express - St. Joseph, MO (311)","Leatherstocking - Utica, NY (400)","Jeff Hotchkiss"]
[3,1,"283","Twin Valley","Mankato","MN","Selected","Central Minnesota - Sartell, MN (296)","Chippewa Valley - Eau Claire, WI (637)","Gamehaven - Rochester, MN (299)","Voyageurs Area - Hermantown, MN (286)","Gateway Area - La Crosse, WI (624)","Ray Brauer"]
[3,1,"286","Voyageurs Area","Hermantown","MN","Selected","Central Minnesota - Sartell, MN (296)","Chippewa Valley - Eau Claire, WI (637)","Gamehaven - Rochester, MN (299)","Potawatomi Area - Waukesha, WI (651)","Twin Valley - Mankato, MN (283)","Michael Jenkins"]
[3,1,"296","Central Minnesota","Sartell","MN","Selected","Samoset - Weston, WI (627)","Gamehaven - Rochester, MN (299)","Hawkeye Area - Cedar Rapids, IA (172)","Cornhusker - Lincoln, NE (324)","Sioux - Sioux Falls, SD (733)","David Trehey"]
[3,1,"299","Gamehaven","Rochester","MN","Selected","Twin Valley - Mankato, MN (283)","Gateway Area - La Crosse, WI (624)","Voyageurs Area - Hermantown, MN (286)","Central Minnesota - Sartell, MN (296)","Chippewa Valley - Eau Claire, WI (637)","Rich Avery"]
[2,1,"302","Choctaw Area","Meridian","MS","Selected","Black Warrior - Tuscaloosa, AL (006)","Yocona Area - Tupelo, MS (748)","Andrew Jackson - Jackson, MS (303)","Mobile Area - Mobile, AL (004)","Pushmataha Area - Columbus, MS (691)","Kenneth P. Kercheval"]
[2,1,"303","Andrew Jackson","Jackson","MS","Selected","Pine Burr Area - Hattiesburg, MS (304)","West Tennessee Area - Jackson, TN (559)","Gulf Coast - Pensacola, FL (773)","Black Warrior - Tuscaloosa, AL (006)","Chattahoochee - Columbus, GA (091)","Anthony D. Haines"]
[2,1,"304","Pine Burr Area","Hattiesburg","MS","Selected","Andrew Jackson - Jackson, MS (303)","Gulf Coast - Pensacola, FL (773)","Cherokee Area - Chattanooga, TN (556)","Sequoyah - Johnson City, TN (713)","Louisiana Purchase - Monroe, LA (213)","Casey Norwood"]
[3,5,"306","Ozark Trails","Springfield","MO","Selected","Quivira - Wichita, KS (198)","Cornhusker - Lincoln, NE (324)","Great Rivers - Columbia, MO (653)","Quapaw Area - Little Rock, AR (018)","Westark Area - Fort Smith, AR (016)","John Feick"]
[3,5,"307","Heart of America","Kansas City","MO","Selected","Circle Ten - Dallas, TX (571)","Crossroads of America - Indianapolis, IN (160)","Greater St. Louis Area - St. Louis, MO (312)","Denver Area - Denver, CO (061)","Northern Star - St. Paul, MN (250)","Kendrick Miller"]
[3,5,"311","Pony Express","St. Joseph","MO","Selected","Coronado Area - Salina, KS (192)","Cornhusker - Lincoln, NE (324)","Jayhawk Area - Topeka, KS (197)","Overland Trails - Grand Island, NE (322)","","Alan Franks"]
[4,2,"315","Montana","Great Falls","MT","Selected","Pikes Peak - Colorado Springs, CO (060)","Longs Peak - Greeley, CO (062)","","","","Don Bean"]
[3,5,"322","Overland Trails","Grand Island","NE","Selected","Central Minnesota - Sartell, MN (296)","Coronado Area - Salina, KS (192)","Winnebago - Waterloo, IA (173)","Western Colorado - Grand Junction, CO (064)","Santa Fe Trail - Garden City, KS (194)","David Plond"]
[3,5,"324","Cornhusker","Lincoln","NE","Selected","Coronado Area - Salina, KS (192) for ME","Mid-Iowa - Des Moines, IA (177) for FI","","","","Chris Blum"]
[3,5,"326","Mid-America","Omaha","NE","Selected","Lake Erie - Cleveland, OH (440)","Greater Alabama - Birmingham, AL (001)","Bay-Lakes - Appleton, WI (635)","Middle Tennessee - Nashville, TN (560)","Central Florida - Orlando, FL (083)","Chris S. Mehaffey"]
[4,6,"328","Las Vegas Area","Las Vegas","NV","Selected","California Inland Empire - Redlands, CA (045)","San Diego-Imperial - San Diego, CA (049)","Aloha - Honolulu, HI (104)","Longs Peak - Greeley, CO (062)","Pikes Peak - Colorado Springs, CO (060)","Mike Marchese"]
[4,3,"329","Nevada Area","Reno","NV","Selected","Catalina - Tucson, AZ (011)","Crater Lake - Central Point, OR (491)","Greater Yosemite - Modesto, CA (059)","Rocky Mountain - Pueblo, CO (063)","Ore-Ida - Boise, ID (106)","Paul Penttila"]
[1,1,"330","Daniel Webster","Manchester","NH","Selected","Connecticut Rivers - East Hartford, CT (066)","Pine Tree - Portland, ME (218)","Narragansett - Providence, RI (546)","Spirit of Adventure - Boston, MA (227)","Mayflower - Marlborough, MA (251)","Michelle Tickler"]
[1,5,"333","Northern New Jersey","Oakland","NJ","Selected","Patriots' Path - Cedar Knolls, NJ (358)","Westchester-Putnam - Hawthorne, NY (388)","Minsi Trails - Lehigh Valley, PA (502)","Twin Rivers - Albany, NY (364)","Washington Crossing - Doylestown, PA (777)","Rebecca Fields"]
[1,5,"341","Jersey Shore","Toms River","NJ","Selected","Northeastern Pennsylvania - Moosic, PA (501)","Garden State - Westampton, NJ (690)","Monmouth - Morganville, NJ (347)","Washington Crossing - Doylestown, PA (777)","Patriots' Path - Cedar Knolls, NJ (358)","James Gillick"]
[1,5,"347","Monmouth","Morganville","NJ","Selected","Garden State - Westampton, NJ (690)","Washington Crossing - Doylestown, PA (777)","Theodore Roosevelt - Massapequa, NY (386)","Suffolk County - Medford, NY (404)","Westchester-Putnam - Hawthorne, NY (388)","Michael P. Mahon"]
[1,5,"358","Patriots' Path","Cedar Knolls","NJ","Selected","Baltimore Area - Baltimore, MD (220)","Cradle of Liberty - Philadelphia, PA (525)","Connecticut Rivers - East Hartford, CT (066)","Northern New Jersey - Oakland, NJ (333)","Narragansett - Providence, RI (546)","Mark Spaldo"]
[1,3,"368","Baden-Powell","Binghamton","NY","Selected","Five Rivers - Horseheads, NY (375)","Leatherstocking - Utica, NY (400)","Northeastern Pennsylvania - Moosic, PA (501)","Seneca Waterways - Rochester, NY (397)","Longhouse - Syracuse, NY (373)","Rick Christ"]
[1,3,"373","Longhouse","Syracuse","NY","Selected","Leatherstocking - Utica, NY (400)","Baden-Powell - Binghamton, NY (368)","Five Rivers - Horseheads, NY (375)","Green Mountain - Waterbury, VT (592)","","Grey Rolland"]
[1,2,"374","Hudson Valley","Newburgh","NY","Selected","Western Massachusetts - Westfield, MA (234)","Baden-Powell - Binghamton, NY (368)","Westchester-Putnam - Hawthorne, NY (388)","Suffolk County - Medford, NY (404)","Hawk Mountain - Reading, PA (528)","David Horton"]
[1,3,"375","Five Rivers","Horseheads","NY","Selected","Baden-Powell - Binghamton, NY (368)","Longhouse - Syracuse, NY (373)","Iroquois Trail - Batavia, NY (376)","Allegheny Highlands - Falconer, NY (382)","Susquehanna - Williamsport, PA (533)","Gary Decker"]
[1,3,"376","Iroquois Trail","Batavia","NY","Selected","Five Rivers - Horseheads, NY (375)","Longhouse - Syracuse, NY (373)","Allegheny Highlands - Falconer, NY (382)","Susquehanna - Williamsport, PA (533)","Green Mountain - Waterbury, VT (592)","Brad Bowersox"]
[1,3,"380","Greater Niagara Frontier","Buffalo","NY","Selected","Twin Rivers - Albany, NY (364)","Pennsylvania Dutch - Lancaster, PA (524)","Garden State - Westampton, NJ (690)","Connecticut Yankee - Milford, CT (072)","Hawk Mountain - Reading, PA (528)","Russell Etzenhouser"]
[1,2,"386","Theodore Roosevelt","Massapequa","NY","Selected","Suffolk County - Medford, NY (404)","Hudson Valley - Newburgh, NY (374)","Connecticut Yankee - Milford, CT (072)","Patriots' Path - Cedar Knolls, NJ (358)","Mecklenburg County - Charlotte, NC (415)","chris coscia"]
[1,2,"388","Westchester-Putnam","Hawthorne","NY","Selected","Connecticut Yankee - Milford, CT (072)","Northern New Jersey - Oakland, NJ (333)","Twin Rivers - Albany, NY (364)","Greater Niagara Frontier - Buffalo, NY (380)","Mayflower - Marlborough, MA (251)","Richard Stockton"]
[1,3,"397","Seneca Waterways","Rochester","NY","Selected","Laurel Highlands - Pittsburgh, PA (527)","Daniel Webster - Manchester, NH (330)","Greater Niagara Frontier - Buffalo, NY (380)","Heart of Virginia - Richmond, VA (602)","Lake Erie - Cleveland, OH (440)","Stephen T. Hoitt"]
[1,3,"400","Leatherstocking","Utica","NY","Selected","Twin Rivers - Albany, NY (364)","Longhouse - Syracuse, NY (373)","Baden-Powell - Binghamton, NY (368)","","","Steven K. McEwan"]
[1,2,"405","Rip Van Winkle","Kingston","NY","Selected","Housatonic - Derby, CT (069)","Connecticut Yankee - Milford, CT (072)","Leatherstocking - Utica, NY (400)","Western Massachusetts - Westfield, MA (234)","","Ray Braun"]
[4,6,"412","Great Southwest","Albuquerque","NM","Selected","Catalina - Tucson, AZ (011)","Yucca - El Paso, TX (573)","Conquistador - Roswell, NM (413)","South Plains - Lubbock, TX (694)","Buffalo Trail - Midland, TX (567)","Christopher W. Shelby"]
[4,6,"413","Conquistador","Roswell","NM","Selected","Texas Southwest - San Angelo, TX (741)","Maui County - Wailuku, Maui, HI (102)","Yucca - El Paso, TX (573)","Arbuckle Area - Ardmore, OK (468)","Western Colorado - Grand Junction, CO (064)","Jacob Armstrong"]
[2,5,"414","Daniel Boone","Asheville","NC","Selected","Blue Ridge - Greenville, SC (551)","Palmetto - Spartanburg, SC (549)","Sequoyah - Johnson City, TN (713)","South Florida - Miami Lakes, FL (084)","Three Harbors - Milwaukee, WI (636)","Joshua Christ"]
[2,5,"415","Mecklenburg County","Charlotte","NC","Selected","Blue Ridge - Greenville, SC (551)","Occoneechee - Raleigh, NC (421)","Greater Tampa Bay Area - Tampa, FL (089)","Atlanta Area - Atlanta, GA (092)","Cherokee Area - Chattanooga, TN (556)","Mark Turner"]
[2,5,"416","Central North Carolina","Albemarle","NC","Selected","Mecklenburg County - Charlotte, NC (415)","Piedmont - Gastonia, NC (420)","Palmetto - Spartanburg, SC (549)","Blue Ridge - Greenville, SC (551)","Old North State - Greensboro, NC (070)","Bob McGowan"]
[2,5,"420","Piedmont","Gastonia","NC","Selected","Mecklenburg County - Charlotte, NC (415)","Blue Ridge - Greenville, SC (551)","Occoneechee - Raleigh, NC (421)","Old Hickory - Winston-Salem, NC (427)","Heart of Virginia - Richmond, VA (602)","Jesse C Bowes Jr"]
[2,7,"421","Occoneechee","Raleigh","NC","Selected","Heart of Virginia - Richmond, VA (602)","North Florida - Jacksonville, FL (087)","","","","John Akerman"]
[2,7,"424","Tuscarora","Goldsboro","NC","Selected","Pee Dee Area - Florence, SC (552)","Shenandoah Area - Winchester, VA (598)","Palmetto - Spartanburg, SC (549)","","","Jason Smith"]
[2,7,"426","East Carolina","Kinston","NC","Selected","Old North State - Greensboro, NC (070)","Old Hickory - Winston-Salem, NC (427)","Heart of Virginia - Richmond, VA (602)","Cape Fear - Wilmington, NC (425)","Tidewater - Virginia Beach, VA (596)","Doug Brown, Jr."]
[2,7,"427","Old Hickory","Winston-Salem","NC","Selected","Blue Ridge - Greenville, SC (551)","Cape Fear - Wilmington, NC (425)","Daniel Boone - Asheville, NC (414)","Flint River - Griffin, GA (095)","Old North State - Greensboro, NC (070)","Steve Wilburn"]
[3,1,"429","Northern Lights","Fargo","ND","Selected","Longs Peak - Greeley, CO (062)","Grand Teton - Idaho Falls, ID (107)","Montana - Great Falls, MT (315)","President Gerald R. Ford - Grand Rapids, MI (781)","Mid-Iowa - Des Moines, IA (177)","Roger B. Hoyt"]
[3,4,"433","Great Trail","Akron","OH","Selected","Buckeye - Canton, OH (436)","Northeast Illinois - Highland Park, IL (129)","Mid-America - Omaha, NE (326)","Quivira - Wichita, KS (198)","Minsi Trails - Lehigh Valley, PA (502)","Patrick Scherer"]
[3,4,"436","Buckeye","Canton","OH","Selected","Great Trail - Akron, OH (433)","Lake Erie - Cleveland, OH (440)","Mid-Iowa - Des Moines, IA (177)","Three Harbors - Milwaukee, WI (636)","","Nathan Hopper"]
[3,6,"438","Dan Beard","Cincinnati","OH","Selected","Laurel Highlands - Pittsburgh, PA (527)","Baltimore Area - Baltimore, MD (220)","Simon Kenton - Columbus, OH (441)","Greater St. Louis Area - St. Louis, MO (312)","Crossroads of America - Indianapolis, IN (160)","Michael Kostic"]
[3,6,"439","Tecumseh","Springfield","OH","Selected","Miami Valley - Dayton, OH (444)","Black Swamp Area - Findlay, OH (449)","Muskingum Valley - Zanesville, OH (467)","Ohio River Valley - Wheeling, WV (619)","Anthony Wayne Area - Fort Wayne, IN (157)","Rob Lavoie"]
[3,4,"440","Lake Erie","Cleveland","OH","Selected","Simon Kenton - Columbus, OH (441)","Dan Beard - Cincinnati, OH (438)","Bay-Lakes - Appleton, WI (635)","Laurel Highlands - Pittsburgh, PA (527)","Spirit of Adventure - Boston, MA (227)","Marc Ryan"]
[3,4,"441","Simon Kenton","Columbus","OH","Selected","Bay-Lakes - Appleton, WI (635)","Mid-America - Omaha, NE (326)","Dan Beard - Cincinnati, OH (438)","Pathway to Adventure - Chicago, IL (456)","Three Fires - St. Charles, IL (127)","Jeff Moe"]
[3,6,"444","Miami Valley","Dayton","OH","Selected","Black Swamp Area - Findlay, OH (449)","Sagamore - Kokomo, IN (162)","Buckeye - Canton, OH (436)","Allohak - Parkersburg, WV (618)","Blue Grass - Lexington, KY (204)","Jeffrey Schiavone"]
[3,6,"449","Black Swamp Area","Findlay","OH","Selected","Buckeye - Canton, OH (436)","Erie Shores - Toledo, OH (460)","Anthony Wayne Area - Fort Wayne, IN (157)","Sagamore - Kokomo, IN (162)","Miami Valley - Dayton, OH (444)","Marc Kogan"]
[3,7,"456","Pathway to Adventure","Chicago","IL","Selected","Crossroads of America - Indianapolis, IN (160)","Great Lakes - Detroit, MI (272)","Heart of America - Kansas City, MO (307)","Laurel Highlands - Pittsburgh, PA (527)","Lake Erie - Cleveland, OH (440)","Aaron Gach"]
[3,6,"460","Erie Shores","Toledo","OH","Selected","Black Swamp Area - Findlay, OH (449)","Simon Kenton - Columbus, OH (441)","Three Fires - St. Charles, IL (127)","W.D. Boyce - Peoria, IL (138)","Three Harbors - Milwaukee, WI (636)","Ed Caldwell"]
[3,4,"467","Muskingum Valley","Zanesville","OH","Selected","Allohak - Parkersburg, WV (618)","Ohio River Valley - Wheeling, WV (619)","Tecumseh - Springfield, OH (439)","Simon Kenton - Columbus, OH (441)","Great Trail - Akron, OH (433)","Ed Mulholland"]
[2,8,"468","Arbuckle Area","Ardmore","OK","Selected","Cherokee Area - Bartlesville, OK (469)","De Soto Area - El Dorado, AR (013)","Choctaw Area - Meridian, MS (302)","Texas Trails - Abilene, TX (561)","Santa Fe Trail - Garden City, KS (194)","Brett Matherly"]
[2,8,"469","Cherokee Area","Bartlesville","OK","Selected","Arbuckle Area - Ardmore, OK (468)","Cimarron - Enid, OK (474)","De Soto Area - El Dorado, AR (013)","Westark Area - Fort Smith, AR (016)","Northwest Texas - Wichita Falls, TX (587)","David G. Richardson"]
[2,8,"474","Cimarron","Enid","OK","Selected","Northwest Texas - Wichita Falls, TX (587)","Arbuckle Area - Ardmore, OK (468)","Cherokee Area - Bartlesville, OK (469)","Santa Fe Trail - Garden City, KS (194)","De Soto Area - El Dorado, AR (013)","Bobby Schultz"]
[2,8,"480","Last Frontier","Oklahoma City","OK","Selected","Capitol Area - Austin, TX (564)","Indian Nations - Tulsa, OK (488)","Great Smoky Mountain - Knoxville, TN (557)","","","Jeff Woolsey"]
[2,8,"488","Indian Nations","Tulsa","OK","Selected","Capitol Area - Austin, TX (564)","Northeast Georgia - Jefferson, GA (101)","Grand Canyon - Phoenix, AZ (010)","Greater Alabama - Birmingham, AL (001)","Lincoln Heritage - Louisville, KY (205)","Bill Haines"]
[4,1,"492","Cascade Pacific","Portland","OR","Selected","Chief Seattle - Seattle, WA (609)","Denver Area - Denver, CO (061)","Greater Los Angeles Area - Los Angeles, CA (033)","San Diego-Imperial - San Diego, CA (049)","Central Florida - Orlando, FL (083)","Matt Devore"]
[1,4,"497","Juniata Valley","Reedsville","PA","Selected","Muskingum Valley - Zanesville, OH (467)","Mountaineer Area - Fairmont, WV (615)","Prairielands - Champaign, IL (117)","Mason-Dixon - Hagerstown, MD (221)","Susquehanna - Williamsport, PA (533)","Jim Kennedy"]
[1,4,"500","Moraine Trails","Butler","PA","Selected","Bucktail - DuBois, PA (509)","French Creek - Erie, PA (532)","Westmoreland-Fayette - Greensburg, PA (512)","Juniata Valley - Reedsville, PA (497)","Susquehanna - Williamsport, PA (533)","Ray Tennent"]
[1,5,"501","Northeastern Pennsylvania","Moosic","PA","Selected","Baden-Powell - Binghamton, NY (368)","Pennsylvania Dutch - Lancaster, PA (524)","Monmouth - Morganville, NJ (347)","Westmoreland-Fayette - Greensburg, PA (512)","Leatherstocking - Utica, NY (400)","Mark Barbernitz"]
[1,5,"502","Minsi Trails","Lehigh Valley","PA","Selected","Baltimore Area - Baltimore, MD (220)","Seneca Waterways - Rochester, NY (397)","Cradle of Liberty - Philadelphia, PA (525)","Patriots' Path - Cedar Knolls, NJ (358)","Laurel Highlands - Pittsburgh, PA (527)","Karen Scherer"]
[1,4,"504","Columbia-Montour","Bloomsburg","PA","Selected","Allegheny Highlands - Falconer, NY (382)","Green Mountain - Waterbury, VT (592)","Juniata Valley - Reedsville, PA (497)","Katahdin Area - Bangor, ME (216)","Ohio River Valley - Wheeling, WV (619)","Paul B Knox"]
[1,4,"509","Bucktail","DuBois","PA","Selected","Allegheny Highlands - Falconer, NY (382)","Juniata Valley - Reedsville, PA (497)","French Creek - Erie, PA (532)","Susquehanna - Williamsport, PA (533)","Moraine Trails - Butler, PA (500)","Gregg Bennett"]
[1,4,"512","Westmoreland-Fayette","Greensburg","PA","Selected","French Creek - Erie, PA (532)","Ozark Trails - Springfield, MO (306)","Northeastern Pennsylvania - Moosic, PA (501)","Colonial Virginia - Newport News, VA (595)","Miami Valley - Dayton, OH (444)","Martin Barbie"]
[1,6,"524","Pennsylvania Dutch","Lancaster","PA","Selected","Chester County - West Chester, PA (539)","Minsi Trails - Lehigh Valley, PA (502)","Baden-Powell - Binghamton, NY (368)","New Birth of Freedom - Mechanicsburg, PA (544)","Hawk Mountain - Reading, PA (528)","Matthew S. Adams"]
[1,5,"525","Cradle of Liberty","Philadelphia","PA","Selected","Baltimore Area - Baltimore, MD (220)","Laurel Highlands - Pittsburgh, PA (527)","Del-Mar-Va - Wilmington, DE (081)","Spirit of Adventure - Boston, MA (227)","Narragansett - Providence, RI (546)","Veronica Coyle"]
[1,4,"527","Laurel Highlands","Pittsburgh","PA","Selected","Cradle of Liberty - Philadelphia, PA (525)","Baltimore Area - Baltimore, MD (220)","Seneca Waterways - Rochester, NY (397)","Connecticut Rivers - East Hartford, CT (066)","Narragansett - Providence, RI (546)","Sharon M. Moulds"]
[1,6,"528","Hawk Mountain","Reading","PA","Selected","Pennsylvania Dutch - Lancaster, PA (524)","Old North State - Greensboro, NC (070)","Twin Rivers - Albany, NY (364)","Chester County - West Chester, PA (539)","Washington Crossing - Doylestown, PA (777)","James Milham"]
[1,4,"532","French Creek","Erie","PA","Selected","Bucktail - DuBois, PA (509)","Juniata Valley - Reedsville, PA (497)","Moraine Trails - Butler, PA (500)","Westmoreland-Fayette - Greensburg, PA (512)","Allegheny Highlands - Falconer, NY (382)","Duane Havard"]
[1,4,"533","Susquehanna","Williamsport","PA","Selected","Columbia-Montour - Bloomsburg, PA (504)","Juniata Valley - Reedsville, PA (497)","Bucktail - DuBois, PA (509)","French Creek - Erie, PA (532)","Chief Cornplanter - Warren, PA (538)","Jon Brennan"]
[1,6,"539","Chester County","West Chester","PA","Selected","Pennsylvania Dutch - Lancaster, PA (524)","Hawk Mountain - Reading, PA (528)","Washington Crossing - Doylestown, PA (777)","Westchester-Putnam - Hawthorne, NY (388)","Del-Mar-Va - Wilmington, DE (081)","Charlie Rogers"]
[1,1,"546","Narragansett","Providence","RI","Selected","Daniel Webster - Manchester, NH (330)","Patriots' Path - Cedar Knolls, NJ (358)","Connecticut Rivers - East Hartford, CT (066)","Baltimore Area - Baltimore, MD (220)","Simon Kenton - Columbus, OH (441)","Tim McCandless"]
[2,5,"549","Palmetto","Spartanburg","SC","Selected","Daniel Boone - Asheville, NC (414)","Indian Waters - Columbia, SC (553)","Central North Carolina - Albemarle, NC (416)","Pee Dee Area - Florence, SC (552)","","Greg Leitch"]
[2,5,"551","Blue Ridge","Greenville","SC","Selected","Heart of Virginia - Richmond, VA (602)","Piedmont - Gastonia, NC (420)","Old North State - Greensboro, NC (070)","Cherokee Area - Chattanooga, TN (556)","Del-Mar-Va - Wilmington, DE (081)","Mike Butler"]
[2,5,"552","Pee Dee Area","Florence","SC","Selected","Georgia-Carolina - Augusta, GA (093)","Coastal Carolina - Charleston, SC (550)","Indian Waters - Columbia, SC (553)","Piedmont - Gastonia, NC (420)","Blue Ridge - Greenville, SC (551)","Michael Hesbach"]
[2,5,"553","Indian Waters","Columbia","SC","Selected","Coastal Carolina - Charleston, SC (550)","Palmetto - Spartanburg, SC (549)","","","","Douglas W. Stone"]
[2,6,"556","Cherokee Area","Chattanooga","TN","Selected","Chattahoochee - Columbus, GA (091)","Sequoyah - Johnson City, TN (713)","Central Georgia - Macon, GA (096)","Coastal Georgia - Savannah, GA (099)","Mobile Area - Mobile, AL (004)","Scott Fosse"]
[2,6,"557","Great Smoky Mountain","Knoxville","TN","Selected","Daniel Boone - Asheville, NC (414)","Piedmont - Gastonia, NC (420)","Blue Ridge - Greenville, SC (551)","Chickasaw - Memphis, TN (558)","Heart of Virginia - Richmond, VA (602)","David Williams"]
[2,6,"558","Chickasaw","Memphis","TN","Selected","Cherokee Area - Chattanooga, TN (556)","Lincoln Heritage - Louisville, KY (205)","Mecklenburg County - Charlotte, NC (415)","Quapaw Area - Little Rock, AR (018)","Great Smoky Mountain - Knoxville, TN (557)","Richard L. Fisher"]
[2,6,"559","West Tennessee Area","Jackson","TN","Selected","Cherokee Area - Chattanooga, TN (556)","Chickasaw - Memphis, TN (558)","Blue Grass - Lexington, KY (204)","Yocona Area - Tupelo, MS (748)","Sequoyah - Johnson City, TN (713)","Adrian Hackett"]
[2,6,"560","Middle Tennessee","Nashville","TN","Selected","Crossroads of America - Indianapolis, IN (160)","Lincoln Heritage - Louisville, KY (205)","Northeast Georgia - Jefferson, GA (101)","Great Smoky Mountain - Knoxville, TN (557)","Chickasaw - Memphis, TN (558)","Vance Lackey"]
[2,2,"561","Texas Trails","Abilene","TX","Selected","Andrew Jackson - Jackson, MS (303)","Buffalo Trail - Midland, TX (567)","Conquistador - Roswell, NM (413)","South Plains - Lubbock, TX (694)","South Texas - Corpus Christi, TX (577)","Mark Conrad"]
[2,2,"562","Golden Spread","Amarillo","TX","Selected","East Texas Area - Tyler, TX (585)","South Plains - Lubbock, TX (694)","Great Southwest - Albuquerque, NM (412)","South Texas - Corpus Christi, TX (577)","Caddo Area - Texarkana, TX (584)","Phillip Shipley"]
[2,3,"564","Capitol Area","Austin","TX","Selected","Alamo Area - San Antonio, TX (583)","Last Frontier - Oklahoma City, OK (480)","Central Florida - Orlando, FL (083)","Longhorn - Fort Worth, TX (662)","","Jon C Yates"]
[2,3,"567","Buffalo Trail","Midland","TX","Selected","Conquistador - Roswell, NM (413)","Yucca - El Paso, TX (573)","South Plains - Lubbock, TX (694)","Texas Southwest - San Angelo, TX (741)","Texas Trails - Abilene, TX (561)","David Chapman"]
[2,2,"571","Circle Ten","Dallas","TX","Selected","Sam Houston Area - Houston, TX (576)","Atlanta Area - Atlanta, GA (092)","National Capital Area - Bethesda, MD (082)","Northern Star - St. Paul, MN (250)","Heart of America - Kansas City, MO (307)","sam thompson"]
[4,6,"573","Yucca","El Paso","TX","Selected","Catalina - Tucson, AZ (011)","Buffalo Trail - Midland, TX (567)","Great Southwest - Albuquerque, NM (412)","","","Mario Perez"]
[2,3,"574","Bay Area","Galveston","TX","Selected","Three Rivers - Beaumont, TX (578)","Rio Grande - Harlingen, TX (775)","Southeast Louisiana - New Orleans, LA (214)","South Texas - Corpus Christi, TX (577)","Andrew Jackson - Jackson, MS (303)","Charlie Tinsley"]
[2,3,"577","South Texas","Corpus Christi","TX","Selected","East Texas Area - Tyler, TX (585)","Bay Area - Galveston, TX (574)","Rio Grande - Harlingen, TX (775)","Buffalo Trail - Midland, TX (567)","Three Rivers - Beaumont, TX (578)","martin sepulveda"]
[2,2,"585","East Texas Area","Tyler","TX","Selected","Golden Spread - Amarillo, TX (562)","Norwela - Shreveport, LA (215)","Louisiana Purchase - Monroe, LA (213)","Bay Area - Galveston, TX (574)","Caddo Area - Texarkana, TX (584)","Daniel Anderson"]
[2,2,"587","Northwest Texas","Wichita Falls","TX","Selected","De Soto Area - El Dorado, AR (013)","Arbuckle Area - Ardmore, OK (468)","Texas Southwest - San Angelo, TX (741)","Caddo Area - Texarkana, TX (584)","Louisiana Purchase - Monroe, LA (213)","Greg Brownfield"]
[4,2,"590","Great Salt Lake","Salt Lake City","UT","Selected","Trapper Trails - Ogden, UT (589)","Utah National Parks - Orem, UT (591)","Las Vegas Area - Las Vegas, NV (328)","Grand Teton - Idaho Falls, ID (107)","Grand Canyon - Phoenix, AZ (010)","Mark Griffin"]
[4,2,"591","Utah National Parks","Orem","UT","Selected","Great Salt Lake - Salt Lake City, UT (590)","Trapper Trails - Ogden, UT (589)","","","","David Pack"]
[2,7,"595","Colonial Virginia","Newport News","VA","Selected","Tuscarora - Goldsboro, NC (424)","Stonewall Jackson Area - Waynesboro, VA (763)","Shenandoah Area - Winchester, VA (598)","","","Scott Rehrauer"]
[2,7,"598","Shenandoah Area","Winchester","VA","Selected","Connecticut Rivers - East Hartford, CT (066)","Stonewall Jackson Area - Waynesboro, VA (763)","Black Warrior - Tuscaloosa, AL (006)","Buckskin - Charleston, WV (617)","Tuscarora - Goldsboro, NC (424)","Stuart A. Williams"]
[2,7,"599","Blue Ridge Mountains","Roanoke","VA","Selected","Stonewall Jackson Area - Waynesboro, VA (763)","Great Smoky Mountain - Knoxville, TN (557)","Old Hickory - Winston-Salem, NC (427)","","","Dan Johnson"]
[4,1,"604","Blue Mountain","Kennewick","WA","Selected","Grand Columbia - Yakima, WA (614)","Mount Baker - Everett, WA (606)","Crater Lake - Central Point, OR (491)","Midnight Sun - Fairbanks, AK (696)","Northeast Iowa - Dubuque, IA (178)","Brett Bybee"]
[4,1,"606","Mount Baker","Everett","WA","Selected","Crater Lake - Central Point, OR (491)","Inland Northwest - Spokane, WA (611)","Oregon Trail - Eugene, OR (697)","Pacific Harbors - Tacoma, WA (612)","","Duane Rhodes"]
[4,1,"610","Great Alaska","Anchorage","AK","Selected","Inland Northwest - Spokane, WA (611)","Mount Baker - Everett, WA (606)","Crater Lake - Central Point, OR (491)","","","Clifford Crismore"]
[4,1,"612","Pacific Harbors","Tacoma","WA","Selected","Mount Baker - Everett, WA (606)","Inland Northwest - Spokane, WA (611)","Crater Lake - Central Point, OR (491)","","","Ralph Voelker"]
[4,1,"614","Grand Columbia","Yakima","WA","Selected","Blue Mountain - Kennewick, WA (604)","Inland Northwest - Spokane, WA (611)","Mason-Dixon - Hagerstown, MD (221)","Georgia-Carolina - Augusta, GA (093)","Pacific Harbors - Tacoma, WA (612)","Barry McDonald"]
[3,4,"617","Buckskin","Charleston","WV","Selected","Blue Grass - Lexington, KY (204)","Sequoyah - Johnson City, TN (713)","Cape Fear - Wilmington, NC (425)","Palmetto - Spartanburg, SC (549)","Indian Waters - Columbia, SC (553)","Jeffrey L. Purdy"]
[3,7,"620","Glacier's Edge","Madison","WI","Selected","Potawatomi Area - Waukesha, WI (651)","Rockford, IL (660)/Wichita, KS (198)","Appleton, WI (635)/Eau Claire, WI (637)","Samoset - Weston, WI (627)","Three Harbors - Milwaukee, WI (636)","Alex Tyms"]
[3,1,"624","Gateway Area","La Crosse","WI","Selected","Gamehaven - Rochester, MN (299)","Twin Valley - Mankato, MN (283)","Samoset - Weston, WI (627)","Chippewa Valley - Eau Claire, WI (637)","Voyageurs Area - Hermantown, MN (286)","Sean Henneman"]
[3,1,"627","Samoset","Weston","WI","Selected","Chippewa Valley - Eau Claire, WI (637)","Glacier's Edge - Madison, WI (620)","Central Minnesota - Sartell, MN (296)","Blackhawk Area - Rockford, IL (660)","Hawkeye Area - Cedar Rapids, IA (172)","Jeff Ottosen"]
[3,1,"635","Bay-Lakes","Appleton","WI","Selected","Northern Star - St. Paul, MN (250)","Mid-America - Omaha, NE (326)","Pathway to Adventure - Chicago, IL (456)","Lake Erie - Cleveland, OH (440)","Three Harbors - Milwaukee, WI (636)","Jason Wolf"]
[3,7,"636","Three Harbors","Milwaukee","WI","Selected","Potawatomi Area - Waukesha, WI (651)","Northeast Illinois - Highland Park, IL (129)","Pathway to Adventure - Chicago, IL (456)","Bay-Lakes - Appleton, WI (635)","Lake Erie - Cleveland, OH (440)","Andrew Hardin"]
[3,1,"637","Chippewa Valley","Eau Claire","WI","Selected","Samoset - Weston, WI (627)","Voyageurs Area - Hermantown, MN (286)","Gateway Area - La Crosse, WI (624)","Gamehaven - Rochester, MN (299)","Glacier's Edge - Madison, WI (620)","Joe Carlson"]
[4,2,"638","Greater Wyoming","Casper","WY","Selected","Western Colorado - Grand Junction, CO (064)","Snake River - Twin Falls, ID (111)","Rocky Mountain - Pueblo, CO (063)","Voyageurs Area - Hermantown, MN (286)","Alameda - Alameda, CA (022)","Brad Bodoh"]
[3,7,"651","Potawatomi Area","Waukesha","WI","Selected","Gateway Area - La Crosse, WI (624)","Chippewa Valley - Eau Claire, WI (637)","Samoset - Weston, WI (627)","Glacier's Edge - Madison, WI (620)","Black Swamp Area - Findlay, OH (449)","Paul Schwartz"]
[3,5,"653","Great Rivers","Columbia","MO","Selected","Overland Trails - Grand Island, NE (322)","Mississippi Valley - Quincy, IL (141)","Ozark Trails - Springfield, MO (306)","Cornhusker - Lincoln, NE (324)","Coronado Area - Salina, KS (192)","Doug Callahan"]
[2,2,"662","Longhorn","Fort Worth","TX","Selected","Alamo Area - San Antonio, TX (583)","Capitol Area - Austin, TX (564)","Dan Beard - Cincinnati, OH (438)","Bay-Lakes - Appleton, WI (635)","Connecticut Rivers - East Hartford, CT (066)","John Coyle"]
[1,5,"690","Garden State","Westampton","NJ","Selected","Washington Crossing - Doylestown, PA (777)","Monmouth - Morganville, NJ (347)","Jersey Shore - Toms River, NJ (341)","Twin Rivers - Albany, NY (364)","New Birth of Freedom - Mechanicsburg, PA (544)","Kevin Bishop"]
[2,1,"691","Pushmataha Area","Columbus","MS","Selected","Choctaw Area - Meridian, MS (302)","Yocona Area - Tupelo, MS (748)","Black Warrior - Tuscaloosa, AL (006)","Alabama-Florida - Dothan, AL (003)","Calcasieu Area - Lake Charles, LA (209)","Jeremy Whitmore"]
[4,2,"695","Black Hills Area","Rapid City","SD","Selected","Greater Wyoming - Casper, WY (638)","Western Colorado - Grand Junction, CO (064)","Voyageurs Area - Hermantown, MN (286)","Conquistador - Roswell, NM (413)","Alameda - Alameda, CA (022)","Timothy P. Bouchard"]
[4,1,"696","Midnight Sun","Fairbanks","AK","Selected","Great Alaska - Anchorage, AK (610)","Grand Columbia - Yakima, WA (614)","Greater Wyoming - Casper, WY (638)","Blue Mountain - Kennewick, WA (604)","Columbia-Montour - Bloomsburg, PA (504)","Stephen Smith"]
[4,1,"697","Oregon Trail","Eugene","OR","Selected","Mount Baker - Everett, WA (606)","Crater Lake - Central Point, OR (491)","Nevada Area - Reno, NV (329)","Greater Yosemite - Modesto, CA (059)","Rocky Mountain - Pueblo, CO (063)","Scott Impecoven"]
[3,7,"702","Rainbow","Morris","IL","Selected","Potawatomi Area - Waukesha, WI (651)","Chippewa Valley - Eau Claire, WI (637)","Glacier's Edge - Madison, WI (620)","Sioux - Sioux Falls, SD (733)","Hawkeye Area - Cedar Rapids, IA (172)","Ted Karns"]
[2,6,"713","Sequoyah","Johnson City","TN","Selected","Blue Grass - Lexington, KY (204)","Cherokee Area - Chattanooga, TN (556)","Colonial Virginia - Newport News, VA (595)","Blue Ridge Mountains - Roanoke, VA (599)","Daniel Boone - Asheville, NC (414)","Royce Fox"]
[3,1,"733","Sioux","Sioux Falls","SD","Selected","Central Minnesota - Sartell, MN (296)","Northern Lights - Fargo, ND (429)","Mid-America - Omaha, NE (326)","Black Hills Area - Rapid City, SD (695)","Overland Trails - Grand Island, NE (322)","Thomas Smotherman"]
[2,3,"741","Texas Southwest","San Angelo","TX","Selected","Texas Trails - Abilene, TX (561)","Northwest Texas - Wichita Falls, TX (587)","Rio Grande - Harlingen, TX (775)","Yucca - El Paso, TX (573)","South Texas - Corpus Christi, TX (577)","Devin Koehler"]
[2,6,"748","Yocona Area","Tupelo","MS","Selected","Choctaw Area - Meridian, MS (302)","Suwannee River Area - Tallahassee, FL (664)","Pushmataha Area - Columbus, MS (691)","Louisiana Purchase - Monroe, LA (213)","Alabama-Florida - Dothan, AL (003)","Rick Chapman"]
[1,5,"777","Washington Crossing","Doylestown","PA","Selected","Minsi Trails - Lehigh Valley, PA (502)","Monmouth - Morganville, NJ (347)","Chester County - West Chester, PA (539)","Garden State - Westampton, NJ (690)","Cradle of Liberty - Philadelphia, PA (525)","Magne Gundersen"]
[3,2,"783","Southern Shores","Ypsilanti","MI","Selected","Sioux - Sioux Falls, SD (733)","Theodore Roosevelt - Massapequa, NY (386)","Miami Valley - Dayton, OH (444)","Jayhawk Area - Topeka, KS (197)","","Melissa Stricherz"]
[1,5,"802","Transatlantic","Brussels","Belgium","Selected","Far East - Okinawa, Japan (803)","Puerto Rico - Guaynabo, PR (661)","Northeastern Pennsylvania - Moosic, PA (501)","Jersey Shore - Toms River, NJ (341)","Five Rivers - Horseheads, NY (375)","Vince Cozzone"]

{"sheet":"Strategic Plans","index":2,"n_rows":266,"n_cols":9,"rows_kept":266,"cut":false,"hidden":true,"merged":[]}
["Council","StrategicPlanExpire",null,null,"Select your council"]
["001 Greater Alabama","2021-12-31",{"$f":"_xlfn.CONCAT(A2) & \" - \" & TEXT(B2,\"mm/d/yyyy\")","v":"001 Greater Alabama - 12/31/2021"},null,"001 Greater Alabama - 12/31/2021",null,null,{"$f":"Data!T2","v":"001 Greater Alabama"},{"$f":"Data!U2","v":"2021-12-31"}]
["003 Alabama-Florida","2019-12-31",{"$f":"_xlfn.CONCAT(A3) & \" - \" & TEXT(B3,\"mm/d/yyyy\")","v":"003 Alabama-Florida - 12/31/2019"},null,"003 Alabama-Florida - 12/31/2019",null,null,{"$f":"Data!T3","v":"003 Alabama-Florida"},{"$f":"Data!U3","v":"2019-12-31"}]
["004 Mobile Area","Current plan not on file",{"$f":"_xlfn.CONCAT(A4) & \" - \" & TEXT(B4,\"mm/d/yyyy\")","v":"004 Mobile Area - Current plan not on file"},null,"004 Mobile Area - Current plan not on file",null,null,{"$f":"Data!T4","v":"004 Mobile Area"},{"$f":"Data!U4","v":"00:00:00"}]
["005 Tukabatchee Area","Current plan not on file","005 Tukabatchee Area - Current plan not on file",null,"005 Tukabatchee Area - Current plan not on file",null,null,{"$f":"Data!T5","v":"005 Tukabatchee Area"},{"$f":"Data!U5","v":"00:00:00"}]
["006 Black Warrior","2020-12-31","006 Black Warrior - 12/31/2020",null,"006 Black Warrior - 12/31/2020",null,null,{"$f":"Data!T6","v":"006 Black Warrior"},{"$f":"Data!U6","v":"2020-12-31"}]
["010 Grand Canyon","2019-12-31","010 Grand Canyon - 12/31/2019",null,"010 Grand Canyon - 12/31/2019",null,null,{"$f":"Data!T7","v":"010 Grand Canyon"},{"$f":"Data!U7","v":"2019-12-31"}]
["011 Catalina","2021-12-31","011 Catalina - 12/31/2021",null,"011 Catalina - 12/31/2021",null,null,{"$f":"Data!T8","v":"011 Catalina"},{"$f":"Data!U8","v":"2021-12-31"}]
["013 De Soto Area","2020-12-31","013 De Soto Area - 12/31/2020",null,"013 De Soto Area - 12/31/2020",null,null,{"$f":"Data!T9","v":"013 De Soto Area"},{"$f":"Data!U9","v":"2020-12-31"}]
["016 Westark Area","Current plan not on file","016 Westark Area - Current plan not on file",null,"016 Westark Area - Current plan not on file",null,null,{"$f":"Data!T10","v":"016 Westark Area"},{"$f":"Data!U10","v":"00:00:00"}]
["018 Quapaw Area","2023-12-31","018 Quapaw Area - 12/31/2023",null,"018 Quapaw Area - 12/31/2023",null,null,{"$f":"Data!T11","v":"018 Quapaw Area"},{"$f":"Data!U11","v":"2023-12-31"}]
["022 Alameda","2021-12-31","022 Alameda - 12/31/2021",null,"022 Alameda - 12/31/2021",null,null,{"$f":"Data!T12","v":"022 Alameda"},{"$f":"Data!U12","v":"2021-12-31"}]
["023 Mount Diablo Silverado","2020-12-31","023 Mount Diablo Silverado - 12/31/2020",null,"023 Mount Diablo Silverado - 12/31/2020",null,null,{"$f":"Data!T13","v":"023 Mount Diablo Silverado"},{"$f":"Data!U13","v":"2020-12-31"}]
["027 Sequoia","2022-12-31","027 Sequoia - 12/31/2022",null,"027 Sequoia - 12/31/2022",null,null,{"$f":"Data!T14","v":"027 Sequoia"},{"$f":"Data!U14","v":"2022-12-31"}]
["028 San Francisco Bay Area","2018-12-31","028 San Francisco Bay Area - 12/31/2018",null,"028 San Francisco Bay Area - 12/31/2018",null,null,{"$f":"Data!T15","v":"028 San Francisco Bay Area"},{"$f":"Data!U15","v":"2018-12-31"}]
["030 Southern Sierra","2020-12-31","030 Southern Sierra - 12/31/2020",null,"030 Southern Sierra - 12/31/2020",null,null,{"$f":"Data!T16","v":"030 Southern Sierra"},{"$f":"Data!U16","v":"2020-12-31"}]
["031 Pacific Skyline","2019-12-31","031 Pacific Skyline - 12/31/2019",null,"031 Pacific Skyline - 12/31/2019",null,null,{"$f":"Data!T17","v":"031 Pacific Skyline"},{"$f":"Data!U17","v":"2019-12-31"}]
["032 Long Beach Area","2018-12-31","032 Long Beach Area - 12/31/2018",null,"032 Long Beach Area - 12/31/2018",null,null,{"$f":"Data!T18","v":"032 Long Beach Area"},{"$f":"Data!U18","v":"2018-12-31"}]
["033 Greater Los Angeles Area","2019-12-31","033 Greater Los Angeles Area - 12/31/2019",null,"033 Greater Los Angeles Area - 12/31/2019",null,null,{"$f":"Data!T19","v":"033 Greater Los Angeles Area"},{"$f":"Data!U19","v":"2019-12-31"}]
["035 Marin","2020-12-31","035 Marin - 12/31/2020",null,"035 Marin - 12/31/2020",null,null,{"$f":"Data!T20","v":"035 Marin"},{"$f":"Data!U20","v":"2020-12-31"}]
["039 Orange County","2018-12-31","039 Orange County - 12/31/2018",null,"039 Orange County - 12/31/2018",null,null,{"$f":"Data!T21","v":"039 Orange County"},{"$f":"Data!U21","v":"2018-12-31"}]
["041 Redwood Empire","2018-12-31","041 Redwood Empire - 12/31/2018",null,"041 Redwood Empire - 12/31/2018",null,null,{"$f":"Data!T22","v":"041 Redwood Empire"},{"$f":"Data!U22","v":"2018-12-31"}]
["042 Piedmont","2019-12-31","042 Piedmont - 12/31/2019",null,"042 Piedmont - 12/31/2019",null,null,{"$f":"Data!T23","v":"042 Piedmont"},{"$f":"Data!U23","v":"2019-12-31"}]
["045 California Inland Empire","2018-12-31","045 California Inland Empire - 12/31/2018",null,"045 California Inland Empire - 12/31/2018",null,null,{"$f":"Data!T24","v":"045 California Inland Empire"},{"$f":"Data!U24","v":"2018-12-31"}]
["047 Golden Empire","2019-12-31","047 Golden Empire - 12/31/2019",null,"047 Golden Empire - 12/31/2019",null,null,{"$f":"Data!T25","v":"047 Golden Empire"},{"$f":"Data!U25","v":"2019-12-31"}]
["049 San Diego-Imperial","2020-12-31","049 San Diego-Imperial - 12/31/2020",null,"049 San Diego-Imperial - 12/31/2020",null,null,{"$f":"Data!T26","v":"049 San Diego-Imperial"},{"$f":"Data!U26","v":"2020-12-31"}]
["051 Western Los Angeles County","2019-12-31","051 Western Los Angeles County - 12/31/2019",null,"051 Western Los Angeles County - 12/31/2019",null,null,{"$f":"Data!T27","v":"051 Western Los Angeles County"},{"$f":"Data!U27","v":"2019-12-31"}]
["053 Los Padres","2018-12-31","053 Los Padres - 12/31/2018",null,"053 Los Padres - 12/31/2018",null,null,{"$f":"Data!T28","v":"053 Los Padres"},{"$f":"Data!U28","v":"2018-12-31"}]
["055 Silicon Valley Monterey Bay","2018-12-31","055 Silicon Valley Monterey Bay - 12/31/2018",null,"055 Silicon Valley Monterey Bay - 12/31/2018",null,null,{"$f":"Data!T29","v":"055 Silicon Valley Monterey Bay"},{"$f":"Data!U29","v":"2018-12-31"}]
["057 Ventura County","2021-12-31","057 Ventura County - 12/31/2021",null,"057 Ventura County - 12/31/2021",null,null,{"$f":"Data!T30","v":"057 Ventura County"},{"$f":"Data!U30","v":"2021-12-31"}]
["058 Verdugo Hills","2020-12-31","058 Verdugo Hills - 12/31/2020",null,"058 Verdugo Hills - 12/31/2020",null,null,{"$f":"Data!T31","v":"058 Verdugo Hills"},{"$f":"Data!U31","v":"2020-12-31"}]
["059 Greater Yosemite","2020-12-31","059 Greater Yosemite - 12/31/2020",null,"059 Greater Yosemite - 12/31/2020",null,null,{"$f":"Data!T32","v":"059 Greater Yosemite"},{"$f":"Data!U32","v":"2020-12-31"}]
["060 Pikes Peak","2020-12-31","060 Pikes Peak - 12/31/2020",null,"060 Pikes Peak - 12/31/2020",null,null,{"$f":"Data!T33","v":"060 Pikes Peak"},{"$f":"Data!U33","v":"2020-12-31"}]
["061 Denver Area","2018-12-31","061 Denver Area - 12/31/2018",null,"061 Denver Area - 12/31/2018",null,null,{"$f":"Data!T34","v":"061 Denver Area"},{"$f":"Data!U34","v":"00:00:00"}]
["062 Longs Peak","2021-12-31","062 Longs Peak - 12/31/2021",null,"062 Longs Peak - 12/31/2021",null,null,{"$f":"Data!T35","v":"062 Longs Peak"},{"$f":"Data!U35","v":"2021-12-31"}]
["063 Rocky Mountain","2019-12-31","063 Rocky Mountain - 12/31/2019",null,"063 Rocky Mountain - 12/31/2019",null,null,{"$f":"Data!T36","v":"063 Rocky Mountain"},{"$f":"Data!U36","v":"2019-12-31"}]
["064 Western Colorado","2023-12-31","064 Western Colorado - 12/31/2023",null,"064 Western Colorado - 12/31/2023",null,null,{"$f":"Data!T37","v":"064 Western Colorado"},{"$f":"Data!U37","v":"00:00:00"}]
["066 Connecticut Rivers","2018-12-31","066 Connecticut Rivers - 12/31/2018",null,"066 Connecticut Rivers - 12/31/2018",null,null,{"$f":"Data!T38","v":"066 Connecticut Rivers"},{"$f":"Data!U38","v":"2018-12-31"}]
["067 Greenwich","2018-12-31","067 Greenwich - 12/31/2018",null,"067 Greenwich - 12/31/2018",null,null,{"$f":"Data!T39","v":"067 Greenwich"},{"$f":"Data!U39","v":"2018-12-31"}]
["069 Housatonic","2020-12-31","069 Housatonic - 12/31/2020",null,"069 Housatonic - 12/31/2020",null,null,{"$f":"Data!T40","v":"069 Housatonic"},{"$f":"Data!U40","v":"2020-12-31"}]
["070 Old North State","2021-12-31","070 Old North State - 12/31/2021",null,"070 Old North State - 12/31/2021",null,null,{"$f":"Data!T41","v":"070 Old North State"},{"$f":"Data!U41","v":"2021-12-31"}]
["072 Connecticut Yankee","2021-12-31","072 Connecticut Yankee - 12/31/2021",null,"072 Connecticut Yankee - 12/31/2021",null,null,{"$f":"Data!T42","v":"072 Connecticut Yankee"},{"$f":"Data!U42","v":"2021-12-31"}]
["081 Del-Mar-Va","2020-12-31","081 Del-Mar-Va - 12/31/2020",null,"081 Del-Mar-Va - 12/31/2020",null,null,{"$f":"Data!T43","v":"081 Del-Mar-Va"},{"$f":"Data!U43","v":"2020-12-31"}]
["082 National Capital Area","2022-12-31","082 National Capital Area - 12/31/2022",null,"082 National Capital Area - 12/31/2022",null,null,{"$f":"Data!T44","v":"082 National Capital Area"},{"$f":"Data!U44","v":"2022-12-31"}]
["083 Central Florida","2019-12-31","083 Central Florida - 12/31/2019",null,"083 Central Florida - 12/31/2019",null,null,{"$f":"Data!T45","v":"083 Central Florida"},{"$f":"Data!U45","v":"2019-12-31"}]
["084 South Florida","2018-12-31","084 South Florida - 12/31/2018",null,"084 South Florida - 12/31/2018",null,null,{"$f":"Data!T46","v":"084 South Florida"},{"$f":"Data!U46","v":"2018-12-31"}]
["085 Gulf Stream","2020-12-31","085 Gulf Stream - 12/31/2020",null,"085 Gulf Stream - 12/31/2020",null,null,{"$f":"Data!T47","v":"085 Gulf Stream"},{"$f":"Data!U47","v":"2020-12-31"}]
["087 North Florida","Current plan not on file","087 North Florida - Current plan not on file",null,"087 North Florida - Current plan not on file",null,null,{"$f":"Data!T48","v":"087 North Florida"},{"$f":"Data!U48","v":"00:00:00"}]
["088 Southwest Florida","2020-12-31","088 Southwest Florida - 12/31/2020",null,"088 Southwest Florida - 12/31/2020",null,null,{"$f":"Data!T49","v":"088 Southwest Florida"},{"$f":"Data!U49","v":"2020-12-31"}]
["089 Greater Tampa Bay Area","2018-12-31","089 Greater Tampa Bay Area - 12/31/2018",null,"089 Greater Tampa Bay Area - 12/31/2018",null,null,{"$f":"Data!T50","v":"089 Greater Tampa Bay Area"},{"$f":"Data!U50","v":"00:00:00"}]
["091 Chattahoochee","2020-12-31","091 Chattahoochee - 12/31/2020",null,"091 Chattahoochee - 12/31/2020",null,null,{"$f":"Data!T51","v":"091 Chattahoochee"},{"$f":"Data!U51","v":"2020-12-31"}]
["092 Atlanta Area","Current plan not on file","092 Atlanta Area - Current plan not on file",null,"092 Atlanta Area - Current plan not on file",null,null,{"$f":"Data!T52","v":"092 Atlanta Area"},{"$f":"Data!U52","v":"00:00:00"}]
["093 Georgia-Carolina","2021-12-31","093 Georgia-Carolina - 12/31/2021",null,"093 Georgia-Carolina - 12/31/2021",null,null,{"$f":"Data!T53","v":"093 Georgia-Carolina"},{"$f":"Data!U53","v":"00:00:00"}]
["095 Flint River","2020-12-31","095 Flint River - 12/31/2020",null,"095 Flint River - 12/31/2020",null,null,{"$f":"Data!T54","v":"095 Flint River"},{"$f":"Data!U54","v":"2020-12-31"}]
["096 Central Georgia","2022-12-31","096 Central Georgia - 12/31/2022",null,"096 Central Georgia - 12/31/2022",null,null,{"$f":"Data!T55","v":"096 Central Georgia"},{"$f":"Data!U55","v":"2019-12-31"}]
["098 South Georgia","2020-12-31","098 South Georgia - 12/31/2020",null,"098 South Georgia - 12/31/2020",null,null,{"$f":"Data!T56","v":"098 South Georgia"},{"$f":"Data!U56","v":"2020-12-31"}]
["099 Coastal Georgia","2019-12-31","099 Coastal Georgia - 12/31/2019",null,"099 Coastal Georgia - 12/31/2019",null,null,{"$f":"Data!T57","v":"099 Coastal Georgia"},{"$f":"Data!U57","v":"2019-12-31"}]
["100 Northwest Georgia","2020-12-31","100 Northwest Georgia - 12/31/2020",null,"100 Northwest Georgia - 12/31/2020",null,null,{"$f":"Data!T58","v":"100 Northwest Georgia"},{"$f":"Data!U58","v":"2020-12-31"}]
["101 Northeast Georgia","2021-12-31","101 Northeast Georgia - 12/31/2021",null,"101 Northeast Georgia - 12/31/2021",null,null,{"$f":"Data!T59","v":"101 Northeast Georgia"},{"$f":"Data!U59","v":"2021-12-31"}]
["102 Maui County","2020-12-31","102 Maui County - 12/31/2020",null,"102 Maui County - 12/31/2020",null,null,{"$f":"Data!T60","v":"102 Maui County"},{"$f":"Data!U60","v":"2020-12-31"}]
["104 Aloha","2020-12-31","104 Aloha - 12/31/2020",null,"104 Aloha - 12/31/2020",null,null,{"$f":"Data!T61","v":"104 Aloha"},{"$f":"Data!U61","v":"2020-12-31"}]
["106 Ore-Ida","2019-12-31","106 Ore-Ida - 12/31/2019",null,"106 Ore-Ida - 12/31/2019",null,null,{"$f":"Data!T62","v":"106 Ore-Ida"},{"$f":"Data!U62","v":"2019-12-31"}]
["107 Grand Teton","2018-12-31","107 Grand Teton - 12/31/2018",null,"107 Grand Teton - 12/31/2018",null,null,{"$f":"Data!T63","v":"107 Grand Teton"},{"$f":"Data!U63","v":"2018-12-31"}]
["111 Snake River","2022-12-31","111 Snake River - 12/31/2022",null,"111 Snake River - 12/31/2022",null,null,{"$f":"Data!T64","v":"111 Snake River"},{"$f":"Data!U64","v":"2022-12-31"}]
["117 Prairielands","2020-12-31","117 Prairielands - 12/31/2020",null,"117 Prairielands - 12/31/2020",null,null,{"$f":"Data!T65","v":"117 Prairielands"},{"$f":"Data!U65","v":"2020-12-31"}]
["121 Lincoln Trails","2018-12-31","121 Lincoln Trails - 12/31/2018",null,"121 Lincoln Trails - 12/31/2018",null,null,{"$f":"Data!T66","v":"121 Lincoln Trails"},{"$f":"Data!U66","v":"2018-12-31"}]
["127 Three Fires","2020-12-31","127 Three Fires - 12/31/2020",null,"127 Three Fires - 12/31/2020",null,null,{"$f":"Data!T67","v":"127 Three Fires"},{"$f":"Data!U67","v":"2020-12-31"}]
["129 Northeast Illinois","2020-12-31",{"$f":"_xlfn.CONCAT(A68) & \" - \" & TEXT(B68,\"mm/d/yyyy\")","v":"129 Northeast Illinois - 12/31/2020"},null,"129 Northeast Illinois - 12/31/2020",null,null,{"$f":"Data!T68","v":"129 Northeast Illinois"},{"$f":"Data!U68","v":"00:00:00"}]
["133 Illowa","2019-12-31","133 Illowa - 12/31/2019",null,"133 Illowa - 12/31/2019",null,null,{"$f":"Data!T69","v":"133 Illowa"},{"$f":"Data!U69","v":"2019-12-31"}]
["138 W.D. Boyce","2022-12-31","138 W.D. Boyce - 12/31/2022",null,"138 W.D. Boyce - 12/31/2022",null,null,{"$f":"Data!T70","v":"138 W.D. Boyce"},{"$f":"Data!U70","v":"2022-12-31"}]
["141 Mississippi Valley","2019-12-31","141 Mississippi Valley - 12/31/2019",null,"141 Mississippi Valley - 12/31/2019",null,null,{"$f":"Data!T71","v":"141 Mississippi Valley"},{"$f":"Data!U71","v":"2019-12-31"}]
["144 Abraham Lincoln","2018-12-31","144 Abraham Lincoln - 12/31/2018",null,"144 Abraham Lincoln - 12/31/2018",null,null,{"$f":"Data!T72","v":"144 Abraham Lincoln"},{"$f":"Data!U72","v":"2018-12-31"}]
["145 Hoosier Trails","2020-12-31","145 Hoosier Trails - 12/31/2020",null,"145 Hoosier Trails - 12/31/2020",null,null,{"$f":"Data!T73","v":"145 Hoosier Trails"},{"$f":"Data!U73","v":"2020-12-31"}]
["156 Buffalo Trace","2020-12-31","156 Buffalo Trace - 12/31/2020",null,"156 Buffalo Trace - 12/31/2020",null,null,{"$f":"Data!T74","v":"156 Buffalo Trace"},{"$f":"Data!U74","v":"2020-12-31"}]
["157 Anthony Wayne Area","2019-12-31","157 Anthony Wayne Area - 12/31/2019",null,"157 Anthony Wayne Area - 12/31/2019",null,null,{"$f":"Data!T75","v":"157 Anthony Wayne Area"},{"$f":"Data!U75","v":"2019-12-31"}]
["160 Crossroads of America","2018-12-31","160 Crossroads of America - 12/31/2018",null,"160 Crossroads of America - 12/31/2018",null,null,{"$f":"Data!T76","v":"160 Crossroads of America"},{"$f":"Data!U76","v":"2018-12-31"}]
["162 Sagamore","2021-12-31","162 Sagamore - 12/31/2021",null,"162 Sagamore - 12/31/2021",null,null,{"$f":"Data!T77","v":"162 Sagamore"},{"$f":"Data!U77","v":"2021-12-31"}]
["165 LaSalle","2018-12-31","165 LaSalle - 12/31/2018",null,"165 LaSalle - 12/31/2018",null,null,{"$f":"Data!T78","v":"165 LaSalle"},{"$f":"Data!U78","v":"2018-12-31"}]
["172 Hawkeye Area","2020-12-31","172 Hawkeye Area - 12/31/2020",null,"172 Hawkeye Area - 12/31/2020",null,null,{"$f":"Data!T79","v":"172 Hawkeye Area"},{"$f":"Data!U79","v":"2020-12-31"}]
["173 Winnebago","Current plan not on file","173 Winnebago - Current plan not on file",null,"173 Winnebago - Current plan not on file",null,null,{"$f":"Data!T80","v":"173 Winnebago"},{"$f":"Data!U80","v":"00:00:00"}]
["177 Mid-Iowa","2021-12-31","177 Mid-Iowa - 12/31/2021",null,"177 Mid-Iowa - 12/31/2021",null,null,{"$f":"Data!T81","v":"177 Mid-Iowa"},{"$f":"Data!U81","v":"2021-12-31"}]
["178 Northeast Iowa","2019-12-31","178 Northeast Iowa - 12/31/2019",null,"178 Northeast Iowa - 12/31/2019",null,null,{"$f":"Data!T82","v":"178 Northeast Iowa"},{"$f":"Data!U82","v":"2019-12-31"}]
["192 Coronado Area","2018-12-31","192 Coronado Area - 12/31/2018",null,"192 Coronado Area - 12/31/2018",null,null,{"$f":"Data!T83","v":"192 Coronado Area"},{"$f":"Data!U83","v":"2018-12-31"}]
["194 Santa Fe Trail","2020-12-31","194 Santa Fe Trail - 12/31/2020",null,"194 Santa Fe Trail - 12/31/2020",null,null,{"$f":"Data!T84","v":"194 Santa Fe Trail"},{"$f":"Data!U84","v":"2020-12-31"}]
["197 Jayhawk Area","2019-12-31","197 Jayhawk Area - 12/31/2019",null,"197 Jayhawk Area - 12/31/2019",null,null,{"$f":"Data!T85","v":"197 Jayhawk Area"},{"$f":"Data!U85","v":"2019-12-31"}]
["198 Quivira","2021-12-31","198 Quivira - 12/31/2021",null,"198 Quivira - 12/31/2021",null,null,{"$f":"Data!T86","v":"198 Quivira"},{"$f":"Data!U86","v":"2021-12-31"}]
["204 Blue Grass","2019-12-31","204 Blue Grass - 12/31/2019",null,"204 Blue Grass - 12/31/2019",null,null,{"$f":"Data!T87","v":"204 Blue Grass"},{"$f":"Data!U87","v":"2019-12-31"}]
["205 Lincoln Heritage","2018-12-31","205 Lincoln Heritage - 12/31/2018",null,"205 Lincoln Heritage - 12/31/2018",null,null,{"$f":"Data!T88","v":"205 Lincoln Heritage"},{"$f":"Data!U88","v":"2018-12-31"}]
["209 Calcasieu Area","Current plan not on file","209 Calcasieu Area - Current plan not on file",null,"209 Calcasieu Area - Current plan not on file",null,null,{"$f":"Data!T89","v":"209 Calcasieu Area"},{"$f":"Data!U89","v":"00:00:00"}]
["211 Istrouma Area","2020-12-31","211 Istrouma Area - 12/31/2020",null,"211 Istrouma Area - 12/31/2020",null,null,{"$f":"Data!T90","v":"211 Istrouma Area"},{"$f":"Data!U90","v":"2020-12-31"}]
["212 Evangeline Area","Current plan not on file","212 Evangeline Area - Current plan not on file",null,"212 Evangeline Area - Current plan not on file",null,null,{"$f":"Data!T91","v":"212 Evangeline Area"},{"$f":"Data!U91","v":"00:00:00"}]
["213 Louisiana Purchase","2019-12-31","213 Louisiana Purchase - 12/31/2019",null,"213 Louisiana Purchase - 12/31/2019",null,null,{"$f":"Data!T92","v":"213 Louisiana Purchase"},{"$f":"Data!U92","v":"2019-12-31"}]
["214 Southeast Louisiana","2019-12-31","214 Southeast Louisiana - 12/31/2019",null,"214 Southeast Louisiana - 12/31/2019",null,null,{"$f":"Data!T93","v":"214 Southeast Louisiana"},{"$f":"Data!U93","v":"00:00:00"}]
["215 Norwela","2020-12-31","215 Norwela - 12/31/2020",null,"215 Norwela - 12/31/2020",null,null,{"$f":"Data!T94","v":"215 Norwela"},{"$f":"Data!U94","v":"2020-12-31"}]
["216 Katahdin Area","Current plan not on file","216 Katahdin Area - Current plan not on file",null,"216 Katahdin Area - Current plan not on file",null,null,{"$f":"Data!T95","v":"216 Katahdin Area"},{"$f":"Data!U95","v":"00:00:00"}]
["218 Pine Tree","2021-12-31","218 Pine Tree - 12/31/2021",null,"218 Pine Tree - 12/31/2021",null,null,{"$f":"Data!T96","v":"218 Pine Tree"},{"$f":"Data!U96","v":"00:00:00"}]
["220 Baltimore Area","2021-12-31","220 Baltimore Area - 12/31/2021",null,"220 Baltimore Area - 12/31/2021",null,null,{"$f":"Data!T97","v":"220 Baltimore Area"},{"$f":"Data!U97","v":"2021-12-31"}]
["221 Mason-Dixon","2019-12-31","221 Mason-Dixon - 12/31/2019",null,"221 Mason-Dixon - 12/31/2019",null,null,{"$f":"Data!T98","v":"221 Mason-Dixon"},{"$f":"Data!U98","v":"2019-12-31"}]
["224 Cape Cod and Islands","2018-12-31","224 Cape Cod and Islands - 12/31/2018",null,"224 Cape Cod and Islands - 12/31/2018",null,null,{"$f":"Data!T99","v":"224 Cape Cod and Islands"},{"$f":"Data!U99","v":"2018-12-31"}]
["227 Spirit of Adventure","2021-12-31","227 Spirit of Adventure - 12/31/2021",null,"227 Spirit of Adventure - 12/31/2021",null,null,{"$f":"Data!T100","v":"227 Spirit of Adventure"},{"$f":"Data!U100","v":"2021-12-31"}]
["230 Nashua Valley","2021-12-31","230 Nashua Valley - 12/31/2021",null,"230 Nashua Valley - 12/31/2021",null,null,{"$f":"Data!T101","v":"230 Nashua Valley"},{"$f":"Data!U101","v":"2021-12-31"}]
["234 Western Massachusetts","2019-12-31","234 Western Massachusetts - 12/31/2019",null,"234 Western Massachusetts - 12/31/2019",null,null,{"$f":"Data!T102","v":"234 Western Massachusetts"},{"$f":"Data!U102","v":"2019-12-31"}]
["250 Northern Star","Current plan not on file","250 Northern Star - Current plan not on file",null,"250 Northern Star - Current plan not on file",null,null,{"$f":"Data!T103","v":"250 Northern Star"},{"$f":"Data!U103","v":"00:00:00"}]
["251 Mayflower","Current plan not on file","251 Mayflower - Current plan not on file",null,"251 Mayflower - Current plan not on file",null,null,{"$f":"Data!T104","v":"251 Mayflower"},{"$f":"Data!U104","v":"00:00:00"}]
["272 Great Lakes","2019-12-31","272 Great Lakes - 12/31/2019",null,"272 Great Lakes - 12/31/2019",null,null,{"$f":"Data!T106","v":"272 Great Lakes"},{"$f":"Data!U106","v":"2019-12-31"}]
["283 Twin Valley","2019-12-31","283 Twin Valley - 12/31/2019",null,"283 Twin Valley - 12/31/2019",null,null,{"$f":"Data!T107","v":"283 Twin Valley"},{"$f":"Data!U107","v":"2019-12-31"}]
["286 Voyageurs Area","2018-12-31","286 Voyageurs Area - 12/31/2018",null,"286 Voyageurs Area - 12/31/2018",null,null,{"$f":"Data!T108","v":"286 Voyageurs Area"},{"$f":"Data!U108","v":"2018-12-31"}]
["296 Central Minnesota","Current plan not on file","296 Central Minnesota - Current plan not on file",null,"296 Central Minnesota - Current plan not on file",null,null,{"$f":"Data!T109","v":"296 Central Minnesota"},{"$f":"Data!U109","v":"00:00:00"}]
["299 Gamehaven","2020-12-31","299 Gamehaven - 12/31/2020",null,"299 Gamehaven - 12/31/2020",null,null,{"$f":"Data!T110","v":"299 Gamehaven"},{"$f":"Data!U110","v":"2020-12-31"}]
["302 Choctaw Area","2021-12-31","302 Choctaw Area - 12/31/2021",null,"302 Choctaw Area - 12/31/2021",null,null,{"$f":"Data!T111","v":"302 Choctaw Area"},{"$f":"Data!U111","v":"2021-12-31"}]
["303 Andrew Jackson","2021-12-31","303 Andrew Jackson - 12/31/2021",null,"303 Andrew Jackson - 12/31/2021",null,null,{"$f":"Data!T112","v":"303 Andrew Jackson"},{"$f":"Data!U112","v":"2021-12-31"}]
["304 Pine Burr Area","2022-12-31","304 Pine Burr Area - 12/31/2022",null,"304 Pine Burr Area - 12/31/2022",null,null,{"$f":"Data!T113","v":"304 Pine Burr Area"},{"$f":"Data!U113","v":"2022-12-31"}]
["306 Ozark Trails","2019-12-31","306 Ozark Trails - 12/31/2019",null,"306 Ozark Trails - 12/31/2019",null,null,{"$f":"Data!T114","v":"306 Ozark Trails"},{"$f":"Data!U114","v":"2019-12-31"}]
["307 Heart of America","2018-12-31","307 Heart of America - 12/31/2018",null,"307 Heart of America - 12/31/2018",null,null,{"$f":"Data!T115","v":"307 Heart of America"},{"$f":"Data!U115","v":"2018-12-31"}]
["311 Pony Express","2022-12-31","311 Pony Express - 12/31/2022",null,"311 Pony Express - 12/31/2022",null,null,{"$f":"Data!T116","v":"311 Pony Express"},{"$f":"Data!U116","v":"2022-12-31"}]
["312 Greater St. Louis Area","2020-12-31","312 Greater St. Louis Area - 12/31/2020",null,"312 Greater St. Louis Area - 12/31/2020",null,null,{"$f":"Data!T117","v":"312 Greater St. Louis Area"},{"$f":"Data!U117","v":"2020-12-31"}]
["315 Montana","2021-12-31","315 Montana - 12/31/2021",null,"315 Montana - 12/31/2021",null,null,{"$f":"Data!T118","v":"315 Montana"},{"$f":"Data!U118","v":"2021-12-31"}]
["322 Overland Trails","2020-12-31","322 Overland Trails - 12/31/2020",null,"322 Overland Trails - 12/31/2020",null,null,{"$f":"Data!T119","v":"322 Overland Trails"},{"$f":"Data!U119","v":"2020-12-31"}]
["324 Cornhusker","2018-12-31","324 Cornhusker - 12/31/2018",null,"324 Cornhusker - 12/31/2018",null,null,{"$f":"Data!T120","v":"324 Cornhusker"},{"$f":"Data!U120","v":"2018-12-31"}]
["326 Mid-America","Current plan not on file","326 Mid-America - Current plan not on file",null,"326 Mid-America - Current plan not on file",null,null,{"$f":"Data!T121","v":"326 Mid-America"},{"$f":"Data!U121","v":"00:00:00"}]
["328 Las Vegas Area","Current plan not on file","328 Las Vegas Area - Current plan not on file",null,"328 Las Vegas Area - Current plan not on file",null,null,{"$f":"Data!T122","v":"328 Las Vegas Area"},{"$f":"Data!U122","v":"00:00:00"}]
["329 Nevada Area","2021-12-31","329 Nevada Area - 12/31/2021",null,"329 Nevada Area - 12/31/2021",null,null,{"$f":"Data!T123","v":"329 Nevada Area"},{"$f":"Data!U123","v":"2021-12-31"}]
["330 Daniel Webster","2020-12-31","330 Daniel Webster - 12/31/2020",null,"330 Daniel Webster - 12/31/2020",null,null,{"$f":"Data!T124","v":"330 Daniel Webster"},{"$f":"Data!U124","v":"2020-12-31"}]
["333 Northern New Jersey","2018-12-31","333 Northern New Jersey - 12/31/2018",null,"333 Northern New Jersey - 12/31/2018",null,null,{"$f":"Data!T125","v":"333 Northern New Jersey"},{"$f":"Data!U125","v":"2018-12-31"}]
["341 Jersey Shore","2018-12-31","341 Jersey Shore - 12/31/2018",null,"341 Jersey Shore - 12/31/2018",null,null,{"$f":"Data!T126","v":"341 Jersey Shore"},{"$f":"Data!U126","v":"2018-12-31"}]
["347 Monmouth","2020-12-31","347 Monmouth - 12/31/2020",null,"347 Monmouth - 12/31/2020",null,null,{"$f":"Data!T127","v":"347 Monmouth"},{"$f":"Data!U127","v":"2020-12-31"}]
["358 Patriots' Path","2018-12-31","358 Patriots' Path - 12/31/2018",null,"358 Patriots' Path - 12/31/2018",null,null,{"$f":"Data!T128","v":"358 Patriots' Path"},{"$f":"Data!U128","v":"2018-12-31"}]
["364 Twin Rivers","2018-12-31","364 Twin Rivers - 12/31/2018",null,"364 Twin Rivers - 12/31/2018",null,null,{"$f":"Data!T129","v":"364 Twin Rivers"},{"$f":"Data!U129","v":"2018-12-31"}]
["368 Baden-Powell","2021-12-31","368 Baden-Powell - 12/31/2021",null,"368 Baden-Powell - 12/31/2021",null,null,{"$f":"Data!T130","v":"368 Baden-Powell"},{"$f":"Data!U130","v":"2021-12-31"}]
["373 Longhouse","Current plan not on file","373 Longhouse - Current plan not on file",null,"373 Longhouse - Current plan not on file",null,null,{"$f":"Data!T131","v":"373 Longhouse"},{"$f":"Data!U131","v":"00:00:00"}]
["374 Hudson Valley","2020-12-31",{"$f":"_xlfn.CONCAT(A131) & \" - \" & TEXT(B131,\"mm/d/yyyy\")","v":"374 Hudson Valley - 12/31/2020"},null,"374 Hudson Valley - 12/31/2020",null,null,{"$f":"Data!T132","v":"374 Hudson Valley"},{"$f":"Data!U132","v":"2020-12-31"}]
["375 Five Rivers","2019-12-31","375 Five Rivers - 12/31/2019",null,"375 Five Rivers - 12/31/2019",null,null,{"$f":"Data!T133","v":"375 Five Rivers"},{"$f":"Data!U133","v":"2019-12-31"}]
["376 Iroquois Trail","2020-12-31","376 Iroquois Trail - 12/31/2020",null,"376 Iroquois Trail - 12/31/2020",null,null,{"$f":"Data!T134","v":"376 Iroquois Trail"},{"$f":"Data!U134","v":"2020-12-31"}]
["380 Greater Niagara Frontier","2019-12-31","380 Greater Niagara Frontier - 12/31/2019",null,"380 Greater Niagara Frontier - 12/31/2019",null,null,{"$f":"Data!T135","v":"380 Greater Niagara Frontier"},{"$f":"Data!U135","v":"2019-12-31"}]
["382 Allegheny Highlands","2018-12-31","382 Allegheny Highlands - 12/31/2018",null,"382 Allegheny Highlands - 12/31/2018",null,null,{"$f":"Data!T136","v":"382 Allegheny Highlands"},{"$f":"Data!U136","v":"2018-12-31"}]
["386 Theodore Roosevelt","Current plan not on file","386 Theodore Roosevelt - Current plan not on file",null,"386 Theodore Roosevelt - Current plan not on file",null,null,{"$f":"Data!T137","v":"386 Theodore Roosevelt"},{"$f":"Data!U137","v":"00:00:00"}]
["388 Westchester-Putnam","2018-12-31","388 Westchester-Putnam - 12/31/2018",null,"388 Westchester-Putnam - 12/31/2018",null,null,{"$f":"Data!T138","v":"388 Westchester-Putnam"},{"$f":"Data!U138","v":"2018-12-31"}]
["397 Seneca Waterways","2019-12-31","397 Seneca Waterways - 12/31/2019",null,"397 Seneca Waterways - 12/31/2019",null,null,{"$f":"Data!T139","v":"397 Seneca Waterways"},{"$f":"Data!U139","v":"2019-12-31"}]
["400 Leatherstocking","Current plan not on file","400 Leatherstocking - Current plan not on file",null,"400 Leatherstocking - Current plan not on file",null,null,{"$f":"Data!T140","v":"400 Leatherstocking"},{"$f":"Data!U140","v":"00:00:00"}]
["404 Suffolk County","Current plan not on file","404 Suffolk County - Current plan not on file",null,"404 Suffolk County - Current plan not on file",null,null,{"$f":"Data!T141","v":"404 Suffolk County"},{"$f":"Data!U141","v":"00:00:00"}]
["405 Rip Van Winkle","2019-12-31","405 Rip Van Winkle - 12/31/2019",null,"405 Rip Van Winkle - 12/31/2019",null,null,{"$f":"Data!T142","v":"405 Rip Van Winkle"},{"$f":"Data!U142","v":"2019-12-31"}]
["412 Great Southwest","2020-12-31","412 Great Southwest - 12/31/2020",null,"412 Great Southwest - 12/31/2020",null,null,{"$f":"Data!T143","v":"412 Great Southwest"},{"$f":"Data!U143","v":"2020-12-31"}]
["413 Conquistador","2019-12-31","413 Conquistador - 12/31/2019",null,"413 Conquistador - 12/31/2019",null,null,{"$f":"Data!T144","v":"413 Conquistador"},{"$f":"Data!U144","v":"2019-12-31"}]
["414 Daniel Boone","2020-12-31","414 Daniel Boone - 12/31/2020",null,"414 Daniel Boone - 12/31/2020",null,null,{"$f":"Data!T145","v":"414 Daniel Boone"},{"$f":"Data!U145","v":"2020-12-31"}]
["415 Mecklenburg County","2020-12-31","415 Mecklenburg County - 12/31/2020",null,"415 Mecklenburg County - 12/31/2020",null,null,{"$f":"Data!T146","v":"415 Mecklenburg County"},{"$f":"Data!U146","v":"2020-12-31"}]
["416 Central North Carolina","2018-12-31","416 Central North Carolina - 12/31/2018",null,"416 Central North Carolina - 12/31/2018",null,null,{"$f":"Data!T147","v":"416 Central North Carolina"},{"$f":"Data!U147","v":"2018-12-31"}]
["420 Piedmont","2020-12-31","420 Piedmont - 12/31/2020",null,"420 Piedmont - 12/31/2020",null,null,{"$f":"Data!T148","v":"420 Piedmont"},{"$f":"Data!U148","v":"2020-12-31"}]
["421 Occoneechee","2020-12-31","421 Occoneechee - 12/31/2020",null,"421 Occoneechee - 12/31/2020",null,null,{"$f":"Data!T149","v":"421 Occoneechee"},{"$f":"Data!U149","v":"2020-12-31"}]
["424 Tuscarora","2022-12-31","424 Tuscarora - 12/31/2022",null,"424 Tuscarora - 12/31/2022",null,null,{"$f":"Data!T150","v":"424 Tuscarora"},{"$f":"Data!U150","v":"2022-12-31"}]
["425 Cape Fear","2022-12-31","425 Cape Fear - 12/31/2022",null,"425 Cape Fear - 12/31/2022",null,null,{"$f":"Data!T151","v":"425 Cape Fear"},{"$f":"Data!U151","v":"2022-12-31"}]
["426 East Carolina","2020-12-31","426 East Carolina - 12/31/2020",null,"426 East Carolina - 12/31/2020",null,null,{"$f":"Data!T152","v":"426 East Carolina"},{"$f":"Data!U152","v":"2020-12-31"}]
["427 Old Hickory","2019-12-31","427 Old Hickory - 12/31/2019",null,"427 Old Hickory - 12/31/2019",null,null,{"$f":"Data!T153","v":"427 Old Hickory"},{"$f":"Data!U153","v":"2019-12-31"}]
["429 Northern Lights","2019-12-31","429 Northern Lights - 12/31/2019",null,"429 Northern Lights - 12/31/2019",null,null,{"$f":"Data!T154","v":"429 Northern Lights"},{"$f":"Data!U154","v":"2019-12-31"}]
["433 Great Trail","2018-12-31","433 Great Trail - 12/31/2018",null,"433 Great Trail - 12/31/2018",null,null,{"$f":"Data!T155","v":"433 Great Trail"},{"$f":"Data!U155","v":"2018-12-31"}]
["436 Buckeye","2019-12-31","436 Buckeye - 12/31/2019",null,"436 Buckeye - 12/31/2019",null,null,{"$f":"Data!T156","v":"436 Buckeye"},{"$f":"Data!U156","v":"2019-12-31"}]
["438 Dan Beard","2021-12-31","438 Dan Beard - 12/31/2021",null,"438 Dan Beard - 12/31/2021",null,null,{"$f":"Data!T157","v":"438 Dan Beard"},{"$f":"Data!U157","v":"2021-12-31"}]
["439 Tecumseh","2022-12-31","439 Tecumseh - 12/31/2022",null,"439 Tecumseh - 12/31/2022",null,null,{"$f":"Data!T158","v":"439 Tecumseh"},{"$f":"Data!U158","v":"2022-12-31"}]
["440 Lake Erie","2018-12-31","440 Lake Erie - 12/31/2018",null,"440 Lake Erie - 12/31/2018",null,null,{"$f":"Data!T159","v":"440 Lake Erie"},{"$f":"Data!U159","v":"2018-12-31"}]
["441 Simon Kenton","2021-12-31","441 Simon Kenton - 12/31/2021",null,"441 Simon Kenton - 12/31/2021",null,null,{"$f":"Data!T160","v":"441 Simon Kenton"},{"$f":"Data!U160","v":"2021-12-31"}]
["444 Miami Valley","2020-12-31","444 Miami Valley - 12/31/2020",null,"444 Miami Valley - 12/31/2020",null,null,{"$f":"Data!T161","v":"444 Miami Valley"},{"$f":"Data!U161","v":"2020-12-31"}]
["449 Black Swamp Area","2018-12-31","449 Black Swamp Area - 12/31/2018",null,"449 Black Swamp Area - 12/31/2018",null,null,{"$f":"Data!T162","v":"449 Black Swamp Area"},{"$f":"Data!U162","v":"00:00:00"}]
["456 Pathway to Adventure","2021-12-31","456 Pathway to Adventure - 12/31/2021",null,"456 Pathway to Adventure - 12/31/2021",null,null,{"$f":"Data!T163","v":"456 Pathway to Adventure"},{"$f":"Data!U163","v":"2021-12-31"}]
["460 Erie Shores","2023-12-31","460 Erie Shores - 12/31/2023",null,"460 Erie Shores - 12/31/2023",null,null,{"$f":"Data!T164","v":"460 Erie Shores"},{"$f":"Data!U164","v":"2023-12-31"}]
["467 Muskingum Valley","2018-12-31","467 Muskingum Valley - 12/31/2018",null,"467 Muskingum Valley - 12/31/2018",null,null,{"$f":"Data!T165","v":"467 Muskingum Valley"},{"$f":"Data!U165","v":"2018-12-31"}]
["468 Arbuckle Area","Current plan not on file","468 Arbuckle Area - Current plan not on file",null,"468 Arbuckle Area - Current plan not on file",null,null,{"$f":"Data!T166","v":"468 Arbuckle Area"},{"$f":"Data!U166","v":"00:00:00"}]
["469 Cherokee Area","2021-12-31","469 Cherokee Area - 12/31/2021",null,"469 Cherokee Area - 12/31/2021",null,null,{"$f":"Data!T167","v":"469 Cherokee Area"},{"$f":"Data!U167","v":"2021-12-31"}]
["474 Cimarron","2020-12-31","474 Cimarron - 12/31/2020",null,"474 Cimarron - 12/31/2020",null,null,{"$f":"Data!T168","v":"474 Cimarron"},{"$f":"Data!U168","v":"2020-12-31"}]
["480 Last Frontier","2020-12-31","480 Last Frontier - 12/31/2020",null,"480 Last Frontier - 12/31/2020",null,null,{"$f":"Data!T169","v":"480 Last Frontier"},{"$f":"Data!U169","v":"2020-12-31"}]
["488 Indian Nations","2020-12-31","488 Indian Nations - 12/31/2020",null,"488 Indian Nations - 12/31/2020",null,null,{"$f":"Data!T170","v":"488 Indian Nations"},{"$f":"Data!U170","v":"2020-12-31"}]
["491 Crater Lake","2020-12-31","491 Crater Lake - 12/31/2020",null,"491 Crater Lake - 12/31/2020",null,null,{"$f":"Data!T171","v":"491 Crater Lake"},{"$f":"Data!U171","v":"2020-12-31"}]
["492 Cascade Pacific","2019-12-31","492 Cascade Pacific - 12/31/2019",null,"492 Cascade Pacific - 12/31/2019",null,null,{"$f":"Data!T172","v":"492 Cascade Pacific"},{"$f":"Data!U172","v":"2019-12-31"}]
["497 Juniata Valley","2022-12-31","497 Juniata Valley - 12/31/2022",null,"497 Juniata Valley - 12/31/2022",null,null,{"$f":"Data!T173","v":"497 Juniata Valley"},{"$f":"Data!U173","v":"2022-12-31"}]
["500 Moraine Trails","Current plan not on file","500 Moraine Trails - Current plan not on file",null,"500 Moraine Trails - Current plan not on file",null,null,{"$f":"Data!T174","v":"500 Moraine Trails"},{"$f":"Data!U174","v":"00:00:00"}]
["501 Northeastern Pennsylvania","2021-12-31","501 Northeastern Pennsylvania - 12/31/2021",null,"501 Northeastern Pennsylvania - 12/31/2021",null,null,{"$f":"Data!T175","v":"501 Northeastern Pennsylvania"},{"$f":"Data!U175","v":"2021-12-31"}]
["502 Minsi Trails","2018-12-31","502 Minsi Trails - 12/31/2018",null,"502 Minsi Trails - 12/31/2018",null,null,{"$f":"Data!T176","v":"502 Minsi Trails"},{"$f":"Data!U176","v":"2018-12-31"}]
["504 Columbia-Montour","Current plan not on file","504 Columbia-Montour - Current plan not on file",null,"504 Columbia-Montour - Current plan not on file",null,null,{"$f":"Data!T177","v":"504 Columbia-Montour"},{"$f":"Data!U177","v":"00:00:00"}]
["509 Bucktail","2018-12-31","509 Bucktail - 12/31/2018",null,"509 Bucktail - 12/31/2018",null,null,{"$f":"Data!T178","v":"509 Bucktail"},{"$f":"Data!U178","v":"2018-12-31"}]
["512 Westmoreland-Fayette","2020-12-31","512 Westmoreland-Fayette - 12/31/2020",null,"512 Westmoreland-Fayette - 12/31/2020",null,null,{"$f":"Data!T179","v":"512 Westmoreland-Fayette"},{"$f":"Data!U179","v":"2020-12-31"}]
["524 Pennsylvania Dutch","2020-12-31","524 Pennsylvania Dutch - 12/31/2020",null,"524 Pennsylvania Dutch - 12/31/2020",null,null,{"$f":"Data!T180","v":"524 Pennsylvania Dutch"},{"$f":"Data!U180","v":"2020-12-31"}]
["525 Cradle of Liberty","2019-12-31","525 Cradle of Liberty - 12/31/2019",null,"525 Cradle of Liberty - 12/31/2019",null,null,{"$f":"Data!T181","v":"525 Cradle of Liberty"},{"$f":"Data!U181","v":"2019-12-31"}]
["527 Laurel Highlands","2018-12-31","527 Laurel Highlands - 12/31/2018",null,"527 Laurel Highlands - 12/31/2018",null,null,{"$f":"Data!T182","v":"527 Laurel Highlands"},{"$f":"Data!U182","v":"2018-12-31"}]
["528 Hawk Mountain","2020-12-31","528 Hawk Mountain - 12/31/2020",null,"528 Hawk Mountain - 12/31/2020",null,null,{"$f":"Data!T183","v":"528 Hawk Mountain"},{"$f":"Data!U183","v":"2020-12-31"}]
["532 French Creek","2019-12-31","532 French Creek - 12/31/2019",null,"532 French Creek - 12/31/2019",null,null,{"$f":"Data!T184","v":"532 French Creek"},{"$f":"Data!U184","v":"2019-12-31"}]
["533 Susquehanna","2018-12-31","533 Susquehanna - 12/31/2018",null,"533 Susquehanna - 12/31/2018",null,null,{"$f":"Data!T185","v":"533 Susquehanna"},{"$f":"Data!U185","v":"2018-12-31"}]
["538 Chief Cornplanter","Current plan not on file","538 Chief Cornplanter - Current plan not on file",null,"538 Chief Cornplanter - Current plan not on file",null,null,{"$f":"Data!T186","v":"538 Chief Cornplanter"},{"$f":"Data!U186","v":"00:00:00"}]
["539 Chester County","2021-12-31","539 Chester County - 12/31/2021",null,"539 Chester County - 12/31/2021",null,null,{"$f":"Data!T187","v":"539 Chester County"},{"$f":"Data!U187","v":"2021-12-31"}]
["544 New Birth of Freedom","2018-12-31","544 New Birth of Freedom - 12/31/2018",null,"544 New Birth of Freedom - 12/31/2018",null,null,{"$f":"Data!T188","v":"544 New Birth of Freedom"},{"$f":"Data!U188","v":"2018-12-31"}]
["546 Narragansett","2019-12-31","546 Narragansett - 12/31/2019",null,"546 Narragansett - 12/31/2019",null,null,{"$f":"Data!T189","v":"546 Narragansett"},{"$f":"Data!U189","v":"2019-12-31"}]
["549 Palmetto","2021-12-31","549 Palmetto - 12/31/2021",null,"549 Palmetto - 12/31/2021",null,null,{"$f":"Data!T190","v":"549 Palmetto"},{"$f":"Data!U190","v":"2021-12-31"}]
["550 Coastal Carolina","2019-12-31","550 Coastal Carolina - 12/31/2019",null,"550 Coastal Carolina - 12/31/2019",null,null,{"$f":"Data!T191","v":"550 Coastal Carolina"},{"$f":"Data!U191","v":"2019-12-31"}]
["551 Blue Ridge","2022-12-31","551 Blue Ridge - 12/31/2022",null,"551 Blue Ridge - 12/31/2022",null,null,{"$f":"Data!T192","v":"551 Blue Ridge"},{"$f":"Data!U192","v":"2022-12-31"}]
["552 Pee Dee Area","2019-12-31","552 Pee Dee Area - 12/31/2019",null,"552 Pee Dee Area - 12/31/2019",null,null,{"$f":"Data!T193","v":"552 Pee Dee Area"},{"$f":"Data!U193","v":"2019-12-31"}]
["553 Indian Waters","2020-12-31","553 Indian Waters - 12/31/2020",null,"553 Indian Waters - 12/31/2020",null,null,{"$f":"Data!T194","v":"553 Indian Waters"},{"$f":"Data!U194","v":"2020-12-31"}]
["556 Cherokee Area","Current plan not on file","556 Cherokee Area - Current plan not on file",null,"556 Cherokee Area - Current plan not on file",null,null,{"$f":"Data!T195","v":"556 Cherokee Area"},{"$f":"Data!U195","v":"00:00:00"}]
["557 Great Smoky Mountain","2018-12-31",{"$f":"_xlfn.CONCAT(A195) & \" - \" & TEXT(B195,\"mm/d/yyyy\")","v":"557 Great Smoky Mountain - 12/31/2018"},null,"557 Great Smoky Mountain - 12/31/2018",null,null,{"$f":"Data!T196","v":"557 Great Smoky Mountain"},{"$f":"Data!U196","v":"2018-12-31"}]
["558 Chickasaw","Current plan not on file","558 Chickasaw - Current plan not on file",null,"558 Chickasaw - Current plan not on file",null,null,{"$f":"Data!T197","v":"558 Chickasaw"},{"$f":"Data!U197","v":"00:00:00"}]
["559 West Tennessee Area","Current plan not on file","559 West Tennessee Area - Current plan not on file",null,"559 West Tennessee Area - Current plan not on file",null,null,{"$f":"Data!T198","v":"559 West Tennessee Area"},{"$f":"Data!U198","v":"00:00:00"}]
["560 Middle Tennessee","2021-12-31","560 Middle Tennessee - 12/31/2021",null,"560 Middle Tennessee - 12/31/2021",null,null,{"$f":"Data!T199","v":"560 Middle Tennessee"},{"$f":"Data!U199","v":"00:00:00"}]
["561 Texas Trails","Current plan not on file","561 Texas Trails - Current plan not on file",null,"561 Texas Trails - Current plan not on file",null,null,{"$f":"Data!T200","v":"561 Texas Trails"},{"$f":"Data!U200","v":"00:00:00"}]
["562 Golden Spread","2020-12-31","562 Golden Spread - 12/31/2020",null,"562 Golden Spread - 12/31/2020",null,null,{"$f":"Data!T201","v":"562 Golden Spread"},{"$f":"Data!U201","v":"2020-12-31"}]
["564 Capitol Area","2020-12-31","564 Capitol Area - 12/31/2020",null,"564 Capitol Area - 12/31/2020",null,null,{"$f":"Data!T202","v":"564 Capitol Area"},{"$f":"Data!U202","v":"2020-12-31"}]
["567 Buffalo Trail","2019-12-31","567 Buffalo Trail - 12/31/2019",null,"567 Buffalo Trail - 12/31/2019",null,null,{"$f":"Data!T203","v":"567 Buffalo Trail"},{"$f":"Data!U203","v":"2019-12-31"}]
["571 Circle Ten","2020-12-31","571 Circle Ten - 12/31/2020",null,"571 Circle Ten - 12/31/2020",null,null,{"$f":"Data!T204","v":"571 Circle Ten"},{"$f":"Data!U204","v":"2020-12-31"}]
["573 Yucca","2020-12-31","573 Yucca - 12/31/2020",null,"573 Yucca - 12/31/2020",null,null,{"$f":"Data!T205","v":"573 Yucca"},{"$f":"Data!U205","v":"2020-12-31"}]
["574 Bay Area","Current plan not on file","574 Bay Area - Current plan not on file",null,"574 Bay Area - Current plan not on file",null,null,{"$f":"Data!T206","v":"574 Bay Area"},{"$f":"Data!U206","v":"00:00:00"}]
["576 Sam Houston Area","2020-12-31","576 Sam Houston Area - 12/31/2020",null,"576 Sam Houston Area - 12/31/2020",null,null,{"$f":"Data!T207","v":"576 Sam Houston Area"},{"$f":"Data!U207","v":"2020-12-31"}]
["577 South Texas","Current plan not on file","577 South Texas - Current plan not on file",null,"577 South Texas - Current plan not on file",null,null,{"$f":"Data!T208","v":"577 South Texas"},{"$f":"Data!U208","v":"00:00:00"}]
["578 Three Rivers","2018-12-31","578 Three Rivers - 12/31/2018",null,"578 Three Rivers - 12/31/2018",null,null,{"$f":"Data!T209","v":"578 Three Rivers"},{"$f":"Data!U209","v":"2018-12-31"}]
["583 Alamo Area","2018-12-31","583 Alamo Area - 12/31/2018",null,"583 Alamo Area - 12/31/2018",null,null,{"$f":"Data!T210","v":"583 Alamo Area"},{"$f":"Data!U210","v":"2018-12-31"}]
["584 Caddo Area","Current plan not on file","584 Caddo Area - Current plan not on file",null,"584 Caddo Area - Current plan not on file",null,null,{"$f":"Data!T211","v":"584 Caddo Area"},{"$f":"Data!U211","v":"00:00:00"}]
["585 East Texas Area","2019-12-31","585 East Texas Area - 12/31/2019",null,"585 East Texas Area - 12/31/2019",null,null,{"$f":"Data!T212","v":"585 East Texas Area"},{"$f":"Data!U212","v":"2019-12-31"}]
["587 Northwest Texas","2022-12-31","587 Northwest Texas - 12/31/2022",null,"587 Northwest Texas - 12/31/2022",null,null,{"$f":"Data!T213","v":"587 Northwest Texas"},{"$f":"Data!U213","v":"00:00:00"}]
["589 Trapper Trails","2020-12-31","589 Trapper Trails - 12/31/2020",null,"589 Trapper Trails - 12/31/2020",null,null,{"$f":"Data!T214","v":"589 Trapper Trails"},{"$f":"Data!U214","v":"2020-12-31"}]
["590 Great Salt Lake","2018-12-31","590 Great Salt Lake - 12/31/2018",null,"590 Great Salt Lake - 12/31/2018",null,null,{"$f":"Data!T215","v":"590 Great Salt Lake"},{"$f":"Data!U215","v":"2018-12-31"}]
["591 Utah National Parks","2020-12-31","591 Utah National Parks - 12/31/2020",null,"591 Utah National Parks - 12/31/2020",null,null,{"$f":"Data!T216","v":"591 Utah National Parks"},{"$f":"Data!U216","v":"2020-12-31"}]
["592 Green Mountain","2020-12-31","592 Green Mountain - 12/31/2020",null,"592 Green Mountain - 12/31/2020",null,null,{"$f":"Data!T217","v":"592 Green Mountain"},{"$f":"Data!U217","v":"2020-12-31"}]
["595 Colonial Virginia","2018-12-31","595 Colonial Virginia - 12/31/2018",null,"595 Colonial Virginia - 12/31/2018",null,null,{"$f":"Data!T218","v":"595 Colonial Virginia"},{"$f":"Data!U218","v":"2018-12-31"}]
["596 Tidewater","2018-12-31","596 Tidewater - 12/31/2018",null,"596 Tidewater - 12/31/2018",null,null,{"$f":"Data!T219","v":"596 Tidewater"},{"$f":"Data!U219","v":"2018-12-31"}]
["598 Shenandoah Area","2021-12-31","598 Shenandoah Area - 12/31/2021",null,"598 Shenandoah Area - 12/31/2021",null,null,{"$f":"Data!T220","v":"598 Shenandoah Area"},{"$f":"Data!U220","v":"2021-12-31"}]
["599 Blue Ridge Mountains","2018-12-31","599 Blue Ridge Mountains - 12/31/2018",null,"599 Blue Ridge Mountains - 12/31/2018",null,null,{"$f":"Data!T221","v":"599 Blue Ridge Mountains"},{"$f":"Data!U221","v":"2018-12-31"}]
["602 Heart of Virginia","2019-12-31","602 Heart of Virginia - 12/31/2019",null,"602 Heart of Virginia - 12/31/2019",null,null,{"$f":"Data!T222","v":"602 Heart of Virginia"},{"$f":"Data!U222","v":"2019-12-31"}]
["604 Blue Mountain","2020-12-31","604 Blue Mountain - 12/31/2020",null,"604 Blue Mountain - 12/31/2020",null,null,{"$f":"Data!T223","v":"604 Blue Mountain"},{"$f":"Data!U223","v":"2020-12-31"}]
["606 Mount Baker","2025-12-31","606 Mount Baker - 12/31/2025",null,"606 Mount Baker - 12/31/2025",null,null,{"$f":"Data!T224","v":"606 Mount Baker"},{"$f":"Data!U224","v":"2025-12-31"}]
["609 Chief Seattle","2020-12-31","609 Chief Seattle - 12/31/2020",null,"609 Chief Seattle - 12/31/2020",null,null,{"$f":"Data!T225","v":"609 Chief Seattle"},{"$f":"Data!U225","v":"2020-12-31"}]
["610 Great Alaska","2018-12-31","610 Great Alaska - 12/31/2018",null,"610 Great Alaska - 12/31/2018",null,null,{"$f":"Data!T226","v":"610 Great Alaska"},{"$f":"Data!U226","v":"2018-12-31"}]
["611 Inland Northwest","2022-12-31","611 Inland Northwest - 12/31/2022",null,"611 Inland Northwest - 12/31/2022",null,null,{"$f":"Data!T227","v":"611 Inland Northwest"},{"$f":"Data!U227","v":"2022-12-31"}]
["612 Pacific Harbors","2030-12-31","612 Pacific Harbors - 12/31/2030",null,"612 Pacific Harbors - 12/31/2030",null,null,{"$f":"Data!T228","v":"612 Pacific Harbors"},{"$f":"Data!U228","v":"2030-12-31"}]
["614 Grand Columbia","2018-12-31","614 Grand Columbia - 12/31/2018",null,"614 Grand Columbia - 12/31/2018",null,null,{"$f":"Data!T229","v":"614 Grand Columbia"},{"$f":"Data!U229","v":"2018-12-31"}]
["615 Mountaineer Area","2018-12-31","615 Mountaineer Area - 12/31/2018",null,"615 Mountaineer Area - 12/31/2018",null,null,{"$f":"Data!T230","v":"615 Mountaineer Area"},{"$f":"Data!U230","v":"2018-12-31"}]
["617 Buckskin","2020-12-31","617 Buckskin - 12/31/2020",null,"617 Buckskin - 12/31/2020",null,null,{"$f":"Data!T231","v":"617 Buckskin"},{"$f":"Data!U231","v":"2020-12-31"}]
["618 Allohak","2019-12-31","618 Allohak - 12/31/2019",null,"618 Allohak - 12/31/2019",null,null,{"$f":"Data!T232","v":"618 Allohak"},{"$f":"Data!U232","v":"2019-12-31"}]
["619 Ohio River Valley","2020-12-31","619 Ohio River Valley - 12/31/2020",null,"619 Ohio River Valley - 12/31/2020",null,null,{"$f":"Data!T233","v":"619 Ohio River Valley"},{"$f":"Data!U233","v":"2020-12-31"}]
["620 Glacier's Edge","2020-12-31","620 Glacier's Edge - 12/31/2020",null,"620 Glacier's Edge - 12/31/2020",null,null,{"$f":"Data!T234","v":"620 Glacier's Edge"},{"$f":"Data!U234","v":"2020-12-31"}]
["624 Gateway Area","2020-12-31","624 Gateway Area - 12/31/2020",null,"624 Gateway Area - 12/31/2020",null,null,{"$f":"Data!T235","v":"624 Gateway Area"},{"$f":"Data!U235","v":"2020-12-31"}]
["627 Samoset","2018-12-31","627 Samoset - 12/31/2018",null,"627 Samoset - 12/31/2018",null,null,{"$f":"Data!T236","v":"627 Samoset"},{"$f":"Data!U236","v":"2018-12-31"}]
["635 Bay-Lakes","2024-12-31","635 Bay-Lakes - 12/31/2024",null,"635 Bay-Lakes - 12/31/2024",null,null,{"$f":"Data!T237","v":"635 Bay-Lakes"},{"$f":"Data!U237","v":"2024-12-31"}]
["636 Three Harbors","2020-12-31","636 Three Harbors - 12/31/2020",null,"636 Three Harbors - 12/31/2020",null,null,{"$f":"Data!T238","v":"636 Three Harbors"},{"$f":"Data!U238","v":"2020-12-31"}]
["637 Chippewa Valley","2019-12-31","637 Chippewa Valley - 12/31/2019",null,"637 Chippewa Valley - 12/31/2019",null,null,{"$f":"Data!T239","v":"637 Chippewa Valley"},{"$f":"Data!U239","v":"2019-12-31"}]
["638 Greater Wyoming","2019-12-31","638 Greater Wyoming - 12/31/2019",null,"638 Greater Wyoming - 12/31/2019",null,null,{"$f":"Data!T240","v":"638 Greater Wyoming"},{"$f":"Data!U240","v":"2019-12-31"}]
["640 Greater New York","2018-12-31","640 Greater New York - 12/31/2018",null,"640 Greater New York - 12/31/2018",null,null,{"$f":"Data!T241","v":"640 Greater New York"},{"$f":"Data!U241","v":"2018-12-31"}]
["651 Potawatomi Area","2018-12-31","651 Potawatomi Area - 12/31/2018",null,"651 Potawatomi Area - 12/31/2018",null,null,{"$f":"Data!T242","v":"651 Potawatomi Area"},{"$f":"Data!U242","v":"2018-12-31"}]
["653 Great Rivers","Current plan not on file","653 Great Rivers - Current plan not on file",null,"653 Great Rivers - Current plan not on file",null,null,{"$f":"Data!T243","v":"653 Great Rivers"},{"$f":"Data!U243","v":"00:00:00"}]
["660 Blackhawk Area","Current plan not on file","660 Blackhawk Area - Current plan not on file",null,"660 Blackhawk Area - Current plan not on file",null,null,{"$f":"Data!T244","v":"660 Blackhawk Area"},{"$f":"Data!U244","v":"00:00:00"}]
["661 Puerto Rico","2020-12-31","661 Puerto Rico - 12/31/2020",null,"661 Puerto Rico - 12/31/2020",null,null,{"$f":"Data!T245","v":"661 Puerto Rico"},{"$f":"Data!U245","v":"2020-12-31"}]
["662 Longhorn","2022-12-31","662 Longhorn - 12/31/2022",null,"662 Longhorn - 12/31/2022",null,null,{"$f":"Data!T246","v":"662 Longhorn"},{"$f":"Data!U246","v":"2022-12-31"}]
["664 Suwannee River Area","2022-12-31","664 Suwannee River Area - 12/31/2022",null,"664 Suwannee River Area - 12/31/2022",null,null,{"$f":"Data!T247","v":"664 Suwannee River Area"},{"$f":"Data!U247","v":"2022-12-31"}]
["690 Garden State","2019-12-31","690 Garden State - 12/31/2019",null,"690 Garden State - 12/31/2019",null,null,{"$f":"Data!T248","v":"690 Garden State"},{"$f":"Data!U248","v":"2019-12-31"}]
["691 Pushmataha Area","Current plan not on file","691 Pushmataha Area - Current plan not on file",null,"691 Pushmataha Area - Current plan not on file",null,null,{"$f":"Data!T249","v":"691 Pushmataha Area"},{"$f":"Data!U249","v":"00:00:00"}]
["694 South Plains","2018-12-31","694 South Plains - 12/31/2018",null,"694 South Plains - 12/31/2018",null,null,{"$f":"Data!T250","v":"694 South Plains"},{"$f":"Data!U250","v":"2018-12-31"}]
["695 Black Hills Area","2021-12-31","695 Black Hills Area - 12/31/2021",null,"695 Black Hills Area - 12/31/2021",null,null,{"$f":"Data!T251","v":"695 Black Hills Area"},{"$f":"Data!U251","v":"2021-12-31"}]
["696 Midnight Sun","2023-12-31","696 Midnight Sun - 12/31/2023",null,"696 Midnight Sun - 12/31/2023",null,null,{"$f":"Data!T252","v":"696 Midnight Sun"},{"$f":"Data!U252","v":"00:00:00"}]
["697 Oregon Trail","Current plan not on file","697 Oregon Trail - Current plan not on file",null,"697 Oregon Trail - Current plan not on file",null,null,{"$f":"Data!T253","v":"697 Oregon Trail"},{"$f":"Data!U253","v":"00:00:00"}]
["702 Rainbow","Current plan not on file","702 Rainbow - Current plan not on file",null,"702 Rainbow - Current plan not on file",null,null,{"$f":"Data!T254","v":"702 Rainbow"},{"$f":"Data!U254","v":"00:00:00"}]
["713 Sequoyah","2020-12-31","713 Sequoyah - 12/31/2020",null,"713 Sequoyah - 12/31/2020",null,null,{"$f":"Data!T255","v":"713 Sequoyah"},{"$f":"Data!U255","v":"2020-12-31"}]
["733 Sioux","2018-12-31","733 Sioux - 12/31/2018",null,"733 Sioux - 12/31/2018",null,null,{"$f":"Data!T256","v":"733 Sioux"},{"$f":"Data!U256","v":"2018-12-31"}]
["741 Texas Southwest","2018-12-31","741 Texas Southwest - 12/31/2018",null,"741 Texas Southwest - 12/31/2018",null,null,{"$f":"Data!T257","v":"741 Texas Southwest"},{"$f":"Data!U257","v":"2018-12-31"}]
["748 Yocona Area","2022-12-31","748 Yocona Area - 12/31/2022",null,"748 Yocona Area - 12/31/2022",null,null,{"$f":"Data!T258","v":"748 Yocona Area"},{"$f":"Data!U258","v":"2022-12-31"}]
["763 Stonewall Jackson Area","2020-12-31","763 Stonewall Jackson Area - 12/31/2020",null,"763 Stonewall Jackson Area - 12/31/2020",null,null,{"$f":"Data!T259","v":"763 Stonewall Jackson Area"},{"$f":"Data!U259","v":"2020-12-31"}]
["773 Gulf Coast","2020-12-31",{"$f":"_xlfn.CONCAT(A259) & \" - \" & TEXT(B259,\"mm/d/yyyy\")","v":"773 Gulf Coast - 12/31/2020"},null,"773 Gulf Coast - 12/31/2020",null,null,{"$f":"Data!T260","v":"773 Gulf Coast"},{"$f":"Data!U260","v":"2020-12-31"}]
["775 Rio Grande","2022-12-31","775 Rio Grande - 12/31/2022",null,"775 Rio Grande - 12/31/2022",null,null,{"$f":"Data!T261","v":"775 Rio Grande"},{"$f":"Data!U261","v":"2022-12-31"}]
["777 Washington Crossing","2021-12-31","777 Washington Crossing - 12/31/2021",null,"777 Washington Crossing - 12/31/2021",null,null,{"$f":"Data!T262","v":"777 Washington Crossing"},{"$f":"Data!U262","v":"2018-12-31"}]
["781 President Gerald R. Ford","2019-12-31","781 President Gerald R. Ford - 12/31/2019",null,"781 President Gerald R. Ford - 12/31/2019",null,null,{"$f":"Data!T263","v":"781 President Gerald R. Ford"},{"$f":"Data!U263","v":"2019-12-31"}]
["782 Water and Woods","2019-12-31","782 Water and Woods - 12/31/2019",null,"782 Water and Woods - 12/31/2019",null,null,{"$f":"Data!T264","v":"782 Water and Woods"},{"$f":"Data!U264","v":"2019-12-31"}]
["783 Southern Shores","2019-12-31","783 Southern Shores - 12/31/2019",null,"783 Southern Shores - 12/31/2019",null,null,{"$f":"Data!T265","v":"783 Southern Shores"},{"$f":"Data!U265","v":"2019-12-31"}]
["802 Transatlantic","2023-12-31","802 Transatlantic - 12/31/2023",null,"802 Transatlantic - 12/31/2023",null,null,{"$f":"Data!T266","v":"802 Transatlantic"},{"$f":"Data!U266","v":"2023-12-31"}]
["803 Far East","2021-12-31","803 Far East - 12/31/2021",null,"803 Far East - 12/31/2021",null,null,{"$f":"Data!T267","v":"803 Far East"},{"$f":"Data!U267","v":"2021-12-31"}]

{"sheet":"Comparatives","index":3,"n_rows":267,"n_cols":14,"rows_kept":267,"cut":false,"hidden":true,"merged":[]}
["Reg#","Area","Council#","CouncilName","HeadquartersCity","HeadquartersState","PlanDate/Comparatives","1","2","3","4","5","Submitter","Same as membership"]
[2,9,"001","Greater Alabama","Birmingham","AL","Not wanted","None selected","None selected","None selected","None selected","None selected","J.T. Dabbs",{"$f":"_xlfn.CONCAT(C2) & \"-\" & D2 & \" 2018 Comparative Councils: \" & \"1) \" & (H2) & \";  2) \" & (I2) & \";  3) \" & (J2) & \";  4) \" & (K2) & \";  5) \" & (L2)","v":"001-Greater Alabama 2018 Comparative Councils: 1) None selected;  2) None selected;  3) None selected;  4) None selected;  5) None selected"}]
[2,1,"003","Alabama-Florida","Dothan","AL","Selected","Choctaw Area - Meridian, MS (302)","Chattahoochee - Columbus, GA (091)","Mobile Area - Mobile, AL (004)","Tukabatchee Area - Montgomery, AL (005)","Pine Burr Area - Hattiesburg, MS (304)","Jerry Freyberg",{"$f":"_xlfn.CONCAT(C3) & \"-\" & D3 & \" 2018 Comparative Councils: \" & \"1) \" & (H3) & \";  2) \" & (I3) & \";  3) \" & (J3) & \";  4) \" & (K3) & \";  5) \" & (L3)","v":"003-Alabama-Florida 2018 Comparative Councils: 1) Choctaw Area - Meridian, MS (302);  2) Chattahoochee - Columbus, GA (091);  3) Mobile Area - Mobile, AL (004);  4) Tukabatchee Area - Montgomery, AL (005);  5) Pine Burr Area - Hattiesburg, MS (304)"}]
[2,1,"004","Mobile Area","Mobile","AL","Selected","Gulf Coast - Pensacola, FL (773)","Andrew Jackson - Jackson, MS (303)","Louisiana Purchase - Monroe, LA (213)","Calcasieu Area - Lake Charles, LA (209)","Black Warrior - Tuscaloosa, AL (006)","phillip cranford","004-Mobile Area 2018 Comparative Councils: 1) Gulf Coast - Pensacola, FL (773);  2) Andrew Jackson - Jackson, MS (303);  3) Louisiana Purchase - Monroe, LA (213);  4) Calcasieu Area - Lake Charles, LA (209);  5) Black Warrior - Tuscaloosa, AL (006)"]
[2,9,"005","Tukabatchee Area","Montgomery","AL","Selected","Andrew Jackson - Jackson, MS (303)","Black Warrior - Tuscaloosa, AL (006)","Chattahoochee - Columbus, GA (091)","Central Georgia - Macon, GA (096)","None selected","Marvin Smith","005-Tukabatchee Area 2018 Comparative Councils: 1) Andrew Jackson - Jackson, MS (303);  2) Black Warrior - Tuscaloosa, AL (006);  3) Chattahoochee - Columbus, GA (091);  4) Central Georgia - Macon, GA (096);  5) None selected"]
[2,9,"006","Black Warrior","Tuscaloosa","AL","Selected","Chattahoochee - Columbus, GA (091)","Southwest Florida - Fort Myers, FL (088)","Andrew Jackson - Jackson, MS (303)","Cherokee Area - Chattanooga, TN (556)","Green Mountain - Waterbury, VT (592)","Bill Gosselin","006-Black Warrior 2018 Comparative Councils: 1) Chattahoochee - Columbus, GA (091);  2) Southwest Florida - Fort Myers, FL (088);  3) Andrew Jackson - Jackson, MS (303);  4) Cherokee Area - Chattanooga, TN (556);  5) Green Mountain - Waterbury, VT (592)"]
[4,6,"010","Grand Canyon","Phoenix","AZ","Selected","Cascade Pacific - Portland, OR (492)","Las Vegas Area - Las Vegas, NV (328)","Heart of America - Kansas City, MO (307)","None selected","None selected","Larry Abbott","010-Grand Canyon 2018 Comparative Councils: 1) Cascade Pacific - Portland, OR (492);  2) Las Vegas Area - Las Vegas, NV (328);  3) Heart of America - Kansas City, MO (307);  4) None selected;  5) None selected"]
[4,6,"011","Catalina","Tucson","AZ","Selected","Yucca - El Paso, TX (573)","Conquistador - Roswell, NM (413)","Southern Sierra - Bakersfield, CA (030)","Great Southwest - Albuquerque, NM (412)","Nevada Area - Reno, NV (329)","Ken Tucker","011-Catalina 2018 Comparative Councils: 1) Yucca - El Paso, TX (573);  2) Conquistador - Roswell, NM (413);  3) Southern Sierra - Bakersfield, CA (030);  4) Great Southwest - Albuquerque, NM (412);  5) Nevada Area - Reno, NV (329)"]
[2,8,"013","De Soto Area","El Dorado","AR","Selected","Cimarron - Enid, OK (474)","Caddo Area - Texarkana, TX (584)","Arbuckle Area - Ardmore, OK (468)","Cherokee Area - Bartlesville, OK (469)","Northwest Texas - Wichita Falls, TX (587)","Ted Woodlock","013-De Soto Area 2018 Comparative Councils: 1) Cimarron - Enid, OK (474);  2) Caddo Area - Texarkana, TX (584);  3) Arbuckle Area - Ardmore, OK (468);  4) Cherokee Area - Bartlesville, OK (469);  5) Northwest Texas - Wichita Falls, TX (587)"]
[2,8,"016","Westark Area","Fort Smith","AR","Selected","Buffalo Trail - Midland, TX (567)","Quivira - Wichita, KS (198)","Central North Carolina - Albemarle, NC (416)","Chattahoochee - Columbus, GA (091)","Golden Spread - Amarillo, TX (562)","Chris Daughtrey","016-Westark Area 2018 Comparative Councils: 1) Buffalo Trail - Midland, TX (567);  2) Quivira - Wichita, KS (198);  3) Central North Carolina - Albemarle, NC (416);  4) Chattahoochee - Columbus, GA (091);  5) Golden Spread - Amarillo, TX (562)"]
[2,8,"018","Quapaw Area","Little Rock","AR","Selected","Chickasaw - Memphis, TN (558)","Westark Area - Fort Smith, AR (016)","Last Frontier - Oklahoma City, OK (480)","Louisiana Purchase - Monroe, LA (213)","West Tennessee Area - Jackson, TN (559)","John Carman","018-Quapaw Area 2018 Comparative Councils: 1) Chickasaw - Memphis, TN (558);  2) Westark Area - Fort Smith, AR (016);  3) Last Frontier - Oklahoma City, OK (480);  4) Louisiana Purchase - Monroe, LA (213);  5) West Tennessee Area - Jackson, TN (559)"]
[4,3,"022","Alameda","Alameda","CA","Selected","Piedmont - Piedmont, CA (042)","Redwood Empire - Santa Rosa, CA (041)","San Francisco Bay Area - San Leandro, CA (028)","Mount Diablo Silverado - Pleasant Hill, CA (023)","Greenwich - Greenwich, CT (067)","Brian Fasci","022-Alameda 2018 Comparative Councils: 1) Piedmont - Piedmont, CA (042);  2) Redwood Empire - Santa Rosa, CA (041);  3) San Francisco Bay Area - San Leandro, CA (028);  4) Mount Diablo Silverado - Pleasant Hill, CA (023);  5) Greenwich - Greenwich, CT (067)"]
[4,3,"023","Mount Diablo Silverado","Pleasant Hill","CA","Selected","Golden Empire - Sacramento, CA (047)","Silicon Valley Monterey Bay - San Jose, CA (055)","California Inland Empire - Redlands, CA (045)","Western Los Angeles County - Van Nuys, CA (051)","San Francisco Bay Area - San Leandro, CA (028)","John Fenoglio","023-Mount Diablo Silverado 2018 Comparative Councils: 1) Golden Empire - Sacramento, CA (047);  2) Silicon Valley Monterey Bay - San Jose, CA (055);  3) California Inland Empire - Redlands, CA (045);  4) Western Los Angeles County - Van Nuys, CA (051);  5) San Francisco Bay Area - San Leandro, CA (028)"]
[4,3,"027","Sequoia","Fresno","CA","Not wanted","None selected","None selected","None selected","None selected","None selected","Albert Gallegos","027-Sequoia 2018 Comparative Councils: 1) None selected;  2) None selected;  3) None selected;  4) None selected;  5) None selected"]
[4,3,"028","San Francisco Bay Area","San Leandro","CA","Selected","Mount Diablo Silverado - Pleasant Hill, CA (023)","Connecticut Yankee - Milford, CT (072)","Pacific Harbors - Tacoma, WA (612)","Great Southwest - Albuquerque, NM (412)","Western Los Angeles County - Van Nuys, CA (051)","Joe Barton","028-San Francisco Bay Area 2018 Comparative Councils: 1) Mount Diablo Silverado - Pleasant Hill, CA (023);  2) Connecticut Yankee - Milford, CT (072);  3) Pacific Harbors - Tacoma, WA (612);  4) Great Southwest - Albuquerque, NM (412);  5) Western Los Angeles County - Van Nuys, CA (051)"]
[4,4,"030","Southern Sierra","Bakersfield","CA","Selected","Yucca - El Paso, TX (573)","Western Colorado - Grand Junction, CO (064)","Maui County - Wailuku, Maui, HI (102)","None selected","None selected","Jesse Lopez","030-Southern Sierra 2018 Comparative Councils: 1) Yucca - El Paso, TX (573);  2) Western Colorado - Grand Junction, CO (064);  3) Maui County - Wailuku, Maui, HI (102);  4) None selected;  5) None selected"]
[4,3,"031","Pacific Skyline","Foster City","CA","Selected","Pikes Peak - Colorado Springs, CO (060)","Mount Diablo Silverado - Pleasant Hill, CA (023)","California Inland Empire - Redlands, CA (045)","Sequoia - Fresno, CA (027)","Los Padres - Santa Barbara, CA (053)","Brian Curtis","031-Pacific Skyline 2018 Comparative Councils: 1) Pikes Peak - Colorado Springs, CO (060);  2) Mount Diablo Silverado - Pleasant Hill, CA (023);  3) California Inland Empire - Redlands, CA (045);  4) Sequoia - Fresno, CA (027);  5) Los Padres - Santa Barbara, CA (053)"]
[4,4,"032","Long Beach Area","Long Beach","CA","Selected","Verdugo Hills - Glendale, CA (058)","Los Padres - Santa Barbara, CA (053)","Southern Sierra - Bakersfield, CA (030)","None selected","None selected","John Fullerton","032-Long Beach Area 2018 Comparative Councils: 1) Verdugo Hills - Glendale, CA (058);  2) Los Padres - Santa Barbara, CA (053);  3) Southern Sierra - Bakersfield, CA (030);  4) None selected;  5) None selected"]
[4,4,"033","Greater Los Angeles Area","Los Angeles","CA","Selected","Atlanta Area - Atlanta, GA (092)","Orange County - Santa Ana, CA (039)","Circle Ten - Dallas, TX (571)","Denver Area - Denver, CO (061)","Greater New York - New York, NY (640)","Jeff Hunt","033-Greater Los Angeles Area 2018 Comparative Councils: 1) Atlanta Area - Atlanta, GA (092);  2) Orange County - Santa Ana, CA (039);  3) Circle Ten - Dallas, TX (571);  4) Denver Area - Denver, CO (061);  5) Greater New York - New York, NY (640)"]
[4,3,"035","Marin","San Rafael","CA","Selected","Long Beach Area - Long Beach, CA (032)","Redwood Empire - Santa Rosa, CA (041)","Greenwich - Greenwich, CT (067)","Greater Yosemite - Modesto, CA (059)","Rocky Mountain - Pueblo, CO (063)","Michael Dybeck","035-Marin 2018 Comparative Councils: 1) Long Beach Area - Long Beach, CA (032);  2) Redwood Empire - Santa Rosa, CA (041);  3) Greenwich - Greenwich, CT (067);  4) Greater Yosemite - Modesto, CA (059);  5) Rocky Mountain - Pueblo, CO (063)"]
[4,4,"039","Orange County","Santa Ana","CA","Not wanted","None selected","None selected","None selected","None selected","None selected","Jeff Herrmann","039-Orange County 2018 Comparative Councils: 1) None selected;  2) None selected;  3) None selected;  4) None selected;  5) None selected"]
[4,3,"041","Redwood Empire","Santa Rosa","CA","Selected","Marin - San Rafael, CA (035)","Alameda - Alameda, CA (022)","Mount Diablo Silverado - Pleasant Hill, CA (023)","Greater Yosemite - Modesto, CA (059)","San Francisco Bay Area - San Leandro, CA (028)","Charles A. Howard-Gibbon","041-Redwood Empire 2018 Comparative Councils: 1) Marin - San Rafael, CA (035);  2) Alameda - Alameda, CA (022);  3) Mount Diablo Silverado - Pleasant Hill, CA (023);  4) Greater Yosemite - Modesto, CA (059);  5) San Francisco Bay Area - San Leandro, CA (028)"]
[4,3,"042","Piedmont","Piedmont","CA","Selected","Alameda - Alameda, CA (022)","Marin - San Rafael, CA (035)","Redwood Empire - Santa Rosa, CA (041)","Piedmont - Piedmont, CA (042)","None selected","Josephine Pegrum Hazelett","042-Piedmont 2018 Comparative Councils: 1) Alameda - Alameda, CA (022);  2) Marin - San Rafael, CA (035);  3) Redwood Empire - Santa Rosa, CA (041);  4) Piedmont - Piedmont, CA (042);  5) None selected"]
[4,4,"045","California Inland Empire","Redlands","CA","Selected","Las Vegas Area - Las Vegas, NV (328)","Golden Empire - Sacramento, CA (047)","Great Southwest - Albuquerque, NM (412)","Inland Northwest - Spokane, WA (611)","Nevada Area - Reno, NV (329)","Daniela Silva","045-California Inland Empire 2018 Comparative Councils: 1) Las Vegas Area - Las Vegas, NV (328);  2) Golden Empire - Sacramento, CA (047);  3) Great Southwest - Albuquerque, NM (412);  4) Inland Northwest - Spokane, WA (611);  5) Nevada Area - Reno, NV (329)"]
[4,3,"047","Golden Empire","Sacramento","CA","Selected","Daniel Webster - Manchester, NH (330)","Blue Ridge - Greenville, SC (551)","California Inland Empire - Redlands, CA (045)","Cascade Pacific - Portland, OR (492)","Mount Diablo Silverado - Pleasant Hill, CA (023)","Chuck Brasfeild","047-Golden Empire 2018 Comparative Councils: 1) Daniel Webster - Manchester, NH (330);  2) Blue Ridge - Greenville, SC (551);  3) California Inland Empire - Redlands, CA (045);  4) Cascade Pacific - Portland, OR (492);  5) Mount Diablo Silverado - Pleasant Hill, CA (023)"]
[4,6,"049","San Diego-Imperial","San Diego","CA","Not wanted","None selected","None selected","None selected","None selected","None selected","Trent McClure","049-San Diego-Imperial 2018 Comparative Councils: 1) None selected;  2) None selected;  3) None selected;  4) None selected;  5) None selected"]
[4,4,"051","Western Los Angeles County","Van Nuys","CA","Selected","Greater Los Angeles Area - Los Angeles, CA (033)","Orange County - Santa Ana, CA (039)","Narragansett - Providence, RI (546)","San Diego-Imperial - San Diego, CA (049)","None selected","Matthew Thornton","051-Western Los Angeles County 2018 Comparative Councils: 1) Greater Los Angeles Area - Los Angeles, CA (033);  2) Orange County - Santa Ana, CA (039);  3) Narragansett - Providence, RI (546);  4) San Diego-Imperial - San Diego, CA (049);  5) None selected"]
[4,4,"053","Los Padres","Santa Barbara","CA","Selected","Ventura County - Camarillo, CA (057)","Sequoia - Fresno, CA (027)","Long Beach Area - Long Beach, CA (032)","Rio Grande - Harlingen, TX (775)","Potawatomi Area - Waukesha, WI (651)","Carlos Cortez","053-Los Padres 2018 Comparative Councils: 1) Ventura County - Camarillo, CA (057);  2) Sequoia - Fresno, CA (027);  3) Long Beach Area - Long Beach, CA (032);  4) Rio Grande - Harlingen, TX (775);  5) Potawatomi Area - Waukesha, WI (651)"]
[4,3,"055","Silicon Valley Monterey Bay","San Jose","CA","Selected","San Francisco Bay Area - San Leandro, CA (028)","Pleasant Hill, CA (023)/San Diego, CA (049)","Foster City, CA (031)/Portland, OR (492)","San Diego, CA (049)/Seattle, WA (609)","Sacramento, CA (047)/Austin, TX (564)","Jason Stein","055-Silicon Valley Monterey Bay 2018 Comparative Councils: 1) San Francisco Bay Area - San Leandro, CA (028);  2) Pleasant Hill, CA (023)/San Diego, CA (049);  3) Foster City, CA (031)/Portland, OR (492);  4) San Diego, CA (049)/Seattle, WA (609);  5) Sacramento, CA (047)/Austin, TX (564)"]
[4,4,"057","Ventura County","Camarillo","CA","Selected","Verdugo Hills - Glendale, CA (058)","Los Padres - Santa Barbara, CA (053)","Long Beach Area - Long Beach, CA (032)","Greater Yosemite - Modesto, CA (059)","Marin - San Rafael, CA (035)","David Jones","057-Ventura County 2018 Comparative Councils: 1) Verdugo Hills - Glendale, CA (058);  2) Los Padres - Santa Barbara, CA (053);  3) Long Beach Area - Long Beach, CA (032);  4) Greater Yosemite - Modesto, CA (059);  5) Marin - San Rafael, CA (035)"]
[4,4,"058","Verdugo Hills","Glendale","CA","Selected","Long Beach Area - Long Beach, CA (032)","Ventura County - Camarillo, CA (057)","Southern Sierra - Bakersfield, CA (030)","Alameda - Alameda, CA (022)","Grand Columbia - Yakima, WA (614)","Mark Kraus","058-Verdugo Hills 2018 Comparative Councils: 1) Long Beach Area - Long Beach, CA (032);  2) Ventura County - Camarillo, CA (057);  3) Southern Sierra - Bakersfield, CA (030);  4) Alameda - Alameda, CA (022);  5) Grand Columbia - Yakima, WA (614)"]
[4,3,"059","Greater Yosemite","Modesto","CA","Selected","Bay Area - Galveston, TX (574)","Black Swamp Area - Findlay, OH (449)","Catalina - Tucson, AZ (011)","Alameda - Alameda, CA (022)","Caddo Area - Texarkana, TX (584)","Sonya Greene","059-Greater Yosemite 2018 Comparative Councils: 1) Bay Area - Galveston, TX (574);  2) Black Swamp Area - Findlay, OH (449);  3) Catalina - Tucson, AZ (011);  4) Alameda - Alameda, CA (022);  5) Caddo Area - Texarkana, TX (584)"]
[4,2,"060","Pikes Peak","Colorado Springs","CO","Selected","Rocky Mountain - Pueblo, CO (063)","Longs Peak - Greeley, CO (062)","Denver Area - Denver, CO (061)","None selected","None selected","Jim Machamer","060-Pikes Peak 2018 Comparative Councils: 1) Rocky Mountain - Pueblo, CO (063);  2) Longs Peak - Greeley, CO (062);  3) Denver Area - Denver, CO (061);  4) None selected;  5) None selected"]
[4,2,"061","Denver Area","Denver","CO","Selected","Greater Los Angeles Area - Los Angeles, CA (033)","Orange County - Santa Ana, CA (039)","Heart of America - Kansas City, MO (307)","Pikes Peak - Colorado Springs, CO (060)","Longs Peak - Greeley, CO (062)","Nicole Cosme","061-Denver Area 2018 Comparative Councils: 1) Greater Los Angeles Area - Los Angeles, CA (033);  2) Orange County - Santa Ana, CA (039);  3) Heart of America - Kansas City, MO (307);  4) Pikes Peak - Colorado Springs, CO (060);  5) Longs Peak - Greeley, CO (062)"]
[4,2,"062","Longs Peak","Greeley","CO","Selected","Memphis, TN (558)/Colorado Springs, CO (060)","Davenport, IA (133)/Honolulu, HI (104)","Milford, CT (072)/Waukesha, WI (651)","Colorado Springs, CO (060)/Toledo, OH (460)","Sacramento, CA (047)/Palm Beach Gardens, FL (085)","John Coleman ","062-Longs Peak 2018 Comparative Councils: 1) Memphis, TN (558)/Colorado Springs, CO (060);  2) Davenport, IA (133)/Honolulu, HI (104);  3) Milford, CT (072)/Waukesha, WI (651);  4) Colorado Springs, CO (060)/Toledo, OH (460);  5) Sacramento, CA (047)/Palm Beach Gardens, FL (085)"]
[4,2,"063","Rocky Mountain","Pueblo","CO","Selected","Black Hills Area - Rapid City, SD (695)","Greater Wyoming - Casper, WY (638)","Blue Mountain - Kennewick, WA (604)","Western Colorado - Grand Junction, CO (064)","Conquistador - Roswell, NM (413)","Philip Eborn","063-Rocky Mountain 2018 Comparative Councils: 1) Black Hills Area - Rapid City, SD (695);  2) Greater Wyoming - Casper, WY (638);  3) Blue Mountain - Kennewick, WA (604);  4) Western Colorado - Grand Junction, CO (064);  5) Conquistador - Roswell, NM (413)"]
[4,2,"064","Western Colorado","Grand Junction","CO","Selected","Snake River - Twin Falls, ID (111)","Rocky Mountain - Pueblo, CO (063)","Verdugo Hills - Glendale, CA (058)","Blue Mountain - Kennewick, WA (604)","Yucca - El Paso, TX (573)","Mark Switzer","064-Western Colorado 2018 Comparative Councils: 1) Snake River - Twin Falls, ID (111);  2) Rocky Mountain - Pueblo, CO (063);  3) Verdugo Hills - Glendale, CA (058);  4) Blue Mountain - Kennewick, WA (604);  5) Yucca - El Paso, TX (573)"]
[1,2,"066","Connecticut Rivers","East Hartford","CT","Selected","Connecticut Yankee - Milford, CT (072)","Narragansett - Providence, RI (546)","Daniel Webster - Manchester, NH (330)","Cradle of Liberty - Philadelphia, PA (525)","Seneca Waterways - Rochester, NY (397)","steven smith","066-Connecticut Rivers 2018 Comparative Councils: 1) Connecticut Yankee - Milford, CT (072);  2) Narragansett - Providence, RI (546);  3) Daniel Webster - Manchester, NH (330);  4) Cradle of Liberty - Philadelphia, PA (525);  5) Seneca Waterways - Rochester, NY (397)"]
[1,2,"067","Greenwich","Greenwich","CT","Selected","Housatonic - Derby, CT (069)","Suffolk County - Medford, NY (404)","Westchester-Putnam - Hawthorne, NY (388)","Theodore Roosevelt - Massapequa, NY (386)","Connecticut Yankee - Milford, CT (072)","Kevin Oâ€™Shea","067-Greenwich 2018 Comparative Councils: 1) Housatonic - Derby, CT (069);  2) Suffolk County - Medford, NY (404);  3) Westchester-Putnam - Hawthorne, NY (388);  4) Theodore Roosevelt - Massapequa, NY (386);  5) Connecticut Yankee - Milford, CT (072)"]
[1,2,"069","Housatonic","Derby","CT","Not wanted","None selected","None selected","None selected","None selected","None selected","John A. Zseller II","069-Housatonic 2018 Comparative Councils: 1) None selected;  2) None selected;  3) None selected;  4) None selected;  5) None selected"]
[2,7,"070","Old North State","Greensboro","NC","Selected","Blue Ridge Mountains - Roanoke, VA (599)","Occoneechee - Raleigh, NC (421)","East Carolina - Kinston, NC (426)","Old Hickory - Winston-Salem, NC (427)","Piedmont - Gastonia, NC (420)","Ed Martin","070-Old North State 2018 Comparative Councils: 1) Blue Ridge Mountains - Roanoke, VA (599);  2) Occoneechee - Raleigh, NC (421);  3) East Carolina - Kinston, NC (426);  4) Old Hickory - Winston-Salem, NC (427);  5) Piedmont - Gastonia, NC (420)"]
[1,2,"072","Connecticut Yankee","Milford","CT","Selected","Connecticut Rivers - East Hartford, CT (066)","Theodore Roosevelt - Massapequa, NY (386)","Northern New Jersey - Oakland, NJ (333)","Westchester-Putnam - Hawthorne, NY (388)","Patriots' Path - Cedar Knolls, NJ (358)","Charles L Flowers","072-Connecticut Yankee 2018 Comparative Councils: 1) Connecticut Rivers - East Hartford, CT (066);  2) Theodore Roosevelt - Massapequa, NY (386);  3) Northern New Jersey - Oakland, NJ (333);  4) Westchester-Putnam - Hawthorne, NY (388);  5) Patriots' Path - Cedar Knolls, NJ (358)"]
[1,6,"081","Del-Mar-Va","Wilmington","DE","Selected","Baltimore Area - Baltimore, MD (220)","Northern New Jersey - Oakland, NJ (333)","Cradle of Liberty - Philadelphia, PA (525)","None selected","None selected","Bill Garrett","081-Del-Mar-Va 2018 Comparative Councils: 1) Baltimore Area - Baltimore, MD (220);  2) Northern New Jersey - Oakland, NJ (333);  3) Cradle of Liberty - Philadelphia, PA (525);  4) None selected;  5) None selected"]
[1,6,"082","National Capital Area","Bethesda","MD","Selected","Sam Houston Area - Houston, TX (576)","Circle Ten - Dallas, TX (571)","Heart of America - Kansas City, MO (307)","Greater St. Louis Area - St. Louis, MO (312)","Atlanta Area - Atlanta, GA (092)","Jeffrey Berger","082-National Capital Area 2018 Comparative Councils: 1) Sam Houston Area - Houston, TX (576);  2) Circle Ten - Dallas, TX (571);  3) Heart of America - Kansas City, MO (307);  4) Greater St. Louis Area - St. Louis, MO (312);  5) Atlanta Area - Atlanta, GA (092)"]
[2,4,"083","Central Florida","Orlando","FL","Selected","North Florida - Jacksonville, FL (087)","Mid-America - Omaha, NE (326)","Middle Tennessee - Nashville, TN (560)","Capitol Area - Austin, TX (564)","Occoneechee - Raleigh, NC (421)","Eric Magendantz","083-Central Florida 2018 Comparative Councils: 1) North Florida - Jacksonville, FL (087);  2) Mid-America - Omaha, NE (326);  3) Middle Tennessee - Nashville, TN (560);  4) Capitol Area - Austin, TX (564);  5) Occoneechee - Raleigh, NC (421)"]
[2,4,"084","South Florida","Miami Lakes","FL","Not wanted","None selected","None selected","None selected","None selected","None selected","Brick Huffman","084-South Florida 2018 Comparative Councils: 1) None selected;  2) None selected;  3) None selected;  4) None selected;  5) None selected"]
[2,4,"085","Gulf Stream","Palm Beach Gardens","FL","Selected","Southeast Louisiana - New Orleans, LA (214)","Istrouma Area - Baton Rouge, LA (211)","Old North State - Greensboro, NC (070)","None selected","None selected","Terrence Hamilton","085-Gulf Stream 2018 Comparative Councils: 1) Southeast Louisiana - New Orleans, LA (214);  2) Istrouma Area - Baton Rouge, LA (211);  3) Old North State - Greensboro, NC (070);  4) None selected;  5) None selected"]
[2,4,"087","North Florida","Jacksonville","FL","Selected","Greater Alabama - Birmingham, AL (001)","Lincoln Heritage - Louisville, KY (205)","Heart of Virginia - Richmond, VA (602)","Middle Tennessee - Nashville, TN (560)","Northeast Georgia - Jefferson, GA (101)","Jack Sears","087-North Florida 2018 Comparative Councils: 1) Greater Alabama - Birmingham, AL (001);  2) Lincoln Heritage - Louisville, KY (205);  3) Heart of Virginia - Richmond, VA (602);  4) Middle Tennessee - Nashville, TN (560);  5) Northeast Georgia - Jefferson, GA (101)"]
[2,4,"088","Southwest Florida","Fort Myers","FL","Selected","Gulf Stream - Palm Beach Gardens, FL (085)","South Florida - Miami Lakes, FL (084)","Catalina - Tucson, AZ (011)","Southeast Louisiana - New Orleans, LA (214)","Mount Diablo Silverado - Pleasant Hill, CA (023)","Greg Graham","088-Southwest Florida 2018 Comparative Councils: 1) Gulf Stream - Palm Beach Gardens, FL (085);  2) South Florida - Miami Lakes, FL (084);  3) Catalina - Tucson, AZ (011);  4) Southeast Louisiana - New Orleans, LA (214);  5) Mount Diablo Silverado - Pleasant Hill, CA (023)"]
[2,4,"089","Greater Tampa Bay Area","Tampa","FL","Selected","North Florida - Jacksonville, FL (087)","Greater Alabama - Birmingham, AL (001)","Occoneechee - Raleigh, NC (421)","South Florida - Miami Lakes, FL (084)","Capitol Area - Austin, TX (564)","jeff rock","089-Greater Tampa Bay Area 2018 Comparative Councils: 1) North Florida - Jacksonville, FL (087);  2) Greater Alabama - Birmingham, AL (001);  3) Occoneechee - Raleigh, NC (421);  4) South Florida - Miami Lakes, FL (084);  5) Capitol Area - Austin, TX (564)"]
[2,9,"091","Chattahoochee","Columbus","GA","Selected","Central Georgia - Macon, GA (096)","Mobile Area - Mobile, AL (004)","Northwest Georgia - Rome, GA (100)","Tukabatchee Area - Montgomery, AL (005)","Andrew Jackson - Jackson, MS (303)","Philip Wright","091-Chattahoochee 2018 Comparative Councils: 1) Central Georgia - Macon, GA (096);  2) Mobile Area - Mobile, AL (004);  3) Northwest Georgia - Rome, GA (100);  4) Tukabatchee Area - Montgomery, AL (005);  5) Andrew Jackson - Jackson, MS (303)"]
[2,9,"092","Atlanta Area","Atlanta","GA","Selected","Circle Ten - Dallas, TX (571)","Denver Area - Denver, CO (061)","Greater St. Louis Area - St. Louis, MO (312)","Sam Houston Area - Houston, TX (576)","Northern Star - St. Paul, MN (250)","Jason Volz","092-Atlanta Area 2018 Comparative Councils: 1) Circle Ten - Dallas, TX (571);  2) Denver Area - Denver, CO (061);  3) Greater St. Louis Area - St. Louis, MO (312);  4) Sam Houston Area - Houston, TX (576);  5) Northern Star - St. Paul, MN (250)"]
[2,5,"093","Georgia-Carolina","Augusta","GA","Selected","Central Georgia - Macon, GA (096)","South Georgia - Valdosta, GA (098)","Tuscarora - Goldsboro, NC (424)","Suwannee River Area - Tallahassee, FL (664)","Muskingum Valley - Zanesville, OH (467)","Daniel Rogers","093-Georgia-Carolina 2018 Comparative Councils: 1) Central Georgia - Macon, GA (096);  2) South Georgia - Valdosta, GA (098);  3) Tuscarora - Goldsboro, NC (424);  4) Suwannee River Area - Tallahassee, FL (664);  5) Muskingum Valley - Zanesville, OH (467)"]
[2,9,"095","Flint River","Griffin","GA","Selected","Chattahoochee - Columbus, GA (091)","Old North State - Greensboro, NC (070)","Tukabatchee Area - Montgomery, AL (005)","Gulf Stream - Palm Beach Gardens, FL (085)","Coastal Carolina - Charleston, SC (550)","Kelvin Williams","095-Flint River 2018 Comparative Councils: 1) Chattahoochee - Columbus, GA (091);  2) Old North State - Greensboro, NC (070);  3) Tukabatchee Area - Montgomery, AL (005);  4) Gulf Stream - Palm Beach Gardens, FL (085);  5) Coastal Carolina - Charleston, SC (550)"]
[2,9,"096","Central Georgia","Macon","GA","Selected","Istrouma Area - Baton Rouge, LA (211)","Blue Grass - Lexington, KY (204)","Cherokee Area - Chattanooga, TN (556)","Chippewa Valley - Eau Claire, WI (637)","Miami Valley - Dayton, OH (444)","Garrett L. Williams","096-Central Georgia 2018 Comparative Councils: 1) Istrouma Area - Baton Rouge, LA (211);  2) Blue Grass - Lexington, KY (204);  3) Cherokee Area - Chattanooga, TN (556);  4) Chippewa Valley - Eau Claire, WI (637);  5) Miami Valley - Dayton, OH (444)"]
[2,9,"098","South Georgia","Valdosta","GA","Selected","Suwannee River Area - Tallahassee, FL (664)","Central Georgia - Macon, GA (096)","Alabama-Florida - Dothan, AL (003)","None selected","None selected","Matt Hart","098-South Georgia 2018 Comparative Councils: 1) Suwannee River Area - Tallahassee, FL (664);  2) Central Georgia - Macon, GA (096);  3) Alabama-Florida - Dothan, AL (003);  4) None selected;  5) None selected"]
[2,9,"099","Coastal Georgia","Savannah","GA","Selected","Cape Fear - Wilmington, NC (425)","Southwest Florida - Fort Myers, FL (088)","West Tennessee Area - Jackson, TN (559)","East Carolina - Kinston, NC (426)","Coastal Carolina - Charleston, SC (550)","Clif Morris","099-Coastal Georgia 2018 Comparative Councils: 1) Cape Fear - Wilmington, NC (425);  2) Southwest Florida - Fort Myers, FL (088);  3) West Tennessee Area - Jackson, TN (559);  4) East Carolina - Kinston, NC (426);  5) Coastal Carolina - Charleston, SC (550)"]
[2,9,"100","Northwest Georgia","Rome","GA","Selected","Central Georgia - Macon, GA (096)","Northeast Iowa - Dubuque, IA (178)","Moraine Trails - Butler, PA (500)","Blue Mountain - Kennewick, WA (604)","Mobile Area - Mobile, AL (004)","Jeff Brasher","100-Northwest Georgia 2018 Comparative Councils: 1) Central Georgia - Macon, GA (096);  2) Northeast Iowa - Dubuque, IA (178);  3) Moraine Trails - Butler, PA (500);  4) Blue Mountain - Kennewick, WA (604);  5) Mobile Area - Mobile, AL (004)"]
[2,9,"101","Northeast Georgia","Jefferson","GA","Selected","Baltimore Area - Baltimore, MD (220)","North Florida - Jacksonville, FL (087)","Greater Alabama - Birmingham, AL (001)","Lincoln Heritage - Louisville, KY (205)","Central Florida - Orlando, FL (083)","Rodney Brundidge","101-Northeast Georgia 2018 Comparative Councils: 1) Baltimore Area - Baltimore, MD (220);  2) North Florida - Jacksonville, FL (087);  3) Greater Alabama - Birmingham, AL (001);  4) Lincoln Heritage - Louisville, KY (205);  5) Central Florida - Orlando, FL (083)"]
[4,6,"102","Maui County","Wailuku, Maui","HI","Not wanted","None selected","None selected","None selected","None selected","None selected","Duc Button","102-Maui County 2018 Comparative Councils: 1) None selected;  2) None selected;  3) None selected;  4) None selected;  5) None selected"]
[4,6,"104","Aloha","Honolulu","HI","Selected","Pacific Harbors - Tacoma, WA (612)","Mount Diablo Silverado - Pleasant Hill, CA (023)","San Diego-Imperial - San Diego, CA (049)","None selected","None selected","Jeff Sulzbach","104-Aloha 2018 Comparative Councils: 1) Pacific Harbors - Tacoma, WA (612);  2) Mount Diablo Silverado - Pleasant Hill, CA (023);  3) San Diego-Imperial - San Diego, CA (049);  4) None selected;  5) None selected"]
[4,1,"106","Ore-Ida","Boise","ID","Selected","Blue Mountain - Kennewick, WA (604)","Grand Teton - Idaho Falls, ID (107)","Snake River - Twin Falls, ID (111)","Great Salt Lake - Salt Lake City, UT (590)","Greater Wyoming - Casper, WY (638)","David Kemper","106-Ore-Ida 2018 Comparative Councils: 1) Blue Mountain - Kennewick, WA (604);  2) Grand Teton - Idaho Falls, ID (107);  3) Snake River - Twin Falls, ID (111);  4) Great Salt Lake - Salt Lake City, UT (590);  5) Greater Wyoming - Casper, WY (638)"]
[4,2,"107","Grand Teton","Idaho Falls","ID","Not wanted","None selected","None selected","None selected","None selected","None selected","Clarke Farrer","107-Grand Teton 2018 Comparative Councils: 1) None selected;  2) None selected;  3) None selected;  4) None selected;  5) None selected"]
[4,2,"111","Snake River","Twin Falls","ID","Selected","Greater Wyoming - Casper, WY (638)","Longs Peak - Greeley, CO (062)","Pikes Peak - Colorado Springs, CO (060)","Ore-Ida - Boise, ID (106)","Montana - Great Falls, MT (315)","David Kirk","111-Snake River 2018 Comparative Councils: 1) Greater Wyoming - Casper, WY (638);  2) Longs Peak - Greeley, CO (062);  3) Pikes Peak - Colorado Springs, CO (060);  4) Ore-Ida - Boise, ID (106);  5) Montana - Great Falls, MT (315)"]
[3,3,"117","Prairielands","Champaign","IL","Selected","Muskingum Valley - Zanesville, OH (467)","Lincoln Trails - Decatur, IL (121)","Northeast Iowa - Dubuque, IA (178)","Tecumseh - Springfield, OH (439)","Winnebago - Waterloo, IA (173)","Steve Adams","117-Prairielands 2018 Comparative Councils: 1) Muskingum Valley - Zanesville, OH (467);  2) Lincoln Trails - Decatur, IL (121);  3) Northeast Iowa - Dubuque, IA (178);  4) Tecumseh - Springfield, OH (439);  5) Winnebago - Waterloo, IA (173)"]
[3,3,"121","Lincoln Trails","Decatur","IL","Selected","Abraham Lincoln - Springfield, IL (144)","Mississippi Valley - Quincy, IL (141)","Prairielands - Champaign, IL (117)","Northeast Iowa - Dubuque, IA (178)","Tecumseh - Springfield, OH (439)","Christian J. Long","121-Lincoln Trails 2018 Comparative Councils: 1) Abraham Lincoln - Springfield, IL (144);  2) Mississippi Valley - Quincy, IL (141);  3) Prairielands - Champaign, IL (117);  4) Northeast Iowa - Dubuque, IA (178);  5) Tecumseh - Springfield, OH (439)"]
[3,7,"127","Three Fires","St. Charles","IL","Selected","Bay-Lakes - Appleton, WI (635)","Lake Erie - Cleveland, OH (440)","Simon Kenton - Columbus, OH (441)","Three Harbors - Milwaukee, WI (636)","Northern Lights - Fargo, ND (429)","Nick Roberts",{"$f":"_xlfn.CONCAT(C67) & \"-\" & D67 & \" 2018 Comparative Councils: \" & \"1) \" & (H67) & \";  2) \" & (I67) & \";  3) \" & (J67) & \";  4) \" & (K67) & \";  5) \" & (L67)","v":"127-Three Fires 2018 Comparative Councils: 1) Bay-Lakes - Appleton, WI (635);  2) Lake Erie - Cleveland, OH (440);  3) Simon Kenton - Columbus, OH (441);  4) Three Harbors - Milwaukee, WI (636);  5) Northern Lights - Fargo, ND (429)"}]
[3,7,"129","Northeast Illinois","Highland Park","IL","Selected","Mid-Iowa - Des Moines, IA (177)","Three Fires - St. Charles, IL (127)","Blackhawk Area - Rockford, IL (660)","Illowa - Davenport, IA (133)","Potawatomi Area - Waukesha, WI (651)","Doug Nelson","129-Northeast Illinois 2018 Comparative Councils: 1) Mid-Iowa - Des Moines, IA (177);  2) Three Fires - St. Charles, IL (127);  3) Blackhawk Area - Rockford, IL (660);  4) Illowa - Davenport, IA (133);  5) Potawatomi Area - Waukesha, WI (651)"]
[3,3,"133","Illowa","Davenport","IA","Selected","Abraham Lincoln - Springfield, IL (144)","Mississippi Valley - Quincy, IL (141)","Blackhawk Area - Rockford, IL (660)","Hawkeye Area - Cedar Rapids, IA (172)","Northeast Iowa - Dubuque, IA (178)","Thomas P. McDermott","133-Illowa 2018 Comparative Councils: 1) Abraham Lincoln - Springfield, IL (144);  2) Mississippi Valley - Quincy, IL (141);  3) Blackhawk Area - Rockford, IL (660);  4) Hawkeye Area - Cedar Rapids, IA (172);  5) Northeast Iowa - Dubuque, IA (178)"]
[3,3,"138","W.D. Boyce","Peoria","IL","Selected","Three Fires - St. Charles, IL (127)","Seneca Waterways - Rochester, NY (397)","Hawk Mountain - Reading, PA (528)","Mid-Iowa - Des Moines, IA (177)","Quivira - Wichita, KS (198)","Greg Voyzey","138-W.D. Boyce 2018 Comparative Councils: 1) Three Fires - St. Charles, IL (127);  2) Seneca Waterways - Rochester, NY (397);  3) Hawk Mountain - Reading, PA (528);  4) Mid-Iowa - Des Moines, IA (177);  5) Quivira - Wichita, KS (198)"]
[3,3,"141","Mississippi Valley","Quincy","IL","Selected","Illowa - Davenport, IA (133)","Abraham Lincoln - Springfield, IL (144)","Hawkeye Area - Cedar Rapids, IA (172)","Winnebago - Waterloo, IA (173)","W.D. Boyce - Peoria, IL (138)","Todd Lamison","141-Mississippi Valley 2018 Comparative Councils: 1) Illowa - Davenport, IA (133);  2) Abraham Lincoln - Springfield, IL (144);  3) Hawkeye Area - Cedar Rapids, IA (172);  4) Winnebago - Waterloo, IA (173);  5) W.D. Boyce - Peoria, IL (138)"]
[3,3,"144","Abraham Lincoln","Springfield","IL","Selected","Lincoln Trails - Decatur, IL (121)","Blackhawk Area - Rockford, IL (660)","Mississippi Valley - Quincy, IL (141)","Prairielands - Champaign, IL (117)","Buffalo Trace - Evansville, IN (156)","Daniel A. O'Brien","144-Abraham Lincoln 2018 Comparative Councils: 1) Lincoln Trails - Decatur, IL (121);  2) Blackhawk Area - Rockford, IL (660);  3) Mississippi Valley - Quincy, IL (141);  4) Prairielands - Champaign, IL (117);  5) Buffalo Trace - Evansville, IN (156)"]
[3,6,"145","Hoosier Trails","Bloomington","IN","Selected","Black Swamp Area - Findlay, OH (449)","Anthony Wayne Area - Fort Wayne, IN (157)","Buffalo Trace - Evansville, IN (156)","Sagamore - Kokomo, IN (162)","LaSalle - South Bend, IN (165)","Glen R Steenberger","145-Hoosier Trails 2018 Comparative Councils: 1) Black Swamp Area - Findlay, OH (449);  2) Anthony Wayne Area - Fort Wayne, IN (157);  3) Buffalo Trace - Evansville, IN (156);  4) Sagamore - Kokomo, IN (162);  5) LaSalle - South Bend, IN (165)"]
[3,6,"156","Buffalo Trace","Evansville","IN","Selected","Black Swamp Area - Findlay, OH (449)","Hoosier Trails - Bloomington, IN (145)","LaSalle - South Bend, IN (165)","Sagamore - Kokomo, IN (162)","Anthony Wayne Area - Fort Wayne, IN (157)","John Harding","156-Buffalo Trace 2018 Comparative Councils: 1) Black Swamp Area - Findlay, OH (449);  2) Hoosier Trails - Bloomington, IN (145);  3) LaSalle - South Bend, IN (165);  4) Sagamore - Kokomo, IN (162);  5) Anthony Wayne Area - Fort Wayne, IN (157)"]
[3,6,"157","Anthony Wayne Area","Fort Wayne","IN","Selected","LaSalle - South Bend, IN (165)","Sagamore - Kokomo, IN (162)","Black Swamp Area - Findlay, OH (449)","Hoosier Trails - Bloomington, IN (145)","Miami Valley - Dayton, OH (444)","John Gliot","157-Anthony Wayne Area 2018 Comparative Councils: 1) LaSalle - South Bend, IN (165);  2) Sagamore - Kokomo, IN (162);  3) Black Swamp Area - Findlay, OH (449);  4) Hoosier Trails - Bloomington, IN (145);  5) Miami Valley - Dayton, OH (444)"]
[3,6,"160","Crossroads of America","Indianapolis","IN","Selected","Dan Beard - Cincinnati, OH (438)","Greater St. Louis Area - St. Louis, MO (312)","Heart of America - Kansas City, MO (307)","Northern Star - St. Paul, MN (250)","Great Lakes - Detroit, MI (272)","patrick sterrett","160-Crossroads of America 2018 Comparative Councils: 1) Dan Beard - Cincinnati, OH (438);  2) Greater St. Louis Area - St. Louis, MO (312);  3) Heart of America - Kansas City, MO (307);  4) Northern Star - St. Paul, MN (250);  5) Great Lakes - Detroit, MI (272)"]
[3,6,"162","Sagamore","Kokomo","IN","Selected","LaSalle - South Bend, IN (165)","Black Swamp Area - Findlay, OH (449)","Hoosier Trails - Bloomington, IN (145)","Anthony Wayne Area - Fort Wayne, IN (157)","Miami Valley - Dayton, OH (444)","Ben Blumenberg","162-Sagamore 2018 Comparative Councils: 1) LaSalle - South Bend, IN (165);  2) Black Swamp Area - Findlay, OH (449);  3) Hoosier Trails - Bloomington, IN (145);  4) Anthony Wayne Area - Fort Wayne, IN (157);  5) Miami Valley - Dayton, OH (444)"]
[3,6,"165","LaSalle","South Bend","IN","Selected","Sagamore - Kokomo, IN (162)","Illowa - Davenport, IA (133)","Anthony Wayne Area - Fort Wayne, IN (157)","Hoosier Trails - Bloomington, IN (145)","Miami Valley - Dayton, OH (444)","Robert Hemmelgarn","165-LaSalle 2018 Comparative Councils: 1) Sagamore - Kokomo, IN (162);  2) Illowa - Davenport, IA (133);  3) Anthony Wayne Area - Fort Wayne, IN (157);  4) Hoosier Trails - Bloomington, IN (145);  5) Miami Valley - Dayton, OH (444)"]
[3,3,"172","Hawkeye Area","Cedar Rapids","IA","Selected","Illowa - Davenport, IA (133)","Chippewa Valley - Eau Claire, WI (637)","Samoset - Weston, WI (627)","Sioux - Sioux Falls, SD (733)","Coronado Area - Salina, KS (192)","Sarah Dawson","172-Hawkeye Area 2018 Comparative Councils: 1) Illowa - Davenport, IA (133);  2) Chippewa Valley - Eau Claire, WI (637);  3) Samoset - Weston, WI (627);  4) Sioux - Sioux Falls, SD (733);  5) Coronado Area - Salina, KS (192)"]
[3,3,"173","Winnebago","Waterloo","IA","Selected","Pony Express - St. Joseph, MO (311)","Illowa - Davenport, IA (133)","Allohak - Parkersburg, WV (618)","Black Warrior - Tuscaloosa, AL (006)","Gateway Area - La Crosse, WI (624)","James R. Madison Jr.","173-Winnebago 2018 Comparative Councils: 1) Pony Express - St. Joseph, MO (311);  2) Illowa - Davenport, IA (133);  3) Allohak - Parkersburg, WV (618);  4) Black Warrior - Tuscaloosa, AL (006);  5) Gateway Area - La Crosse, WI (624)"]
[3,5,"177","Mid-Iowa","Des Moines","IA","Selected","Quivira - Wichita, KS (198)","Buckeye - Canton, OH (436)","W.D. Boyce - Peoria, IL (138)","Lake Erie - Cleveland, OH (440)","Northeast Illinois - Highland Park, IL (129)","Robert Hopper","177-Mid-Iowa 2018 Comparative Councils: 1) Quivira - Wichita, KS (198);  2) Buckeye - Canton, OH (436);  3) W.D. Boyce - Peoria, IL (138);  4) Lake Erie - Cleveland, OH (440);  5) Northeast Illinois - Highland Park, IL (129)"]
[3,3,"178","Northeast Iowa","Dubuque","IA","Selected","Mississippi Valley - Quincy, IL (141)","Hawkeye Area - Cedar Rapids, IA (172)","Winnebago - Waterloo, IA (173)","Gamehaven - Rochester, MN (299)","Gateway Area - La Crosse, WI (624)","Matt Klutzaritz","178-Northeast Iowa 2018 Comparative Councils: 1) Mississippi Valley - Quincy, IL (141);  2) Hawkeye Area - Cedar Rapids, IA (172);  3) Winnebago - Waterloo, IA (173);  4) Gamehaven - Rochester, MN (299);  5) Gateway Area - La Crosse, WI (624)"]
[3,5,"192","Coronado Area","Salina","KS","Selected","Cornhusker - Lincoln, NE (324)","Jayhawk Area - Topeka, KS (197)","Hawkeye Area - Cedar Rapids, IA (172)","Mid-Iowa - Des Moines, IA (177)","Pony Express - St. Joseph, MO (311)","Wendy Shaw","192-Coronado Area 2018 Comparative Councils: 1) Cornhusker - Lincoln, NE (324);  2) Jayhawk Area - Topeka, KS (197);  3) Hawkeye Area - Cedar Rapids, IA (172);  4) Mid-Iowa - Des Moines, IA (177);  5) Pony Express - St. Joseph, MO (311)"]
[3,5,"194","Santa Fe Trail","Garden City","KS","Selected","Cimarron - Enid, OK (474)","Cornhusker - Lincoln, NE (324)","Coronado Area - Salina, KS (192)","Rocky Mountain - Pueblo, CO (063)","Overland Trails - Grand Island, NE (322)","Michael Stewart","194-Santa Fe Trail 2018 Comparative Councils: 1) Cimarron - Enid, OK (474);  2) Cornhusker - Lincoln, NE (324);  3) Coronado Area - Salina, KS (192);  4) Rocky Mountain - Pueblo, CO (063);  5) Overland Trails - Grand Island, NE (322)"]
[3,5,"197","Jayhawk Area","Topeka","KS","Selected","Cornhusker - Lincoln, NE (324)","Coronado Area - Salina, KS (192)","Great Rivers - Columbia, MO (653)","Miami Valley - Dayton, OH (444)","Abraham Lincoln - Springfield, IL (144)","Wayne Pancoast","197-Jayhawk Area 2018 Comparative Councils: 1) Cornhusker - Lincoln, NE (324);  2) Coronado Area - Salina, KS (192);  3) Great Rivers - Columbia, MO (653);  4) Miami Valley - Dayton, OH (444);  5) Abraham Lincoln - Springfield, IL (144)"]
[3,5,"198","Quivira","Wichita","KS","Selected","W.D. Boyce - Peoria, IL (138)","Mid-Iowa - Des Moines, IA (177)","Last Frontier - Oklahoma City, OK (480)","Northern Lights - Fargo, ND (429)","Pikes Peak - Colorado Springs, CO (060)","Brian Nastase","198-Quivira 2018 Comparative Councils: 1) W.D. Boyce - Peoria, IL (138);  2) Mid-Iowa - Des Moines, IA (177);  3) Last Frontier - Oklahoma City, OK (480);  4) Northern Lights - Fargo, ND (429);  5) Pikes Peak - Colorado Springs, CO (060)"]
[2,6,"204","Blue Grass","Lexington","KY","Selected","Andrew Jackson - Jackson, MS (303)","Central North Carolina - Albemarle, NC (416)","Indian Waters - Columbia, SC (553)","None selected","None selected","James Armishaw","204-Blue Grass 2018 Comparative Councils: 1) Andrew Jackson - Jackson, MS (303);  2) Central North Carolina - Albemarle, NC (416);  3) Indian Waters - Columbia, SC (553);  4) None selected;  5) None selected"]
[2,6,"205","Lincoln Heritage","Louisville","KY","Selected","Dan Beard - Cincinnati, OH (438)","Greater Alabama - Birmingham, AL (001)","Great Smoky Mountain - Knoxville, TN (557)","Chickasaw - Memphis, TN (558)","Middle Tennessee - Nashville, TN (560)","Clint Scharff","205-Lincoln Heritage 2018 Comparative Councils: 1) Dan Beard - Cincinnati, OH (438);  2) Greater Alabama - Birmingham, AL (001);  3) Great Smoky Mountain - Knoxville, TN (557);  4) Chickasaw - Memphis, TN (558);  5) Middle Tennessee - Nashville, TN (560)"]
[2,1,"209","Calcasieu Area","Lake Charles","LA","Selected","Norwela - Shreveport, LA (215)","Evangeline Area - Lafayette, LA (212)","Caddo Area - Texarkana, TX (584)","Black Warrior - Tuscaloosa, AL (006)","Three Rivers - Beaumont, TX (578)","Michael Beer","209-Calcasieu Area 2018 Comparative Councils: 1) Norwela - Shreveport, LA (215);  2) Evangeline Area - Lafayette, LA (212);  3) Caddo Area - Texarkana, TX (584);  4) Black Warrior - Tuscaloosa, AL (006);  5) Three Rivers - Beaumont, TX (578)"]
[2,1,"211","Istrouma Area","Baton Rouge","LA","Selected","Norwela - Shreveport, LA (215)","Andrew Jackson - Jackson, MS (303)","Bay Area - Galveston, TX (574)","None selected","None selected","Gary Mertz","211-Istrouma Area 2018 Comparative Councils: 1) Norwela - Shreveport, LA (215);  2) Andrew Jackson - Jackson, MS (303);  3) Bay Area - Galveston, TX (574);  4) None selected;  5) None selected"]
[2,1,"212","Evangeline Area","Lafayette","LA","Selected","Mobile Area - Mobile, AL (004)","Alabama-Florida - Dothan, AL (003)","Pine Burr Area - Hattiesburg, MS (304)","Louisiana Purchase - Monroe, LA (213)","Bay Area - Galveston, TX (574)","Art Hawkins","212-Evangeline Area 2018 Comparative Councils: 1) Mobile Area - Mobile, AL (004);  2) Alabama-Florida - Dothan, AL (003);  3) Pine Burr Area - Hattiesburg, MS (304);  4) Louisiana Purchase - Monroe, LA (213);  5) Bay Area - Galveston, TX (574)"]
[2,1,"213","Louisiana Purchase","Monroe","LA","Not wanted","None selected","None selected","None selected","None selected","None selected","Shane Cooley","213-Louisiana Purchase 2018 Comparative Councils: 1) None selected;  2) None selected;  3) None selected;  4) None selected;  5) None selected"]
[2,1,"214","Southeast Louisiana","New Orleans","LA","Selected","Chickasaw - Memphis, TN (558)","Bay Area - Galveston, TX (574)","Blue Ridge - Greenville, SC (551)","Blue Ridge Mountains - Roanoke, VA (599)","Abraham Lincoln - Springfield, IL (144)","Ernesto Carballo","214-Southeast Louisiana 2018 Comparative Councils: 1) Chickasaw - Memphis, TN (558);  2) Bay Area - Galveston, TX (574);  3) Blue Ridge - Greenville, SC (551);  4) Blue Ridge Mountains - Roanoke, VA (599);  5) Abraham Lincoln - Springfield, IL (144)"]
[2,2,"215","Norwela","Shreveport","LA","Selected","South Plains - Lubbock, TX (694)","Calcasieu Area - Lake Charles, LA (209)","Rio Grande - Harlingen, TX (775)","Mobile Area - Mobile, AL (004)","Cherokee Area - Bartlesville, OK (469)","Sedrick Robinson","215-Norwela 2018 Comparative Councils: 1) South Plains - Lubbock, TX (694);  2) Calcasieu Area - Lake Charles, LA (209);  3) Rio Grande - Harlingen, TX (775);  4) Mobile Area - Mobile, AL (004);  5) Cherokee Area - Bartlesville, OK (469)"]
[1,1,"216","Katahdin Area","Bangor","ME","Selected","Pine Tree - Portland, ME (218)","Iroquois Trail - Batavia, NY (376)","Moraine Trails - Butler, PA (500)","None selected","None selected","R. Scott Harvey","216-Katahdin Area 2018 Comparative Councils: 1) Pine Tree - Portland, ME (218);  2) Iroquois Trail - Batavia, NY (376);  3) Moraine Trails - Butler, PA (500);  4) None selected;  5) None selected"]
[1,1,"218","Pine Tree","Portland","ME","Not provided","None selected","None selected","None selected","None selected","None selected","Eric Tarbox","218-Pine Tree 2018 Comparative Councils: 1) None selected;  2) None selected;  3) None selected;  4) None selected;  5) None selected"]
[1,6,"220","Baltimore Area","Baltimore","MD","Selected","Laurel Highlands - Pittsburgh, PA (527)","Lincoln Heritage - Louisville, KY (205)","Greater New York - New York, NY (640)","Del-Mar-Va - Wilmington, DE (081)","Connecticut Rivers - East Hartford, CT (066)","Brian L. Steger","220-Baltimore Area 2018 Comparative Councils: 1) Laurel Highlands - Pittsburgh, PA (527);  2) Lincoln Heritage - Louisville, KY (205);  3) Greater New York - New York, NY (640);  4) Del-Mar-Va - Wilmington, DE (081);  5) Connecticut Rivers - East Hartford, CT (066)"]
[1,6,"221","Mason-Dixon","Hagerstown","MD","Selected","Northwest Georgia - Rome, GA (100)","Columbia-Montour - Bloomsburg, PA (504)","Greenwich - Greenwich, CT (067)","Westmoreland-Fayette - Greensburg, PA (512)","Pine Tree - Portland, ME (218)","Rob Stone","221-Mason-Dixon 2018 Comparative Councils: 1) Northwest Georgia - Rome, GA (100);  2) Columbia-Montour - Bloomsburg, PA (504);  3) Greenwich - Greenwich, CT (067);  4) Westmoreland-Fayette - Greensburg, PA (512);  5) Pine Tree - Portland, ME (218)"]
[1,1,"224","Cape Cod and Islands","Yarmouth Port","MA","Selected","Iroquois Trail - Batavia, NY (376)","Rip Van Winkle - Kingston, NY (405)","Susquehanna - Williamsport, PA (533)","Columbia-Montour - Bloomsburg, PA (504)","Nashua Valley - Lancaster, MA (230)","Michael Riley","224-Cape Cod and Islands 2018 Comparative Councils: 1) Iroquois Trail - Batavia, NY (376);  2) Rip Van Winkle - Kingston, NY (405);  3) Susquehanna - Williamsport, PA (533);  4) Columbia-Montour - Bloomsburg, PA (504);  5) Nashua Valley - Lancaster, MA (230)"]
[1,1,"227","Spirit of Adventure","Boston","MA","Data not rcvd","None selected","None selected","None selected","None selected","None selected","","227-Spirit of Adventure 2018 Comparative Councils: 1) None selected;  2) None selected;  3) None selected;  4) None selected;  5) None selected"]
[1,1,"230","Nashua Valley","Lancaster","MA","Selected","Mohegan - Worcester, MA (254)","Western Massachusetts - Westfield, MA (234)","Mayflower - Marlborough, MA (251)","Pine Tree - Portland, ME (218)","Cape Cod and Islands - Yarmouth Port, MA (224)","Gary Savignano","230-Nashua Valley 2018 Comparative Councils: 1) Mohegan - Worcester, MA (254);  2) Western Massachusetts - Westfield, MA (234);  3) Mayflower - Marlborough, MA (251);  4) Pine Tree - Portland, ME (218);  5) Cape Cod and Islands - Yarmouth Port, MA (224)"]
[1,2,"234","Western Massachusetts","Westfield","MA","Selected","Mohegan - Worcester, MA (254)","Green Mountain - Waterbury, VT (592)","Nashua Valley - Lancaster, MA (230)","Leatherstocking - Utica, NY (400)","Five Rivers - Horseheads, NY (375)","David Kruse","234-Western Massachusetts 2018 Comparative Councils: 1) Mohegan - Worcester, MA (254);  2) Green Mountain - Waterbury, VT (592);  3) Nashua Valley - Lancaster, MA (230);  4) Leatherstocking - Utica, NY (400);  5) Five Rivers - Horseheads, NY (375)"]
[3,1,"250","Northern Star","St. Paul","MN","Selected","National Capital Area - Bethesda, MD (082)","Sam Houston Area - Houston, TX (576)","Heart of America - Kansas City, MO (307)","Greater St. Louis Area - St. Louis, MO (312)","Crossroads of America - Indianapolis, IN (160)","John R. Andrews","250-Northern Star 2018 Comparative Councils: 1) National Capital Area - Bethesda, MD (082);  2) Sam Houston Area - Houston, TX (576);  3) Heart of America - Kansas City, MO (307);  4) Greater St. Louis Area - St. Louis, MO (312);  5) Crossroads of America - Indianapolis, IN (160)"]
[1,1,"251","Mayflower","Marlborough","MA","Selected","Daniel Webster - Manchester, NH (330)","Narragansett - Providence, RI (546)","Spirit of Adventure - Boston, MA (227)","Last Frontier - Oklahoma City, OK (480)","North Florida - Jacksonville, FL (087)","Bryan Feather","251-Mayflower 2018 Comparative Councils: 1) Daniel Webster - Manchester, NH (330);  2) Narragansett - Providence, RI (546);  3) Spirit of Adventure - Boston, MA (227);  4) Last Frontier - Oklahoma City, OK (480);  5) North Florida - Jacksonville, FL (087)"]
[1,1,"254","Mohegan","Worcester","MA","Selected","Long Beach Area - Long Beach, CA (032)","Anthony Wayne Area - Fort Wayne, IN (157)","Nashua Valley - Lancaster, MA (230)","Pony Express - St. Joseph, MO (311)","Leatherstocking - Utica, NY (400)","Jeff Hotchkiss","254-Mohegan 2018 Comparative Councils: 1) Long Beach Area - Long Beach, CA (032);  2) Anthony Wayne Area - Fort Wayne, IN (157);  3) Nashua Valley - Lancaster, MA (230);  4) Pony Express - St. Joseph, MO (311);  5) Leatherstocking - Utica, NY (400)"]
[3,2,"272","Great Lakes","Detroit","MI","Not wanted","None selected","None selected","None selected","None selected","None selected","Vic Pooler","272-Great Lakes 2018 Comparative Councils: 1) None selected;  2) None selected;  3) None selected;  4) None selected;  5) None selected"]
[3,1,"283","Twin Valley","Mankato","MN","Selected","Central Minnesota - Sartell, MN (296)","Chippewa Valley - Eau Claire, WI (637)","Gamehaven - Rochester, MN (299)","Voyageurs Area - Hermantown, MN (286)","Gateway Area - La Crosse, WI (624)","Ray Brauer","283-Twin Valley 2018 Comparative Councils: 1) Central Minnesota - Sartell, MN (296);  2) Chippewa Valley - Eau Claire, WI (637);  3) Gamehaven - Rochester, MN (299);  4) Voyageurs Area - Hermantown, MN (286);  5) Gateway Area - La Crosse, WI (624)"]
[3,1,"286","Voyageurs Area","Hermantown","MN","Selected","Central Minnesota - Sartell, MN (296)","Chippewa Valley - Eau Claire, WI (637)","Gamehaven - Rochester, MN (299)","Potawatomi Area - Waukesha, WI (651)","Twin Valley - Mankato, MN (283)","Michael Jenkins","286-Voyageurs Area 2018 Comparative Councils: 1) Central Minnesota - Sartell, MN (296);  2) Chippewa Valley - Eau Claire, WI (637);  3) Gamehaven - Rochester, MN (299);  4) Potawatomi Area - Waukesha, WI (651);  5) Twin Valley - Mankato, MN (283)"]
[3,1,"296","Central Minnesota","Sartell","MN","Selected","Samoset - Weston, WI (627)","Gamehaven - Rochester, MN (299)","Hawkeye Area - Cedar Rapids, IA (172)","Cornhusker - Lincoln, NE (324)","Sioux - Sioux Falls, SD (733)","David Trehey","296-Central Minnesota 2018 Comparative Councils: 1) Samoset - Weston, WI (627);  2) Gamehaven - Rochester, MN (299);  3) Hawkeye Area - Cedar Rapids, IA (172);  4) Cornhusker - Lincoln, NE (324);  5) Sioux - Sioux Falls, SD (733)"]
[3,1,"299","Gamehaven","Rochester","MN","Selected","Twin Valley - Mankato, MN (283)","Gateway Area - La Crosse, WI (624)","Voyageurs Area - Hermantown, MN (286)","Central Minnesota - Sartell, MN (296)","Chippewa Valley - Eau Claire, WI (637)","Rich Avery","299-Gamehaven 2018 Comparative Councils: 1) Twin Valley - Mankato, MN (283);  2) Gateway Area - La Crosse, WI (624);  3) Voyageurs Area - Hermantown, MN (286);  4) Central Minnesota - Sartell, MN (296);  5) Chippewa Valley - Eau Claire, WI (637)"]
[2,1,"302","Choctaw Area","Meridian","MS","Selected","Black Warrior - Tuscaloosa, AL (006)","Yocona Area - Tupelo, MS (748)","Andrew Jackson - Jackson, MS (303)","Mobile Area - Mobile, AL (004)","Pushmataha Area - Columbus, MS (691)","Kenneth P. Kercheval","302-Choctaw Area 2018 Comparative Councils: 1) Black Warrior - Tuscaloosa, AL (006);  2) Yocona Area - Tupelo, MS (748);  3) Andrew Jackson - Jackson, MS (303);  4) Mobile Area - Mobile, AL (004);  5) Pushmataha Area - Columbus, MS (691)"]
[2,1,"303","Andrew Jackson","Jackson","MS","Selected","Pine Burr Area - Hattiesburg, MS (304)","West Tennessee Area - Jackson, TN (559)","Gulf Coast - Pensacola, FL (773)","Black Warrior - Tuscaloosa, AL (006)","Chattahoochee - Columbus, GA (091)","Anthony D. Haines","303-Andrew Jackson 2018 Comparative Councils: 1) Pine Burr Area - Hattiesburg, MS (304);  2) West Tennessee Area - Jackson, TN (559);  3) Gulf Coast - Pensacola, FL (773);  4) Black Warrior - Tuscaloosa, AL (006);  5) Chattahoochee - Columbus, GA (091)"]
[2,1,"304","Pine Burr Area","Hattiesburg","MS","Selected","Andrew Jackson - Jackson, MS (303)","Gulf Coast - Pensacola, FL (773)","Cherokee Area - Chattanooga, TN (556)","Sequoyah - Johnson City, TN (713)","Louisiana Purchase - Monroe, LA (213)","Casey Norwood","304-Pine Burr Area 2018 Comparative Councils: 1) Andrew Jackson - Jackson, MS (303);  2) Gulf Coast - Pensacola, FL (773);  3) Cherokee Area - Chattanooga, TN (556);  4) Sequoyah - Johnson City, TN (713);  5) Louisiana Purchase - Monroe, LA (213)"]
[3,5,"306","Ozark Trails","Springfield","MO","Selected","Quivira - Wichita, KS (198)","Cornhusker - Lincoln, NE (324)","Great Rivers - Columbia, MO (653)","Quapaw Area - Little Rock, AR (018)","Westark Area - Fort Smith, AR (016)","John Feick","306-Ozark Trails 2018 Comparative Councils: 1) Quivira - Wichita, KS (198);  2) Cornhusker - Lincoln, NE (324);  3) Great Rivers - Columbia, MO (653);  4) Quapaw Area - Little Rock, AR (018);  5) Westark Area - Fort Smith, AR (016)"]
[3,5,"307","Heart of America","Kansas City","MO","Selected","Circle Ten - Dallas, TX (571)","Crossroads of America - Indianapolis, IN (160)","Greater St. Louis Area - St. Louis, MO (312)","Denver Area - Denver, CO (061)","Northern Star - St. Paul, MN (250)","Kendrick Miller","307-Heart of America 2018 Comparative Councils: 1) Circle Ten - Dallas, TX (571);  2) Crossroads of America - Indianapolis, IN (160);  3) Greater St. Louis Area - St. Louis, MO (312);  4) Denver Area - Denver, CO (061);  5) Northern Star - St. Paul, MN (250)"]
[3,5,"311","Pony Express","St. Joseph","MO","Selected","Coronado Area - Salina, KS (192)","Cornhusker - Lincoln, NE (324)","Jayhawk Area - Topeka, KS (197)","Overland Trails - Grand Island, NE (322)","None selected","Alan Franks","311-Pony Express 2018 Comparative Councils: 1) Coronado Area - Salina, KS (192);  2) Cornhusker - Lincoln, NE (324);  3) Jayhawk Area - Topeka, KS (197);  4) Overland Trails - Grand Island, NE (322);  5) None selected"]
[3,3,"312","Greater St. Louis Area","St. Louis","MO","Not provided","None selected","None selected","None selected","None selected","None selected","Ronald Green","312-Greater St. Louis Area 2018 Comparative Councils: 1) None selected;  2) None selected;  3) None selected;  4) None selected;  5) None selected"]
[4,2,"315","Montana","Great Falls","MT","Selected","Pikes Peak - Colorado Springs, CO (060)","Longs Peak - Greeley, CO (062)","None selected","None selected","None selected","Don Bean","315-Montana 2018 Comparative Councils: 1) Pikes Peak - Colorado Springs, CO (060);  2) Longs Peak - Greeley, CO (062);  3) None selected;  4) None selected;  5) None selected"]
[3,5,"322","Overland Trails","Grand Island","NE","Selected","Central Minnesota - Sartell, MN (296)","Coronado Area - Salina, KS (192)","Winnebago - Waterloo, IA (173)","Western Colorado - Grand Junction, CO (064)","Santa Fe Trail - Garden City, KS (194)","David Plond","322-Overland Trails 2018 Comparative Councils: 1) Central Minnesota - Sartell, MN (296);  2) Coronado Area - Salina, KS (192);  3) Winnebago - Waterloo, IA (173);  4) Western Colorado - Grand Junction, CO (064);  5) Santa Fe Trail - Garden City, KS (194)"]
[3,5,"324","Cornhusker","Lincoln","NE","Selected","Coronado Area - Salina, KS (192) for ME","Mid-Iowa - Des Moines, IA (177) for FI","None selected","None selected","None selected","Chris Blum","324-Cornhusker 2018 Comparative Councils: 1) Coronado Area - Salina, KS (192) for ME;  2) Mid-Iowa - Des Moines, IA (177) for FI;  3) None selected;  4) None selected;  5) None selected"]
[3,5,"326","Mid-America","Omaha","NE","Selected","Lake Erie - Cleveland, OH (440)","Greater Alabama - Birmingham, AL (001)","Bay-Lakes - Appleton, WI (635)","Middle Tennessee - Nashville, TN (560)","Central Florida - Orlando, FL (083)","Chris S. Mehaffey","326-Mid-America 2018 Comparative Councils: 1) Lake Erie - Cleveland, OH (440);  2) Greater Alabama - Birmingham, AL (001);  3) Bay-Lakes - Appleton, WI (635);  4) Middle Tennessee - Nashville, TN (560);  5) Central Florida - Orlando, FL (083)"]
[4,6,"328","Las Vegas Area","Las Vegas","NV","Selected","California Inland Empire - Redlands, CA (045)","San Diego-Imperial - San Diego, CA (049)","Aloha - Honolulu, HI (104)","Longs Peak - Greeley, CO (062)","Pikes Peak - Colorado Springs, CO (060)","Mike Marchese","328-Las Vegas Area 2018 Comparative Councils: 1) California Inland Empire - Redlands, CA (045);  2) San Diego-Imperial - San Diego, CA (049);  3) Aloha - Honolulu, HI (104);  4) Longs Peak - Greeley, CO (062);  5) Pikes Peak - Colorado Springs, CO (060)"]
[4,3,"329","Nevada Area","Reno","NV","Selected","Catalina - Tucson, AZ (011)","Crater Lake - Central Point, OR (491)","Greater Yosemite - Modesto, CA (059)","Rocky Mountain - Pueblo, CO (063)","Ore-Ida - Boise, ID (106)","Paul Penttila","329-Nevada Area 2018 Comparative Councils: 1) Catalina - Tucson, AZ (011);  2) Crater Lake - Central Point, OR (491);  3) Greater Yosemite - Modesto, CA (059);  4) Rocky Mountain - Pueblo, CO (063);  5) Ore-Ida - Boise, ID (106)"]
[1,1,"330","Daniel Webster","Manchester","NH","Selected","Connecticut Rivers - East Hartford, CT (066)","Pine Tree - Portland, ME (218)","Narragansett - Providence, RI (546)","Spirit of Adventure - Boston, MA (227)","Mayflower - Marlborough, MA (251)","Michelle Tickler","330-Daniel Webster 2018 Comparative Councils: 1) Connecticut Rivers - East Hartford, CT (066);  2) Pine Tree - Portland, ME (218);  3) Narragansett - Providence, RI (546);  4) Spirit of Adventure - Boston, MA (227);  5) Mayflower - Marlborough, MA (251)"]
[1,5,"333","Northern New Jersey","Oakland","NJ","Selected","Patriots' Path - Cedar Knolls, NJ (358)","Westchester-Putnam - Hawthorne, NY (388)","Minsi Trails - Lehigh Valley, PA (502)","Twin Rivers - Albany, NY (364)","Washington Crossing - Doylestown, PA (777)","Rebecca Fields","333-Northern New Jersey 2018 Comparative Councils: 1) Patriots' Path - Cedar Knolls, NJ (358);  2) Westchester-Putnam - Hawthorne, NY (388);  3) Minsi Trails - Lehigh Valley, PA (502);  4) Twin Rivers - Albany, NY (364);  5) Washington Crossing - Doylestown, PA (777)"]
[1,5,"341","Jersey Shore","Toms River","NJ","Selected","Northeastern Pennsylvania - Moosic, PA (501)","Garden State - Westampton, NJ (690)","Monmouth - Morganville, NJ (347)","Washington Crossing - Doylestown, PA (777)","Patriots' Path - Cedar Knolls, NJ (358)","James Gillick","341-Jersey Shore 2018 Comparative Councils: 1) Northeastern Pennsylvania - Moosic, PA (501);  2) Garden State - Westampton, NJ (690);  3) Monmouth - Morganville, NJ (347);  4) Washington Crossing - Doylestown, PA (777);  5) Patriots' Path - Cedar Knolls, NJ (358)"]
[1,5,"347","Monmouth","Morganville","NJ","Selected","Garden State - Westampton, NJ (690)","Washington Crossing - Doylestown, PA (777)","Theodore Roosevelt - Massapequa, NY (386)","Suffolk County - Medford, NY (404)","Westchester-Putnam - Hawthorne, NY (388)","Michael P. Mahon","347-Monmouth 2018 Comparative Councils: 1) Garden State - Westampton, NJ (690);  2) Washington Crossing - Doylestown, PA (777);  3) Theodore Roosevelt - Massapequa, NY (386);  4) Suffolk County - Medford, NY (404);  5) Westchester-Putnam - Hawthorne, NY (388)"]
[1,5,"358","Patriots' Path","Cedar Knolls","NJ","Selected","Baltimore Area - Baltimore, MD (220)","Cradle of Liberty - Philadelphia, PA (525)","Connecticut Rivers - East Hartford, CT (066)","Northern New Jersey - Oakland, NJ (333)","Narragansett - Providence, RI (546)","Mark Spaldo","358-Patriots' Path 2018 Comparative Councils: 1) Baltimore Area - Baltimore, MD (220);  2) Cradle of Liberty - Philadelphia, PA (525);  3) Connecticut Rivers - East Hartford, CT (066);  4) Northern New Jersey - Oakland, NJ (333);  5) Narragansett - Providence, RI (546)"]
[1,3,"364","Twin Rivers","Albany","NY","Not wanted","None selected","None selected","None selected","None selected","None selected","Dennis Dugan","364-Twin Rivers 2018 Comparative Councils: 1) None selected;  2) None selected;  3) None selected;  4) None selected;  5) None selected"]
[1,3,"368","Baden-Powell","Binghamton","NY","Selected","Five Rivers - Horseheads, NY (375)","Leatherstocking - Utica, NY (400)","Northeastern Pennsylvania - Moosic, PA (501)","Seneca Waterways - Rochester, NY (397)","Longhouse - Syracuse, NY (373)","Rick Christ","368-Baden-Powell 2018 Comparative Councils: 1) Five Rivers - Horseheads, NY (375);  2) Leatherstocking - Utica, NY (400);  3) Northeastern Pennsylvania - Moosic, PA (501);  4) Seneca Waterways - Rochester, NY (397);  5) Longhouse - Syracuse, NY (373)"]
[1,3,"373","Longhouse","Syracuse","NY","Selected","Leatherstocking - Utica, NY (400)","Baden-Powell - Binghamton, NY (368)","Five Rivers - Horseheads, NY (375)","Green Mountain - Waterbury, VT (592)","None selected","Grey Rolland",{"$f":"_xlfn.CONCAT(C131) & \"-\" & D131 & \" 2018 Comparative Councils: \" & \"1) \" & (H131) & \";  2) \" & (I131) & \";  3) \" & (J131) & \";  4) \" & (K131) & \";  5) \" & (L131)","v":"373-Longhouse 2018 Comparative Councils: 1) Leatherstocking - Utica, NY (400);  2) Baden-Powell - Binghamton, NY (368);  3) Five Rivers - Horseheads, NY (375);  4) Green Mountain - Waterbury, VT (592);  5) None selected"}]
[1,2,"374","Hudson Valley","Newburgh","NY","Selected","Western Massachusetts - Westfield, MA (234)","Baden-Powell - Binghamton, NY (368)","Westchester-Putnam - Hawthorne, NY (388)","Suffolk County - Medford, NY (404)","Hawk Mountain - Reading, PA (528)","David Horton","374-Hudson Valley 2018 Comparative Councils: 1) Western Massachusetts - Westfield, MA (234);  2) Baden-Powell - Binghamton, NY (368);  3) Westchester-Putnam - Hawthorne, NY (388);  4) Suffolk County - Medford, NY (404);  5) Hawk Mountain - Reading, PA (528)"]
[1,3,"375","Five Rivers","Horseheads","NY","Selected","Baden-Powell - Binghamton, NY (368)","Longhouse - Syracuse, NY (373)","Iroquois Trail - Batavia, NY (376)","Allegheny Highlands - Falconer, NY (382)","Susquehanna - Williamsport, PA (533)","Gary Decker","375-Five Rivers 2018 Comparative Councils: 1) Baden-Powell - Binghamton, NY (368);  2) Longhouse - Syracuse, NY (373);  3) Iroquois Trail - Batavia, NY (376);  4) Allegheny Highlands - Falconer, NY (382);  5) Susquehanna - Williamsport, PA (533)"]
[1,3,"376","Iroquois Trail","Batavia","NY","Selected","Five Rivers - Horseheads, NY (375)","Longhouse - Syracuse, NY (373)","Allegheny Highlands - Falconer, NY (382)","Susquehanna - Williamsport, PA (533)","Green Mountain - Waterbury, VT (592)","Brad Bowersox","376-Iroquois Trail 2018 Comparative Councils: 1) Five Rivers - Horseheads, NY (375);  2) Longhouse - Syracuse, NY (373);  3) Allegheny Highlands - Falconer, NY (382);  4) Susquehanna - Williamsport, PA (533);  5) Green Mountain - Waterbury, VT (592)"]
[1,3,"380","Greater Niagara Frontier","Buffalo","NY","Selected","Twin Rivers - Albany, NY (364)","Pennsylvania Dutch - Lancaster, PA (524)","Garden State - Westampton, NJ (690)","Connecticut Yankee - Milford, CT (072)","Hawk Mountain - Reading, PA (528)","Russell Etzenhouser","380-Greater Niagara Frontier 2018 Comparative Councils: 1) Twin Rivers - Albany, NY (364);  2) Pennsylvania Dutch - Lancaster, PA (524);  3) Garden State - Westampton, NJ (690);  4) Connecticut Yankee - Milford, CT (072);  5) Hawk Mountain - Reading, PA (528)"]
[1,4,"382","Allegheny Highlands","Falconer","NY","Not wanted","None selected","None selected","None selected","None selected","None selected","John Wojciechowicz","382-Allegheny Highlands 2018 Comparative Councils: 1) None selected;  2) None selected;  3) None selected;  4) None selected;  5) None selected"]
[1,2,"386","Theodore Roosevelt","Massapequa","NY","Selected","Suffolk County - Medford, NY (404)","Hudson Valley - Newburgh, NY (374)","Connecticut Yankee - Milford, CT (072)","Patriots' Path - Cedar Knolls, NJ (358)","Mecklenburg County - Charlotte, NC (415)","chris coscia","386-Theodore Roosevelt 2018 Comparative Councils: 1) Suffolk County - Medford, NY (404);  2) Hudson Valley - Newburgh, NY (374);  3) Connecticut Yankee - Milford, CT (072);  4) Patriots' Path - Cedar Knolls, NJ (358);  5) Mecklenburg County - Charlotte, NC (415)"]
[1,2,"388","Westchester-Putnam","Hawthorne","NY","Selected","Connecticut Yankee - Milford, CT (072)","Northern New Jersey - Oakland, NJ (333)","Twin Rivers - Albany, NY (364)","Greater Niagara Frontier - Buffalo, NY (380)","Mayflower - Marlborough, MA (251)","Richard Stockton","388-Westchester-Putnam 2018 Comparative Councils: 1) Connecticut Yankee - Milford, CT (072);  2) Northern New Jersey - Oakland, NJ (333);  3) Twin Rivers - Albany, NY (364);  4) Greater Niagara Frontier - Buffalo, NY (380);  5) Mayflower - Marlborough, MA (251)"]
[1,3,"397","Seneca Waterways","Rochester","NY","Selected","Laurel Highlands - Pittsburgh, PA (527)","Daniel Webster - Manchester, NH (330)","Greater Niagara Frontier - Buffalo, NY (380)","Heart of Virginia - Richmond, VA (602)","Lake Erie - Cleveland, OH (440)","Stephen T. Hoitt","397-Seneca Waterways 2018 Comparative Councils: 1) Laurel Highlands - Pittsburgh, PA (527);  2) Daniel Webster - Manchester, NH (330);  3) Greater Niagara Frontier - Buffalo, NY (380);  4) Heart of Virginia - Richmond, VA (602);  5) Lake Erie - Cleveland, OH (440)"]
[1,3,"400","Leatherstocking","Utica","NY","Selected","Twin Rivers - Albany, NY (364)","Longhouse - Syracuse, NY (373)","Baden-Powell - Binghamton, NY (368)","None selected","None selected","Steven K. McEwan","400-Leatherstocking 2018 Comparative Councils: 1) Twin Rivers - Albany, NY (364);  2) Longhouse - Syracuse, NY (373);  3) Baden-Powell - Binghamton, NY (368);  4) None selected;  5) None selected"]
[1,2,"404","Suffolk County","Medford","NY","None selected","None selected","None selected","None selected","None selected","None selected","Ryan DiBernardo","404-Suffolk County 2018 Comparative Councils: 1) None selected;  2) None selected;  3) None selected;  4) None selected;  5) None selected"]
[1,2,"405","Rip Van Winkle","Kingston","NY","Selected","Housatonic - Derby, CT (069)","Connecticut Yankee - Milford, CT (072)","Leatherstocking - Utica, NY (400)","Western Massachusetts - Westfield, MA (234)","None selected","Ray Braun","405-Rip Van Winkle 2018 Comparative Councils: 1) Housatonic - Derby, CT (069);  2) Connecticut Yankee - Milford, CT (072);  3) Leatherstocking - Utica, NY (400);  4) Western Massachusetts - Westfield, MA (234);  5) None selected"]
[4,6,"412","Great Southwest","Albuquerque","NM","Selected","Catalina - Tucson, AZ (011)","Yucca - El Paso, TX (573)","Conquistador - Roswell, NM (413)","South Plains - Lubbock, TX (694)","Buffalo Trail - Midland, TX (567)","Christopher W. Shelby","412-Great Southwest 2018 Comparative Councils: 1) Catalina - Tucson, AZ (011);  2) Yucca - El Paso, TX (573);  3) Conquistador - Roswell, NM (413);  4) South Plains - Lubbock, TX (694);  5) Buffalo Trail - Midland, TX (567)"]
[4,6,"413","Conquistador","Roswell","NM","Selected","Texas Southwest - San Angelo, TX (741)","Maui County - Wailuku, Maui, HI (102)","Yucca - El Paso, TX (573)","Arbuckle Area - Ardmore, OK (468)","Western Colorado - Grand Junction, CO (064)","Jacob Armstrong","413-Conquistador 2018 Comparative Councils: 1) Texas Southwest - San Angelo, TX (741);  2) Maui County - Wailuku, Maui, HI (102);  3) Yucca - El Paso, TX (573);  4) Arbuckle Area - Ardmore, OK (468);  5) Western Colorado - Grand Junction, CO (064)"]
[2,5,"414","Daniel Boone","Asheville","NC","Selected","Blue Ridge - Greenville, SC (551)","Palmetto - Spartanburg, SC (549)","Sequoyah - Johnson City, TN (713)","South Florida - Miami Lakes, FL (084)","Three Harbors - Milwaukee, WI (636)","Joshua Christ","414-Daniel Boone 2018 Comparative Councils: 1) Blue Ridge - Greenville, SC (551);  2) Palmetto - Spartanburg, SC (549);  3) Sequoyah - Johnson City, TN (713);  4) South Florida - Miami Lakes, FL (084);  5) Three Harbors - Milwaukee, WI (636)"]
[2,5,"415","Mecklenburg County","Charlotte","NC","Selected","Blue Ridge - Greenville, SC (551)","Occoneechee - Raleigh, NC (421)","Greater Tampa Bay Area - Tampa, FL (089)","Atlanta Area - Atlanta, GA (092)","Cherokee Area - Chattanooga, TN (556)","Mark Turner","415-Mecklenburg County 2018 Comparative Councils: 1) Blue Ridge - Greenville, SC (551);  2) Occoneechee - Raleigh, NC (421);  3) Greater Tampa Bay Area - Tampa, FL (089);  4) Atlanta Area - Atlanta, GA (092);  5) Cherokee Area - Chattanooga, TN (556)"]
[2,5,"416","Central North Carolina","Albemarle","NC","Selected","Mecklenburg County - Charlotte, NC (415)","Piedmont - Gastonia, NC (420)","Palmetto - Spartanburg, SC (549)","Blue Ridge - Greenville, SC (551)","Old North State - Greensboro, NC (070)","Bob McGowan","416-Central North Carolina 2018 Comparative Councils: 1) Mecklenburg County - Charlotte, NC (415);  2) Piedmont - Gastonia, NC (420);  3) Palmetto - Spartanburg, SC (549);  4) Blue Ridge - Greenville, SC (551);  5) Old North State - Greensboro, NC (070)"]
[2,5,"420","Piedmont","Gastonia","NC","Selected","Mecklenburg County - Charlotte, NC (415)","Blue Ridge - Greenville, SC (551)","Occoneechee - Raleigh, NC (421)","Old Hickory - Winston-Salem, NC (427)","Heart of Virginia - Richmond, VA (602)","Jesse C Bowes Jr","420-Piedmont 2018 Comparative Councils: 1) Mecklenburg County - Charlotte, NC (415);  2) Blue Ridge - Greenville, SC (551);  3) Occoneechee - Raleigh, NC (421);  4) Old Hickory - Winston-Salem, NC (427);  5) Heart of Virginia - Richmond, VA (602)"]
[2,7,"421","Occoneechee","Raleigh","NC","Selected","Heart of Virginia - Richmond, VA (602)","North Florida - Jacksonville, FL (087)","None selected","None selected","None selected","John Akerman","421-Occoneechee 2018 Comparative Councils: 1) Heart of Virginia - Richmond, VA (602);  2) North Florida - Jacksonville, FL (087);  3) None selected;  4) None selected;  5) None selected"]
[2,7,"424","Tuscarora","Goldsboro","NC","Selected","Pee Dee Area - Florence, SC (552)","Shenandoah Area - Winchester, VA (598)","Palmetto - Spartanburg, SC (549)","None selected","None selected","Jason Smith","424-Tuscarora 2018 Comparative Councils: 1) Pee Dee Area - Florence, SC (552);  2) Shenandoah Area - Winchester, VA (598);  3) Palmetto - Spartanburg, SC (549);  4) None selected;  5) None selected"]
[2,7,"425","Cape Fear","Wilmington","NC","Not wanted","None selected","None selected","None selected","None selected","None selected","Jonathan Widmark ","425-Cape Fear 2018 Comparative Councils: 1) None selected;  2) None selected;  3) None selected;  4) None selected;  5) None selected"]
[2,7,"426","East Carolina","Kinston","NC","Selected","Old North State - Greensboro, NC (070)","Old Hickory - Winston-Salem, NC (427)","Heart of Virginia - Richmond, VA (602)","Cape Fear - Wilmington, NC (425)","Tidewater - Virginia Beach, VA (596)","Doug Brown, Jr.","426-East Carolina 2018 Comparative Councils: 1) Old North State - Greensboro, NC (070);  2) Old Hickory - Winston-Salem, NC (427);  3) Heart of Virginia - Richmond, VA (602);  4) Cape Fear - Wilmington, NC (425);  5) Tidewater - Virginia Beach, VA (596)"]
[2,7,"427","Old Hickory","Winston-Salem","NC","Selected","Blue Ridge - Greenville, SC (551)","Cape Fear - Wilmington, NC (425)","Daniel Boone - Asheville, NC (414)","Flint River - Griffin, GA (095)","Old North State - Greensboro, NC (070)","Steve Wilburn","427-Old Hickory 2018 Comparative Councils: 1) Blue Ridge - Greenville, SC (551);  2) Cape Fear - Wilmington, NC (425);  3) Daniel Boone - Asheville, NC (414);  4) Flint River - Griffin, GA (095);  5) Old North State - Greensboro, NC (070)"]
[3,1,"429","Northern Lights","Fargo","ND","Selected","Longs Peak - Greeley, CO (062)","Grand Teton - Idaho Falls, ID (107)","Montana - Great Falls, MT (315)","President Gerald R. Ford - Grand Rapids, MI (781)","Mid-Iowa - Des Moines, IA (177)","Roger B. Hoyt","429-Northern Lights 2018 Comparative Councils: 1) Longs Peak - Greeley, CO (062);  2) Grand Teton - Idaho Falls, ID (107);  3) Montana - Great Falls, MT (315);  4) President Gerald R. Ford - Grand Rapids, MI (781);  5) Mid-Iowa - Des Moines, IA (177)"]
[3,4,"433","Great Trail","Akron","OH","Selected","Buckeye - Canton, OH (436)","Northeast Illinois - Highland Park, IL (129)","Mid-America - Omaha, NE (326)","Quivira - Wichita, KS (198)","Minsi Trails - Lehigh Valley, PA (502)","Patrick Scherer","433-Great Trail 2018 Comparative Councils: 1) Buckeye - Canton, OH (436);  2) Northeast Illinois - Highland Park, IL (129);  3) Mid-America - Omaha, NE (326);  4) Quivira - Wichita, KS (198);  5) Minsi Trails - Lehigh Valley, PA (502)"]
[3,4,"436","Buckeye","Canton","OH","Selected","Great Trail - Akron, OH (433)","Lake Erie - Cleveland, OH (440)","Mid-Iowa - Des Moines, IA (177)","Three Harbors - Milwaukee, WI (636)","None selected","Nathan Hopper","436-Buckeye 2018 Comparative Councils: 1) Great Trail - Akron, OH (433);  2) Lake Erie - Cleveland, OH (440);  3) Mid-Iowa - Des Moines, IA (177);  4) Three Harbors - Milwaukee, WI (636);  5) None selected"]
[3,6,"438","Dan Beard","Cincinnati","OH","Selected","Laurel Highlands - Pittsburgh, PA (527)","Baltimore Area - Baltimore, MD (220)","Simon Kenton - Columbus, OH (441)","Greater St. Louis Area - St. Louis, MO (312)","Crossroads of America - Indianapolis, IN (160)","Michael Kostic","438-Dan Beard 2018 Comparative Councils: 1) Laurel Highlands - Pittsburgh, PA (527);  2) Baltimore Area - Baltimore, MD (220);  3) Simon Kenton - Columbus, OH (441);  4) Greater St. Louis Area - St. Louis, MO (312);  5) Crossroads of America - Indianapolis, IN (160)"]
[3,6,"439","Tecumseh","Springfield","OH","Selected","Miami Valley - Dayton, OH (444)","Black Swamp Area - Findlay, OH (449)","Muskingum Valley - Zanesville, OH (467)","Ohio River Valley - Wheeling, WV (619)","Anthony Wayne Area - Fort Wayne, IN (157)","Rob Lavoie","439-Tecumseh 2018 Comparative Councils: 1) Miami Valley - Dayton, OH (444);  2) Black Swamp Area - Findlay, OH (449);  3) Muskingum Valley - Zanesville, OH (467);  4) Ohio River Valley - Wheeling, WV (619);  5) Anthony Wayne Area - Fort Wayne, IN (157)"]
[3,4,"440","Lake Erie","Cleveland","OH","Selected","Simon Kenton - Columbus, OH (441)","Dan Beard - Cincinnati, OH (438)","Bay-Lakes - Appleton, WI (635)","Laurel Highlands - Pittsburgh, PA (527)","Spirit of Adventure - Boston, MA (227)","Marc Ryan","440-Lake Erie 2018 Comparative Councils: 1) Simon Kenton - Columbus, OH (441);  2) Dan Beard - Cincinnati, OH (438);  3) Bay-Lakes - Appleton, WI (635);  4) Laurel Highlands - Pittsburgh, PA (527);  5) Spirit of Adventure - Boston, MA (227)"]
[3,4,"441","Simon Kenton","Columbus","OH","Selected","Bay-Lakes - Appleton, WI (635)","Mid-America - Omaha, NE (326)","Dan Beard - Cincinnati, OH (438)","Pathway to Adventure - Chicago, IL (456)","Three Fires - St. Charles, IL (127)","Jeff Moe","441-Simon Kenton 2018 Comparative Councils: 1) Bay-Lakes - Appleton, WI (635);  2) Mid-America - Omaha, NE (326);  3) Dan Beard - Cincinnati, OH (438);  4) Pathway to Adventure - Chicago, IL (456);  5) Three Fires - St. Charles, IL (127)"]
[3,6,"444","Miami Valley","Dayton","OH","Selected","Black Swamp Area - Findlay, OH (449)","Sagamore - Kokomo, IN (162)","Buckeye - Canton, OH (436)","Allohak - Parkersburg, WV (618)","Blue Grass - Lexington, KY (204)","Jeffrey Schiavone","444-Miami Valley 2018 Comparative Councils: 1) Black Swamp Area - Findlay, OH (449);  2) Sagamore - Kokomo, IN (162);  3) Buckeye - Canton, OH (436);  4) Allohak - Parkersburg, WV (618);  5) Blue Grass - Lexington, KY (204)"]
[3,6,"449","Black Swamp Area","Findlay","OH","Selected","Buckeye - Canton, OH (436)","Erie Shores - Toledo, OH (460)","Anthony Wayne Area - Fort Wayne, IN (157)","Sagamore - Kokomo, IN (162)","Miami Valley - Dayton, OH (444)","Marc Kogan","449-Black Swamp Area 2018 Comparative Councils: 1) Buckeye - Canton, OH (436);  2) Erie Shores - Toledo, OH (460);  3) Anthony Wayne Area - Fort Wayne, IN (157);  4) Sagamore - Kokomo, IN (162);  5) Miami Valley - Dayton, OH (444)"]
[3,7,"456","Pathway to Adventure","Chicago","IL","Selected","Crossroads of America - Indianapolis, IN (160)","Great Lakes - Detroit, MI (272)","Heart of America - Kansas City, MO (307)","Laurel Highlands - Pittsburgh, PA (527)","Lake Erie - Cleveland, OH (440)","Aaron Gach","456-Pathway to Adventure 2018 Comparative Councils: 1) Crossroads of America - Indianapolis, IN (160);  2) Great Lakes - Detroit, MI (272);  3) Heart of America - Kansas City, MO (307);  4) Laurel Highlands - Pittsburgh, PA (527);  5) Lake Erie - Cleveland, OH (440)"]
[3,6,"460","Erie Shores","Toledo","OH","Selected","Black Swamp Area - Findlay, OH (449)","Simon Kenton - Columbus, OH (441)","Three Fires - St. Charles, IL (127)","W.D. Boyce - Peoria, IL (138)","Three Harbors - Milwaukee, WI (636)","Ed Caldwell","460-Erie Shores 2018 Comparative Councils: 1) Black Swamp Area - Findlay, OH (449);  2) Simon Kenton - Columbus, OH (441);  3) Three Fires - St. Charles, IL (127);  4) W.D. Boyce - Peoria, IL (138);  5) Three Harbors - Milwaukee, WI (636)"]
[3,4,"467","Muskingum Valley","Zanesville","OH","Selected","Allohak - Parkersburg, WV (618)","Ohio River Valley - Wheeling, WV (619)","Tecumseh - Springfield, OH (439)","Simon Kenton - Columbus, OH (441)","Great Trail - Akron, OH (433)","Ed Mulholland","467-Muskingum Valley 2018 Comparative Councils: 1) Allohak - Parkersburg, WV (618);  2) Ohio River Valley - Wheeling, WV (619);  3) Tecumseh - Springfield, OH (439);  4) Simon Kenton - Columbus, OH (441);  5) Great Trail - Akron, OH (433)"]
[2,8,"468","Arbuckle Area","Ardmore","OK","Selected","Cherokee Area - Bartlesville, OK (469)","De Soto Area - El Dorado, AR (013)","Choctaw Area - Meridian, MS (302)","Texas Trails - Abilene, TX (561)","Santa Fe Trail - Garden City, KS (194)","Brett Matherly","468-Arbuckle Area 2018 Comparative Councils: 1) Cherokee Area - Bartlesville, OK (469);  2) De Soto Area - El Dorado, AR (013);  3) Choctaw Area - Meridian, MS (302);  4) Texas Trails - Abilene, TX (561);  5) Santa Fe Trail - Garden City, KS (194)"]
[2,8,"469","Cherokee Area","Bartlesville","OK","Selected","Arbuckle Area - Ardmore, OK (468)","Cimarron - Enid, OK (474)","De Soto Area - El Dorado, AR (013)","Westark Area - Fort Smith, AR (016)","Northwest Texas - Wichita Falls, TX (587)","David G. Richardson","469-Cherokee Area 2018 Comparative Councils: 1) Arbuckle Area - Ardmore, OK (468);  2) Cimarron - Enid, OK (474);  3) De Soto Area - El Dorado, AR (013);  4) Westark Area - Fort Smith, AR (016);  5) Northwest Texas - Wichita Falls, TX (587)"]
[2,8,"474","Cimarron","Enid","OK","Selected","Northwest Texas - Wichita Falls, TX (587)","Arbuckle Area - Ardmore, OK (468)","Cherokee Area - Bartlesville, OK (469)","Santa Fe Trail - Garden City, KS (194)","De Soto Area - El Dorado, AR (013)","Bobby Schultz","474-Cimarron 2018 Comparative Councils: 1) Northwest Texas - Wichita Falls, TX (587);  2) Arbuckle Area - Ardmore, OK (468);  3) Cherokee Area - Bartlesville, OK (469);  4) Santa Fe Trail - Garden City, KS (194);  5) De Soto Area - El Dorado, AR (013)"]
[2,8,"480","Last Frontier","Oklahoma City","OK","Selected","Capitol Area - Austin, TX (564)","Indian Nations - Tulsa, OK (488)","Great Smoky Mountain - Knoxville, TN (557)","None selected","None selected","Jeff Woolsey","480-Last Frontier 2018 Comparative Councils: 1) Capitol Area - Austin, TX (564);  2) Indian Nations - Tulsa, OK (488);  3) Great Smoky Mountain - Knoxville, TN (557);  4) None selected;  5) None selected"]
[2,8,"488","Indian Nations","Tulsa","OK","Selected","Capitol Area - Austin, TX (564)","Northeast Georgia - Jefferson, GA (101)","Grand Canyon - Phoenix, AZ (010)","Greater Alabama - Birmingham, AL (001)","Lincoln Heritage - Louisville, KY (205)","Bill Haines","488-Indian Nations 2018 Comparative Councils: 1) Capitol Area - Austin, TX (564);  2) Northeast Georgia - Jefferson, GA (101);  3) Grand Canyon - Phoenix, AZ (010);  4) Greater Alabama - Birmingham, AL (001);  5) Lincoln Heritage - Louisville, KY (205)"]
[4,1,"491","Crater Lake","Central Point","OR","Not wanted","None selected","None selected","None selected","None selected","None selected","Kevin Patterson","491-Crater Lake 2018 Comparative Councils: 1) None selected;  2) None selected;  3) None selected;  4) None selected;  5) None selected"]
[4,1,"492","Cascade Pacific","Portland","OR","Selected","Chief Seattle - Seattle, WA (609)","Denver Area - Denver, CO (061)","Greater Los Angeles Area - Los Angeles, CA (033)","San Diego-Imperial - San Diego, CA (049)","Central Florida - Orlando, FL (083)","Matt Devore","492-Cascade Pacific 2018 Comparative Councils: 1) Chief Seattle - Seattle, WA (609);  2) Denver Area - Denver, CO (061);  3) Greater Los Angeles Area - Los Angeles, CA (033);  4) San Diego-Imperial - San Diego, CA (049);  5) Central Florida - Orlando, FL (083)"]
[1,4,"497","Juniata Valley","Reedsville","PA","Selected","Muskingum Valley - Zanesville, OH (467)","Mountaineer Area - Fairmont, WV (615)","Prairielands - Champaign, IL (117)","Mason-Dixon - Hagerstown, MD (221)","Susquehanna - Williamsport, PA (533)","Jim Kennedy","497-Juniata Valley 2018 Comparative Councils: 1) Muskingum Valley - Zanesville, OH (467);  2) Mountaineer Area - Fairmont, WV (615);  3) Prairielands - Champaign, IL (117);  4) Mason-Dixon - Hagerstown, MD (221);  5) Susquehanna - Williamsport, PA (533)"]
[1,4,"500","Moraine Trails","Butler","PA","Selected","Bucktail - DuBois, PA (509)","French Creek - Erie, PA (532)","Westmoreland-Fayette - Greensburg, PA (512)","Juniata Valley - Reedsville, PA (497)","Susquehanna - Williamsport, PA (533)","Ray Tennent","500-Moraine Trails 2018 Comparative Councils: 1) Bucktail - DuBois, PA (509);  2) French Creek - Erie, PA (532);  3) Westmoreland-Fayette - Greensburg, PA (512);  4) Juniata Valley - Reedsville, PA (497);  5) Susquehanna - Williamsport, PA (533)"]
[1,5,"501","Northeastern Pennsylvania","Moosic","PA","Selected","Baden-Powell - Binghamton, NY (368)","Pennsylvania Dutch - Lancaster, PA (524)","Monmouth - Morganville, NJ (347)","Westmoreland-Fayette - Greensburg, PA (512)","Leatherstocking - Utica, NY (400)","Mark Barbernitz","501-Northeastern Pennsylvania 2018 Comparative Councils: 1) Baden-Powell - Binghamton, NY (368);  2) Pennsylvania Dutch - Lancaster, PA (524);  3) Monmouth - Morganville, NJ (347);  4) Westmoreland-Fayette - Greensburg, PA (512);  5) Leatherstocking - Utica, NY (400)"]
[1,5,"502","Minsi Trails","Lehigh Valley","PA","Selected","Baltimore Area - Baltimore, MD (220)","Seneca Waterways - Rochester, NY (397)","Cradle of Liberty - Philadelphia, PA (525)","Patriots' Path - Cedar Knolls, NJ (358)","Laurel Highlands - Pittsburgh, PA (527)","Karen Scherer","502-Minsi Trails 2018 Comparative Councils: 1) Baltimore Area - Baltimore, MD (220);  2) Seneca Waterways - Rochester, NY (397);  3) Cradle of Liberty - Philadelphia, PA (525);  4) Patriots' Path - Cedar Knolls, NJ (358);  5) Laurel Highlands - Pittsburgh, PA (527)"]
[1,4,"504","Columbia-Montour","Bloomsburg","PA","Selected","Allegheny Highlands - Falconer, NY (382)","Green Mountain - Waterbury, VT (592)","Juniata Valley - Reedsville, PA (497)","Katahdin Area - Bangor, ME (216)","Ohio River Valley - Wheeling, WV (619)","Paul B Knox","504-Columbia-Montour 2018 Comparative Councils: 1) Allegheny Highlands - Falconer, NY (382);  2) Green Mountain - Waterbury, VT (592);  3) Juniata Valley - Reedsville, PA (497);  4) Katahdin Area - Bangor, ME (216);  5) Ohio River Valley - Wheeling, WV (619)"]
[1,4,"509","Bucktail","DuBois","PA","Selected","Allegheny Highlands - Falconer, NY (382)","Juniata Valley - Reedsville, PA (497)","French Creek - Erie, PA (532)","Susquehanna - Williamsport, PA (533)","Moraine Trails - Butler, PA (500)","Gregg Bennett","509-Bucktail 2018 Comparative Councils: 1) Allegheny Highlands - Falconer, NY (382);  2) Juniata Valley - Reedsville, PA (497);  3) French Creek - Erie, PA (532);  4) Susquehanna - Williamsport, PA (533);  5) Moraine Trails - Butler, PA (500)"]
[1,4,"512","Westmoreland-Fayette","Greensburg","PA","Selected","French Creek - Erie, PA (532)","Ozark Trails - Springfield, MO (306)","Northeastern Pennsylvania - Moosic, PA (501)","Colonial Virginia - Newport News, VA (595)","Miami Valley - Dayton, OH (444)","Martin Barbie","512-Westmoreland-Fayette 2018 Comparative Councils: 1) French Creek - Erie, PA (532);  2) Ozark Trails - Springfield, MO (306);  3) Northeastern Pennsylvania - Moosic, PA (501);  4) Colonial Virginia - Newport News, VA (595);  5) Miami Valley - Dayton, OH (444)"]
[1,6,"524","Pennsylvania Dutch","Lancaster","PA","Selected","Chester County - West Chester, PA (539)","Minsi Trails - Lehigh Valley, PA (502)","Baden-Powell - Binghamton, NY (368)","New Birth of Freedom - Mechanicsburg, PA (544)","Hawk Mountain - Reading, PA (528)","Matthew S. Adams","524-Pennsylvania Dutch 2018 Comparative Councils: 1) Chester County - West Chester, PA (539);  2) Minsi Trails - Lehigh Valley, PA (502);  3) Baden-Powell - Binghamton, NY (368);  4) New Birth of Freedom - Mechanicsburg, PA (544);  5) Hawk Mountain - Reading, PA (528)"]
[1,5,"525","Cradle of Liberty","Philadelphia","PA","Selected","Baltimore Area - Baltimore, MD (220)","Laurel Highlands - Pittsburgh, PA (527)","Del-Mar-Va - Wilmington, DE (081)","Spirit of Adventure - Boston, MA (227)","Narragansett - Providence, RI (546)","Veronica Coyle","525-Cradle of Liberty 2018 Comparative Councils: 1) Baltimore Area - Baltimore, MD (220);  2) Laurel Highlands - Pittsburgh, PA (527);  3) Del-Mar-Va - Wilmington, DE (081);  4) Spirit of Adventure - Boston, MA (227);  5) Narragansett - Providence, RI (546)"]
[1,4,"527","Laurel Highlands","Pittsburgh","PA","Selected","Cradle of Liberty - Philadelphia, PA (525)","Baltimore Area - Baltimore, MD (220)","Seneca Waterways - Rochester, NY (397)","Connecticut Rivers - East Hartford, CT (066)","Narragansett - Providence, RI (546)","Sharon M. Moulds","527-Laurel Highlands 2018 Comparative Councils: 1) Cradle of Liberty - Philadelphia, PA (525);  2) Baltimore Area - Baltimore, MD (220);  3) Seneca Waterways - Rochester, NY (397);  4) Connecticut Rivers - East Hartford, CT (066);  5) Narragansett - Providence, RI (546)"]
[1,6,"528","Hawk Mountain","Reading","PA","Selected","Pennsylvania Dutch - Lancaster, PA (524)","Old North State - Greensboro, NC (070)","Twin Rivers - Albany, NY (364)","Chester County - West Chester, PA (539)","Washington Crossing - Doylestown, PA (777)","James Milham","528-Hawk Mountain 2018 Comparative Councils: 1) Pennsylvania Dutch - Lancaster, PA (524);  2) Old North State - Greensboro, NC (070);  3) Twin Rivers - Albany, NY (364);  4) Chester County - West Chester, PA (539);  5) Washington Crossing - Doylestown, PA (777)"]
[1,4,"532","French Creek","Erie","PA","Selected","Bucktail - DuBois, PA (509)","Juniata Valley - Reedsville, PA (497)","Moraine Trails - Butler, PA (500)","Westmoreland-Fayette - Greensburg, PA (512)","Allegheny Highlands - Falconer, NY (382)","Duane Havard","532-French Creek 2018 Comparative Councils: 1) Bucktail - DuBois, PA (509);  2) Juniata Valley - Reedsville, PA (497);  3) Moraine Trails - Butler, PA (500);  4) Westmoreland-Fayette - Greensburg, PA (512);  5) Allegheny Highlands - Falconer, NY (382)"]
[1,4,"533","Susquehanna","Williamsport","PA","Selected","Columbia-Montour - Bloomsburg, PA (504)","Juniata Valley - Reedsville, PA (497)","Bucktail - DuBois, PA (509)","French Creek - Erie, PA (532)","Chief Cornplanter - Warren, PA (538)","Jon Brennan","533-Susquehanna 2018 Comparative Councils: 1) Columbia-Montour - Bloomsburg, PA (504);  2) Juniata Valley - Reedsville, PA (497);  3) Bucktail - DuBois, PA (509);  4) French Creek - Erie, PA (532);  5) Chief Cornplanter - Warren, PA (538)"]
[1,4,"538","Chief Cornplanter","Warren","PA","Not wanted","None selected","None selected","None selected","None selected","None selected","Ray Tennent","538-Chief Cornplanter 2018 Comparative Councils: 1) None selected;  2) None selected;  3) None selected;  4) None selected;  5) None selected"]
[1,6,"539","Chester County","West Chester","PA","Selected","Pennsylvania Dutch - Lancaster, PA (524)","Hawk Mountain - Reading, PA (528)","Washington Crossing - Doylestown, PA (777)","Westchester-Putnam - Hawthorne, NY (388)","Del-Mar-Va - Wilmington, DE (081)","Charlie Rogers","539-Chester County 2018 Comparative Councils: 1) Pennsylvania Dutch - Lancaster, PA (524);  2) Hawk Mountain - Reading, PA (528);  3) Washington Crossing - Doylestown, PA (777);  4) Westchester-Putnam - Hawthorne, NY (388);  5) Del-Mar-Va - Wilmington, DE (081)"]
[1,6,"544","New Birth of Freedom","Mechanicsburg","PA","Not wanted","None selected","None selected","None selected","None selected","None selected","Ron Gardner","544-New Birth of Freedom 2018 Comparative Councils: 1) None selected;  2) None selected;  3) None selected;  4) None selected;  5) None selected"]
[1,1,"546","Narragansett","Providence","RI","Selected","Daniel Webster - Manchester, NH (330)","Patriots' Path - Cedar Knolls, NJ (358)","Connecticut Rivers - East Hartford, CT (066)","Baltimore Area - Baltimore, MD (220)","Simon Kenton - Columbus, OH (441)","Tim McCandless","546-Narragansett 2018 Comparative Councils: 1) Daniel Webster - Manchester, NH (330);  2) Patriots' Path - Cedar Knolls, NJ (358);  3) Connecticut Rivers - East Hartford, CT (066);  4) Baltimore Area - Baltimore, MD (220);  5) Simon Kenton - Columbus, OH (441)"]
[2,5,"549","Palmetto","Spartanburg","SC","Selected","Daniel Boone - Asheville, NC (414)","Indian Waters - Columbia, SC (553)","Central North Carolina - Albemarle, NC (416)","Pee Dee Area - Florence, SC (552)","None selected","Greg Leitch","549-Palmetto 2018 Comparative Councils: 1) Daniel Boone - Asheville, NC (414);  2) Indian Waters - Columbia, SC (553);  3) Central North Carolina - Albemarle, NC (416);  4) Pee Dee Area - Florence, SC (552);  5) None selected"]
[2,5,"550","Coastal Carolina","Charleston","SC","Not wanted","None selected","None selected","None selected","None selected","None selected","Legare Clement","550-Coastal Carolina 2018 Comparative Councils: 1) None selected;  2) None selected;  3) None selected;  4) None selected;  5) None selected"]
[2,5,"551","Blue Ridge","Greenville","SC","Selected","Heart of Virginia - Richmond, VA (602)","Piedmont - Gastonia, NC (420)","Old North State - Greensboro, NC (070)","Cherokee Area - Chattanooga, TN (556)","Del-Mar-Va - Wilmington, DE (081)","Mike Butler","551-Blue Ridge 2018 Comparative Councils: 1) Heart of Virginia - Richmond, VA (602);  2) Piedmont - Gastonia, NC (420);  3) Old North State - Greensboro, NC (070);  4) Cherokee Area - Chattanooga, TN (556);  5) Del-Mar-Va - Wilmington, DE (081)"]
[2,5,"552","Pee Dee Area","Florence","SC","Selected","Georgia-Carolina - Augusta, GA (093)","Coastal Carolina - Charleston, SC (550)","Indian Waters - Columbia, SC (553)","Piedmont - Gastonia, NC (420)","Blue Ridge - Greenville, SC (551)","Michael Hesbach","552-Pee Dee Area 2018 Comparative Councils: 1) Georgia-Carolina - Augusta, GA (093);  2) Coastal Carolina - Charleston, SC (550);  3) Indian Waters - Columbia, SC (553);  4) Piedmont - Gastonia, NC (420);  5) Blue Ridge - Greenville, SC (551)"]
[2,5,"553","Indian Waters","Columbia","SC","Selected","Coastal Carolina - Charleston, SC (550)","Palmetto - Spartanburg, SC (549)","None selected","None selected","None selected","Douglas W. Stone","553-Indian Waters 2018 Comparative Councils: 1) Coastal Carolina - Charleston, SC (550);  2) Palmetto - Spartanburg, SC (549);  3) None selected;  4) None selected;  5) None selected"]
[2,6,"556","Cherokee Area","Chattanooga","TN","Selected","Chattahoochee - Columbus, GA (091)","Sequoyah - Johnson City, TN (713)","Central Georgia - Macon, GA (096)","Coastal Georgia - Savannah, GA (099)","Mobile Area - Mobile, AL (004)","Scott Fosse",{"$f":"_xlfn.CONCAT(C195) & \"-\" & D195 & \" 2018 Comparative Councils: \" & \"1) \" & (H195) & \";  2) \" & (I195) & \";  3) \" & (J195) & \";  4) \" & (K195) & \";  5) \" & (L195)","v":"556-Cherokee Area 2018 Comparative Councils: 1) Chattahoochee - Columbus, GA (091);  2) Sequoyah - Johnson City, TN (713);  3) Central Georgia - Macon, GA (096);  4) Coastal Georgia - Savannah, GA (099);  5) Mobile Area - Mobile, AL (004)"}]
[2,6,"557","Great Smoky Mountain","Knoxville","TN","Selected","Daniel Boone - Asheville, NC (414)","Piedmont - Gastonia, NC (420)","Blue Ridge - Greenville, SC (551)","Chickasaw - Memphis, TN (558)","Heart of Virginia - Richmond, VA (602)","David Williams","557-Great Smoky Mountain 2018 Comparative Councils: 1) Daniel Boone - Asheville, NC (414);  2) Piedmont - Gastonia, NC (420);  3) Blue Ridge - Greenville, SC (551);  4) Chickasaw - Memphis, TN (558);  5) Heart of Virginia - Richmond, VA (602)"]
[2,6,"558","Chickasaw","Memphis","TN","Selected","Cherokee Area - Chattanooga, TN (556)","Lincoln Heritage - Louisville, KY (205)","Mecklenburg County - Charlotte, NC (415)","Quapaw Area - Little Rock, AR (018)","Great Smoky Mountain - Knoxville, TN (557)","Richard L. Fisher","558-Chickasaw 2018 Comparative Councils: 1) Cherokee Area - Chattanooga, TN (556);  2) Lincoln Heritage - Louisville, KY (205);  3) Mecklenburg County - Charlotte, NC (415);  4) Quapaw Area - Little Rock, AR (018);  5) Great Smoky Mountain - Knoxville, TN (557)"]
[2,6,"559","West Tennessee Area","Jackson","TN","Selected","Cherokee Area - Chattanooga, TN (556)","Chickasaw - Memphis, TN (558)","Blue Grass - Lexington, KY (204)","Yocona Area - Tupelo, MS (748)","Sequoyah - Johnson City, TN (713)","Adrian Hackett","559-West Tennessee Area 2018 Comparative Councils: 1) Cherokee Area - Chattanooga, TN (556);  2) Chickasaw - Memphis, TN (558);  3) Blue Grass - Lexington, KY (204);  4) Yocona Area - Tupelo, MS (748);  5) Sequoyah - Johnson City, TN (713)"]
[2,6,"560","Middle Tennessee","Nashville","TN","Selected","Crossroads of America - Indianapolis, IN (160)","Lincoln Heritage - Louisville, KY (205)","Northeast Georgia - Jefferson, GA (101)","Great Smoky Mountain - Knoxville, TN (557)","Chickasaw - Memphis, TN (558)","Vance Lackey","560-Middle Tennessee 2018 Comparative Councils: 1) Crossroads of America - Indianapolis, IN (160);  2) Lincoln Heritage - Louisville, KY (205);  3) Northeast Georgia - Jefferson, GA (101);  4) Great Smoky Mountain - Knoxville, TN (557);  5) Chickasaw - Memphis, TN (558)"]
[2,2,"561","Texas Trails","Abilene","TX","Selected","Andrew Jackson - Jackson, MS (303)","Buffalo Trail - Midland, TX (567)","Conquistador - Roswell, NM (413)","South Plains - Lubbock, TX (694)","South Texas - Corpus Christi, TX (577)","Mark Conrad","561-Texas Trails 2018 Comparative Councils: 1) Andrew Jackson - Jackson, MS (303);  2) Buffalo Trail - Midland, TX (567);  3) Conquistador - Roswell, NM (413);  4) South Plains - Lubbock, TX (694);  5) South Texas - Corpus Christi, TX (577)"]
[2,2,"562","Golden Spread","Amarillo","TX","Selected","East Texas Area - Tyler, TX (585)","South Plains - Lubbock, TX (694)","Great Southwest - Albuquerque, NM (412)","South Texas - Corpus Christi, TX (577)","Caddo Area - Texarkana, TX (584)","Phillip Shipley","562-Golden Spread 2018 Comparative Councils: 1) East Texas Area - Tyler, TX (585);  2) South Plains - Lubbock, TX (694);  3) Great Southwest - Albuquerque, NM (412);  4) South Texas - Corpus Christi, TX (577);  5) Caddo Area - Texarkana, TX (584)"]
[2,3,"564","Capitol Area","Austin","TX","Selected","Alamo Area - San Antonio, TX (583)","Last Frontier - Oklahoma City, OK (480)","Central Florida - Orlando, FL (083)","Longhorn - Fort Worth, TX (662)","None selected","Jon C Yates","564-Capitol Area 2018 Comparative Councils: 1) Alamo Area - San Antonio, TX (583);  2) Last Frontier - Oklahoma City, OK (480);  3) Central Florida - Orlando, FL (083);  4) Longhorn - Fort Worth, TX (662);  5) None selected"]
[2,3,"567","Buffalo Trail","Midland","TX","Selected","Conquistador - Roswell, NM (413)","Yucca - El Paso, TX (573)","South Plains - Lubbock, TX (694)","Texas Southwest - San Angelo, TX (741)","Texas Trails - Abilene, TX (561)","David Chapman","567-Buffalo Trail 2018 Comparative Councils: 1) Conquistador - Roswell, NM (413);  2) Yucca - El Paso, TX (573);  3) South Plains - Lubbock, TX (694);  4) Texas Southwest - San Angelo, TX (741);  5) Texas Trails - Abilene, TX (561)"]
[2,2,"571","Circle Ten","Dallas","TX","Selected","Sam Houston Area - Houston, TX (576)","Atlanta Area - Atlanta, GA (092)","National Capital Area - Bethesda, MD (082)","Northern Star - St. Paul, MN (250)","Heart of America - Kansas City, MO (307)","sam thompson","571-Circle Ten 2018 Comparative Councils: 1) Sam Houston Area - Houston, TX (576);  2) Atlanta Area - Atlanta, GA (092);  3) National Capital Area - Bethesda, MD (082);  4) Northern Star - St. Paul, MN (250);  5) Heart of America - Kansas City, MO (307)"]
[4,6,"573","Yucca","El Paso","TX","Selected","Catalina - Tucson, AZ (011)","Buffalo Trail - Midland, TX (567)","Great Southwest - Albuquerque, NM (412)","None selected","None selected","Mario Perez","573-Yucca 2018 Comparative Councils: 1) Catalina - Tucson, AZ (011);  2) Buffalo Trail - Midland, TX (567);  3) Great Southwest - Albuquerque, NM (412);  4) None selected;  5) None selected"]
[2,3,"574","Bay Area","Galveston","TX","Selected","Three Rivers - Beaumont, TX (578)","Rio Grande - Harlingen, TX (775)","Southeast Louisiana - New Orleans, LA (214)","South Texas - Corpus Christi, TX (577)","Andrew Jackson - Jackson, MS (303)","Charlie Tinsley","574-Bay Area 2018 Comparative Councils: 1) Three Rivers - Beaumont, TX (578);  2) Rio Grande - Harlingen, TX (775);  3) Southeast Louisiana - New Orleans, LA (214);  4) South Texas - Corpus Christi, TX (577);  5) Andrew Jackson - Jackson, MS (303)"]
[2,3,"576","Sam Houston Area","Houston","TX","Not wanted","None selected","None selected","None selected","None selected","None selected","Tom Varnell","576-Sam Houston Area 2018 Comparative Councils: 1) None selected;  2) None selected;  3) None selected;  4) None selected;  5) None selected"]
[2,3,"577","South Texas","Corpus Christi","TX","Selected","East Texas Area - Tyler, TX (585)","Bay Area - Galveston, TX (574)","Rio Grande - Harlingen, TX (775)","Buffalo Trail - Midland, TX (567)","Three Rivers - Beaumont, TX (578)","martin sepulveda","577-South Texas 2018 Comparative Councils: 1) East Texas Area - Tyler, TX (585);  2) Bay Area - Galveston, TX (574);  3) Rio Grande - Harlingen, TX (775);  4) Buffalo Trail - Midland, TX (567);  5) Three Rivers - Beaumont, TX (578)"]
[2,3,"578","Three Rivers","Beaumont","TX","Not wanted","None selected","None selected","None selected","None selected","None selected","Les Bentley","578-Three Rivers 2018 Comparative Councils: 1) None selected;  2) None selected;  3) None selected;  4) None selected;  5) None selected"]
[2,3,"583","Alamo Area","San Antonio","TX","Not wanted","None selected","None selected","None selected","None selected","None selected","Michael de los Santos","583-Alamo Area 2018 Comparative Councils: 1) None selected;  2) None selected;  3) None selected;  4) None selected;  5) None selected"]
[2,2,"584","Caddo Area","Texarkana","TX","Not wanted","None selected","None selected","None selected","None selected","None selected","","584-Caddo Area 2018 Comparative Councils: 1) None selected;  2) None selected;  3) None selected;  4) None selected;  5) None selected"]
[2,2,"585","East Texas Area","Tyler","TX","Selected","Golden Spread - Amarillo, TX (562)","Norwela - Shreveport, LA (215)","Louisiana Purchase - Monroe, LA (213)","Bay Area - Galveston, TX (574)","Caddo Area - Texarkana, TX (584)","Daniel Anderson","585-East Texas Area 2018 Comparative Councils: 1) Golden Spread - Amarillo, TX (562);  2) Norwela - Shreveport, LA (215);  3) Louisiana Purchase - Monroe, LA (213);  4) Bay Area - Galveston, TX (574);  5) Caddo Area - Texarkana, TX (584)"]
[2,2,"587","Northwest Texas","Wichita Falls","TX","Selected","De Soto Area - El Dorado, AR (013)","Arbuckle Area - Ardmore, OK (468)","Texas Southwest - San Angelo, TX (741)","Caddo Area - Texarkana, TX (584)","Louisiana Purchase - Monroe, LA (213)","Greg Brownfield","587-Northwest Texas 2018 Comparative Councils: 1) De Soto Area - El Dorado, AR (013);  2) Arbuckle Area - Ardmore, OK (468);  3) Texas Southwest - San Angelo, TX (741);  4) Caddo Area - Texarkana, TX (584);  5) Louisiana Purchase - Monroe, LA (213)"]
[4,2,"589","Trapper Trails","Ogden","UT","Not wanted","None selected","None selected","None selected","None selected","None selected","Allen Endicott","589-Trapper Trails 2018 Comparative Councils: 1) None selected;  2) None selected;  3) None selected;  4) None selected;  5) None selected"]
[4,2,"590","Great Salt Lake","Salt Lake City","UT","Selected","Trapper Trails - Ogden, UT (589)","Utah National Parks - Orem, UT (591)","Las Vegas Area - Las Vegas, NV (328)","Grand Teton - Idaho Falls, ID (107)","Grand Canyon - Phoenix, AZ (010)","Mark Griffin","590-Great Salt Lake 2018 Comparative Councils: 1) Trapper Trails - Ogden, UT (589);  2) Utah National Parks - Orem, UT (591);  3) Las Vegas Area - Las Vegas, NV (328);  4) Grand Teton - Idaho Falls, ID (107);  5) Grand Canyon - Phoenix, AZ (010)"]
[4,2,"591","Utah National Parks","Orem","UT","Selected","Great Salt Lake - Salt Lake City, UT (590)","Trapper Trails - Ogden, UT (589)","None selected","None selected","None selected","David Pack","591-Utah National Parks 2018 Comparative Councils: 1) Great Salt Lake - Salt Lake City, UT (590);  2) Trapper Trails - Ogden, UT (589);  3) None selected;  4) None selected;  5) None selected"]
[1,3,"592","Green Mountain","Waterbury","VT","Not wanted","None selected","None selected","None selected","None selected","None selected","Ed McCollin","592-Green Mountain 2018 Comparative Councils: 1) None selected;  2) None selected;  3) None selected;  4) None selected;  5) None selected"]
[2,7,"595","Colonial Virginia","Newport News","VA","Selected","Tuscarora - Goldsboro, NC (424)","Stonewall Jackson Area - Waynesboro, VA (763)","Shenandoah Area - Winchester, VA (598)","None selected","None selected","Scott Rehrauer","595-Colonial Virginia 2018 Comparative Councils: 1) Tuscarora - Goldsboro, NC (424);  2) Stonewall Jackson Area - Waynesboro, VA (763);  3) Shenandoah Area - Winchester, VA (598);  4) None selected;  5) None selected"]
[2,7,"596","Tidewater","Virginia Beach","VA","Not wanted","None selected","None selected","None selected","None selected","None selected","Bill Deany","596-Tidewater 2018 Comparative Councils: 1) None selected;  2) None selected;  3) None selected;  4) None selected;  5) None selected"]
[2,7,"598","Shenandoah Area","Winchester","VA","Selected","Connecticut Rivers - East Hartford, CT (066)","Stonewall Jackson Area - Waynesboro, VA (763)","Black Warrior - Tuscaloosa, AL (006)","Buckskin - Charleston, WV (617)","Tuscarora - Goldsboro, NC (424)","Stuart A. Williams","598-Shenandoah Area 2018 Comparative Councils: 1) Connecticut Rivers - East Hartford, CT (066);  2) Stonewall Jackson Area - Waynesboro, VA (763);  3) Black Warrior - Tuscaloosa, AL (006);  4) Buckskin - Charleston, WV (617);  5) Tuscarora - Goldsboro, NC (424)"]
[2,7,"599","Blue Ridge Mountains","Roanoke","VA","Selected","Stonewall Jackson Area - Waynesboro, VA (763)","Great Smoky Mountain - Knoxville, TN (557)","Old Hickory - Winston-Salem, NC (427)","None selected","None selected","Dan Johnson","599-Blue Ridge Mountains 2018 Comparative Councils: 1) Stonewall Jackson Area - Waynesboro, VA (763);  2) Great Smoky Mountain - Knoxville, TN (557);  3) Old Hickory - Winston-Salem, NC (427);  4) None selected;  5) None selected"]
[2,7,"602","Heart of Virginia","Richmond","VA","Not wanted","None selected","None selected","None selected","None selected","None selected","Bradford M. Nesheim","602-Heart of Virginia 2018 Comparative Councils: 1) None selected;  2) None selected;  3) None selected;  4) None selected;  5) None selected"]
[4,1,"604","Blue Mountain","Kennewick","WA","Selected","Grand Columbia - Yakima, WA (614)","Mount Baker - Everett, WA (606)","Crater Lake - Central Point, OR (491)","Midnight Sun - Fairbanks, AK (696)","Northeast Iowa - Dubuque, IA (178)","Brett Bybee","604-Blue Mountain 2018 Comparative Councils: 1) Grand Columbia - Yakima, WA (614);  2) Mount Baker - Everett, WA (606);  3) Crater Lake - Central Point, OR (491);  4) Midnight Sun - Fairbanks, AK (696);  5) Northeast Iowa - Dubuque, IA (178)"]
[4,1,"606","Mount Baker","Everett","WA","Selected","Crater Lake - Central Point, OR (491)","Inland Northwest - Spokane, WA (611)","Oregon Trail - Eugene, OR (697)","Pacific Harbors - Tacoma, WA (612)","None selected","Duane Rhodes","606-Mount Baker 2018 Comparative Councils: 1) Crater Lake - Central Point, OR (491);  2) Inland Northwest - Spokane, WA (611);  3) Oregon Trail - Eugene, OR (697);  4) Pacific Harbors - Tacoma, WA (612);  5) None selected"]
[4,1,"609","Chief Seattle","Seattle","WA","Not wanted","None selected","None selected","None selected","None selected","None selected","Michael Quirk","609-Chief Seattle 2018 Comparative Councils: 1) None selected;  2) None selected;  3) None selected;  4) None selected;  5) None selected"]
[4,1,"610","Great Alaska","Anchorage","AK","Selected","Inland Northwest - Spokane, WA (611)","Mount Baker - Everett, WA (606)","Crater Lake - Central Point, OR (491)","None selected","None selected","Clifford Crismore","610-Great Alaska 2018 Comparative Councils: 1) Inland Northwest - Spokane, WA (611);  2) Mount Baker - Everett, WA (606);  3) Crater Lake - Central Point, OR (491);  4) None selected;  5) None selected"]
[4,1,"611","Inland Northwest","Spokane","WA","Not wanted","None selected","None selected","None selected","None selected","None selected","Karen Meier","611-Inland Northwest 2018 Comparative Councils: 1) None selected;  2) None selected;  3) None selected;  4) None selected;  5) None selected"]
[4,1,"612","Pacific Harbors","Tacoma","WA","Selected","Mount Baker - Everett, WA (606)","Inland Northwest - Spokane, WA (611)","Crater Lake - Central Point, OR (491)","None selected","None selected","Ralph Voelker","612-Pacific Harbors 2018 Comparative Councils: 1) Mount Baker - Everett, WA (606);  2) Inland Northwest - Spokane, WA (611);  3) Crater Lake - Central Point, OR (491);  4) None selected;  5) None selected"]
[4,1,"614","Grand Columbia","Yakima","WA","Selected","Blue Mountain - Kennewick, WA (604)","Inland Northwest - Spokane, WA (611)","Mason-Dixon - Hagerstown, MD (221)","Georgia-Carolina - Augusta, GA (093)","Pacific Harbors - Tacoma, WA (612)","Barry McDonald","614-Grand Columbia 2018 Comparative Councils: 1) Blue Mountain - Kennewick, WA (604);  2) Inland Northwest - Spokane, WA (611);  3) Mason-Dixon - Hagerstown, MD (221);  4) Georgia-Carolina - Augusta, GA (093);  5) Pacific Harbors - Tacoma, WA (612)"]
[3,4,"615","Mountaineer Area","Fairmont","WV","Not wanted","Allohak (618)","Ohio River Valley (619)","Muskingum Valley (467)","None selected","None selected","Jeff Doty","615-Mountaineer Area 2018 Comparative Councils: 1) Allohak (618);  2) Ohio River Valley (619);  3) Muskingum Valley (467);  4) None selected;  5) None selected"]
[3,4,"617","Buckskin","Charleston","WV","Selected","Blue Grass - Lexington, KY (204)","Sequoyah - Johnson City, TN (713)","Cape Fear - Wilmington, NC (425)","Palmetto - Spartanburg, SC (549)","Indian Waters - Columbia, SC (553)","Jeffrey L. Purdy","617-Buckskin 2018 Comparative Councils: 1) Blue Grass - Lexington, KY (204);  2) Sequoyah - Johnson City, TN (713);  3) Cape Fear - Wilmington, NC (425);  4) Palmetto - Spartanburg, SC (549);  5) Indian Waters - Columbia, SC (553)"]
[3,4,"618","Allohak","Parkersburg","WV","Data not rcvd","None selected","None selected","None selected","None selected","None selected","Todd Walter","618-Allohak 2018 Comparative Councils: 1) None selected;  2) None selected;  3) None selected;  4) None selected;  5) None selected"]
[3,4,"619","Ohio River Valley","Wheeling","WV","Data not rcvd","None selected","None selected","None selected","None selected","None selected","Bob Drury","619-Ohio River Valley 2018 Comparative Councils: 1) None selected;  2) None selected;  3) None selected;  4) None selected;  5) None selected"]
[3,7,"620","Glacier's Edge","Madison","WI","Selected","Potawatomi Area - Waukesha, WI (651)","Rockford, IL (660)/Wichita, KS (198)","Appleton, WI (635)/Eau Claire, WI (637)","Samoset - Weston, WI (627)","Three Harbors - Milwaukee, WI (636)","Alex Tyms","620-Glacier's Edge 2018 Comparative Councils: 1) Potawatomi Area - Waukesha, WI (651);  2) Rockford, IL (660)/Wichita, KS (198);  3) Appleton, WI (635)/Eau Claire, WI (637);  4) Samoset - Weston, WI (627);  5) Three Harbors - Milwaukee, WI (636)"]
[3,1,"624","Gateway Area","La Crosse","WI","Selected","Gamehaven - Rochester, MN (299)","Twin Valley - Mankato, MN (283)","Samoset - Weston, WI (627)","Chippewa Valley - Eau Claire, WI (637)","Voyageurs Area - Hermantown, MN (286)","Sean Henneman","624-Gateway Area 2018 Comparative Councils: 1) Gamehaven - Rochester, MN (299);  2) Twin Valley - Mankato, MN (283);  3) Samoset - Weston, WI (627);  4) Chippewa Valley - Eau Claire, WI (637);  5) Voyageurs Area - Hermantown, MN (286)"]
[3,1,"627","Samoset","Weston","WI","Selected","Chippewa Valley - Eau Claire, WI (637)","Glacier's Edge - Madison, WI (620)","Central Minnesota - Sartell, MN (296)","Blackhawk Area - Rockford, IL (660)","Hawkeye Area - Cedar Rapids, IA (172)","Jeff Ottosen","627-Samoset 2018 Comparative Councils: 1) Chippewa Valley - Eau Claire, WI (637);  2) Glacier's Edge - Madison, WI (620);  3) Central Minnesota - Sartell, MN (296);  4) Blackhawk Area - Rockford, IL (660);  5) Hawkeye Area - Cedar Rapids, IA (172)"]
[3,1,"635","Bay-Lakes","Appleton","WI","Selected","Northern Star - St. Paul, MN (250)","Mid-America - Omaha, NE (326)","Pathway to Adventure - Chicago, IL (456)","Lake Erie - Cleveland, OH (440)","Three Harbors - Milwaukee, WI (636)","Jason Wolf","635-Bay-Lakes 2018 Comparative Councils: 1) Northern Star - St. Paul, MN (250);  2) Mid-America - Omaha, NE (326);  3) Pathway to Adventure - Chicago, IL (456);  4) Lake Erie - Cleveland, OH (440);  5) Three Harbors - Milwaukee, WI (636)"]
[3,7,"636","Three Harbors","Milwaukee","WI","Selected","Potawatomi Area - Waukesha, WI (651)","Northeast Illinois - Highland Park, IL (129)","Pathway to Adventure - Chicago, IL (456)","Bay-Lakes - Appleton, WI (635)","Lake Erie - Cleveland, OH (440)","Andrew Hardin","636-Three Harbors 2018 Comparative Councils: 1) Potawatomi Area - Waukesha, WI (651);  2) Northeast Illinois - Highland Park, IL (129);  3) Pathway to Adventure - Chicago, IL (456);  4) Bay-Lakes - Appleton, WI (635);  5) Lake Erie - Cleveland, OH (440)"]
[3,1,"637","Chippewa Valley","Eau Claire","WI","Selected","Samoset - Weston, WI (627)","Voyageurs Area - Hermantown, MN (286)","Gateway Area - La Crosse, WI (624)","Gamehaven - Rochester, MN (299)","Glacier's Edge - Madison, WI (620)","Joe Carlson","637-Chippewa Valley 2018 Comparative Councils: 1) Samoset - Weston, WI (627);  2) Voyageurs Area - Hermantown, MN (286);  3) Gateway Area - La Crosse, WI (624);  4) Gamehaven - Rochester, MN (299);  5) Glacier's Edge - Madison, WI (620)"]
[4,2,"638","Greater Wyoming","Casper","WY","Selected","Western Colorado - Grand Junction, CO (064)","Snake River - Twin Falls, ID (111)","Rocky Mountain - Pueblo, CO (063)","Voyageurs Area - Hermantown, MN (286)","Alameda - Alameda, CA (022)","Brad Bodoh","638-Greater Wyoming 2018 Comparative Councils: 1) Western Colorado - Grand Junction, CO (064);  2) Snake River - Twin Falls, ID (111);  3) Rocky Mountain - Pueblo, CO (063);  4) Voyageurs Area - Hermantown, MN (286);  5) Alameda - Alameda, CA (022)"]
[1,2,"640","Greater New York","New York","NY","Data not rcvd","None selected","None selected","None selected","None selected","None selected","","640-Greater New York 2018 Comparative Councils: 1) None selected;  2) None selected;  3) None selected;  4) None selected;  5) None selected"]
[3,7,"651","Potawatomi Area","Waukesha","WI","Selected","Gateway Area - La Crosse, WI (624)","Chippewa Valley - Eau Claire, WI (637)","Samoset - Weston, WI (627)","Glacier's Edge - Madison, WI (620)","Black Swamp Area - Findlay, OH (449)","Paul Schwartz","651-Potawatomi Area 2018 Comparative Councils: 1) Gateway Area - La Crosse, WI (624);  2) Chippewa Valley - Eau Claire, WI (637);  3) Samoset - Weston, WI (627);  4) Glacier's Edge - Madison, WI (620);  5) Black Swamp Area - Findlay, OH (449)"]
[3,5,"653","Great Rivers","Columbia","MO","Selected","Overland Trails - Grand Island, NE (322)","Mississippi Valley - Quincy, IL (141)","Ozark Trails - Springfield, MO (306)","Cornhusker - Lincoln, NE (324)","Coronado Area - Salina, KS (192)","Doug Callahan","653-Great Rivers 2018 Comparative Councils: 1) Overland Trails - Grand Island, NE (322);  2) Mississippi Valley - Quincy, IL (141);  3) Ozark Trails - Springfield, MO (306);  4) Cornhusker - Lincoln, NE (324);  5) Coronado Area - Salina, KS (192)"]
[3,7,"660","Blackhawk Area","Rockford","IL","Data not rcvd","None selected","None selected","None selected","None selected","None selected","","660-Blackhawk Area 2018 Comparative Councils: 1) None selected;  2) None selected;  3) None selected;  4) None selected;  5) None selected"]
[1,5,"661","Puerto Rico","Guaynabo","PR","Not wanted","None selected","None selected","None selected","None selected","None selected","Jim Hans","661-Puerto Rico 2018 Comparative Councils: 1) None selected;  2) None selected;  3) None selected;  4) None selected;  5) None selected"]
[2,2,"662","Longhorn","Fort Worth","TX","Selected","Alamo Area - San Antonio, TX (583)","Capitol Area - Austin, TX (564)","Dan Beard - Cincinnati, OH (438)","Bay-Lakes - Appleton, WI (635)","Connecticut Rivers - East Hartford, CT (066)","John Coyle","662-Longhorn 2018 Comparative Councils: 1) Alamo Area - San Antonio, TX (583);  2) Capitol Area - Austin, TX (564);  3) Dan Beard - Cincinnati, OH (438);  4) Bay-Lakes - Appleton, WI (635);  5) Connecticut Rivers - East Hartford, CT (066)"]
[2,4,"664","Suwannee River Area","Tallahassee","FL","Not wanted","None selected","None selected","None selected","None selected","None selected","Kevin Kilduff","664-Suwannee River Area 2018 Comparative Councils: 1) None selected;  2) None selected;  3) None selected;  4) None selected;  5) None selected"]
[1,5,"690","Garden State","Westampton","NJ","Selected","Washington Crossing - Doylestown, PA (777)","Monmouth - Morganville, NJ (347)","Jersey Shore - Toms River, NJ (341)","Twin Rivers - Albany, NY (364)","New Birth of Freedom - Mechanicsburg, PA (544)","Kevin Bishop","690-Garden State 2018 Comparative Councils: 1) Washington Crossing - Doylestown, PA (777);  2) Monmouth - Morganville, NJ (347);  3) Jersey Shore - Toms River, NJ (341);  4) Twin Rivers - Albany, NY (364);  5) New Birth of Freedom - Mechanicsburg, PA (544)"]
[2,1,"691","Pushmataha Area","Columbus","MS","Selected","Choctaw Area - Meridian, MS (302)","Yocona Area - Tupelo, MS (748)","Black Warrior - Tuscaloosa, AL (006)","Alabama-Florida - Dothan, AL (003)","Calcasieu Area - Lake Charles, LA (209)","Jeremy Whitmore","691-Pushmataha Area 2018 Comparative Councils: 1) Choctaw Area - Meridian, MS (302);  2) Yocona Area - Tupelo, MS (748);  3) Black Warrior - Tuscaloosa, AL (006);  4) Alabama-Florida - Dothan, AL (003);  5) Calcasieu Area - Lake Charles, LA (209)"]
[2,2,"694","South Plains","Lubbock","TX","Not wanted","None selected","None selected","None selected","None selected","None selected","Nathan Baie","694-South Plains 2018 Comparative Councils: 1) None selected;  2) None selected;  3) None selected;  4) None selected;  5) None selected"]
[4,2,"695","Black Hills Area","Rapid City","SD","Selected","Greater Wyoming - Casper, WY (638)","Western Colorado - Grand Junction, CO (064)","Voyageurs Area - Hermantown, MN (286)","Conquistador - Roswell, NM (413)","Alameda - Alameda, CA (022)","Timothy P. Bouchard","695-Black Hills Area 2018 Comparative Councils: 1) Greater Wyoming - Casper, WY (638);  2) Western Colorado - Grand Junction, CO (064);  3) Voyageurs Area - Hermantown, MN (286);  4) Conquistador - Roswell, NM (413);  5) Alameda - Alameda, CA (022)"]
[4,1,"696","Midnight Sun","Fairbanks","AK","Selected","Great Alaska - Anchorage, AK (610)","Grand Columbia - Yakima, WA (614)","Greater Wyoming - Casper, WY (638)","Blue Mountain - Kennewick, WA (604)","Columbia-Montour - Bloomsburg, PA (504)","Stephen Smith","696-Midnight Sun 2018 Comparative Councils: 1) Great Alaska - Anchorage, AK (610);  2) Grand Columbia - Yakima, WA (614);  3) Greater Wyoming - Casper, WY (638);  4) Blue Mountain - Kennewick, WA (604);  5) Columbia-Montour - Bloomsburg, PA (504)"]
[4,1,"697","Oregon Trail","Eugene","OR","Selected","Mount Baker - Everett, WA (606)","Crater Lake - Central Point, OR (491)","Nevada Area - Reno, NV (329)","Greater Yosemite - Modesto, CA (059)","Rocky Mountain - Pueblo, CO (063)","Scott Impecoven","697-Oregon Trail 2018 Comparative Councils: 1) Mount Baker - Everett, WA (606);  2) Crater Lake - Central Point, OR (491);  3) Nevada Area - Reno, NV (329);  4) Greater Yosemite - Modesto, CA (059);  5) Rocky Mountain - Pueblo, CO (063)"]
[3,7,"702","Rainbow","Morris","IL","Selected","Potawatomi Area - Waukesha, WI (651)","Chippewa Valley - Eau Claire, WI (637)","Glacier's Edge - Madison, WI (620)","Sioux - Sioux Falls, SD (733)","Hawkeye Area - Cedar Rapids, IA (172)","Ted Karns","702-Rainbow 2018 Comparative Councils: 1) Potawatomi Area - Waukesha, WI (651);  2) Chippewa Valley - Eau Claire, WI (637);  3) Glacier's Edge - Madison, WI (620);  4) Sioux - Sioux Falls, SD (733);  5) Hawkeye Area - Cedar Rapids, IA (172)"]
[2,6,"713","Sequoyah","Johnson City","TN","Selected","Blue Grass - Lexington, KY (204)","Cherokee Area - Chattanooga, TN (556)","Colonial Virginia - Newport News, VA (595)","Blue Ridge Mountains - Roanoke, VA (599)","Daniel Boone - Asheville, NC (414)","Royce Fox","713-Sequoyah 2018 Comparative Councils: 1) Blue Grass - Lexington, KY (204);  2) Cherokee Area - Chattanooga, TN (556);  3) Colonial Virginia - Newport News, VA (595);  4) Blue Ridge Mountains - Roanoke, VA (599);  5) Daniel Boone - Asheville, NC (414)"]
[3,1,"733","Sioux","Sioux Falls","SD","Selected","Central Minnesota - Sartell, MN (296)","Northern Lights - Fargo, ND (429)","Mid-America - Omaha, NE (326)","Black Hills Area - Rapid City, SD (695)","Overland Trails - Grand Island, NE (322)","Thomas Smotherman","733-Sioux 2018 Comparative Councils: 1) Central Minnesota - Sartell, MN (296);  2) Northern Lights - Fargo, ND (429);  3) Mid-America - Omaha, NE (326);  4) Black Hills Area - Rapid City, SD (695);  5) Overland Trails - Grand Island, NE (322)"]
[2,3,"741","Texas Southwest","San Angelo","TX","Selected","Texas Trails - Abilene, TX (561)","Northwest Texas - Wichita Falls, TX (587)","Rio Grande - Harlingen, TX (775)","Yucca - El Paso, TX (573)","South Texas - Corpus Christi, TX (577)","Devin Koehler","741-Texas Southwest 2018 Comparative Councils: 1) Texas Trails - Abilene, TX (561);  2) Northwest Texas - Wichita Falls, TX (587);  3) Rio Grande - Harlingen, TX (775);  4) Yucca - El Paso, TX (573);  5) South Texas - Corpus Christi, TX (577)"]
[2,6,"748","Yocona Area","Tupelo","MS","Selected","Choctaw Area - Meridian, MS (302)","Suwannee River Area - Tallahassee, FL (664)","Pushmataha Area - Columbus, MS (691)","Louisiana Purchase - Monroe, LA (213)","Alabama-Florida - Dothan, AL (003)","Rick Chapman","748-Yocona Area 2018 Comparative Councils: 1) Choctaw Area - Meridian, MS (302);  2) Suwannee River Area - Tallahassee, FL (664);  3) Pushmataha Area - Columbus, MS (691);  4) Louisiana Purchase - Monroe, LA (213);  5) Alabama-Florida - Dothan, AL (003)"]
[2,7,"763","Stonewall Jackson Area","Waynesboro","VA","Not wanted","None selected","None selected","None selected","None selected","None selected","Jim Battaglia",{"$f":"_xlfn.CONCAT(C259) & \"-\" & D259 & \" 2018 Comparative Councils: \" & \"1) \" & (H259) & \";  2) \" & (I259) & \";  3) \" & (J259) & \";  4) \" & (K259) & \";  5) \" & (L259)","v":"763-Stonewall Jackson Area 2018 Comparative Councils: 1) None selected;  2) None selected;  3) None selected;  4) None selected;  5) None selected"}]
[2,1,"773","Gulf Coast","Pensacola","FL","Not wanted","None selected","None selected","None selected","None selected","None selected","Spencer Page","773-Gulf Coast 2018 Comparative Councils: 1) None selected;  2) None selected;  3) None selected;  4) None selected;  5) None selected"]
[2,3,"775","Rio Grande","Harlingen","TX","Not wanted","None selected","None selected","None selected","None selected","None selected","Rudy Gonzalez","775-Rio Grande 2018 Comparative Councils: 1) None selected;  2) None selected;  3) None selected;  4) None selected;  5) None selected"]
[1,5,"777","Washington Crossing","Doylestown","PA","Selected","Minsi Trails - Lehigh Valley, PA (502)","Monmouth - Morganville, NJ (347)","Chester County - West Chester, PA (539)","Garden State - Westampton, NJ (690)","Cradle of Liberty - Philadelphia, PA (525)","Magne Gundersen","777-Washington Crossing 2018 Comparative Councils: 1) Minsi Trails - Lehigh Valley, PA (502);  2) Monmouth - Morganville, NJ (347);  3) Chester County - West Chester, PA (539);  4) Garden State - Westampton, NJ (690);  5) Cradle of Liberty - Philadelphia, PA (525)"]
[3,2,"781","President Gerald R. Ford","Grand Rapids","MI","Not wanted","None selected","None selected","None selected","None selected","None selected","Kevin Nichols","781-President Gerald R. Ford 2018 Comparative Councils: 1) None selected;  2) None selected;  3) None selected;  4) None selected;  5) None selected"]
[3,2,"782","Water and Woods","Flint","MI","Not wanted","None selected","None selected","None selected","None selected","None selected","Gary Gilger","782-Water and Woods 2018 Comparative Councils: 1) None selected;  2) None selected;  3) None selected;  4) None selected;  5) None selected"]
[3,2,"783","Southern Shores","Ypsilanti","MI","Selected","Sioux - Sioux Falls, SD (733)","Theodore Roosevelt - Massapequa, NY (386)","Miami Valley - Dayton, OH (444)","Jayhawk Area - Topeka, KS (197)","None selected","Melissa Stricherz","783-Southern Shores 2018 Comparative Councils: 1) Sioux - Sioux Falls, SD (733);  2) Theodore Roosevelt - Massapequa, NY (386);  3) Miami Valley - Dayton, OH (444);  4) Jayhawk Area - Topeka, KS (197);  5) None selected"]
[1,5,"802","Transatlantic","Brussels","Belgium","Selected","Far East - Okinawa, Japan (803)","Puerto Rico - Guaynabo, PR (661)","Northeastern Pennsylvania - Moosic, PA (501)","Jersey Shore - Toms River, NJ (341)","Five Rivers - Horseheads, NY (375)","Vince Cozzone","802-Transatlantic 2018 Comparative Councils: 1) Far East - Okinawa, Japan (803);  2) Puerto Rico - Guaynabo, PR (661);  3) Northeastern Pennsylvania - Moosic, PA (501);  4) Jersey Shore - Toms River, NJ (341);  5) Five Rivers - Horseheads, NY (375)"]
[4,6,"803","Far East","Okinawa","Japan","Not wanted","None selected","None selected","None selected","None selected","None selected","Don A. Olsen","803-Far East 2018 Comparative Councils: 1) None selected;  2) None selected;  3) None selected;  4) None selected;  5) None selected"]

{"sheet":"Objectives","index":4,"n_rows":267,"n_cols":14,"rows_kept":267,"cut":false,"hidden":true,"merged":[]}
["Reg#","Area","Council#","CouncilName","HeadquartersCity","HeadquartersState","PlanDate/Comparatives","1","2","3","4","5","Submitter"]
[2,9,"001","Greater Alabama","Birmingham","AL","12:00:00 AM-SP exp date","JTE 13-Youth-serving executives","JTE 15-Unit contacts","JTE 17-District leadership","JTE 5-Membership/youth growth","JTE 10-Cub Scout camping","J.T. Dabbs",{"$f":"_xlfn.CONCAT(C2) & \"-\" & (D2) & \" 2018 JTE Objectives:  \" & \"1) \" & (H2) & \";  2) \" & (I2) & \";  3) \" & (J2) & \";  4) \" & (K2) & \";  5) \" & (L2)","v":"001-Greater Alabama 2018 JTE Objectives:  1) JTE 13-Youth-serving executives;  2) JTE 15-Unit contacts;  3) JTE 17-District leadership;  4) JTE 5-Membership/youth growth;  5) JTE 10-Cub Scout camping"}]
[2,1,"003","Alabama-Florida","Dothan","AL","12/31/2019-SP exp date","JTE 2-Fundraising","JTE 5-Membership/youth growth","JTE 6-New member recruiting","JTE 10-Cub Scout camping","JTE 15-Unit contacts","Jerry Freyberg",{"$f":"_xlfn.CONCAT(C3) & \"-\" & (D3) & \" 2018 JTE Objectives:  \" & \"1) \" & (H3) & \";  2) \" & (I3) & \";  3) \" & (J3) & \";  4) \" & (K3) & \";  5) \" & (L3)","v":"003-Alabama-Florida 2018 JTE Objectives:  1) JTE 2-Fundraising;  2) JTE 5-Membership/youth growth;  3) JTE 6-New member recruiting;  4) JTE 10-Cub Scout camping;  5) JTE 15-Unit contacts"}]
[2,1,"004","Mobile Area","Mobile","AL","12:00:00 AM-SP exp date","JTE 3-Endowment","JTE 12-Community service","JTE 17-District leadership","JTE 11-Boy Scout camping","JTE 10-Cub Scout camping","phillip cranford","004-Mobile Area 2018 JTE Objectives:  1) JTE 3-Endowment;  2) JTE 12-Community service;  3) JTE 17-District leadership;  4) JTE 11-Boy Scout camping;  5) JTE 10-Cub Scout camping"]
[2,9,"005","Tukabatchee Area","Montgomery","AL","12:00:00 AM-SP exp date","JTE 1-Fiscal management","JTE 2-Fundraising","JTE 14-Unit retention/growth","JTE 17-District leadership","JTE 4-Community impact","Marvin Smith","005-Tukabatchee Area 2018 JTE Objectives:  1) JTE 1-Fiscal management;  2) JTE 2-Fundraising;  3) JTE 14-Unit retention/growth;  4) JTE 17-District leadership;  5) JTE 4-Community impact"]
[2,9,"006","Black Warrior","Tuscaloosa","AL","12/31/2020-SP exp date","JTE 5-Membership/youth growth","JTE 2-Fundraising","JTE 17-District leadership","JTE 8-Cub Scout advancement","JTE 12-Community service","Bill Gosselin","006-Black Warrior 2018 JTE Objectives:  1) JTE 5-Membership/youth growth;  2) JTE 2-Fundraising;  3) JTE 17-District leadership;  4) JTE 8-Cub Scout advancement;  5) JTE 12-Community service"]
[4,6,"010","Grand Canyon","Phoenix","AZ","12/31/2019-SP exp date","JTE 10-Cub Scout camping","JTE 11-Boy Scout camping","JTE 12-Community service","JTE 17-District leadership","JTE 18-Unit leadership","Larry Abbott","010-Grand Canyon 2018 JTE Objectives:  1) JTE 10-Cub Scout camping;  2) JTE 11-Boy Scout camping;  3) JTE 12-Community service;  4) JTE 17-District leadership;  5) JTE 18-Unit leadership"]
[4,6,"011","Catalina","Tucson","AZ","12/31/2021-SP exp date","JTE 1-Fiscal management","JTE 2-Fundraising","JTE 3-Endowment","JTE 10-Cub Scout camping","JTE 18-Unit leadership","Ken Tucker","011-Catalina 2018 JTE Objectives:  1) JTE 1-Fiscal management;  2) JTE 2-Fundraising;  3) JTE 3-Endowment;  4) JTE 10-Cub Scout camping;  5) JTE 18-Unit leadership"]
[2,8,"013","De Soto Area","El Dorado","AR","12/31/2020-SP exp date","JTE 1-Fiscal management","JTE 5-Membership/youth growth","JTE 6-New member recruiting","JTE 14-Unit retention/growth","JTE 18-Unit leadership","Ted Woodlock","013-De Soto Area 2018 JTE Objectives:  1) JTE 1-Fiscal management;  2) JTE 5-Membership/youth growth;  3) JTE 6-New member recruiting;  4) JTE 14-Unit retention/growth;  5) JTE 18-Unit leadership"]
[2,8,"016","Westark Area","Fort Smith","AR","12:00:00 AM-SP exp date","JTE 5-Membership/youth growth","JTE 1-Fiscal management","JTE 2-Fundraising","JTE 6-New member recruiting","JTE 18-Unit leadership","Chris Daughtrey","016-Westark Area 2018 JTE Objectives:  1) JTE 5-Membership/youth growth;  2) JTE 1-Fiscal management;  3) JTE 2-Fundraising;  4) JTE 6-New member recruiting;  5) JTE 18-Unit leadership"]
[2,8,"018","Quapaw Area","Little Rock","AR","12/31/2023-SP exp date","JTE 2-Fundraising","JTE 18-Unit leadership","JTE 14-Unit retention/growth","JTE 8-Cub Scout advancement","JTE 11-Boy Scout camping","John Carman","018-Quapaw Area 2018 JTE Objectives:  1) JTE 2-Fundraising;  2) JTE 18-Unit leadership;  3) JTE 14-Unit retention/growth;  4) JTE 8-Cub Scout advancement;  5) JTE 11-Boy Scout camping"]
[4,3,"022","Alameda","Alameda","CA","12/31/2021-SP exp date","JTE 1-Fiscal management","JTE 3-Endowment","JTE 5-Membership/youth growth","JTE 8-Cub Scout advancement","JTE 10-Cub Scout camping","Brian Fasci","022-Alameda 2018 JTE Objectives:  1) JTE 1-Fiscal management;  2) JTE 3-Endowment;  3) JTE 5-Membership/youth growth;  4) JTE 8-Cub Scout advancement;  5) JTE 10-Cub Scout camping"]
[4,3,"023","Mount Diablo Silverado","Pleasant Hill","CA","12/31/2020-SP exp date","JTE 1-Fiscal management","JTE 2-Fundraising","JTE 5-Membership/youth growth","JTE 11-Boy Scout camping","JTE 14-Unit retention/growth","John Fenoglio","023-Mount Diablo Silverado 2018 JTE Objectives:  1) JTE 1-Fiscal management;  2) JTE 2-Fundraising;  3) JTE 5-Membership/youth growth;  4) JTE 11-Boy Scout camping;  5) JTE 14-Unit retention/growth"]
[4,3,"027","Sequoia","Fresno","CA","12:00:00 AM-SP exp date","JTE 2-Fundraising","JTE 5-Membership/youth growth","JTE 8-Cub Scout advancement","JTE 9-Boy Scout advancement","JTE 18-Unit leadership","Albert Gallegos","027-Sequoia 2018 JTE Objectives:  1) JTE 2-Fundraising;  2) JTE 5-Membership/youth growth;  3) JTE 8-Cub Scout advancement;  4) JTE 9-Boy Scout advancement;  5) JTE 18-Unit leadership"]
[4,3,"028","San Francisco Bay Area","San Leandro","CA","12/31/2018-SP exp date","JTE 1-Fiscal management","JTE 6-New member recruiting","JTE 11-Boy Scout camping","JTE 5-Membership/youth growth","JTE 12-Community service","Joe Barton","028-San Francisco Bay Area 2018 JTE Objectives:  1) JTE 1-Fiscal management;  2) JTE 6-New member recruiting;  3) JTE 11-Boy Scout camping;  4) JTE 5-Membership/youth growth;  5) JTE 12-Community service"]
[4,4,"030","Southern Sierra","Bakersfield","CA","12/31/2020-SP exp date","JTE 2-Fundraising","JTE 5-Membership/youth growth","JTE 10-Cub Scout camping","JTE 9-Boy Scout advancement","JTE 17-District leadership","Jesse Lopez","030-Southern Sierra 2018 JTE Objectives:  1) JTE 2-Fundraising;  2) JTE 5-Membership/youth growth;  3) JTE 10-Cub Scout camping;  4) JTE 9-Boy Scout advancement;  5) JTE 17-District leadership"]
[4,3,"031","Pacific Skyline","Foster City","CA","12/31/2019-SP exp date","JTE 5-Membership/youth growth","JTE 2-Fundraising","JTE 17-District leadership","JTE 11-Boy Scout camping","JTE 18-Unit leadership","Brian Curtis","031-Pacific Skyline 2018 JTE Objectives:  1) JTE 5-Membership/youth growth;  2) JTE 2-Fundraising;  3) JTE 17-District leadership;  4) JTE 11-Boy Scout camping;  5) JTE 18-Unit leadership"]
[4,4,"032","Long Beach Area","Long Beach","CA","12/31/2018-SP exp date","JTE 5-Membership/youth growth","JTE 6-New member recruiting","JTE 17-District leadership","JTE 2-Fundraising","JTE 18-Unit leadership","John Fullerton","032-Long Beach Area 2018 JTE Objectives:  1) JTE 5-Membership/youth growth;  2) JTE 6-New member recruiting;  3) JTE 17-District leadership;  4) JTE 2-Fundraising;  5) JTE 18-Unit leadership"]
[4,4,"033","Greater Los Angeles Area","Los Angeles","CA","12:00:00 AM-SP exp date","JTE 1-Fiscal management","JTE 7-Youth retention","JTE 5-Membership/youth growth","JTE 8-Cub Scout advancement","JTE 18-Unit leadership","Jeff Hunt","033-Greater Los Angeles Area 2018 JTE Objectives:  1) JTE 1-Fiscal management;  2) JTE 7-Youth retention;  3) JTE 5-Membership/youth growth;  4) JTE 8-Cub Scout advancement;  5) JTE 18-Unit leadership"]
[4,3,"035","Marin","San Rafael","CA","12/31/2020-SP exp date","JTE 5-Membership/youth growth","JTE 2-Fundraising","JTE 4-Community impact","JTE 1-Fiscal management","JTE 14-Unit retention/growth","Michael Dybeck","035-Marin 2018 JTE Objectives:  1) JTE 5-Membership/youth growth;  2) JTE 2-Fundraising;  3) JTE 4-Community impact;  4) JTE 1-Fiscal management;  5) JTE 14-Unit retention/growth"]
[4,4,"039","Orange County","Santa Ana","CA","12:00:00 AM-SP exp date","JTE 5-Membership/youth growth","JTE 6-New member recruiting","JTE 10-Cub Scout camping","JTE 11-Boy Scout camping","JTE 18-Unit leadership","Jeff Herrmann","039-Orange County 2018 JTE Objectives:  1) JTE 5-Membership/youth growth;  2) JTE 6-New member recruiting;  3) JTE 10-Cub Scout camping;  4) JTE 11-Boy Scout camping;  5) JTE 18-Unit leadership"]
[4,3,"041","Redwood Empire","Santa Rosa","CA","12/31/2018-SP exp date","JTE 2-Fundraising","JTE 5-Membership/youth growth","JTE 17-District leadership","JTE 10-Cub Scout camping","JTE 12-Community service","Charles A. Howard-Gibbon","041-Redwood Empire 2018 JTE Objectives:  1) JTE 2-Fundraising;  2) JTE 5-Membership/youth growth;  3) JTE 17-District leadership;  4) JTE 10-Cub Scout camping;  5) JTE 12-Community service"]
[4,3,"042","Piedmont","Piedmont","CA","12/31/2019-SP exp date","JTE 5-Membership/youth growth","JTE 8-Cub Scout advancement","JTE 12-Community service","JTE 15-Unit contacts","JTE 18-Unit leadership","Josephine Pegrum Hazelett","042-Piedmont 2018 JTE Objectives:  1) JTE 5-Membership/youth growth;  2) JTE 8-Cub Scout advancement;  3) JTE 12-Community service;  4) JTE 15-Unit contacts;  5) JTE 18-Unit leadership"]
[4,4,"045","California Inland Empire","Redlands","CA","12/31/2018-SP exp date","JTE 1-Fiscal management","JTE 18-Unit leadership","JTE 5-Membership/youth growth","JTE 11-Boy Scout camping","JTE 17-District leadership","Daniela Silva","045-California Inland Empire 2018 JTE Objectives:  1) JTE 1-Fiscal management;  2) JTE 18-Unit leadership;  3) JTE 5-Membership/youth growth;  4) JTE 11-Boy Scout camping;  5) JTE 17-District leadership"]
[4,3,"047","Golden Empire","Sacramento","CA","12/31/2019-SP exp date","JTE 2-Fundraising","JTE 3-Endowment","JTE 5-Membership/youth growth","JTE 17-District leadership","JTE 18-Unit leadership","Chuck Brasfeild","047-Golden Empire 2018 JTE Objectives:  1) JTE 2-Fundraising;  2) JTE 3-Endowment;  3) JTE 5-Membership/youth growth;  4) JTE 17-District leadership;  5) JTE 18-Unit leadership"]
[4,6,"049","San Diego-Imperial","San Diego","CA","12/31/2020-SP exp date","JTE 5-Membership/youth growth","JTE 6-New member recruiting","JTE 11-Boy Scout camping","JTE 15-Unit contacts","JTE 18-Unit leadership","Trent McClure","049-San Diego-Imperial 2018 JTE Objectives:  1) JTE 5-Membership/youth growth;  2) JTE 6-New member recruiting;  3) JTE 11-Boy Scout camping;  4) JTE 15-Unit contacts;  5) JTE 18-Unit leadership"]
[4,4,"051","Western Los Angeles County","Van Nuys","CA","12:00:00 AM-SP exp date","JTE 2-Fundraising","JTE 3-Endowment","JTE 5-Membership/youth growth","JTE 6-New member recruiting","JTE 17-District leadership","Matthew Thornton","051-Western Los Angeles County 2018 JTE Objectives:  1) JTE 2-Fundraising;  2) JTE 3-Endowment;  3) JTE 5-Membership/youth growth;  4) JTE 6-New member recruiting;  5) JTE 17-District leadership"]
[4,4,"053","Los Padres","Santa Barbara","CA","12/31/2018-SP exp date","JTE 17-District leadership","JTE 2-Fundraising","JTE 4-Community impact","JTE 10-Cub Scout camping","JTE 18-Unit leadership","Carlos Cortez","053-Los Padres 2018 JTE Objectives:  1) JTE 17-District leadership;  2) JTE 2-Fundraising;  3) JTE 4-Community impact;  4) JTE 10-Cub Scout camping;  5) JTE 18-Unit leadership"]
[4,3,"055","Silicon Valley Monterey Bay","San Jose","CA","12/31/2018-SP exp date","JTE 6-New member recruiting","JTE 2-Fundraising","JTE 18-Unit leadership","JTE 15-Unit contacts","JTE 8-Cub Scout advancement","Jason Stein","055-Silicon Valley Monterey Bay 2018 JTE Objectives:  1) JTE 6-New member recruiting;  2) JTE 2-Fundraising;  3) JTE 18-Unit leadership;  4) JTE 15-Unit contacts;  5) JTE 8-Cub Scout advancement"]
[4,4,"057","Ventura County","Camarillo","CA","12/31/2021-SP exp date","JTE 1-Fiscal management","JTE 2-Fundraising","JTE 3-Endowment","JTE 6-New member recruiting","JTE 18-Unit leadership","David Jones","057-Ventura County 2018 JTE Objectives:  1) JTE 1-Fiscal management;  2) JTE 2-Fundraising;  3) JTE 3-Endowment;  4) JTE 6-New member recruiting;  5) JTE 18-Unit leadership"]
[4,4,"058","Verdugo Hills","Glendale","CA","12:00:00 AM-SP exp date","JTE 2-Fundraising","JTE 1-Fiscal management","JTE 5-Membership/youth growth","JTE 14-Unit retention/growth","JTE 6-New member recruiting","Mark Kraus","058-Verdugo Hills 2018 JTE Objectives:  1) JTE 2-Fundraising;  2) JTE 1-Fiscal management;  3) JTE 5-Membership/youth growth;  4) JTE 14-Unit retention/growth;  5) JTE 6-New member recruiting"]
[4,3,"059","Greater Yosemite","Modesto","CA","12/31/2020-SP exp date","JTE 1-Fiscal management","JTE 2-Fundraising","JTE 5-Membership/youth growth","JTE 17-District leadership","JTE 18-Unit leadership","Sonya Greene","059-Greater Yosemite 2018 JTE Objectives:  1) JTE 1-Fiscal management;  2) JTE 2-Fundraising;  3) JTE 5-Membership/youth growth;  4) JTE 17-District leadership;  5) JTE 18-Unit leadership"]
[4,2,"060","Pikes Peak","Colorado Springs","CO","12/31/2020-SP exp date","JTE 1-Fiscal management","JTE 6-New member recruiting","JTE 11-Boy Scout camping","JTE 15-Unit contacts","JTE 18-Unit leadership","Jim Machamer","060-Pikes Peak 2018 JTE Objectives:  1) JTE 1-Fiscal management;  2) JTE 6-New member recruiting;  3) JTE 11-Boy Scout camping;  4) JTE 15-Unit contacts;  5) JTE 18-Unit leadership"]
[4,2,"061","Denver Area","Denver","CO","12:00:00 AM-SP exp date","JTE 1-Fiscal management","JTE 6-New member recruiting","JTE 18-Unit leadership","JTE 15-Unit contacts","JTE 10-Cub Scout camping","Nicole Cosme","061-Denver Area 2018 JTE Objectives:  1) JTE 1-Fiscal management;  2) JTE 6-New member recruiting;  3) JTE 18-Unit leadership;  4) JTE 15-Unit contacts;  5) JTE 10-Cub Scout camping"]
[4,2,"062","Longs Peak","Greeley","CO","12/31/2021-SP exp date","JTE 1-Fiscal management","JTE 2-Fundraising","JTE 5-Membership/youth growth","JTE 11-Boy Scout camping","JTE 18-Unit leadership","John Coleman ","062-Longs Peak 2018 JTE Objectives:  1) JTE 1-Fiscal management;  2) JTE 2-Fundraising;  3) JTE 5-Membership/youth growth;  4) JTE 11-Boy Scout camping;  5) JTE 18-Unit leadership"]
[4,2,"063","Rocky Mountain","Pueblo","CO","12/31/2019-SP exp date","JTE 2-Fundraising","JTE 5-Membership/youth growth","JTE 7-Youth retention","JTE 12-Community service","JTE 18-Unit leadership","Philip Eborn","063-Rocky Mountain 2018 JTE Objectives:  1) JTE 2-Fundraising;  2) JTE 5-Membership/youth growth;  3) JTE 7-Youth retention;  4) JTE 12-Community service;  5) JTE 18-Unit leadership"]
[4,2,"064","Western Colorado","Grand Junction","CO","12:00:00 AM-SP exp date","JTE 1-Fiscal management","JTE 6-New member recruiting","JTE 10-Cub Scout camping","JTE 17-District leadership","JTE 18-Unit leadership","Mark Switzer","064-Western Colorado 2018 JTE Objectives:  1) JTE 1-Fiscal management;  2) JTE 6-New member recruiting;  3) JTE 10-Cub Scout camping;  4) JTE 17-District leadership;  5) JTE 18-Unit leadership"]
[1,2,"066","Connecticut Rivers","East Hartford","CT","12/31/2018-SP exp date","JTE 2-Fundraising","JTE 18-Unit leadership","JTE 9-Boy Scout advancement","JTE 15-Unit contacts","JTE 5-Membership/youth growth","steven smith","066-Connecticut Rivers 2018 JTE Objectives:  1) JTE 2-Fundraising;  2) JTE 18-Unit leadership;  3) JTE 9-Boy Scout advancement;  4) JTE 15-Unit contacts;  5) JTE 5-Membership/youth growth"]
[1,2,"067","Greenwich","Greenwich","CT","12/31/2018-SP exp date","JTE 5-Membership/youth growth","JTE 7-Youth retention","JTE 1-Fiscal management","JTE 2-Fundraising","JTE 3-Endowment","Kevin Oâ€™Shea","067-Greenwich 2018 JTE Objectives:  1) JTE 5-Membership/youth growth;  2) JTE 7-Youth retention;  3) JTE 1-Fiscal management;  4) JTE 2-Fundraising;  5) JTE 3-Endowment"]
[1,2,"069","Housatonic","Derby","CT","12:00:00 AM-SP exp date","JTE 3-Endowment","JTE 4-Community impact","JTE 5-Membership/youth growth","JTE 17-District leadership","JTE 18-Unit leadership","John A. Zseller II","069-Housatonic 2018 JTE Objectives:  1) JTE 3-Endowment;  2) JTE 4-Community impact;  3) JTE 5-Membership/youth growth;  4) JTE 17-District leadership;  5) JTE 18-Unit leadership"]
[2,7,"070","Old North State","Greensboro","NC","12/31/2021-SP exp date","JTE 1-Fiscal management","JTE 3-Endowment","JTE 5-Membership/youth growth","JTE 11-Boy Scout camping","JTE 8-Cub Scout advancement","Ed Martin","070-Old North State 2018 JTE Objectives:  1) JTE 1-Fiscal management;  2) JTE 3-Endowment;  3) JTE 5-Membership/youth growth;  4) JTE 11-Boy Scout camping;  5) JTE 8-Cub Scout advancement"]
[1,2,"072","Connecticut Yankee","Milford","CT","12/31/2021-SP exp date","JTE 1-Fiscal management","JTE 2-Fundraising","JTE 5-Membership/youth growth","JTE 6-New member recruiting","JTE 10-Cub Scout camping","Charles L Flowers","072-Connecticut Yankee 2018 JTE Objectives:  1) JTE 1-Fiscal management;  2) JTE 2-Fundraising;  3) JTE 5-Membership/youth growth;  4) JTE 6-New member recruiting;  5) JTE 10-Cub Scout camping"]
[1,6,"081","Del-Mar-Va","Wilmington","DE","12/31/2020-SP exp date","JTE 2-Fundraising","JTE 7-Youth retention","JTE 8-Cub Scout advancement","JTE 17-District leadership","JTE 10-Cub Scout camping","Bill Garrett","081-Del-Mar-Va 2018 JTE Objectives:  1) JTE 2-Fundraising;  2) JTE 7-Youth retention;  3) JTE 8-Cub Scout advancement;  4) JTE 17-District leadership;  5) JTE 10-Cub Scout camping"]
[1,6,"082","National Capital Area","Bethesda","MD","12/31/2022-SP exp date","JTE 2-Fundraising","JTE 5-Membership/youth growth","JTE 4-Community impact","JTE 10-Cub Scout camping","JTE 11-Boy Scout camping","Jeffrey Berger","082-National Capital Area 2018 JTE Objectives:  1) JTE 2-Fundraising;  2) JTE 5-Membership/youth growth;  3) JTE 4-Community impact;  4) JTE 10-Cub Scout camping;  5) JTE 11-Boy Scout camping"]
[2,4,"083","Central Florida","Orlando","FL","12/31/2019-SP exp date","JTE 11-Boy Scout camping","JTE 10-Cub Scout camping","JTE 2-Fundraising","JTE 5-Membership/youth growth","JTE 7-Youth retention","Eric Magendantz","083-Central Florida 2018 JTE Objectives:  1) JTE 11-Boy Scout camping;  2) JTE 10-Cub Scout camping;  3) JTE 2-Fundraising;  4) JTE 5-Membership/youth growth;  5) JTE 7-Youth retention"]
[2,4,"084","South Florida","Miami Lakes","FL","12/31/2018-SP exp date","JTE 1-Fiscal management","JTE 2-Fundraising","JTE 9-Boy Scout advancement","JTE 13-Youth-serving executives","JTE 15-Unit contacts","Brick Huffman","084-South Florida 2018 JTE Objectives:  1) JTE 1-Fiscal management;  2) JTE 2-Fundraising;  3) JTE 9-Boy Scout advancement;  4) JTE 13-Youth-serving executives;  5) JTE 15-Unit contacts"]
[2,4,"085","Gulf Stream","Palm Beach Gardens","FL","12/31/2020-SP exp date","JTE 2-Fundraising","JTE 5-Membership/youth growth","JTE 3-Endowment","JTE 15-Unit contacts","JTE 12-Community service","Terrence Hamilton","085-Gulf Stream 2018 JTE Objectives:  1) JTE 2-Fundraising;  2) JTE 5-Membership/youth growth;  3) JTE 3-Endowment;  4) JTE 15-Unit contacts;  5) JTE 12-Community service"]
[2,4,"087","North Florida","Jacksonville","FL","12:00:00 AM-SP exp date","JTE 2-Fundraising","JTE 5-Membership/youth growth","JTE 11-Boy Scout camping","JTE 15-Unit contacts","JTE 17-District leadership","Jack Sears","087-North Florida 2018 JTE Objectives:  1) JTE 2-Fundraising;  2) JTE 5-Membership/youth growth;  3) JTE 11-Boy Scout camping;  4) JTE 15-Unit contacts;  5) JTE 17-District leadership"]
[2,4,"088","Southwest Florida","Fort Myers","FL","12/31/2020-SP exp date","JTE 1-Fiscal management","JTE 2-Fundraising","JTE 5-Membership/youth growth","JTE 14-Unit retention/growth","JTE 17-District leadership","Greg Graham","088-Southwest Florida 2018 JTE Objectives:  1) JTE 1-Fiscal management;  2) JTE 2-Fundraising;  3) JTE 5-Membership/youth growth;  4) JTE 14-Unit retention/growth;  5) JTE 17-District leadership"]
[2,4,"089","Greater Tampa Bay Area","Tampa","FL","12:00:00 AM-SP exp date","JTE 2-Fundraising","JTE 1-Fiscal management","JTE 5-Membership/youth growth","JTE 18-Unit leadership","JTE 14-Unit retention/growth","jeff rock","089-Greater Tampa Bay Area 2018 JTE Objectives:  1) JTE 2-Fundraising;  2) JTE 1-Fiscal management;  3) JTE 5-Membership/youth growth;  4) JTE 18-Unit leadership;  5) JTE 14-Unit retention/growth"]
[2,9,"091","Chattahoochee","Columbus","GA","12/31/2020-SP exp date","JTE 1-Fiscal management","JTE 2-Fundraising","JTE 11-Boy Scout camping","JTE 15-Unit contacts","JTE 6-New member recruiting","Philip Wright","091-Chattahoochee 2018 JTE Objectives:  1) JTE 1-Fiscal management;  2) JTE 2-Fundraising;  3) JTE 11-Boy Scout camping;  4) JTE 15-Unit contacts;  5) JTE 6-New member recruiting"]
[2,9,"092","Atlanta Area","Atlanta","GA","12:00:00 AM-SP exp date","JTE 1-Fiscal management","JTE 10-Cub Scout camping","JTE 11-Boy Scout camping","JTE 5-Membership/youth growth","JTE 17-District leadership","Jason Volz","092-Atlanta Area 2018 JTE Objectives:  1) JTE 1-Fiscal management;  2) JTE 10-Cub Scout camping;  3) JTE 11-Boy Scout camping;  4) JTE 5-Membership/youth growth;  5) JTE 17-District leadership"]
[2,5,"093","Georgia-Carolina","Augusta","GA","12:00:00 AM-SP exp date","JTE 2-Fundraising","JTE 4-Community impact","JTE 6-New member recruiting","JTE 18-Unit leadership","JTE 14-Unit retention/growth","Daniel Rogers","093-Georgia-Carolina 2018 JTE Objectives:  1) JTE 2-Fundraising;  2) JTE 4-Community impact;  3) JTE 6-New member recruiting;  4) JTE 18-Unit leadership;  5) JTE 14-Unit retention/growth"]
[2,9,"095","Flint River","Griffin","GA","12/31/2020-SP exp date","JTE 3-Endowment","JTE 5-Membership/youth growth","JTE 6-New member recruiting","JTE 15-Unit contacts","JTE 17-District leadership","Kelvin Williams","095-Flint River 2018 JTE Objectives:  1) JTE 3-Endowment;  2) JTE 5-Membership/youth growth;  3) JTE 6-New member recruiting;  4) JTE 15-Unit contacts;  5) JTE 17-District leadership"]
[2,9,"096","Central Georgia","Macon","GA","12/31/2022-SP exp date","JTE 1-Fiscal management","JTE 5-Membership/youth growth","JTE 7-Youth retention","JTE 14-Unit retention/growth","JTE 18-Unit leadership","Garrett L. Williams","096-Central Georgia 2018 JTE Objectives:  1) JTE 1-Fiscal management;  2) JTE 5-Membership/youth growth;  3) JTE 7-Youth retention;  4) JTE 14-Unit retention/growth;  5) JTE 18-Unit leadership"]
[2,9,"098","South Georgia","Valdosta","GA","12/31/2020-SP exp date","JTE 15-Unit contacts","JTE 17-District leadership","JTE 18-Unit leadership","JTE 7-Youth retention","JTE 10-Cub Scout camping","Matt Hart","098-South Georgia 2018 JTE Objectives:  1) JTE 15-Unit contacts;  2) JTE 17-District leadership;  3) JTE 18-Unit leadership;  4) JTE 7-Youth retention;  5) JTE 10-Cub Scout camping"]
[2,9,"099","Coastal Georgia","Savannah","GA","12/31/2019-SP exp date","JTE 1-Fiscal management","JTE 5-Membership/youth growth","JTE 6-New member recruiting","JTE 2-Fundraising","JTE 17-District leadership","Clif Morris","099-Coastal Georgia 2018 JTE Objectives:  1) JTE 1-Fiscal management;  2) JTE 5-Membership/youth growth;  3) JTE 6-New member recruiting;  4) JTE 2-Fundraising;  5) JTE 17-District leadership"]
[2,9,"100","Northwest Georgia","Rome","GA","12/31/2020-SP exp date","JTE 2-Fundraising","JTE 8-Cub Scout advancement","JTE 9-Boy Scout advancement","JTE 5-Membership/youth growth","JTE 7-Youth retention","Jeff Brasher","100-Northwest Georgia 2018 JTE Objectives:  1) JTE 2-Fundraising;  2) JTE 8-Cub Scout advancement;  3) JTE 9-Boy Scout advancement;  4) JTE 5-Membership/youth growth;  5) JTE 7-Youth retention"]
[2,9,"101","Northeast Georgia","Jefferson","GA","12/31/2021-SP exp date","JTE 5-Membership/youth growth","JTE 9-Boy Scout advancement","JTE 10-Cub Scout camping","JTE 12-Community service","JTE 14-Unit retention/growth","Rodney Brundidge","101-Northeast Georgia 2018 JTE Objectives:  1) JTE 5-Membership/youth growth;  2) JTE 9-Boy Scout advancement;  3) JTE 10-Cub Scout camping;  4) JTE 12-Community service;  5) JTE 14-Unit retention/growth"]
[4,6,"102","Maui County","Wailuku, Maui","HI","12/31/2020-SP exp date","JTE 1-Fiscal management","JTE 5-Membership/youth growth","JTE 2-Fundraising","JTE 18-Unit leadership","JTE 14-Unit retention/growth","Duc Button","102-Maui County 2018 JTE Objectives:  1) JTE 1-Fiscal management;  2) JTE 5-Membership/youth growth;  3) JTE 2-Fundraising;  4) JTE 18-Unit leadership;  5) JTE 14-Unit retention/growth"]
[4,6,"104","Aloha","Honolulu","HI","12/31/2020-SP exp date","JTE 1-Fiscal management","JTE 2-Fundraising","JTE 6-New member recruiting","JTE 11-Boy Scout camping","JTE 18-Unit leadership","Jeff Sulzbach","104-Aloha 2018 JTE Objectives:  1) JTE 1-Fiscal management;  2) JTE 2-Fundraising;  3) JTE 6-New member recruiting;  4) JTE 11-Boy Scout camping;  5) JTE 18-Unit leadership"]
[4,1,"106","Ore-Ida","Boise","ID","12/31/2019-SP exp date","JTE 1-Fiscal management","JTE 6-New member recruiting","JTE 8-Cub Scout advancement","JTE 14-Unit retention/growth","JTE 17-District leadership","David Kemper","106-Ore-Ida 2018 JTE Objectives:  1) JTE 1-Fiscal management;  2) JTE 6-New member recruiting;  3) JTE 8-Cub Scout advancement;  4) JTE 14-Unit retention/growth;  5) JTE 17-District leadership"]
[4,2,"107","Grand Teton","Idaho Falls","ID","12/31/2018-SP exp date","JTE 3-Endowment","JTE 2-Fundraising","JTE 1-Fiscal management","JTE 18-Unit leadership","JTE 15-Unit contacts","Clarke Farrer","107-Grand Teton 2018 JTE Objectives:  1) JTE 3-Endowment;  2) JTE 2-Fundraising;  3) JTE 1-Fiscal management;  4) JTE 18-Unit leadership;  5) JTE 15-Unit contacts"]
[4,2,"111","Snake River","Twin Falls","ID","12/31/2022-SP exp date","JTE 2-Fundraising","JTE 5-Membership/youth growth","JTE 12-Community service","JTE 15-Unit contacts","JTE 18-Unit leadership","David Kirk","111-Snake River 2018 JTE Objectives:  1) JTE 2-Fundraising;  2) JTE 5-Membership/youth growth;  3) JTE 12-Community service;  4) JTE 15-Unit contacts;  5) JTE 18-Unit leadership"]
[3,3,"117","Prairielands","Champaign","IL","12/31/2020-SP exp date","JTE 2-Fundraising","JTE 12-Community service","JTE 15-Unit contacts","JTE 13-Youth-serving executives","JTE 18-Unit leadership","Steve Adams","117-Prairielands 2018 JTE Objectives:  1) JTE 2-Fundraising;  2) JTE 12-Community service;  3) JTE 15-Unit contacts;  4) JTE 13-Youth-serving executives;  5) JTE 18-Unit leadership"]
[3,3,"121","Lincoln Trails","Decatur","IL","12/31/2018-SP exp date","JTE 5-Membership/youth growth","JTE 14-Unit retention/growth","JTE 1-Fiscal management","JTE 17-District leadership","JTE 2-Fundraising","Christian J. Long","121-Lincoln Trails 2018 JTE Objectives:  1) JTE 5-Membership/youth growth;  2) JTE 14-Unit retention/growth;  3) JTE 1-Fiscal management;  4) JTE 17-District leadership;  5) JTE 2-Fundraising"]
[3,7,"127","Three Fires","St. Charles","IL","12/31/2020-SP exp date","JTE 2-Fundraising","JTE 6-New member recruiting","JTE 10-Cub Scout camping","JTE 15-Unit contacts","JTE 17-District leadership","Nick Roberts",{"$f":"_xlfn.CONCAT(C67) & \"-\" & (D67) & \" 2018 JTE Objectives:  \" & \"1) \" & (H67) & \";  2) \" & (I67) & \";  3) \" & (J67) & \";  4) \" & (K67) & \";  5) \" & (L67)","v":"127-Three Fires 2018 JTE Objectives:  1) JTE 2-Fundraising;  2) JTE 6-New member recruiting;  3) JTE 10-Cub Scout camping;  4) JTE 15-Unit contacts;  5) JTE 17-District leadership"}]
[3,7,"129","Northeast Illinois","Highland Park","IL","12:00:00 AM-SP exp date","JTE 1-Fiscal management","JTE 3-Endowment","JTE 6-New member recruiting","JTE 10-Cub Scout camping","JTE 18-Unit leadership","Doug Nelson","129-Northeast Illinois 2018 JTE Objectives:  1) JTE 1-Fiscal management;  2) JTE 3-Endowment;  3) JTE 6-New member recruiting;  4) JTE 10-Cub Scout camping;  5) JTE 18-Unit leadership"]
[3,3,"133","Illowa","Davenport","IA","12/31/2019-SP exp date","JTE 1-Fiscal management","JTE 8-Cub Scout advancement","JTE 17-District leadership","JTE 15-Unit contacts","JTE 12-Community service","Thomas P. McDermott","133-Illowa 2018 JTE Objectives:  1) JTE 1-Fiscal management;  2) JTE 8-Cub Scout advancement;  3) JTE 17-District leadership;  4) JTE 15-Unit contacts;  5) JTE 12-Community service"]
[3,3,"138","W.D. Boyce","Peoria","IL","12/31/2022-SP exp date","JTE 5-Membership/youth growth","JTE 12-Community service","JTE 3-Endowment","JTE 18-Unit leadership","JTE 8-Cub Scout advancement","Greg Voyzey","138-W.D. Boyce 2018 JTE Objectives:  1) JTE 5-Membership/youth growth;  2) JTE 12-Community service;  3) JTE 3-Endowment;  4) JTE 18-Unit leadership;  5) JTE 8-Cub Scout advancement"]
[3,3,"141","Mississippi Valley","Quincy","IL","12/31/2019-SP exp date","JTE 3-Endowment","JTE 5-Membership/youth growth","JTE 6-New member recruiting","JTE 14-Unit retention/growth","JTE 18-Unit leadership","Todd Lamison","141-Mississippi Valley 2018 JTE Objectives:  1) JTE 3-Endowment;  2) JTE 5-Membership/youth growth;  3) JTE 6-New member recruiting;  4) JTE 14-Unit retention/growth;  5) JTE 18-Unit leadership"]
[3,3,"144","Abraham Lincoln","Springfield","IL","12/31/2018-SP exp date","JTE 5-Membership/youth growth","JTE 6-New member recruiting","JTE 8-Cub Scout advancement","JTE 12-Community service","JTE 4-Community impact","Daniel A. O'Brien","144-Abraham Lincoln 2018 JTE Objectives:  1) JTE 5-Membership/youth growth;  2) JTE 6-New member recruiting;  3) JTE 8-Cub Scout advancement;  4) JTE 12-Community service;  5) JTE 4-Community impact"]
[3,6,"145","Hoosier Trails","Bloomington","IN","12/31/2020-SP exp date","JTE 1-Fiscal management","JTE 8-Cub Scout advancement","JTE 9-Boy Scout advancement","JTE 18-Unit leadership","JTE 6-New member recruiting","Glen R Steenberger","145-Hoosier Trails 2018 JTE Objectives:  1) JTE 1-Fiscal management;  2) JTE 8-Cub Scout advancement;  3) JTE 9-Boy Scout advancement;  4) JTE 18-Unit leadership;  5) JTE 6-New member recruiting"]
[3,6,"156","Buffalo Trace","Evansville","IN","12/31/2020-SP exp date","JTE 10-Cub Scout camping","JTE 15-Unit contacts","JTE 5-Membership/youth growth","JTE 18-Unit leadership","JTE 6-New member recruiting","John Harding","156-Buffalo Trace 2018 JTE Objectives:  1) JTE 10-Cub Scout camping;  2) JTE 15-Unit contacts;  3) JTE 5-Membership/youth growth;  4) JTE 18-Unit leadership;  5) JTE 6-New member recruiting"]
[3,6,"157","Anthony Wayne Area","Fort Wayne","IN","12/31/2019-SP exp date","JTE 1-Fiscal management","JTE 5-Membership/youth growth","JTE 7-Youth retention","JTE 10-Cub Scout camping","JTE 18-Unit leadership","John Gliot","157-Anthony Wayne Area 2018 JTE Objectives:  1) JTE 1-Fiscal management;  2) JTE 5-Membership/youth growth;  3) JTE 7-Youth retention;  4) JTE 10-Cub Scout camping;  5) JTE 18-Unit leadership"]
[3,6,"160","Crossroads of America","Indianapolis","IN","12/31/2018-SP exp date","JTE 3-Endowment","JTE 5-Membership/youth growth","JTE 7-Youth retention","JTE 9-Boy Scout advancement","JTE 10-Cub Scout camping","patrick sterrett","160-Crossroads of America 2018 JTE Objectives:  1) JTE 3-Endowment;  2) JTE 5-Membership/youth growth;  3) JTE 7-Youth retention;  4) JTE 9-Boy Scout advancement;  5) JTE 10-Cub Scout camping"]
[3,6,"162","Sagamore","Kokomo","IN","12/31/2021-SP exp date","JTE 2-Fundraising","JTE 5-Membership/youth growth","JTE 10-Cub Scout camping","JTE 14-Unit retention/growth","JTE 18-Unit leadership","Ben Blumenberg","162-Sagamore 2018 JTE Objectives:  1) JTE 2-Fundraising;  2) JTE 5-Membership/youth growth;  3) JTE 10-Cub Scout camping;  4) JTE 14-Unit retention/growth;  5) JTE 18-Unit leadership"]
[3,6,"165","LaSalle","South Bend","IN","12:00:00 AM-SP exp date","JTE 5-Membership/youth growth","JTE 2-Fundraising","JTE 6-New member recruiting","JTE 14-Unit retention/growth","JTE 12-Community service","Robert Hemmelgarn","165-LaSalle 2018 JTE Objectives:  1) JTE 5-Membership/youth growth;  2) JTE 2-Fundraising;  3) JTE 6-New member recruiting;  4) JTE 14-Unit retention/growth;  5) JTE 12-Community service"]
[3,3,"172","Hawkeye Area","Cedar Rapids","IA","12/31/2020-SP exp date","JTE 2-Fundraising","JTE 5-Membership/youth growth","JTE 10-Cub Scout camping","JTE 17-District leadership","JTE 3-Endowment","Sarah Dawson","172-Hawkeye Area 2018 JTE Objectives:  1) JTE 2-Fundraising;  2) JTE 5-Membership/youth growth;  3) JTE 10-Cub Scout camping;  4) JTE 17-District leadership;  5) JTE 3-Endowment"]
[3,3,"173","Winnebago","Waterloo","IA","12:00:00 AM-SP exp date","JTE 2-Fundraising","JTE 17-District leadership","JTE 18-Unit leadership","JTE 9-Boy Scout advancement","JTE 15-Unit contacts","James R. Madison Jr.","173-Winnebago 2018 JTE Objectives:  1) JTE 2-Fundraising;  2) JTE 17-District leadership;  3) JTE 18-Unit leadership;  4) JTE 9-Boy Scout advancement;  5) JTE 15-Unit contacts"]
[3,5,"177","Mid-Iowa","Des Moines","IA","12/31/2021-SP exp date","JTE 10-Cub Scout camping","JTE 2-Fundraising","JTE 3-Endowment","JTE 6-New member recruiting","JTE 5-Membership/youth growth","Robert Hopper","177-Mid-Iowa 2018 JTE Objectives:  1) JTE 10-Cub Scout camping;  2) JTE 2-Fundraising;  3) JTE 3-Endowment;  4) JTE 6-New member recruiting;  5) JTE 5-Membership/youth growth"]
[3,3,"178","Northeast Iowa","Dubuque","IA","12/31/2019-SP exp date","JTE 3-Endowment","JTE 18-Unit leadership","JTE 8-Cub Scout advancement","JTE 9-Boy Scout advancement","JTE 6-New member recruiting","Matt Klutzaritz","178-Northeast Iowa 2018 JTE Objectives:  1) JTE 3-Endowment;  2) JTE 18-Unit leadership;  3) JTE 8-Cub Scout advancement;  4) JTE 9-Boy Scout advancement;  5) JTE 6-New member recruiting"]
[3,5,"192","Coronado Area","Salina","KS","12/31/2018-SP exp date","JTE 13-Youth-serving executives","JTE 18-Unit leadership","JTE 12-Community service","JTE 10-Cub Scout camping","JTE 14-Unit retention/growth","Wendy Shaw","192-Coronado Area 2018 JTE Objectives:  1) JTE 13-Youth-serving executives;  2) JTE 18-Unit leadership;  3) JTE 12-Community service;  4) JTE 10-Cub Scout camping;  5) JTE 14-Unit retention/growth"]
[3,5,"194","Santa Fe Trail","Garden City","KS","12/31/2020-SP exp date","JTE 2-Fundraising","JTE 5-Membership/youth growth","JTE 3-Endowment","JTE 12-Community service","JTE 15-Unit contacts","Michael Stewart","194-Santa Fe Trail 2018 JTE Objectives:  1) JTE 2-Fundraising;  2) JTE 5-Membership/youth growth;  3) JTE 3-Endowment;  4) JTE 12-Community service;  5) JTE 15-Unit contacts"]
[3,5,"197","Jayhawk Area","Topeka","KS","12/31/2019-SP exp date","JTE 5-Membership/youth growth","JTE 8-Cub Scout advancement","JTE 9-Boy Scout advancement","JTE 12-Community service","JTE 15-Unit contacts","Wayne Pancoast","197-Jayhawk Area 2018 JTE Objectives:  1) JTE 5-Membership/youth growth;  2) JTE 8-Cub Scout advancement;  3) JTE 9-Boy Scout advancement;  4) JTE 12-Community service;  5) JTE 15-Unit contacts"]
[3,5,"198","Quivira","Wichita","KS","12/31/2021-SP exp date","JTE 3-Endowment","JTE 5-Membership/youth growth","JTE 8-Cub Scout advancement","JTE 10-Cub Scout camping","JTE 18-Unit leadership","Brian Nastase","198-Quivira 2018 JTE Objectives:  1) JTE 3-Endowment;  2) JTE 5-Membership/youth growth;  3) JTE 8-Cub Scout advancement;  4) JTE 10-Cub Scout camping;  5) JTE 18-Unit leadership"]
[2,6,"204","Blue Grass","Lexington","KY","12/31/2019-SP exp date","JTE 1-Fiscal management","JTE 2-Fundraising","JTE 4-Community impact","JTE 5-Membership/youth growth","JTE 15-Unit contacts","James Armishaw","204-Blue Grass 2018 JTE Objectives:  1) JTE 1-Fiscal management;  2) JTE 2-Fundraising;  3) JTE 4-Community impact;  4) JTE 5-Membership/youth growth;  5) JTE 15-Unit contacts"]
[2,6,"205","Lincoln Heritage","Louisville","KY","12/31/2018-SP exp date","JTE 2-Fundraising","JTE 5-Membership/youth growth","JTE 11-Boy Scout camping","JTE 14-Unit retention/growth","JTE 18-Unit leadership","Clint Scharff","205-Lincoln Heritage 2018 JTE Objectives:  1) JTE 2-Fundraising;  2) JTE 5-Membership/youth growth;  3) JTE 11-Boy Scout camping;  4) JTE 14-Unit retention/growth;  5) JTE 18-Unit leadership"]
[2,1,"209","Calcasieu Area","Lake Charles","LA","12:00:00 AM-SP exp date","JTE 2-Fundraising","JTE 6-New member recruiting","JTE 9-Boy Scout advancement","JTE 14-Unit retention/growth","JTE 17-District leadership","Michael Beer","209-Calcasieu Area 2018 JTE Objectives:  1) JTE 2-Fundraising;  2) JTE 6-New member recruiting;  3) JTE 9-Boy Scout advancement;  4) JTE 14-Unit retention/growth;  5) JTE 17-District leadership"]
[2,1,"211","Istrouma Area","Baton Rouge","LA","12/31/2020-SP exp date","JTE 6-New member recruiting","JTE 1-Fiscal management","JTE 4-Community impact","JTE 13-Youth-serving executives","JTE 15-Unit contacts","Gary Mertz","211-Istrouma Area 2018 JTE Objectives:  1) JTE 6-New member recruiting;  2) JTE 1-Fiscal management;  3) JTE 4-Community impact;  4) JTE 13-Youth-serving executives;  5) JTE 15-Unit contacts"]
[2,1,"212","Evangeline Area","Lafayette","LA","12:00:00 AM-SP exp date","JTE 3-Endowment","JTE 5-Membership/youth growth","JTE 8-Cub Scout advancement","JTE 2-Fundraising","JTE 15-Unit contacts","Art Hawkins","212-Evangeline Area 2018 JTE Objectives:  1) JTE 3-Endowment;  2) JTE 5-Membership/youth growth;  3) JTE 8-Cub Scout advancement;  4) JTE 2-Fundraising;  5) JTE 15-Unit contacts"]
[2,1,"213","Louisiana Purchase","Monroe","LA","12/31/2019-SP exp date","JTE 8-Cub Scout advancement","JTE 9-Boy Scout advancement","JTE 10-Cub Scout camping","JTE 11-Boy Scout camping","JTE 1-Fiscal management","Shane Cooley","213-Louisiana Purchase 2018 JTE Objectives:  1) JTE 8-Cub Scout advancement;  2) JTE 9-Boy Scout advancement;  3) JTE 10-Cub Scout camping;  4) JTE 11-Boy Scout camping;  5) JTE 1-Fiscal management"]
[2,1,"214","Southeast Louisiana","New Orleans","LA","12:00:00 AM-SP exp date","JTE 1-Fiscal management","JTE 5-Membership/youth growth","JTE 6-New member recruiting","JTE 14-Unit retention/growth","JTE 17-District leadership","Ernesto Carballo","214-Southeast Louisiana 2018 JTE Objectives:  1) JTE 1-Fiscal management;  2) JTE 5-Membership/youth growth;  3) JTE 6-New member recruiting;  4) JTE 14-Unit retention/growth;  5) JTE 17-District leadership"]
[2,2,"215","Norwela","Shreveport","LA","12/31/2020-SP exp date","JTE 5-Membership/youth growth","JTE 4-Community impact","JTE 8-Cub Scout advancement","JTE 15-Unit contacts","JTE 17-District leadership","Sedrick Robinson","215-Norwela 2018 JTE Objectives:  1) JTE 5-Membership/youth growth;  2) JTE 4-Community impact;  3) JTE 8-Cub Scout advancement;  4) JTE 15-Unit contacts;  5) JTE 17-District leadership"]
[1,1,"216","Katahdin Area","Bangor","ME","12:00:00 AM-SP exp date","JTE 2-Fundraising","JTE 4-Community impact","JTE 6-New member recruiting","JTE 15-Unit contacts","JTE 17-District leadership","R. Scott Harvey","216-Katahdin Area 2018 JTE Objectives:  1) JTE 2-Fundraising;  2) JTE 4-Community impact;  3) JTE 6-New member recruiting;  4) JTE 15-Unit contacts;  5) JTE 17-District leadership"]
[1,1,"218","Pine Tree","Portland","ME","12:00:00 AM-SP exp date","JTE 2-Fundraising","JTE 5-Membership/youth growth","JTE 17-District leadership","JTE 18-Unit leadership","JTE 10-Cub Scout camping","Eric Tarbox","218-Pine Tree 2018 JTE Objectives:  1) JTE 2-Fundraising;  2) JTE 5-Membership/youth growth;  3) JTE 17-District leadership;  4) JTE 18-Unit leadership;  5) JTE 10-Cub Scout camping"]
[1,6,"220","Baltimore Area","Baltimore","MD","12/31/2021-SP exp date","JTE 6-New member recruiting","JTE 11-Boy Scout camping","JTE 18-Unit leadership","JTE 3-Endowment","JTE 8-Cub Scout advancement","Brian L. Steger","220-Baltimore Area 2018 JTE Objectives:  1) JTE 6-New member recruiting;  2) JTE 11-Boy Scout camping;  3) JTE 18-Unit leadership;  4) JTE 3-Endowment;  5) JTE 8-Cub Scout advancement"]
[1,6,"221","Mason-Dixon","Hagerstown","MD","12/31/2019-SP exp date","JTE 5-Membership/youth growth","JTE 14-Unit retention/growth","JTE 2-Fundraising","JTE 6-New member recruiting","JTE 1-Fiscal management","Rob Stone","221-Mason-Dixon 2018 JTE Objectives:  1) JTE 5-Membership/youth growth;  2) JTE 14-Unit retention/growth;  3) JTE 2-Fundraising;  4) JTE 6-New member recruiting;  5) JTE 1-Fiscal management"]
[1,1,"224","Cape Cod and Islands","Yarmouth Port","MA","12/31/2018-SP exp date","JTE 1-Fiscal management","JTE 2-Fundraising","JTE 5-Membership/youth growth","JTE 6-New member recruiting","JTE 14-Unit retention/growth","Michael Riley","224-Cape Cod and Islands 2018 JTE Objectives:  1) JTE 1-Fiscal management;  2) JTE 2-Fundraising;  3) JTE 5-Membership/youth growth;  4) JTE 6-New member recruiting;  5) JTE 14-Unit retention/growth"]
[1,1,"227","Spirit of Adventure","Boston","MA","12/31/2021-SP exp date","None selected","None selected","None selected","None selected","None selected","","227-Spirit of Adventure 2018 JTE Objectives:  1) None selected;  2) None selected;  3) None selected;  4) None selected;  5) None selected"]
[1,1,"230","Nashua Valley","Lancaster","MA","12/31/2021-SP exp date","JTE 2-Fundraising","JTE 17-District leadership","JTE 4-Community impact","JTE 10-Cub Scout camping","JTE 11-Boy Scout camping","Gary Savignano","230-Nashua Valley 2018 JTE Objectives:  1) JTE 2-Fundraising;  2) JTE 17-District leadership;  3) JTE 4-Community impact;  4) JTE 10-Cub Scout camping;  5) JTE 11-Boy Scout camping"]
[1,2,"234","Western Massachusetts","Westfield","MA","12/31/2019-SP exp date","JTE 2-Fundraising","JTE 4-Community impact","JTE 5-Membership/youth growth","JTE 10-Cub Scout camping","JTE 11-Boy Scout camping","David Kruse","234-Western Massachusetts 2018 JTE Objectives:  1) JTE 2-Fundraising;  2) JTE 4-Community impact;  3) JTE 5-Membership/youth growth;  4) JTE 10-Cub Scout camping;  5) JTE 11-Boy Scout camping"]
[3,1,"250","Northern Star","St. Paul","MN","12:00:00 AM-SP exp date","JTE 6-New member recruiting","JTE 10-Cub Scout camping","JTE 18-Unit leadership","JTE 1-Fiscal management","JTE 8-Cub Scout advancement","John R. Andrews","250-Northern Star 2018 JTE Objectives:  1) JTE 6-New member recruiting;  2) JTE 10-Cub Scout camping;  3) JTE 18-Unit leadership;  4) JTE 1-Fiscal management;  5) JTE 8-Cub Scout advancement"]
[1,1,"251","Mayflower","Marlborough","MA","12:00:00 AM-SP exp date","JTE 1-Fiscal management","JTE 2-Fundraising","JTE 5-Membership/youth growth","JTE 17-District leadership","JTE 6-New member recruiting","Bryan Feather","251-Mayflower 2018 JTE Objectives:  1) JTE 1-Fiscal management;  2) JTE 2-Fundraising;  3) JTE 5-Membership/youth growth;  4) JTE 17-District leadership;  5) JTE 6-New member recruiting"]
[1,1,"254","Mohegan","Worcester","MA","12:00:00 AM-SP exp date","JTE 2-Fundraising","JTE 5-Membership/youth growth","JTE 17-District leadership","JTE 6-New member recruiting","JTE 15-Unit contacts","Jeff Hotchkiss","254-Mohegan 2018 JTE Objectives:  1) JTE 2-Fundraising;  2) JTE 5-Membership/youth growth;  3) JTE 17-District leadership;  4) JTE 6-New member recruiting;  5) JTE 15-Unit contacts"]
[3,2,"272","Great Lakes","Detroit","MI","12/31/2019-SP exp date","JTE 5-Membership/youth growth","JTE 10-Cub Scout camping","JTE 15-Unit contacts","JTE 2-Fundraising","JTE 8-Cub Scout advancement","Vic Pooler","272-Great Lakes 2018 JTE Objectives:  1) JTE 5-Membership/youth growth;  2) JTE 10-Cub Scout camping;  3) JTE 15-Unit contacts;  4) JTE 2-Fundraising;  5) JTE 8-Cub Scout advancement"]
[3,1,"283","Twin Valley","Mankato","MN","12/31/2019-SP exp date","JTE 2-Fundraising","JTE 6-New member recruiting","JTE 7-Youth retention","JTE 14-Unit retention/growth","JTE 18-Unit leadership","Ray Brauer","283-Twin Valley 2018 JTE Objectives:  1) JTE 2-Fundraising;  2) JTE 6-New member recruiting;  3) JTE 7-Youth retention;  4) JTE 14-Unit retention/growth;  5) JTE 18-Unit leadership"]
[3,1,"286","Voyageurs Area","Hermantown","MN","12/31/2018-SP exp date","JTE 2-Fundraising","JTE 3-Endowment","JTE 5-Membership/youth growth","JTE 14-Unit retention/growth","JTE 18-Unit leadership","Michael Jenkins","286-Voyageurs Area 2018 JTE Objectives:  1) JTE 2-Fundraising;  2) JTE 3-Endowment;  3) JTE 5-Membership/youth growth;  4) JTE 14-Unit retention/growth;  5) JTE 18-Unit leadership"]
[3,1,"296","Central Minnesota","Sartell","MN","12:00:00 AM-SP exp date","JTE 18-Unit leadership","JTE 12-Community service","JTE 15-Unit contacts","JTE 17-District leadership","JTE 14-Unit retention/growth","David Trehey","296-Central Minnesota 2018 JTE Objectives:  1) JTE 18-Unit leadership;  2) JTE 12-Community service;  3) JTE 15-Unit contacts;  4) JTE 17-District leadership;  5) JTE 14-Unit retention/growth"]
[3,1,"299","Gamehaven","Rochester","MN","12/31/2020-SP exp date","JTE 2-Fundraising","JTE 4-Community impact","JTE 10-Cub Scout camping","JTE 13-Youth-serving executives","JTE 8-Cub Scout advancement","Rich Avery","299-Gamehaven 2018 JTE Objectives:  1) JTE 2-Fundraising;  2) JTE 4-Community impact;  3) JTE 10-Cub Scout camping;  4) JTE 13-Youth-serving executives;  5) JTE 8-Cub Scout advancement"]
[2,1,"302","Choctaw Area","Meridian","MS","12/31/2021-SP exp date","JTE 2-Fundraising","JTE 7-Youth retention","JTE 8-Cub Scout advancement","JTE 10-Cub Scout camping","JTE 18-Unit leadership","Kenneth P. Kercheval","302-Choctaw Area 2018 JTE Objectives:  1) JTE 2-Fundraising;  2) JTE 7-Youth retention;  3) JTE 8-Cub Scout advancement;  4) JTE 10-Cub Scout camping;  5) JTE 18-Unit leadership"]
[2,1,"303","Andrew Jackson","Jackson","MS","12/31/2021-SP exp date","JTE 11-Boy Scout camping","JTE 10-Cub Scout camping","JTE 5-Membership/youth growth","JTE 14-Unit retention/growth","JTE 3-Endowment","Anthony D. Haines","303-Andrew Jackson 2018 JTE Objectives:  1) JTE 11-Boy Scout camping;  2) JTE 10-Cub Scout camping;  3) JTE 5-Membership/youth growth;  4) JTE 14-Unit retention/growth;  5) JTE 3-Endowment"]
[2,1,"304","Pine Burr Area","Hattiesburg","MS","12/31/2022-SP exp date","JTE 2-Fundraising","JTE 5-Membership/youth growth","JTE 8-Cub Scout advancement","JTE 11-Boy Scout camping","JTE 17-District leadership","Casey Norwood","304-Pine Burr Area 2018 JTE Objectives:  1) JTE 2-Fundraising;  2) JTE 5-Membership/youth growth;  3) JTE 8-Cub Scout advancement;  4) JTE 11-Boy Scout camping;  5) JTE 17-District leadership"]
[3,5,"306","Ozark Trails","Springfield","MO","12/31/2019-SP exp date","JTE 2-Fundraising","JTE 5-Membership/youth growth","JTE 13-Youth-serving executives","JTE 17-District leadership","JTE 11-Boy Scout camping","John Feick","306-Ozark Trails 2018 JTE Objectives:  1) JTE 2-Fundraising;  2) JTE 5-Membership/youth growth;  3) JTE 13-Youth-serving executives;  4) JTE 17-District leadership;  5) JTE 11-Boy Scout camping"]
[3,5,"307","Heart of America","Kansas City","MO","12/31/2018-SP exp date","JTE 5-Membership/youth growth","JTE 8-Cub Scout advancement","JTE 9-Boy Scout advancement","JTE 14-Unit retention/growth","JTE 6-New member recruiting","Kendrick Miller","307-Heart of America 2018 JTE Objectives:  1) JTE 5-Membership/youth growth;  2) JTE 8-Cub Scout advancement;  3) JTE 9-Boy Scout advancement;  4) JTE 14-Unit retention/growth;  5) JTE 6-New member recruiting"]
[3,5,"311","Pony Express","St. Joseph","MO","12/31/2022-SP exp date","JTE 3-Endowment","JTE 5-Membership/youth growth","JTE 10-Cub Scout camping","JTE 1-Fiscal management","JTE 11-Boy Scout camping","Alan Franks","311-Pony Express 2018 JTE Objectives:  1) JTE 3-Endowment;  2) JTE 5-Membership/youth growth;  3) JTE 10-Cub Scout camping;  4) JTE 1-Fiscal management;  5) JTE 11-Boy Scout camping"]
[3,3,"312","Greater St. Louis Area","St. Louis","MO","12/31/2020-SP exp date","JTE 1-Fiscal management","JTE 3-Endowment","JTE 14-Unit retention/growth","JTE 17-District leadership","JTE 10-Cub Scout camping","Ronald Green","312-Greater St. Louis Area 2018 JTE Objectives:  1) JTE 1-Fiscal management;  2) JTE 3-Endowment;  3) JTE 14-Unit retention/growth;  4) JTE 17-District leadership;  5) JTE 10-Cub Scout camping"]
[4,2,"315","Montana","Great Falls","MT","12/31/2021-SP exp date","JTE 10-Cub Scout camping","JTE 18-Unit leadership","JTE 17-District leadership","JTE 2-Fundraising","JTE 6-New member recruiting","Don Bean","315-Montana 2018 JTE Objectives:  1) JTE 10-Cub Scout camping;  2) JTE 18-Unit leadership;  3) JTE 17-District leadership;  4) JTE 2-Fundraising;  5) JTE 6-New member recruiting"]
[3,5,"322","Overland Trails","Grand Island","NE","12/31/2020-SP exp date","JTE 1-Fiscal management","JTE 5-Membership/youth growth","JTE 17-District leadership","JTE 18-Unit leadership","JTE 2-Fundraising","David Plond","322-Overland Trails 2018 JTE Objectives:  1) JTE 1-Fiscal management;  2) JTE 5-Membership/youth growth;  3) JTE 17-District leadership;  4) JTE 18-Unit leadership;  5) JTE 2-Fundraising"]
[3,5,"324","Cornhusker","Lincoln","NE","12/31/2018-SP exp date","JTE 1-Fiscal management","JTE 3-Endowment","JTE 6-New member recruiting","JTE 12-Community service","JTE 10-Cub Scout camping","Chris Blum","324-Cornhusker 2018 JTE Objectives:  1) JTE 1-Fiscal management;  2) JTE 3-Endowment;  3) JTE 6-New member recruiting;  4) JTE 12-Community service;  5) JTE 10-Cub Scout camping"]
[3,5,"326","Mid-America","Omaha","NE","12:00:00 AM-SP exp date","JTE 1-Fiscal management","JTE 6-New member recruiting","JTE 8-Cub Scout advancement","JTE 14-Unit retention/growth","JTE 18-Unit leadership","Chris S. Mehaffey","326-Mid-America 2018 JTE Objectives:  1) JTE 1-Fiscal management;  2) JTE 6-New member recruiting;  3) JTE 8-Cub Scout advancement;  4) JTE 14-Unit retention/growth;  5) JTE 18-Unit leadership"]
[4,6,"328","Las Vegas Area","Las Vegas","NV","12:00:00 AM-SP exp date","JTE 2-Fundraising","JTE 3-Endowment","JTE 11-Boy Scout camping","JTE 9-Boy Scout advancement","JTE 18-Unit leadership","Mike Marchese","328-Las Vegas Area 2018 JTE Objectives:  1) JTE 2-Fundraising;  2) JTE 3-Endowment;  3) JTE 11-Boy Scout camping;  4) JTE 9-Boy Scout advancement;  5) JTE 18-Unit leadership"]
[4,3,"329","Nevada Area","Reno","NV","12/31/2021-SP exp date","JTE 1-Fiscal management","JTE 5-Membership/youth growth","JTE 15-Unit contacts","JTE 17-District leadership","JTE 18-Unit leadership","Paul Penttila","329-Nevada Area 2018 JTE Objectives:  1) JTE 1-Fiscal management;  2) JTE 5-Membership/youth growth;  3) JTE 15-Unit contacts;  4) JTE 17-District leadership;  5) JTE 18-Unit leadership"]
[1,1,"330","Daniel Webster","Manchester","NH","12/31/2020-SP exp date","JTE 1-Fiscal management","JTE 5-Membership/youth growth","JTE 11-Boy Scout camping","JTE 15-Unit contacts","JTE 18-Unit leadership","Michelle Tickler","330-Daniel Webster 2018 JTE Objectives:  1) JTE 1-Fiscal management;  2) JTE 5-Membership/youth growth;  3) JTE 11-Boy Scout camping;  4) JTE 15-Unit contacts;  5) JTE 18-Unit leadership"]
[1,5,"333","Northern New Jersey","Oakland","NJ","12/31/2018-SP exp date","JTE 1-Fiscal management","JTE 5-Membership/youth growth","JTE 2-Fundraising","JTE 15-Unit contacts","JTE 10-Cub Scout camping","Rebecca Fields","333-Northern New Jersey 2018 JTE Objectives:  1) JTE 1-Fiscal management;  2) JTE 5-Membership/youth growth;  3) JTE 2-Fundraising;  4) JTE 15-Unit contacts;  5) JTE 10-Cub Scout camping"]
[1,5,"341","Jersey Shore","Toms River","NJ","12/31/2018-SP exp date","JTE 5-Membership/youth growth","JTE 18-Unit leadership","JTE 8-Cub Scout advancement","JTE 15-Unit contacts","JTE 12-Community service","James Gillick","341-Jersey Shore 2018 JTE Objectives:  1) JTE 5-Membership/youth growth;  2) JTE 18-Unit leadership;  3) JTE 8-Cub Scout advancement;  4) JTE 15-Unit contacts;  5) JTE 12-Community service"]
[1,5,"347","Monmouth","Morganville","NJ","12/31/2020-SP exp date","JTE 5-Membership/youth growth","JTE 2-Fundraising","JTE 6-New member recruiting","JTE 10-Cub Scout camping","JTE 3-Endowment","Michael P. Mahon","347-Monmouth 2018 JTE Objectives:  1) JTE 5-Membership/youth growth;  2) JTE 2-Fundraising;  3) JTE 6-New member recruiting;  4) JTE 10-Cub Scout camping;  5) JTE 3-Endowment"]
[1,5,"358","Patriots' Path","Cedar Knolls","NJ","12/31/2018-SP exp date","JTE 5-Membership/youth growth","JTE 2-Fundraising","JTE 10-Cub Scout camping","JTE 3-Endowment","JTE 4-Community impact","Mark Spaldo","358-Patriots' Path 2018 JTE Objectives:  1) JTE 5-Membership/youth growth;  2) JTE 2-Fundraising;  3) JTE 10-Cub Scout camping;  4) JTE 3-Endowment;  5) JTE 4-Community impact"]
[1,3,"364","Twin Rivers","Albany","NY","12/31/2018-SP exp date","JTE 5-Membership/youth growth","JTE 14-Unit retention/growth","JTE 1-Fiscal management","JTE 17-District leadership","JTE 18-Unit leadership","Dennis Dugan","364-Twin Rivers 2018 JTE Objectives:  1) JTE 5-Membership/youth growth;  2) JTE 14-Unit retention/growth;  3) JTE 1-Fiscal management;  4) JTE 17-District leadership;  5) JTE 18-Unit leadership"]
[1,3,"368","Baden-Powell","Binghamton","NY","12/31/2021-SP exp date","JTE 1-Fiscal management","JTE 4-Community impact","JTE 10-Cub Scout camping","JTE 15-Unit contacts","JTE 17-District leadership","Rick Christ","368-Baden-Powell 2018 JTE Objectives:  1) JTE 1-Fiscal management;  2) JTE 4-Community impact;  3) JTE 10-Cub Scout camping;  4) JTE 15-Unit contacts;  5) JTE 17-District leadership"]
[1,3,"373","Longhouse","Syracuse","NY","12:00:00 AM-SP exp date","JTE 3-Endowment","JTE 5-Membership/youth growth","JTE 6-New member recruiting","JTE 10-Cub Scout camping","JTE 18-Unit leadership","Grey Rolland",{"$f":"_xlfn.CONCAT(C131) & \"-\" & (D131) & \" 2018 JTE Objectives:  \" & \"1) \" & (H131) & \";  2) \" & (I131) & \";  3) \" & (J131) & \";  4) \" & (K131) & \";  5) \" & (L131)","v":"373-Longhouse 2018 JTE Objectives:  1) JTE 3-Endowment;  2) JTE 5-Membership/youth growth;  3) JTE 6-New member recruiting;  4) JTE 10-Cub Scout camping;  5) JTE 18-Unit leadership"}]
[1,2,"374","Hudson Valley","Newburgh","NY","12/31/2020-SP exp date","JTE 2-Fundraising","JTE 5-Membership/youth growth","JTE 8-Cub Scout advancement","JTE 14-Unit retention/growth","JTE 17-District leadership","David Horton","374-Hudson Valley 2018 JTE Objectives:  1) JTE 2-Fundraising;  2) JTE 5-Membership/youth growth;  3) JTE 8-Cub Scout advancement;  4) JTE 14-Unit retention/growth;  5) JTE 17-District leadership"]
[1,3,"375","Five Rivers","Horseheads","NY","12/31/2019-SP exp date","JTE 5-Membership/youth growth","JTE 6-New member recruiting","JTE 10-Cub Scout camping","JTE 3-Endowment","JTE 18-Unit leadership","Gary Decker","375-Five Rivers 2018 JTE Objectives:  1) JTE 5-Membership/youth growth;  2) JTE 6-New member recruiting;  3) JTE 10-Cub Scout camping;  4) JTE 3-Endowment;  5) JTE 18-Unit leadership"]
[1,3,"376","Iroquois Trail","Batavia","NY","12/31/2020-SP exp date","JTE 2-Fundraising","JTE 5-Membership/youth growth","JTE 8-Cub Scout advancement","JTE  14 Unit Retention","JTE 17 District leadership ","Brad Bowersox","376-Iroquois Trail 2018 JTE Objectives:  1) JTE 2-Fundraising;  2) JTE 5-Membership/youth growth;  3) JTE 8-Cub Scout advancement;  4) JTE  14 Unit Retention;  5) JTE 17 District leadership "]
[1,3,"380","Greater Niagara Frontier","Buffalo","NY","12/31/2019-SP exp date","JTE 1-Fiscal management","JTE 6-New member recruiting","JTE 10-Cub Scout camping","JTE 15-Unit contacts","JTE 17-District leadership","Russell Etzenhouser","380-Greater Niagara Frontier 2018 JTE Objectives:  1) JTE 1-Fiscal management;  2) JTE 6-New member recruiting;  3) JTE 10-Cub Scout camping;  4) JTE 15-Unit contacts;  5) JTE 17-District leadership"]
[1,4,"382","Allegheny Highlands","Falconer","NY","12/31/2018-SP exp date","JTE 2-Fundraising","JTE 10-Cub Scout camping","JTE 12-Community service","JTE 15-Unit contacts","JTE 17-District leadership","John Wojciechowicz","382-Allegheny Highlands 2018 JTE Objectives:  1) JTE 2-Fundraising;  2) JTE 10-Cub Scout camping;  3) JTE 12-Community service;  4) JTE 15-Unit contacts;  5) JTE 17-District leadership"]
[1,2,"386","Theodore Roosevelt","Massapequa","NY","12:00:00 AM-SP exp date","JTE 3-Endowment","JTE 6-New member recruiting","JTE 10-Cub Scout camping","JTE 12-Community service","JTE 15-Unit contacts","chris coscia","386-Theodore Roosevelt 2018 JTE Objectives:  1) JTE 3-Endowment;  2) JTE 6-New member recruiting;  3) JTE 10-Cub Scout camping;  4) JTE 12-Community service;  5) JTE 15-Unit contacts"]
[1,2,"388","Westchester-Putnam","Hawthorne","NY","12/31/2018-SP exp date","JTE 1-Fiscal management","JTE 5-Membership/youth growth","JTE 6-New member recruiting","JTE 8-Cub Scout advancement","JTE 10-Cub Scout camping","Richard Stockton","388-Westchester-Putnam 2018 JTE Objectives:  1) JTE 1-Fiscal management;  2) JTE 5-Membership/youth growth;  3) JTE 6-New member recruiting;  4) JTE 8-Cub Scout advancement;  5) JTE 10-Cub Scout camping"]
[1,3,"397","Seneca Waterways","Rochester","NY","12/31/2019-SP exp date","JTE 17-District leadership","JTE 15-Unit contacts","JTE 10-Cub Scout camping","JTE 12-Community service","JTE 5-Membership/youth growth","Stephen T. Hoitt","397-Seneca Waterways 2018 JTE Objectives:  1) JTE 17-District leadership;  2) JTE 15-Unit contacts;  3) JTE 10-Cub Scout camping;  4) JTE 12-Community service;  5) JTE 5-Membership/youth growth"]
[1,3,"400","Leatherstocking","Utica","NY","12:00:00 AM-SP exp date","JTE 2-Fundraising","JTE 8-Cub Scout advancement","JTE 12-Community service","JTE 15-Unit contacts","JTE 17-District leadership","Steven K. McEwan","400-Leatherstocking 2018 JTE Objectives:  1) JTE 2-Fundraising;  2) JTE 8-Cub Scout advancement;  3) JTE 12-Community service;  4) JTE 15-Unit contacts;  5) JTE 17-District leadership"]
[1,2,"404","Suffolk County","Medford","NY","12:00:00 AM-SP exp date","JTE 10-Cub Scout camping","JTE 18-Unit leadership","JTE 12-Community service","JTE 6-New member recruiting","JTE 3-Endowment","Ryan DiBernardo","404-Suffolk County 2018 JTE Objectives:  1) JTE 10-Cub Scout camping;  2) JTE 18-Unit leadership;  3) JTE 12-Community service;  4) JTE 6-New member recruiting;  5) JTE 3-Endowment"]
[1,2,"405","Rip Van Winkle","Kingston","NY","12/31/2019-SP exp date","JTE 10-Cub Scout camping","JTE 15-Unit contacts","JTE 17-District leadership","JTE 12-Community service","JTE 6-New member recruiting","Ray Braun","405-Rip Van Winkle 2018 JTE Objectives:  1) JTE 10-Cub Scout camping;  2) JTE 15-Unit contacts;  3) JTE 17-District leadership;  4) JTE 12-Community service;  5) JTE 6-New member recruiting"]
[4,6,"412","Great Southwest","Albuquerque","NM","12/31/2020-SP exp date","JTE 1-Fiscal management","JTE 5-Membership/youth growth","JTE 8-Cub Scout advancement","JTE 15-Unit contacts","JTE 18-Unit leadership","Christopher W. Shelby","412-Great Southwest 2018 JTE Objectives:  1) JTE 1-Fiscal management;  2) JTE 5-Membership/youth growth;  3) JTE 8-Cub Scout advancement;  4) JTE 15-Unit contacts;  5) JTE 18-Unit leadership"]
[4,6,"413","Conquistador","Roswell","NM","12/31/2019-SP exp date","JTE 14-Unit retention/growth","JTE 17-District leadership","JTE 10-Cub Scout camping","JTE 13-Youth-serving executives","JTE 18-Unit leadership","Jacob Armstrong","413-Conquistador 2018 JTE Objectives:  1) JTE 14-Unit retention/growth;  2) JTE 17-District leadership;  3) JTE 10-Cub Scout camping;  4) JTE 13-Youth-serving executives;  5) JTE 18-Unit leadership"]
[2,5,"414","Daniel Boone","Asheville","NC","12/31/2020-SP exp date","JTE 1-Fiscal management","JTE 2-Fundraising","JTE 5-Membership/youth growth","JTE 8-Cub Scout advancement","JTE 15-Unit contacts","Joshua Christ","414-Daniel Boone 2018 JTE Objectives:  1) JTE 1-Fiscal management;  2) JTE 2-Fundraising;  3) JTE 5-Membership/youth growth;  4) JTE 8-Cub Scout advancement;  5) JTE 15-Unit contacts"]
[2,5,"415","Mecklenburg County","Charlotte","NC","12/31/2020-SP exp date","JTE 7-Youth retention","JTE 3-Endowment","JTE 10-Cub Scout camping","JTE 6-New member recruiting","JTE 2-Fundraising","Mark Turner","415-Mecklenburg County 2018 JTE Objectives:  1) JTE 7-Youth retention;  2) JTE 3-Endowment;  3) JTE 10-Cub Scout camping;  4) JTE 6-New member recruiting;  5) JTE 2-Fundraising"]
[2,5,"416","Central North Carolina","Albemarle","NC","12/31/2018-SP exp date","JTE 3-Endowment","JTE 5-Membership/youth growth","JTE 8-Cub Scout advancement","JTE 17-District leadership","JTE 18-Unit leadership","Bob McGowan","416-Central North Carolina 2018 JTE Objectives:  1) JTE 3-Endowment;  2) JTE 5-Membership/youth growth;  3) JTE 8-Cub Scout advancement;  4) JTE 17-District leadership;  5) JTE 18-Unit leadership"]
[2,5,"420","Piedmont","Gastonia","NC","12/31/2020-SP exp date","JTE 1-Fiscal management","JTE 5-Membership/youth growth","JTE 13-Youth-serving executives","JTE 12-Community service","JTE 3-Endowment","Jesse C Bowes Jr","420-Piedmont 2018 JTE Objectives:  1) JTE 1-Fiscal management;  2) JTE 5-Membership/youth growth;  3) JTE 13-Youth-serving executives;  4) JTE 12-Community service;  5) JTE 3-Endowment"]
[2,7,"421","Occoneechee","Raleigh","NC","12/31/2020-SP exp date","JTE 2-Fundraising","JTE 5-Membership/youth growth","JTE 10-Cub Scout camping","JTE 12-Community service","JTE 18-Unit leadership","John Akerman","421-Occoneechee 2018 JTE Objectives:  1) JTE 2-Fundraising;  2) JTE 5-Membership/youth growth;  3) JTE 10-Cub Scout camping;  4) JTE 12-Community service;  5) JTE 18-Unit leadership"]
[2,7,"424","Tuscarora","Goldsboro","NC","12/31/2022-SP exp date","JTE 6-New member recruiting","JTE 5-Membership/youth growth","JTE 7-Youth retention","JTE 1-Fiscal management","JTE 2-Fundraising","Jason Smith","424-Tuscarora 2018 JTE Objectives:  1) JTE 6-New member recruiting;  2) JTE 5-Membership/youth growth;  3) JTE 7-Youth retention;  4) JTE 1-Fiscal management;  5) JTE 2-Fundraising"]
[2,7,"425","Cape Fear","Wilmington","NC","12/31/2022-SP exp date","JTE 15-Unit contacts","JTE 10-Cub Scout camping","JTE 18-Unit leadership","JTE 17-District leadership","JTE 8-Cub Scout advancement","Jonathan Widmark ","425-Cape Fear 2018 JTE Objectives:  1) JTE 15-Unit contacts;  2) JTE 10-Cub Scout camping;  3) JTE 18-Unit leadership;  4) JTE 17-District leadership;  5) JTE 8-Cub Scout advancement"]
[2,7,"426","East Carolina","Kinston","NC","12/31/2020-SP exp date","JTE 2-Fundraising","JTE 8-Cub Scout advancement","JTE 14-Unit retention/growth","JTE 17-District leadership","JTE 18-Unit leadership","Doug Brown, Jr.","426-East Carolina 2018 JTE Objectives:  1) JTE 2-Fundraising;  2) JTE 8-Cub Scout advancement;  3) JTE 14-Unit retention/growth;  4) JTE 17-District leadership;  5) JTE 18-Unit leadership"]
[2,7,"427","Old Hickory","Winston-Salem","NC","12/31/2019-SP exp date","JTE 3-Endowment","JTE 5-Membership/youth growth","JTE 7-Youth retention","JTE 11-Boy Scout camping","JTE 8-Cub Scout advancement","Steve Wilburn","427-Old Hickory 2018 JTE Objectives:  1) JTE 3-Endowment;  2) JTE 5-Membership/youth growth;  3) JTE 7-Youth retention;  4) JTE 11-Boy Scout camping;  5) JTE 8-Cub Scout advancement"]
[3,1,"429","Northern Lights","Fargo","ND","12/31/2019-SP exp date","JTE 2-Fundraising","JTE 8-Cub Scout advancement","JTE 15-Unit contacts","JTE 17-District leadership","JTE 18-Unit leadership","Roger B. Hoyt","429-Northern Lights 2018 JTE Objectives:  1) JTE 2-Fundraising;  2) JTE 8-Cub Scout advancement;  3) JTE 15-Unit contacts;  4) JTE 17-District leadership;  5) JTE 18-Unit leadership"]
[3,4,"433","Great Trail","Akron","OH","12/31/2018-SP exp date","JTE 18-Unit leadership","JTE 15-Unit contacts","JTE 10-Cub Scout camping","JTE 8-Cub Scout advancement","JTE 13-Youth-serving executives","Patrick Scherer","433-Great Trail 2018 JTE Objectives:  1) JTE 18-Unit leadership;  2) JTE 15-Unit contacts;  3) JTE 10-Cub Scout camping;  4) JTE 8-Cub Scout advancement;  5) JTE 13-Youth-serving executives"]
[3,4,"436","Buckeye","Canton","OH","12/31/2019-SP exp date","JTE 3-Endowment","JTE 6-New member recruiting","JTE 8-Cub Scout advancement","JTE 10-Cub Scout camping","JTE 18-Unit leadership","Nathan Hopper","436-Buckeye 2018 JTE Objectives:  1) JTE 3-Endowment;  2) JTE 6-New member recruiting;  3) JTE 8-Cub Scout advancement;  4) JTE 10-Cub Scout camping;  5) JTE 18-Unit leadership"]
[3,6,"438","Dan Beard","Cincinnati","OH","12:00:00 AM-SP exp date","JTE 2-Fundraising","JTE 5-Membership/youth growth","JTE 10-Cub Scout camping","JTE 11-Boy Scout camping","JTE 18-Unit leadership","Michael Kostic","438-Dan Beard 2018 JTE Objectives:  1) JTE 2-Fundraising;  2) JTE 5-Membership/youth growth;  3) JTE 10-Cub Scout camping;  4) JTE 11-Boy Scout camping;  5) JTE 18-Unit leadership"]
[3,6,"439","Tecumseh","Springfield","OH","12/31/2022-SP exp date","JTE 1-Fiscal management","JTE 2-Fundraising","JTE 5-Membership/youth growth","JTE 15-Unit contacts","JTE 17-District leadership","Rob Lavoie","439-Tecumseh 2018 JTE Objectives:  1) JTE 1-Fiscal management;  2) JTE 2-Fundraising;  3) JTE 5-Membership/youth growth;  4) JTE 15-Unit contacts;  5) JTE 17-District leadership"]
[3,4,"440","Lake Erie","Cleveland","OH","12/31/2018-SP exp date","JTE 8-Cub Scout advancement","JTE 10-Cub Scout camping","JTE 12-Community service","JTE 15-Unit contacts","JTE 18-Unit leadership","Marc Ryan","440-Lake Erie 2018 JTE Objectives:  1) JTE 8-Cub Scout advancement;  2) JTE 10-Cub Scout camping;  3) JTE 12-Community service;  4) JTE 15-Unit contacts;  5) JTE 18-Unit leadership"]
[3,4,"441","Simon Kenton","Columbus","OH","12/31/2021-SP exp date","JTE 2-Fundraising","JTE 5-Membership/youth growth","JTE 6-New member recruiting","JTE 14-Unit retention/growth","JTE 18-Unit leadership","Jeff Moe","441-Simon Kenton 2018 JTE Objectives:  1) JTE 2-Fundraising;  2) JTE 5-Membership/youth growth;  3) JTE 6-New member recruiting;  4) JTE 14-Unit retention/growth;  5) JTE 18-Unit leadership"]
[3,6,"444","Miami Valley","Dayton","OH","12/31/2020-SP exp date","JTE 5-Membership/youth growth","JTE 9-Boy Scout advancement","JTE 11-Boy Scout camping","JTE 12-Community service","JTE 15-Unit contacts","Jeffrey Schiavone","444-Miami Valley 2018 JTE Objectives:  1) JTE 5-Membership/youth growth;  2) JTE 9-Boy Scout advancement;  3) JTE 11-Boy Scout camping;  4) JTE 12-Community service;  5) JTE 15-Unit contacts"]
[3,6,"449","Black Swamp Area","Findlay","OH","12:00:00 AM-SP exp date","JTE 5-Membership/youth growth","JTE 2-Fundraising","JTE 10-Cub Scout camping","JTE 17-District leadership","JTE 8-Cub Scout advancement","Marc Kogan","449-Black Swamp Area 2018 JTE Objectives:  1) JTE 5-Membership/youth growth;  2) JTE 2-Fundraising;  3) JTE 10-Cub Scout camping;  4) JTE 17-District leadership;  5) JTE 8-Cub Scout advancement"]
[3,7,"456","Pathway to Adventure","Chicago","IL","12/31/2021-SP exp date","JTE 2-Fundraising","JTE 17-District leadership","JTE 10-Cub Scout camping","JTE 11-Boy Scout camping","JTE 8-Cub Scout advancement","Aaron Gach","456-Pathway to Adventure 2018 JTE Objectives:  1) JTE 2-Fundraising;  2) JTE 17-District leadership;  3) JTE 10-Cub Scout camping;  4) JTE 11-Boy Scout camping;  5) JTE 8-Cub Scout advancement"]
[3,6,"460","Erie Shores","Toledo","OH","12:00:00 AM-SP exp date","JTE 3-Endowment","JTE 5-Membership/youth growth","JTE 6-New member recruiting","JTE 12-Community service","JTE 18-Unit leadership","Ed Caldwell","460-Erie Shores 2018 JTE Objectives:  1) JTE 3-Endowment;  2) JTE 5-Membership/youth growth;  3) JTE 6-New member recruiting;  4) JTE 12-Community service;  5) JTE 18-Unit leadership"]
[3,4,"467","Muskingum Valley","Zanesville","OH","12/31/2018-SP exp date","JTE 2-Fundraising","JTE 8-Cub Scout advancement","JTE 5-Membership/youth growth","JTE 14-Unit retention/growth","JTE 12-Community service","Ed Mulholland","467-Muskingum Valley 2018 JTE Objectives:  1) JTE 2-Fundraising;  2) JTE 8-Cub Scout advancement;  3) JTE 5-Membership/youth growth;  4) JTE 14-Unit retention/growth;  5) JTE 12-Community service"]
[2,8,"468","Arbuckle Area","Ardmore","OK","12:00:00 AM-SP exp date","JTE 17-District leadership","JTE 3-Endowment","JTE 7-Youth retention","JTE 11-Boy Scout camping","JTE 12-Community service","Brett Matherly","468-Arbuckle Area 2018 JTE Objectives:  1) JTE 17-District leadership;  2) JTE 3-Endowment;  3) JTE 7-Youth retention;  4) JTE 11-Boy Scout camping;  5) JTE 12-Community service"]
[2,8,"469","Cherokee Area","Bartlesville","OK","12/31/2021-SP exp date","JTE 5-Membership/youth growth","JTE 8-Cub Scout advancement","JTE 12-Community service","JTE 15-Unit contacts","JTE 3-Endowment","David G. Richardson","469-Cherokee Area 2018 JTE Objectives:  1) JTE 5-Membership/youth growth;  2) JTE 8-Cub Scout advancement;  3) JTE 12-Community service;  4) JTE 15-Unit contacts;  5) JTE 3-Endowment"]
[2,8,"474","Cimarron","Enid","OK","12/31/2020-SP exp date","JTE 1-Fiscal management","JTE 14-Unit retention/growth","JTE 15-Unit contacts","JTE 17-District leadership","JTE 4-Community impact","Bobby Schultz","474-Cimarron 2018 JTE Objectives:  1) JTE 1-Fiscal management;  2) JTE 14-Unit retention/growth;  3) JTE 15-Unit contacts;  4) JTE 17-District leadership;  5) JTE 4-Community impact"]
[2,8,"480","Last Frontier","Oklahoma City","OK","12/31/2020-SP exp date","JTE 5-Membership/youth growth","JTE 8-Cub Scout advancement","JTE 9-Boy Scout advancement","JTE 17-District leadership","JTE 18-Unit leadership","Jeff Woolsey","480-Last Frontier 2018 JTE Objectives:  1) JTE 5-Membership/youth growth;  2) JTE 8-Cub Scout advancement;  3) JTE 9-Boy Scout advancement;  4) JTE 17-District leadership;  5) JTE 18-Unit leadership"]
[2,8,"488","Indian Nations","Tulsa","OK","12/31/2020-SP exp date","JTE 5-Membership/youth growth","JTE 14-Unit retention/growth","JTE 17-District leadership","JTE 2-Fundraising","JTE 3-Endowment","Bill Haines","488-Indian Nations 2018 JTE Objectives:  1) JTE 5-Membership/youth growth;  2) JTE 14-Unit retention/growth;  3) JTE 17-District leadership;  4) JTE 2-Fundraising;  5) JTE 3-Endowment"]
[4,1,"491","Crater Lake","Central Point","OR","12/31/2020-SP exp date","JTE 2-Fundraising","JTE 6-New member recruiting","JTE 15-Unit contacts","JTE 17-District leadership","JTE 18-Unit leadership","Kevin Patterson","491-Crater Lake 2018 JTE Objectives:  1) JTE 2-Fundraising;  2) JTE 6-New member recruiting;  3) JTE 15-Unit contacts;  4) JTE 17-District leadership;  5) JTE 18-Unit leadership"]
[4,1,"492","Cascade Pacific","Portland","OR","12/31/2019-SP exp date","JTE 1-Fiscal management","JTE 6-New member recruiting","JTE 14-Unit retention/growth","JTE 13-Youth-serving executives","JTE 17-District leadership","Matt Devore","492-Cascade Pacific 2018 JTE Objectives:  1) JTE 1-Fiscal management;  2) JTE 6-New member recruiting;  3) JTE 14-Unit retention/growth;  4) JTE 13-Youth-serving executives;  5) JTE 17-District leadership"]
[1,4,"497","Juniata Valley","Reedsville","PA","12/31/2022-SP exp date","JTE 6-New member recruiting","JTE 2-Fundraising","JTE 10-Cub Scout camping","JTE 17-District leadership","JTE 12-Community service","Jim Kennedy","497-Juniata Valley 2018 JTE Objectives:  1) JTE 6-New member recruiting;  2) JTE 2-Fundraising;  3) JTE 10-Cub Scout camping;  4) JTE 17-District leadership;  5) JTE 12-Community service"]
[1,4,"500","Moraine Trails","Butler","PA","12:00:00 AM-SP exp date","JTE 2-Fundraising","JTE 3-Endowment","JTE 4-Community impact","JTE 13-Youth-serving executives","JTE 14-Unit retention/growth","Ray Tennent","500-Moraine Trails 2018 JTE Objectives:  1) JTE 2-Fundraising;  2) JTE 3-Endowment;  3) JTE 4-Community impact;  4) JTE 13-Youth-serving executives;  5) JTE 14-Unit retention/growth"]
[1,5,"501","Northeastern Pennsylvania","Moosic","PA","12/31/2021-SP exp date","JTE 2-Fundraising","JTE 6-New member recruiting","JTE 5-Membership/youth growth","JTE 1-Fiscal management","JTE 18-Unit leadership","Mark Barbernitz","501-Northeastern Pennsylvania 2018 JTE Objectives:  1) JTE 2-Fundraising;  2) JTE 6-New member recruiting;  3) JTE 5-Membership/youth growth;  4) JTE 1-Fiscal management;  5) JTE 18-Unit leadership"]
[1,5,"502","Minsi Trails","Lehigh Valley","PA","12/31/2018-SP exp date","JTE 5-Membership/youth growth","JTE 8-Cub Scout advancement","JTE 10-Cub Scout camping","JTE 15-Unit contacts","JTE 17-District leadership","Karen Scherer","502-Minsi Trails 2018 JTE Objectives:  1) JTE 5-Membership/youth growth;  2) JTE 8-Cub Scout advancement;  3) JTE 10-Cub Scout camping;  4) JTE 15-Unit contacts;  5) JTE 17-District leadership"]
[1,4,"504","Columbia-Montour","Bloomsburg","PA","12:00:00 AM-SP exp date","JTE 2-Fundraising","JTE 5-Membership/youth growth","JTE 9-Boy Scout advancement","JTE 18-Unit leadership","JTE 11-Boy Scout camping","Paul B Knox","504-Columbia-Montour 2018 JTE Objectives:  1) JTE 2-Fundraising;  2) JTE 5-Membership/youth growth;  3) JTE 9-Boy Scout advancement;  4) JTE 18-Unit leadership;  5) JTE 11-Boy Scout camping"]
[1,4,"509","Bucktail","DuBois","PA","12/31/2018-SP exp date","JTE 1-Fiscal management","JTE 2-Fundraising","JTE 8-Cub Scout advancement","JTE 10-Cub Scout camping","JTE 15-Unit contacts","Gregg Bennett","509-Bucktail 2018 JTE Objectives:  1) JTE 1-Fiscal management;  2) JTE 2-Fundraising;  3) JTE 8-Cub Scout advancement;  4) JTE 10-Cub Scout camping;  5) JTE 15-Unit contacts"]
[1,4,"512","Westmoreland-Fayette","Greensburg","PA","12/31/2020-SP exp date","JTE 4-Community impact","JTE 5-Membership/youth growth","JTE 6-New member recruiting","JTE 18-Unit leadership","JTE 10-Cub Scout camping","Martin Barbie","512-Westmoreland-Fayette 2018 JTE Objectives:  1) JTE 4-Community impact;  2) JTE 5-Membership/youth growth;  3) JTE 6-New member recruiting;  4) JTE 18-Unit leadership;  5) JTE 10-Cub Scout camping"]
[1,6,"524","Pennsylvania Dutch","Lancaster","PA","12/31/2020-SP exp date","JTE 15-Unit contacts","JTE 5-Membership/youth growth","JTE 1-Fiscal management","JTE 3-Endowment","JTE 4-Community impact","Matthew S. Adams","524-Pennsylvania Dutch 2018 JTE Objectives:  1) JTE 15-Unit contacts;  2) JTE 5-Membership/youth growth;  3) JTE 1-Fiscal management;  4) JTE 3-Endowment;  5) JTE 4-Community impact"]
[1,5,"525","Cradle of Liberty","Philadelphia","PA","12/31/2019-SP exp date","JTE 3-Endowment","JTE 5-Membership/youth growth","JTE 10-Cub Scout camping","JTE 15-Unit contacts","JTE 17-District leadership","Veronica Coyle","525-Cradle of Liberty 2018 JTE Objectives:  1) JTE 3-Endowment;  2) JTE 5-Membership/youth growth;  3) JTE 10-Cub Scout camping;  4) JTE 15-Unit contacts;  5) JTE 17-District leadership"]
[1,4,"527","Laurel Highlands","Pittsburgh","PA","12/31/2018-SP exp date","JTE 2-Fundraising","JTE 5-Membership/youth growth","JTE 10-Cub Scout camping","JTE 11-Boy Scout camping","JTE 17-District leadership","Sharon M. Moulds","527-Laurel Highlands 2018 JTE Objectives:  1) JTE 2-Fundraising;  2) JTE 5-Membership/youth growth;  3) JTE 10-Cub Scout camping;  4) JTE 11-Boy Scout camping;  5) JTE 17-District leadership"]
[1,6,"528","Hawk Mountain","Reading","PA","12/31/2020-SP exp date","JTE 2-Fundraising","JTE 10-Cub Scout camping","JTE 6-New member recruiting","JTE 15-Unit contacts","JTE 17-District leadership","James Milham","528-Hawk Mountain 2018 JTE Objectives:  1) JTE 2-Fundraising;  2) JTE 10-Cub Scout camping;  3) JTE 6-New member recruiting;  4) JTE 15-Unit contacts;  5) JTE 17-District leadership"]
[1,4,"532","French Creek","Erie","PA","12/31/2019-SP exp date","JTE 5-Membership/youth growth","JTE 1-Fiscal management","JTE 4-Community impact","JTE 17-District leadership","JTE 15-Unit contacts","Duane Havard","532-French Creek 2018 JTE Objectives:  1) JTE 5-Membership/youth growth;  2) JTE 1-Fiscal management;  3) JTE 4-Community impact;  4) JTE 17-District leadership;  5) JTE 15-Unit contacts"]
[1,4,"533","Susquehanna","Williamsport","PA","12/31/2018-SP exp date","JTE 1-Fiscal management","JTE 2-Fundraising","JTE 4-Community impact","JTE 12-Community service","JTE 15-Unit contacts","Jon Brennan","533-Susquehanna 2018 JTE Objectives:  1) JTE 1-Fiscal management;  2) JTE 2-Fundraising;  3) JTE 4-Community impact;  4) JTE 12-Community service;  5) JTE 15-Unit contacts"]
[1,4,"538","Chief Cornplanter","Warren","PA","12:00:00 AM-SP exp date","JTE 1-Fiscal management","JTE 2-Fundraising","JTE 14-Unit retention/growth","JTE 15-Unit contacts","JTE 17-District leadership","Ray Tennent","538-Chief Cornplanter 2018 JTE Objectives:  1) JTE 1-Fiscal management;  2) JTE 2-Fundraising;  3) JTE 14-Unit retention/growth;  4) JTE 15-Unit contacts;  5) JTE 17-District leadership"]
[1,6,"539","Chester County","West Chester","PA","12/31/2021-SP exp date","JTE 5-Membership/youth growth","JTE 17-District leadership","JTE 2-Fundraising","JTE 15-Unit contacts","JTE 8-Cub Scout advancement","Charlie Rogers","539-Chester County 2018 JTE Objectives:  1) JTE 5-Membership/youth growth;  2) JTE 17-District leadership;  3) JTE 2-Fundraising;  4) JTE 15-Unit contacts;  5) JTE 8-Cub Scout advancement"]
[1,6,"544","New Birth of Freedom","Mechanicsburg","PA","12/31/2018-SP exp date","JTE 1-Fiscal management","JTE 2-Fundraising","JTE 5-Membership/youth growth","JTE 11-Boy Scout camping","JTE 10-Cub Scout camping","Ron Gardner","544-New Birth of Freedom 2018 JTE Objectives:  1) JTE 1-Fiscal management;  2) JTE 2-Fundraising;  3) JTE 5-Membership/youth growth;  4) JTE 11-Boy Scout camping;  5) JTE 10-Cub Scout camping"]
[1,1,"546","Narragansett","Providence","RI","12/31/2019-SP exp date","JTE 5-Membership/youth growth","JTE 2-Fundraising","JTE 8-Cub Scout advancement","JTE 14-Unit retention/growth","JTE 15-Unit contacts","Tim McCandless","546-Narragansett 2018 JTE Objectives:  1) JTE 5-Membership/youth growth;  2) JTE 2-Fundraising;  3) JTE 8-Cub Scout advancement;  4) JTE 14-Unit retention/growth;  5) JTE 15-Unit contacts"]
[2,5,"549","Palmetto","Spartanburg","SC","12:00:00 AM-SP exp date","JTE 3-Endowment","JTE 10-Cub Scout camping","JTE 12-Community service","JTE 17-District leadership","JTE 18-Unit leadership","Greg Leitch","549-Palmetto 2018 JTE Objectives:  1) JTE 3-Endowment;  2) JTE 10-Cub Scout camping;  3) JTE 12-Community service;  4) JTE 17-District leadership;  5) JTE 18-Unit leadership"]
[2,5,"550","Coastal Carolina","Charleston","SC","12/31/2019-SP exp date","JTE 5-Membership/youth growth","JTE 6-New member recruiting","JTE 13-Youth-serving executives","JTE 1-Fiscal management","JTE 14-Unit retention/growth","Legare Clement","550-Coastal Carolina 2018 JTE Objectives:  1) JTE 5-Membership/youth growth;  2) JTE 6-New member recruiting;  3) JTE 13-Youth-serving executives;  4) JTE 1-Fiscal management;  5) JTE 14-Unit retention/growth"]
[2,5,"551","Blue Ridge","Greenville","SC","12/31/2022-SP exp date","JTE 7-Youth retention","JTE 14-Unit retention/growth","JTE 17-District leadership","JTE 1-Fiscal management","JTE 11-Boy Scout camping","Mike Butler","551-Blue Ridge 2018 JTE Objectives:  1) JTE 7-Youth retention;  2) JTE 14-Unit retention/growth;  3) JTE 17-District leadership;  4) JTE 1-Fiscal management;  5) JTE 11-Boy Scout camping"]
[2,5,"552","Pee Dee Area","Florence","SC","12/31/2019-SP exp date","JTE 2-Fundraising","JTE 5-Membership/youth growth","JTE 12-Community service","JTE 8-Cub Scout advancement","JTE 4-Community impact","Michael Hesbach","552-Pee Dee Area 2018 JTE Objectives:  1) JTE 2-Fundraising;  2) JTE 5-Membership/youth growth;  3) JTE 12-Community service;  4) JTE 8-Cub Scout advancement;  5) JTE 4-Community impact"]
[2,5,"553","Indian Waters","Columbia","SC","12/31/2020-SP exp date","JTE 1-Fiscal management","JTE 5-Membership/youth growth","JTE 2-Fundraising","JTE 13-Youth-serving executives","JTE 10-Cub Scout camping","Douglas W. Stone","553-Indian Waters 2018 JTE Objectives:  1) JTE 1-Fiscal management;  2) JTE 5-Membership/youth growth;  3) JTE 2-Fundraising;  4) JTE 13-Youth-serving executives;  5) JTE 10-Cub Scout camping"]
[2,6,"556","Cherokee Area","Chattanooga","TN","12:00:00 AM-SP exp date","JTE 1-Fiscal management","JTE 2-Fundraising","JTE 5-Membership/youth growth","JTE 15-Unit contacts","JTE 17-District leadership","Scott Fosse",{"$f":"_xlfn.CONCAT(C195) & \"-\" & (D195) & \" 2018 JTE Objectives:  \" & \"1) \" & (H195) & \";  2) \" & (I195) & \";  3) \" & (J195) & \";  4) \" & (K195) & \";  5) \" & (L195)","v":"556-Cherokee Area 2018 JTE Objectives:  1) JTE 1-Fiscal management;  2) JTE 2-Fundraising;  3) JTE 5-Membership/youth growth;  4) JTE 15-Unit contacts;  5) JTE 17-District leadership"}]
[2,6,"557","Great Smoky Mountain","Knoxville","TN","12/31/2018-SP exp date","JTE 1-Fiscal management","JTE 2-Fundraising","JTE 5-Membership/youth growth","JTE 17-District leadership","JTE 10-Cub Scout camping","David Williams","557-Great Smoky Mountain 2018 JTE Objectives:  1) JTE 1-Fiscal management;  2) JTE 2-Fundraising;  3) JTE 5-Membership/youth growth;  4) JTE 17-District leadership;  5) JTE 10-Cub Scout camping"]
[2,6,"558","Chickasaw","Memphis","TN","12:00:00 AM-SP exp date","JTE 2-Fundraising","JTE 4-Community impact","JTE 7-Youth retention","JTE 17-District leadership","JTE 15-Unit contacts","Richard L. Fisher","558-Chickasaw 2018 JTE Objectives:  1) JTE 2-Fundraising;  2) JTE 4-Community impact;  3) JTE 7-Youth retention;  4) JTE 17-District leadership;  5) JTE 15-Unit contacts"]
[2,6,"559","West Tennessee Area","Jackson","TN","12:00:00 AM-SP exp date","JTE 1-Fiscal management","JTE 2-Fundraising","JTE 4-Community impact","JTE 5-Membership/youth growth","JTE 11-Boy Scout camping","Adrian Hackett","559-West Tennessee Area 2018 JTE Objectives:  1) JTE 1-Fiscal management;  2) JTE 2-Fundraising;  3) JTE 4-Community impact;  4) JTE 5-Membership/youth growth;  5) JTE 11-Boy Scout camping"]
[2,6,"560","Middle Tennessee","Nashville","TN","12:00:00 AM-SP exp date","JTE 1-Fiscal management","JTE 2-Fundraising","JTE 5-Membership/youth growth","JTE 6-New member recruiting","JTE 11-Boy Scout camping","Vance Lackey","560-Middle Tennessee 2018 JTE Objectives:  1) JTE 1-Fiscal management;  2) JTE 2-Fundraising;  3) JTE 5-Membership/youth growth;  4) JTE 6-New member recruiting;  5) JTE 11-Boy Scout camping"]
[2,2,"561","Texas Trails","Abilene","TX","12:00:00 AM-SP exp date","JTE 2-Fundraising","JTE 5-Membership/youth growth","JTE 7-Youth retention","JTE 14-Unit retention/growth","JTE 3-Endowment","Mark Conrad","561-Texas Trails 2018 JTE Objectives:  1) JTE 2-Fundraising;  2) JTE 5-Membership/youth growth;  3) JTE 7-Youth retention;  4) JTE 14-Unit retention/growth;  5) JTE 3-Endowment"]
[2,2,"562","Golden Spread","Amarillo","TX","12/31/2020-SP exp date","JTE 14-Unit retention/growth","JTE 7-Youth retention","JTE 5-Membership/youth growth","JTE 4-Community impact","JTE 11-Boy Scout camping","Phillip Shipley","562-Golden Spread 2018 JTE Objectives:  1) JTE 14-Unit retention/growth;  2) JTE 7-Youth retention;  3) JTE 5-Membership/youth growth;  4) JTE 4-Community impact;  5) JTE 11-Boy Scout camping"]
[2,3,"564","Capitol Area","Austin","TX","12/31/2020-SP exp date","JTE 5-Membership/youth growth","JTE 2-Fundraising","JTE 18-Unit leadership","JTE 15-Unit contacts","JTE 17-District leadership","Jon C Yates","564-Capitol Area 2018 JTE Objectives:  1) JTE 5-Membership/youth growth;  2) JTE 2-Fundraising;  3) JTE 18-Unit leadership;  4) JTE 15-Unit contacts;  5) JTE 17-District leadership"]
[2,3,"567","Buffalo Trail","Midland","TX","12/31/2019-SP exp date","JTE 2-Fundraising","JTE 1-Fiscal management","JTE 6-New member recruiting","JTE 4-Community impact","JTE 10-Cub Scout camping","David Chapman","567-Buffalo Trail 2018 JTE Objectives:  1) JTE 2-Fundraising;  2) JTE 1-Fiscal management;  3) JTE 6-New member recruiting;  4) JTE 4-Community impact;  5) JTE 10-Cub Scout camping"]
[2,2,"571","Circle Ten","Dallas","TX","12/31/2020-SP exp date","JTE 5-Membership/youth growth","JTE 6-New member recruiting","JTE 10-Cub Scout camping","JTE 11-Boy Scout camping","JTE 18-Unit leadership","sam thompson","571-Circle Ten 2018 JTE Objectives:  1) JTE 5-Membership/youth growth;  2) JTE 6-New member recruiting;  3) JTE 10-Cub Scout camping;  4) JTE 11-Boy Scout camping;  5) JTE 18-Unit leadership"]
[4,6,"573","Yucca","El Paso","TX","12/31/2020-SP exp date","JTE 1-Fiscal management","JTE 2-Fundraising","JTE 5-Membership/youth growth","JTE 10-Cub Scout camping","JTE 12-Community service","Mario Perez","573-Yucca 2018 JTE Objectives:  1) JTE 1-Fiscal management;  2) JTE 2-Fundraising;  3) JTE 5-Membership/youth growth;  4) JTE 10-Cub Scout camping;  5) JTE 12-Community service"]
[2,3,"574","Bay Area","Galveston","TX","12:00:00 AM-SP exp date","JTE 2-Fundraising","JTE 5-Membership/youth growth","JTE 17-District leadership","JTE 15-Unit contacts","JTE 7-Youth retention","Charlie Tinsley","574-Bay Area 2018 JTE Objectives:  1) JTE 2-Fundraising;  2) JTE 5-Membership/youth growth;  3) JTE 17-District leadership;  4) JTE 15-Unit contacts;  5) JTE 7-Youth retention"]
[2,3,"576","Sam Houston Area","Houston","TX","12/31/2020-SP exp date","JTE 1-Fiscal management","JTE 3-Endowment","JTE 6-New member recruiting","JTE 15-Unit contacts","JTE 17-District leadership","Tom Varnell","576-Sam Houston Area 2018 JTE Objectives:  1) JTE 1-Fiscal management;  2) JTE 3-Endowment;  3) JTE 6-New member recruiting;  4) JTE 15-Unit contacts;  5) JTE 17-District leadership"]
[2,3,"577","South Texas","Corpus Christi","TX","12:00:00 AM-SP exp date","JTE 4-Community impact","JTE 2-Fundraising","JTE 5-Membership/youth growth","JTE 6-New member recruiting","JTE 7-Youth retention","martin sepulveda","577-South Texas 2018 JTE Objectives:  1) JTE 4-Community impact;  2) JTE 2-Fundraising;  3) JTE 5-Membership/youth growth;  4) JTE 6-New member recruiting;  5) JTE 7-Youth retention"]
[2,3,"578","Three Rivers","Beaumont","TX","12/31/2018-SP exp date","JTE 2-Fundraising","JTE 1-Fiscal management","JTE 5-Membership/youth growth","JTE 6-New member recruiting","JTE 3-Endowment","Les Bentley","578-Three Rivers 2018 JTE Objectives:  1) JTE 2-Fundraising;  2) JTE 1-Fiscal management;  3) JTE 5-Membership/youth growth;  4) JTE 6-New member recruiting;  5) JTE 3-Endowment"]
[2,3,"583","Alamo Area","San Antonio","TX","12:00:00 AM-SP exp date","JTE 7-Youth retention","JTE 8-Cub Scout advancement","JTE 9-Boy Scout advancement","JTE 11-Boy Scout camping","JTE 18-Unit leadership","Michael de los Santos","583-Alamo Area 2018 JTE Objectives:  1) JTE 7-Youth retention;  2) JTE 8-Cub Scout advancement;  3) JTE 9-Boy Scout advancement;  4) JTE 11-Boy Scout camping;  5) JTE 18-Unit leadership"]
[2,2,"584","Caddo Area","Texarkana","TX","12:00:00 AM-SP exp date","None selected","None selected","None selected","None selected","None selected","","584-Caddo Area 2018 JTE Objectives:  1) None selected;  2) None selected;  3) None selected;  4) None selected;  5) None selected"]
[2,2,"585","East Texas Area","Tyler","TX","12/31/2019-SP exp date","JTE 17-District leadership","JTE 4-Community impact","JTE 5-Membership/youth growth","JTE 14-Unit retention/growth","JTE 2-Fundraising","Daniel Anderson","585-East Texas Area 2018 JTE Objectives:  1) JTE 17-District leadership;  2) JTE 4-Community impact;  3) JTE 5-Membership/youth growth;  4) JTE 14-Unit retention/growth;  5) JTE 2-Fundraising"]
[2,2,"587","Northwest Texas","Wichita Falls","TX","12:00:00 AM-SP exp date","JTE 3-Endowment","JTE 18-Unit leadership","JTE 14-Unit retention/growth","JTE 17-District leadership","JTE 8-Cub Scout advancement","Greg Brownfield","587-Northwest Texas 2018 JTE Objectives:  1) JTE 3-Endowment;  2) JTE 18-Unit leadership;  3) JTE 14-Unit retention/growth;  4) JTE 17-District leadership;  5) JTE 8-Cub Scout advancement"]
[4,2,"589","Trapper Trails","Ogden","UT","12/31/2020-SP exp date","JTE 1-Fiscal management","JTE 10-Cub Scout camping","JTE 12-Community service","JTE 13-Youth-serving executives","JTE 17-District leadership","Allen Endicott","589-Trapper Trails 2018 JTE Objectives:  1) JTE 1-Fiscal management;  2) JTE 10-Cub Scout camping;  3) JTE 12-Community service;  4) JTE 13-Youth-serving executives;  5) JTE 17-District leadership"]
[4,2,"590","Great Salt Lake","Salt Lake City","UT","12/31/2018-SP exp date","JTE 2-Fundraising","JTE 15-Unit contacts","JTE 17-District leadership","JTE 18-Unit leadership","JTE 1-Fiscal management","Mark Griffin","590-Great Salt Lake 2018 JTE Objectives:  1) JTE 2-Fundraising;  2) JTE 15-Unit contacts;  3) JTE 17-District leadership;  4) JTE 18-Unit leadership;  5) JTE 1-Fiscal management"]
[4,2,"591","Utah National Parks","Orem","UT","12/31/2020-SP exp date","JTE 10-Cub Scout camping","JTE 8-Cub Scout advancement","JTE 12-Community service","JTE 18-Unit leadership","JTE 17-District leadership","David Pack","591-Utah National Parks 2018 JTE Objectives:  1) JTE 10-Cub Scout camping;  2) JTE 8-Cub Scout advancement;  3) JTE 12-Community service;  4) JTE 18-Unit leadership;  5) JTE 17-District leadership"]
[1,3,"592","Green Mountain","Waterbury","VT","12/31/2020-SP exp date","JTE 10-Cub Scout camping","JTE 11-Boy Scout camping","JTE 5-Membership/youth growth","JTE 2-Fundraising","JTE 3-Endowment","Ed McCollin","592-Green Mountain 2018 JTE Objectives:  1) JTE 10-Cub Scout camping;  2) JTE 11-Boy Scout camping;  3) JTE 5-Membership/youth growth;  4) JTE 2-Fundraising;  5) JTE 3-Endowment"]
[2,7,"595","Colonial Virginia","Newport News","VA","12/31/2018-SP exp date","JTE 1-Fiscal management","JTE 5-Membership/youth growth","JTE 6-New member recruiting","JTE 8-Cub Scout advancement","JTE 10-Cub Scout camping","Scott Rehrauer","595-Colonial Virginia 2018 JTE Objectives:  1) JTE 1-Fiscal management;  2) JTE 5-Membership/youth growth;  3) JTE 6-New member recruiting;  4) JTE 8-Cub Scout advancement;  5) JTE 10-Cub Scout camping"]
[2,7,"596","Tidewater","Virginia Beach","VA","12/31/2018-SP exp date","JTE 1-Fiscal management","JTE 6-New member recruiting","JTE 8-Cub Scout advancement","JTE 10-Cub Scout camping","JTE 18-Unit leadership","Bill Deany","596-Tidewater 2018 JTE Objectives:  1) JTE 1-Fiscal management;  2) JTE 6-New member recruiting;  3) JTE 8-Cub Scout advancement;  4) JTE 10-Cub Scout camping;  5) JTE 18-Unit leadership"]
[2,7,"598","Shenandoah Area","Winchester","VA","12/31/2021-SP exp date","JTE 1-Fiscal management","JTE 2-Fundraising","JTE 3-Endowment","JTE 5-Membership/youth growth","JTE 7-Youth retention","Stuart A. Williams","598-Shenandoah Area 2018 JTE Objectives:  1) JTE 1-Fiscal management;  2) JTE 2-Fundraising;  3) JTE 3-Endowment;  4) JTE 5-Membership/youth growth;  5) JTE 7-Youth retention"]
[2,7,"599","Blue Ridge Mountains","Roanoke","VA","12/31/2018-SP exp date","JTE 1-Fiscal management","JTE 5-Membership/youth growth","JTE 2-Fundraising","JTE 10-Cub Scout camping","JTE 11-Boy Scout camping","Dan Johnson","599-Blue Ridge Mountains 2018 JTE Objectives:  1) JTE 1-Fiscal management;  2) JTE 5-Membership/youth growth;  3) JTE 2-Fundraising;  4) JTE 10-Cub Scout camping;  5) JTE 11-Boy Scout camping"]
[2,7,"602","Heart of Virginia","Richmond","VA","12/31/2019-SP exp date","JTE 2-Fundraising","JTE 14-Unit retention/growth","JTE 5-Membership/youth growth","JTE 8-Cub Scout advancement","JTE 3-Endowment","Bradford M. Nesheim","602-Heart of Virginia 2018 JTE Objectives:  1) JTE 2-Fundraising;  2) JTE 14-Unit retention/growth;  3) JTE 5-Membership/youth growth;  4) JTE 8-Cub Scout advancement;  5) JTE 3-Endowment"]
[4,1,"604","Blue Mountain","Kennewick","WA","12/31/2020-SP exp date","JTE 2-Fundraising","JTE 5-Membership/youth growth","JTE 6-New member recruiting","JTE 12-Community service","JTE 18-Unit leadership","Brett Bybee","604-Blue Mountain 2018 JTE Objectives:  1) JTE 2-Fundraising;  2) JTE 5-Membership/youth growth;  3) JTE 6-New member recruiting;  4) JTE 12-Community service;  5) JTE 18-Unit leadership"]
[4,1,"606","Mount Baker","Everett","WA","12/31/2025-SP exp date","JTE 8-Cub Scout advancement","JTE 9-Boy Scout advancement","JTE 10-Cub Scout camping","JTE 11-Boy Scout camping","JTE 15-Unit contacts","Duane Rhodes","606-Mount Baker 2018 JTE Objectives:  1) JTE 8-Cub Scout advancement;  2) JTE 9-Boy Scout advancement;  3) JTE 10-Cub Scout camping;  4) JTE 11-Boy Scout camping;  5) JTE 15-Unit contacts"]
[4,1,"609","Chief Seattle","Seattle","WA","12/31/2020-SP exp date","JTE 8-Cub Scout advancement","JTE 9-Boy Scout advancement","JTE 10-Cub Scout camping","JTE 11-Boy Scout camping","JTE 15-Unit contacts","Michael Quirk","609-Chief Seattle 2018 JTE Objectives:  1) JTE 8-Cub Scout advancement;  2) JTE 9-Boy Scout advancement;  3) JTE 10-Cub Scout camping;  4) JTE 11-Boy Scout camping;  5) JTE 15-Unit contacts"]
[4,1,"610","Great Alaska","Anchorage","AK","12/31/2018-SP exp date","JTE 1-Fiscal management","JTE 2-Fundraising","JTE 17-District leadership","JTE 6-New member recruiting","JTE 14-Unit retention/growth","Clifford Crismore","610-Great Alaska 2018 JTE Objectives:  1) JTE 1-Fiscal management;  2) JTE 2-Fundraising;  3) JTE 17-District leadership;  4) JTE 6-New member recruiting;  5) JTE 14-Unit retention/growth"]
[4,1,"611","Inland Northwest","Spokane","WA","12/31/2022-SP exp date","JTE 1-Fiscal management","JTE 8-Cub Scout advancement","JTE 10-Cub Scout camping","JTE 15-Unit contacts","JTE 18-Unit leadership","Karen Meier","611-Inland Northwest 2018 JTE Objectives:  1) JTE 1-Fiscal management;  2) JTE 8-Cub Scout advancement;  3) JTE 10-Cub Scout camping;  4) JTE 15-Unit contacts;  5) JTE 18-Unit leadership"]
[4,1,"612","Pacific Harbors","Tacoma","WA","12/31/2030-SP exp date","JTE 1-Fiscal management","JTE 2-Fundraising","JTE 12-Community service","JTE 17-District leadership","JTE 11-Boy Scout camping","Ralph Voelker","612-Pacific Harbors 2018 JTE Objectives:  1) JTE 1-Fiscal management;  2) JTE 2-Fundraising;  3) JTE 12-Community service;  4) JTE 17-District leadership;  5) JTE 11-Boy Scout camping"]
[4,1,"614","Grand Columbia","Yakima","WA","12/31/2018-SP exp date","JTE 2-Fundraising","JTE 14-Unit retention/growth","JTE 17-District leadership","JTE 8-Cub Scout advancement","JTE 3-Endowment","Barry McDonald","614-Grand Columbia 2018 JTE Objectives:  1) JTE 2-Fundraising;  2) JTE 14-Unit retention/growth;  3) JTE 17-District leadership;  4) JTE 8-Cub Scout advancement;  5) JTE 3-Endowment"]
[3,4,"615","Mountaineer Area","Fairmont","WV","12/31/2018-SP exp date","JTE 1-Fiscal management","JTE 3-Endowment","JTE 5-Membership/youth growth","JTE 8-Cub Scout advancement","JTE 9-Boy Scout advancement","Jeff Doty","615-Mountaineer Area 2018 JTE Objectives:  1) JTE 1-Fiscal management;  2) JTE 3-Endowment;  3) JTE 5-Membership/youth growth;  4) JTE 8-Cub Scout advancement;  5) JTE 9-Boy Scout advancement"]
[3,4,"617","Buckskin","Charleston","WV","12/31/2020-SP exp date","JTE 4-Community impact","JTE 1-Fiscal management","JTE 14-Unit retention/growth","JTE 18-Unit leadership","JTE 10-Cub Scout camping","Jeffrey L. Purdy","617-Buckskin 2018 JTE Objectives:  1) JTE 4-Community impact;  2) JTE 1-Fiscal management;  3) JTE 14-Unit retention/growth;  4) JTE 18-Unit leadership;  5) JTE 10-Cub Scout camping"]
[3,4,"618","Allohak","Parkersburg","WV","12/31/2019-SP exp date","JTE 12-Community service","JTE 17-District leadership","JTE 18-Unit leadership","JTE 6-New member recruiting","JTE 4-Community impact","Todd Walter","618-Allohak 2018 JTE Objectives:  1) JTE 12-Community service;  2) JTE 17-District leadership;  3) JTE 18-Unit leadership;  4) JTE 6-New member recruiting;  5) JTE 4-Community impact"]
[3,4,"619","Ohio River Valley","Wheeling","WV","12/31/2020-SP exp date","JTE 2-Fundraising","JTE 1-Fiscal management","JTE 5-Membership/youth growth","JTE 14-Unit retention/growth","JTE 7-Youth retention","Bob Drury","619-Ohio River Valley 2018 JTE Objectives:  1) JTE 2-Fundraising;  2) JTE 1-Fiscal management;  3) JTE 5-Membership/youth growth;  4) JTE 14-Unit retention/growth;  5) JTE 7-Youth retention"]
[3,7,"620","Glacier's Edge","Madison","WI","12/31/2020-SP exp date","JTE 1-Fiscal management","JTE 8-Cub Scout advancement","JTE 9-Boy Scout advancement","JTE 18-Unit leadership","JTE 14-Unit retention/growth","Alex Tyms","620-Glacier's Edge 2018 JTE Objectives:  1) JTE 1-Fiscal management;  2) JTE 8-Cub Scout advancement;  3) JTE 9-Boy Scout advancement;  4) JTE 18-Unit leadership;  5) JTE 14-Unit retention/growth"]
[3,1,"624","Gateway Area","La Crosse","WI","12/31/2020-SP exp date","JTE 12-Community service","JTE 5-Membership/youth growth","JTE 1-Fiscal management","JTE 10-Cub Scout camping","JTE 11-Boy Scout camping","Sean Henneman","624-Gateway Area 2018 JTE Objectives:  1) JTE 12-Community service;  2) JTE 5-Membership/youth growth;  3) JTE 1-Fiscal management;  4) JTE 10-Cub Scout camping;  5) JTE 11-Boy Scout camping"]
[3,1,"627","Samoset","Weston","WI","12/31/2018-SP exp date","JTE 17-District leadership","JTE 6-New member recruiting","JTE 9-Boy Scout advancement","JTE 10-Cub Scout camping","JTE 7-Youth retention","Jeff Ottosen","627-Samoset 2018 JTE Objectives:  1) JTE 17-District leadership;  2) JTE 6-New member recruiting;  3) JTE 9-Boy Scout advancement;  4) JTE 10-Cub Scout camping;  5) JTE 7-Youth retention"]
[3,1,"635","Bay-Lakes","Appleton","WI","12/31/2024-SP exp date","JTE 1-Fiscal management","JTE 2-Fundraising","JTE 5-Membership/youth growth","JTE 10-Cub Scout camping","JTE 14-Unit retention/growth","Jason Wolf","635-Bay-Lakes 2018 JTE Objectives:  1) JTE 1-Fiscal management;  2) JTE 2-Fundraising;  3) JTE 5-Membership/youth growth;  4) JTE 10-Cub Scout camping;  5) JTE 14-Unit retention/growth"]
[3,7,"636","Three Harbors","Milwaukee","WI","12/31/2020-SP exp date","JTE 2-Fundraising","JTE 3-Endowment","JTE 1-Fiscal management","JTE 15-Unit contacts","JTE 8-Cub Scout advancement","Andrew Hardin","636-Three Harbors 2018 JTE Objectives:  1) JTE 2-Fundraising;  2) JTE 3-Endowment;  3) JTE 1-Fiscal management;  4) JTE 15-Unit contacts;  5) JTE 8-Cub Scout advancement"]
[3,1,"637","Chippewa Valley","Eau Claire","WI","12/31/2019-SP exp date","JTE 5-Membership/youth growth","JTE 7-Youth retention","JTE 12-Community service","JTE 18-Unit leadership","JTE 8-Cub Scout advancement","Joe Carlson","637-Chippewa Valley 2018 JTE Objectives:  1) JTE 5-Membership/youth growth;  2) JTE 7-Youth retention;  3) JTE 12-Community service;  4) JTE 18-Unit leadership;  5) JTE 8-Cub Scout advancement"]
[4,2,"638","Greater Wyoming","Casper","WY","12/31/2019-SP exp date","JTE 1-Fiscal management","JTE 6-New member recruiting","JTE 9-Boy Scout advancement","JTE 12-Community service","JTE 17-District leadership","Brad Bodoh","638-Greater Wyoming 2018 JTE Objectives:  1) JTE 1-Fiscal management;  2) JTE 6-New member recruiting;  3) JTE 9-Boy Scout advancement;  4) JTE 12-Community service;  5) JTE 17-District leadership"]
[1,2,"640","Greater New York","New York","NY","12/31/2018-SP exp date","None selected","None selected","None selected","None selected","None selected","","640-Greater New York 2018 JTE Objectives:  1) None selected;  2) None selected;  3) None selected;  4) None selected;  5) None selected"]
[3,7,"651","Potawatomi Area","Waukesha","WI","12/31/2018-SP exp date","JTE 1-Fiscal management","JTE 5-Membership/youth growth","JTE 6-New member recruiting","JTE 2-Fundraising","JTE 14-Unit retention/growth","Paul Schwartz","651-Potawatomi Area 2018 JTE Objectives:  1) JTE 1-Fiscal management;  2) JTE 5-Membership/youth growth;  3) JTE 6-New member recruiting;  4) JTE 2-Fundraising;  5) JTE 14-Unit retention/growth"]
[3,5,"653","Great Rivers","Columbia","MO","12:00:00 AM-SP exp date","JTE 2-Fundraising","JTE 5-Membership/youth growth","JTE 10-Cub Scout camping","JTE 18-Unit leadership","JTE 15-Unit contacts","Doug Callahan","653-Great Rivers 2018 JTE Objectives:  1) JTE 2-Fundraising;  2) JTE 5-Membership/youth growth;  3) JTE 10-Cub Scout camping;  4) JTE 18-Unit leadership;  5) JTE 15-Unit contacts"]
[3,7,"660","Blackhawk Area","Rockford","IL","12:00:00 AM-SP exp date","None selected","None selected","None selected","None selected","None selected","","660-Blackhawk Area 2018 JTE Objectives:  1) None selected;  2) None selected;  3) None selected;  4) None selected;  5) None selected"]
[1,5,"661","Puerto Rico","Guaynabo","PR","12/31/2020-SP exp date","JTE 5-Membership/youth growth","JTE 14-Unit retention/growth","JTE 2-Fundraising","JTE 12-Community service","JTE 17-District leadership","Jim Hans","661-Puerto Rico 2018 JTE Objectives:  1) JTE 5-Membership/youth growth;  2) JTE 14-Unit retention/growth;  3) JTE 2-Fundraising;  4) JTE 12-Community service;  5) JTE 17-District leadership"]
[2,2,"662","Longhorn","Fort Worth","TX","12/31/2022-SP exp date","JTE 1-Fiscal management","JTE 4-Community impact","JTE 11-Boy Scout camping","JTE 14-Unit retention/growth","JTE 18-Unit leadership","John Coyle","662-Longhorn 2018 JTE Objectives:  1) JTE 1-Fiscal management;  2) JTE 4-Community impact;  3) JTE 11-Boy Scout camping;  4) JTE 14-Unit retention/growth;  5) JTE 18-Unit leadership"]
[2,4,"664","Suwannee River Area","Tallahassee","FL","12/31/2022-SP exp date","JTE 4-Community impact","JTE 6-New member recruiting","JTE 10-Cub Scout camping","JTE 13-Youth-serving executives","JTE 18-Unit leadership","Kevin Kilduff","664-Suwannee River Area 2018 JTE Objectives:  1) JTE 4-Community impact;  2) JTE 6-New member recruiting;  3) JTE 10-Cub Scout camping;  4) JTE 13-Youth-serving executives;  5) JTE 18-Unit leadership"]
[1,5,"690","Garden State","Westampton","NJ","12/31/2019-SP exp date","JTE 1-Fiscal management","JTE 2-Fundraising","JTE 3-Endowment","JTE 5-Membership/youth growth","JTE 6-New member recruiting","Kevin Bishop","690-Garden State 2018 JTE Objectives:  1) JTE 1-Fiscal management;  2) JTE 2-Fundraising;  3) JTE 3-Endowment;  4) JTE 5-Membership/youth growth;  5) JTE 6-New member recruiting"]
[2,1,"691","Pushmataha Area","Columbus","MS","12:00:00 AM-SP exp date","JTE 5-Membership/youth growth","JTE 11-Boy Scout camping","JTE 15-Unit contacts","JTE 4-Community impact","JTE 18-Unit leadership","Jeremy Whitmore","691-Pushmataha Area 2018 JTE Objectives:  1) JTE 5-Membership/youth growth;  2) JTE 11-Boy Scout camping;  3) JTE 15-Unit contacts;  4) JTE 4-Community impact;  5) JTE 18-Unit leadership"]
[2,2,"694","South Plains","Lubbock","TX","12/31/2018-SP exp date","JTE 1-Fiscal management","JTE 2-Fundraising","JTE 5-Membership/youth growth","JTE 15-Unit contacts","JTE 18-Unit leadership","Nathan Baie","694-South Plains 2018 JTE Objectives:  1) JTE 1-Fiscal management;  2) JTE 2-Fundraising;  3) JTE 5-Membership/youth growth;  4) JTE 15-Unit contacts;  5) JTE 18-Unit leadership"]
[4,2,"695","Black Hills Area","Rapid City","SD","12/31/2021-SP exp date","JTE 18-Unit leadership","JTE 17-District leadership","JTE 5-Membership/youth growth","JTE 14-Unit retention/growth","JTE 15-Unit contacts","Timothy P. Bouchard","695-Black Hills Area 2018 JTE Objectives:  1) JTE 18-Unit leadership;  2) JTE 17-District leadership;  3) JTE 5-Membership/youth growth;  4) JTE 14-Unit retention/growth;  5) JTE 15-Unit contacts"]
[4,1,"696","Midnight Sun","Fairbanks","AK","12:00:00 AM-SP exp date","JTE 3-Endowment","JTE 4-Community impact","JTE 8-Cub Scout advancement","JTE 9-Boy Scout advancement","JTE 15-Unit contacts","Stephen Smith","696-Midnight Sun 2018 JTE Objectives:  1) JTE 3-Endowment;  2) JTE 4-Community impact;  3) JTE 8-Cub Scout advancement;  4) JTE 9-Boy Scout advancement;  5) JTE 15-Unit contacts"]
[4,1,"697","Oregon Trail","Eugene","OR","12:00:00 AM-SP exp date","JTE 4-Community impact","JTE 2-Fundraising","JTE 17-District leadership","JTE 18-Unit leadership","JTE 14-Unit retention/growth","Scott Impecoven","697-Oregon Trail 2018 JTE Objectives:  1) JTE 4-Community impact;  2) JTE 2-Fundraising;  3) JTE 17-District leadership;  4) JTE 18-Unit leadership;  5) JTE 14-Unit retention/growth"]
[3,7,"702","Rainbow","Morris","IL","12:00:00 AM-SP exp date","JTE 2-Fundraising","JTE 5-Membership/youth growth","JTE 14-Unit retention/growth","JTE 4-Community impact","JTE 18-Unit leadership","Ted Karns","702-Rainbow 2018 JTE Objectives:  1) JTE 2-Fundraising;  2) JTE 5-Membership/youth growth;  3) JTE 14-Unit retention/growth;  4) JTE 4-Community impact;  5) JTE 18-Unit leadership"]
[2,6,"713","Sequoyah","Johnson City","TN","12/31/2020-SP exp date","JTE 2-Fundraising","JTE 7-Youth retention","JTE 1-Fiscal management","JTE 17-District leadership","JTE 14-Unit retention/growth","Royce Fox","713-Sequoyah 2018 JTE Objectives:  1) JTE 2-Fundraising;  2) JTE 7-Youth retention;  3) JTE 1-Fiscal management;  4) JTE 17-District leadership;  5) JTE 14-Unit retention/growth"]
[3,1,"733","Sioux","Sioux Falls","SD","12/31/2018-SP exp date","JTE 5-Membership/youth growth","JTE 6-New member recruiting","JTE 8-Cub Scout advancement","JTE 15-Unit contacts","JTE 17-District leadership","Thomas Smotherman","733-Sioux 2018 JTE Objectives:  1) JTE 5-Membership/youth growth;  2) JTE 6-New member recruiting;  3) JTE 8-Cub Scout advancement;  4) JTE 15-Unit contacts;  5) JTE 17-District leadership"]
[2,3,"741","Texas Southwest","San Angelo","TX","12/31/2018-SP exp date","JTE 1-Fiscal management","JTE 2-Fundraising","JTE 3-Endowment","JTE 5-Membership/youth growth","JTE 6-New member recruiting","Devin Koehler","741-Texas Southwest 2018 JTE Objectives:  1) JTE 1-Fiscal management;  2) JTE 2-Fundraising;  3) JTE 3-Endowment;  4) JTE 5-Membership/youth growth;  5) JTE 6-New member recruiting"]
[2,6,"748","Yocona Area","Tupelo","MS","12/31/2022-SP exp date","JTE 3-Endowment","JTE 12-Community service","JTE 15-Unit contacts","JTE 17-District leadership","JTE 18-Unit leadership","Rick Chapman","748-Yocona Area 2018 JTE Objectives:  1) JTE 3-Endowment;  2) JTE 12-Community service;  3) JTE 15-Unit contacts;  4) JTE 17-District leadership;  5) JTE 18-Unit leadership"]
[2,7,"763","Stonewall Jackson Area","Waynesboro","VA","12/31/2020-SP exp date","JTE 2-Fundraising","JTE 7-Youth retention","JTE 5-Membership/youth growth","JTE 15-Unit contacts","JTE 17-District leadership","Jim Battaglia",{"$f":"_xlfn.CONCAT(C259) & \"-\" & (D259) & \" 2018 JTE Objectives:  \" & \"1) \" & (H259) & \";  2) \" & (I259) & \";  3) \" & (J259) & \";  4) \" & (K259) & \";  5) \" & (L259)","v":"763-Stonewall Jackson Area 2018 JTE Objectives:  1) JTE 2-Fundraising;  2) JTE 7-Youth retention;  3) JTE 5-Membership/youth growth;  4) JTE 15-Unit contacts;  5) JTE 17-District leadership"}]
[2,1,"773","Gulf Coast","Pensacola","FL","12/31/2020-SP exp date","JTE 2-Fundraising","JTE 6-New member recruiting","JTE 17-District leadership","JTE 5-Membership/youth growth","JTE 15-Unit contacts","Spencer Page","773-Gulf Coast 2018 JTE Objectives:  1) JTE 2-Fundraising;  2) JTE 6-New member recruiting;  3) JTE 17-District leadership;  4) JTE 5-Membership/youth growth;  5) JTE 15-Unit contacts"]
[2,3,"775","Rio Grande","Harlingen","TX","12/31/2022-SP exp date","JTE 5-Membership/youth growth","JTE 6-New member recruiting","JTE 7-Youth retention","JTE 1-Fiscal management","JTE 2-Fundraising","Rudy Gonzalez","775-Rio Grande 2018 JTE Objectives:  1) JTE 5-Membership/youth growth;  2) JTE 6-New member recruiting;  3) JTE 7-Youth retention;  4) JTE 1-Fiscal management;  5) JTE 2-Fundraising"]
[1,5,"777","Washington Crossing","Doylestown","PA","12/31/2018-SP exp date","JTE 1-Fiscal management","JTE 2-Fundraising","JTE 5-Membership/youth growth","JTE 6-New member recruiting","JTE 9-Boy Scout advancement","Magne Gundersen","777-Washington Crossing 2018 JTE Objectives:  1) JTE 1-Fiscal management;  2) JTE 2-Fundraising;  3) JTE 5-Membership/youth growth;  4) JTE 6-New member recruiting;  5) JTE 9-Boy Scout advancement"]
[3,2,"781","President Gerald R. Ford","Grand Rapids","MI","12/31/2019-SP exp date","JTE 17-District leadership","JTE 6-New member recruiting","JTE 14-Unit retention/growth","JTE 18-Unit leadership","JTE 5-Membership/youth growth","Kevin Nichols","781-President Gerald R. Ford 2018 JTE Objectives:  1) JTE 17-District leadership;  2) JTE 6-New member recruiting;  3) JTE 14-Unit retention/growth;  4) JTE 18-Unit leadership;  5) JTE 5-Membership/youth growth"]
[3,2,"782","Water and Woods","Flint","MI","12/31/2019-SP exp date","JTE 2-Fundraising","JTE 5-Membership/youth growth","JTE 10-Cub Scout camping","JTE 15-Unit contacts","JTE 17-District leadership","Gary Gilger","782-Water and Woods 2018 JTE Objectives:  1) JTE 2-Fundraising;  2) JTE 5-Membership/youth growth;  3) JTE 10-Cub Scout camping;  4) JTE 15-Unit contacts;  5) JTE 17-District leadership"]
[3,2,"783","Southern Shores","Ypsilanti","MI","12/31/2019-SP exp date","JTE 2-Fundraising","JTE 4-Community impact","JTE 10-Cub Scout camping","JTE 15-Unit contacts","JTE 17-District leadership","Melissa Stricherz","783-Southern Shores 2018 JTE Objectives:  1) JTE 2-Fundraising;  2) JTE 4-Community impact;  3) JTE 10-Cub Scout camping;  4) JTE 15-Unit contacts;  5) JTE 17-District leadership"]
[1,5,"802","Transatlantic","Brussels","Belgium","12/31/2023-SP exp date","JTE 2-Fundraising","JTE 1-Fiscal management","JTE 6-New member recruiting","JTE 5-Membership/youth growth","JTE 14-Unit retention/growth","Vince Cozzone","802-Transatlantic 2018 JTE Objectives:  1) JTE 2-Fundraising;  2) JTE 1-Fiscal management;  3) JTE 6-New member recruiting;  4) JTE 5-Membership/youth growth;  5) JTE 14-Unit retention/growth"]
[4,6,"803","Far East","Okinawa","Japan","12:00:00 AM-SP exp date","JTE 6-New member recruiting","JTE 17-District leadership","JTE 18-Unit leadership","JTE 10-Cub Scout camping","JTE 11-Boy Scout camping","Don A. Olsen","803-Far East 2018 JTE Objectives:  1) JTE 6-New member recruiting;  2) JTE 17-District leadership;  3) JTE 18-Unit leadership;  4) JTE 10-Cub Scout camping;  5) JTE 11-Boy Scout camping"]

{"sheet":"Form","index":5,"n_rows":29,"n_cols":7,"rows_kept":29,"cut":false,"hidden":true,"merged":[[29,1,30,6],[18,1,19,6],[11,1,11,4],[1,1,1,6],[2,1,2,6],[7,2,7,4],[6,2,6,4],[5,2,5,4],[4,1,4,6]]}
[]
[null,"2019 Journey to Excellence"]
[null,"Focus Criteria and Comparative Councils Selection"]
[]
[null,"Complete the fields below and submit your selections to the Strategic Performance Office at jte@scouting.org. "]
[null,"Region"]
[null,"Area"]
[null,"Council"]
[]
[]
[null,"Select your council below to view your council's strategic plan expiration date"]
[]
[]
[null,"2019 JTE Focus Objectives "]
[null,"JTE","JTE Objective 1","JTE Objective 2","JTE Objective 3","JTE Objective 4","JTE Objective 5"]
[null,"Selections →","#4  Community impact"]
[]
[null,"Select your council below to view JTE focus objectives for 2018"]
[]
[]
[]
[]
[null,"2019 Comparative Councils "]
[null,"Items","Council 1","Council 2","Council 3","Council 4","Council 5"]
[null,"(Select councils  you wish to be compared in membership and finance. Input same if applicable)"]
[null,"Membership"]
[null,"Finance"]
[]
[null,"Select your council below to view comparative councils for 2018"]

{"sheet":"Input Form","index":6,"n_rows":31,"n_cols":7,"rows_kept":31,"cut":false,"hidden":false,"merged":[[11,1,11,4],[15,1,16,6],[24,1,25,6],[27,1,27,6],[1,1,1,6],[2,1,2,6],[4,1,4,6],[5,2,5,4],[6,2,6,4],[7,2,7,4]]}
[]
[null,"2019 Journey to Excellence"]
[null,"Focus Criteria and Comparative Councils Selection"]
[]
[null,"Complete and submit your selections to the Strategic Performance Office at jte@scouting.org by the deadline date of January 31, 2019."]
[null,"Region"]
[null,"Area"]
[null,"Council"]
[]
[]
[null,"Select your council below to view your council's strategic plan expiration date"]
[]
[]
[]
[null,"Select your council below to view JTE focus objectives for 2018"]
[]
[]
[]
[null,"2019 JTE Focus Objectives "]
[null,"JTE","JTE Objective 1","JTE Objective 2","JTE Objective 3","JTE Objective 4","JTE Objective 5"]
[null,"Selections →"]
[]
[]
[null,"Select your council below to view comparative councils for 2017"]
[]
[]
[]
[null,"Comparative Councils for 2018 Progress Reviews\n(Select councils  you wish to be compared in membership and finance.)"]
[null,"Items","Council 1","Council 2","Council 3","Council 4","Council 5"]
[null,"Membership"]
[null,"Finance"]

{"sheet":"Councils","index":7,"n_rows":269,"n_cols":7,"rows_kept":269,"cut":false,"hidden":false,"merged":[[0,0,0,6]]}
["COUNCIL LISTING BY HQ CITY"]
[]
["Reg#","Area","Council#","Council Name","Grade","HQ City","HQ State"]
[2,2,"561","Texas Trails",500,"Abilene","TX"]
[3,4,"433","Great Trail",300,"Akron","OH"]
[4,3,"022","Alameda",500,"Alameda","CA"]
[1,3,"364","Twin Rivers",300,"Albany","NY"]
[2,5,"416","Central North Carolina",400,"Albemarle","NC"]
[4,6,"412","Great Southwest",400,"Albuquerque","NM"]
[2,2,"562","Golden Spread",400,"Amarillo","TX"]
[4,1,"610","Great Alaska",300,"Anchorage","AK"]
[3,1,"635","Bay-Lakes",200,"Appleton","WI"]
[2,8,"468","Arbuckle Area",500,"Ardmore","OK"]
[2,5,"414","Daniel Boone",300,"Asheville","NC"]
[2,9,"092","Atlanta Area",100,"Atlanta","GA"]
[2,5,"093","Georgia-Carolina",500,"Augusta","GA"]
[2,3,"564","Capitol Area",200,"Austin","TX"]
[4,4,"030","Southern Sierra",500,"Bakersfield","CA"]
[1,6,"220","Baltimore Area",200,"Baltimore","MD"]
[1,1,"216","Katahdin Area",400,"Bangor","ME"]
[2,8,"469","Cherokee Area",500,"Bartlesville","OK"]
[1,3,"376","Iroquois Trail",500,"Batavia","NY"]
[2,1,"211","Istrouma Area",400,"Baton Rouge","LA"]
[2,3,"578","Three Rivers",500,"Beaumont","TX"]
[1,6,"082","National Capital Area",100,"Bethesda","MD"]
[1,3,"368","Baden-Powell",400,"Binghamton","NY"]
[2,9,"001","Greater Alabama",200,"Birmingham","AL"]
[3,6,"145","Hoosier Trails",400,"Bloomington","IN"]
[1,4,"504","Columbia-Montour",500,"Bloomsburg","PA"]
[4,1,"106","Ore-Ida",400,"Boise","ID"]
[1,1,"227","Spirit of Adventure",200,"Boston","MA"]
[1,5,"802","Transatlantic",400,"Brussels","Belgium"]
[1,3,"380","Greater Niagara Frontier",300,"Buffalo","NY"]
[1,4,"500","Moraine Trails",500,"Butler","PA"]
[4,4,"057","Ventura County",400,"Camarillo","CA"]
[3,4,"436","Buckeye",300,"Canton","OH"]
[4,2,"638","Greater Wyoming",500,"Casper","WY"]
[1,5,"358","Patriots' Path",200,"Cedar Knolls","NJ"]
[3,3,"172","Hawkeye Area",400,"Cedar Rapids","IA"]
[4,1,"491","Crater Lake",400,"Central Point","OR"]
[3,3,"117","Prairielands",500,"Champaign","IL"]
[3,4,"617","Buckskin",400,"Charleston","WV"]
[2,5,"550","Coastal Carolina",400,"Charleston","SC"]
[2,5,"415","Mecklenburg County",300,"Charlotte","NC"]
[2,6,"556","Cherokee Area",400,"Chattanooga","TN"]
[3,7,"456","Pathway to Adventure",100,"Chicago","IL"]
[3,6,"438","Dan Beard",200,"Cincinnati","OH"]
[3,4,"440","Lake Erie",200,"Cleveland","OH"]
[4,2,"060","Pikes Peak",300,"Colorado Springs","CO"]
[2,5,"553","Indian Waters",400,"Columbia","SC"]
[3,5,"653","Great Rivers",400,"Columbia","MO"]
[2,9,"091","Chattahoochee",400,"Columbus","GA"]
[3,4,"441","Simon Kenton",200,"Columbus","OH"]
[2,1,"691","Pushmataha Area",500,"Columbus","MS"]
[2,3,"577","South Texas",400,"Corpus Christi","TX"]
[2,2,"571","Circle Ten",100,"Dallas","TX"]
[3,3,"133","Illowa",400,"Davenport","IA"]
[3,6,"444","Miami Valley",400,"Dayton","OH"]
[3,3,"121","Lincoln Trails",500,"Decatur","IL"]
[4,2,"061","Denver Area",100,"Denver","CO"]
[1,2,"069","Housatonic",500,"Derby","CT"]
[3,5,"177","Mid-Iowa",300,"Des Moines","IA"]
[3,2,"272","Great Lakes",100,"Detroit","MI"]
[2,1,"003","Alabama-Florida",500,"Dothan","AL"]
[1,5,"777","Washington Crossing",300,"Doylestown","PA"]
[1,4,"509","Bucktail",500,"DuBois","PA"]
[3,3,"178","Northeast Iowa",500,"Dubuque","IA"]
[1,2,"066","Connecticut Rivers",200,"East Hartford","CT"]
[3,1,"637","Chippewa Valley",400,"Eau Claire","WI"]
[2,8,"013","De Soto Area",500,"El Dorado","AR"]
[4,6,"573","Yucca",500,"El Paso","TX"]
[2,8,"474","Cimarron",500,"Enid","OK"]
[1,4,"532","French Creek",500,"Erie","PA"]
[4,1,"697","Oregon Trail",400,"Eugene","OR"]
[3,6,"156","Buffalo Trace",400,"Evansville","IN"]
[4,1,"606","Mount Baker",400,"Everett","WA"]
[4,1,"696","Midnight Sun",500,"Fairbanks","AK"]
[3,4,"615","Mountaineer Area",500,"Fairmont","WV"]
[1,4,"382","Allegheny Highlands",500,"Falconer","NY"]
[3,1,"429","Northern Lights",300,"Fargo","ND"]
[3,6,"449","Black Swamp Area",400,"Findlay","OH"]
[3,2,"782","Water and Woods",400,"Flint","MI"]
[2,5,"552","Pee Dee Area",500,"Florence","SC"]
[2,4,"088","Southwest Florida",400,"Fort Myers","FL"]
[2,8,"016","Westark Area",400,"Fort Smith","AR"]
[3,6,"157","Anthony Wayne Area",400,"Fort Wayne","IN"]
[2,2,"662","Longhorn",200,"Fort Worth","TX"]
[4,3,"031","Pacific Skyline",300,"Foster City","CA"]
[4,3,"027","Sequoia",300,"Fresno","CA"]
[2,3,"574","Bay Area",400,"Galveston","TX"]
[3,5,"194","Santa Fe Trail",500,"Garden City","KS"]
[2,5,"420","Piedmont",300,"Gastonia","NC"]
[4,4,"058","Verdugo Hills",500,"Glendale","CA"]
[2,7,"424","Tuscarora",500,"Goldsboro","NC"]
[3,5,"322","Overland Trails",500,"Grand Island","NE"]
[4,2,"064","Western Colorado",500,"Grand Junction","CO"]
[3,2,"781","President Gerald R. Ford",300,"Grand Rapids","MI"]
[4,2,"315","Montana",300,"Great Falls","MT"]
[4,2,"062","Longs Peak",300,"Greeley","CO"]
[2,7,"070","Old North State",300,"Greensboro","NC"]
[1,4,"512","Westmoreland-Fayette",400,"Greensburg","PA"]
[2,5,"551","Blue Ridge",300,"Greenville","SC"]
[1,2,"067","Greenwich",400,"Greenwich","CT"]
[2,9,"095","Flint River",400,"Griffin","GA"]
[1,5,"661","Puerto Rico",400,"Guaynabo","PR"]
[1,6,"221","Mason-Dixon",500,"Hagerstown","MD"]
[2,3,"775","Rio Grande",500,"Harlingen","TX"]
[2,1,"304","Pine Burr Area",400,"Hattiesburg","MS"]
[1,2,"388","Westchester-Putnam",300,"Hawthorne","NY"]
[3,1,"286","Voyageurs Area",500,"Hermantown","MN"]
[3,7,"129","Northeast Illinois",300,"Highland Park","IL"]
[4,6,"104","Aloha",300,"Honolulu","HI"]
[1,3,"375","Five Rivers",400,"Horseheads","NY"]
[2,3,"576","Sam Houston Area",100,"Houston","TX"]
[4,2,"107","Grand Teton",300,"Idaho Falls","ID"]
[3,6,"160","Crossroads of America",100,"Indianapolis","IN"]
[2,6,"559","West Tennessee Area",400,"Jackson","TN"]
[2,1,"303","Andrew Jackson",400,"Jackson","MS"]
[2,4,"087","North Florida",200,"Jacksonville","FL"]
[2,9,"101","Northeast Georgia",200,"Jefferson","GA"]
[2,6,"713","Sequoyah",400,"Johnson City","TN"]
[3,5,"307","Heart of America",100,"Kansas City","MO"]
[4,1,"604","Blue Mountain",500,"Kennewick","WA"]
[1,2,"405","Rip Van Winkle",500,"Kingston","NY"]
[2,7,"426","East Carolina",300,"Kinston","NC"]
[2,6,"557","Great Smoky Mountain",300,"Knoxville","TN"]
[3,6,"162","Sagamore",400,"Kokomo","IN"]
[3,1,"624","Gateway Area",500,"La Crosse","WI"]
[2,1,"212","Evangeline Area",400,"Lafayette","LA"]
[2,1,"209","Calcasieu Area",500,"Lake Charles","LA"]
[1,6,"524","Pennsylvania Dutch",300,"Lancaster","PA"]
[1,1,"230","Nashua Valley",400,"Lancaster","MA"]
[4,6,"328","Las Vegas Area",300,"Las Vegas","NV"]
[1,5,"502","Minsi Trails",300,"Lehigh Valley","PA"]
[2,6,"204","Blue Grass",400,"Lexington","KY"]
[3,5,"324","Cornhusker",400,"Lincoln","NE"]
[2,8,"018","Quapaw Area",300,"Little Rock","AR"]
[4,4,"032","Long Beach Area",400,"Long Beach","CA"]
[4,4,"033","Greater Los Angeles Area",100,"Los Angeles","CA"]
[2,6,"205","Lincoln Heritage",200,"Louisville","KY"]
[2,2,"694","South Plains",500,"Lubbock","TX"]
[2,9,"096","Central Georgia",500,"Macon","GA"]
[3,7,"620","Glacier's Edge",400,"Madison","WI"]
[1,1,"330","Daniel Webster",200,"Manchester","NH"]
[3,1,"283","Twin Valley",400,"Mankato","MN"]
[1,1,"251","Mayflower",300,"Marlborough","MA"]
[1,2,"386","Theodore Roosevelt",400,"Massapequa","NY"]
[1,6,"544","New Birth of Freedom",300,"Mechanicsburg","PA"]
[1,2,"404","Suffolk County",400,"Medford","NY"]
[2,6,"558","Chickasaw",300,"Memphis","TN"]
[2,1,"302","Choctaw Area",500,"Meridian","MS"]
[2,4,"084","South Florida",300,"Miami Lakes","FL"]
[2,3,"567","Buffalo Trail",300,"Midland","TX"]
[1,2,"072","Connecticut Yankee",300,"Milford","CT"]
[3,7,"636","Three Harbors",300,"Milwaukee","WI"]
[2,1,"004","Mobile Area",500,"Mobile","AL"]
[4,3,"059","Greater Yosemite",400,"Modesto","CA"]
[2,1,"213","Louisiana Purchase",400,"Monroe","LA"]
[2,9,"005","Tukabatchee Area",400,"Montgomery","AL"]
[1,5,"501","Northeastern Pennsylvania",400,"Moosic","PA"]
[1,5,"347","Monmouth",400,"Morganville","NJ"]
[3,7,"702","Rainbow",400,"Morris","IL"]
[2,6,"560","Middle Tennessee",200,"Nashville","TN"]
[2,1,"214","Southeast Louisiana",300,"New Orleans","LA"]
[1,2,"640","Greater New York",100,"New York","NY"]
[1,2,"374","Hudson Valley",400,"Newburgh","NY"]
[2,7,"595","Colonial Virginia",400,"Newport News","VA"]
[1,5,"333","Northern New Jersey",300,"Oakland","NJ"]
[4,2,"589","Trapper Trails",200,"Ogden","UT"]
[4,6,"803","Far East",500,"Okinawa","Japan"]
[2,8,"480","Last Frontier",300,"Oklahoma City","OK"]
[3,5,"326","Mid-America",200,"Omaha","NE"]
[4,2,"591","Utah National Parks",200,"Orem","UT"]
[2,4,"083","Central Florida",200,"Orlando","FL"]
[2,4,"085","Gulf Stream",300,"Palm Beach Gardens","FL"]
[3,4,"618","Allohak",500,"Parkersburg","WV"]
[2,1,"773","Gulf Coast",500,"Pensacola","FL"]
[3,3,"138","W.D. Boyce",300,"Peoria","IL"]
[1,5,"525","Cradle of Liberty",200,"Philadelphia","PA"]
[4,6,"010","Grand Canyon",200,"Phoenix","AZ"]
[4,3,"042","Piedmont",500,"Piedmont","CA"]
[1,4,"527","Laurel Highlands",200,"Pittsburgh","PA"]
[4,3,"023","Mount Diablo Silverado",300,"Pleasant Hill","CA"]
[1,1,"218","Pine Tree",400,"Portland","ME"]
[4,1,"492","Cascade Pacific",200,"Portland","OR"]
[1,1,"546","Narragansett",200,"Providence","RI"]
[4,2,"063","Rocky Mountain",400,"Pueblo","CO"]
[3,3,"141","Mississippi Valley",400,"Quincy","IL"]
[2,7,"421","Occoneechee",200,"Raleigh","NC"]
[3,1,"695","Black Hills Area",500,"Rapid City","SD"]
[1,6,"528","Hawk Mountain",300,"Reading","PA"]
[4,4,"045","California Inland Empire",300,"Redlands","CA"]
[1,4,"497","Juniata Valley",500,"Reedsville","PA"]
[4,3,"329","Nevada Area",400,"Reno","NV"]
[2,7,"602","Heart of Virginia",300,"Richmond","VA"]
[2,7,"599","Blue Ridge Mountains",200,"Roanoke","VA"]
[1,3,"397","Seneca Waterways",200,"Rochester","NY"]
[3,1,"299","Gamehaven",500,"Rochester","MN"]
[3,7,"660","Blackhawk Area",300,"Rockford","IL"]
[2,9,"100","Northwest Georgia",500,"Rome","GA"]
[4,6,"413","Conquistador",500,"Roswell","NM"]
[4,3,"047","Golden Empire",300,"Sacramento","CA"]
[3,5,"192","Coronado Area",400,"Salina","KS"]
[4,2,"590","Great Salt Lake",100,"Salt Lake City","UT"]
[2,3,"741","Texas Southwest",500,"San Angelo","TX"]
[2,3,"583","Alamo Area",200,"San Antonio","TX"]
[4,6,"049","San Diego-Imperial",200,"San Diego","CA"]
[4,3,"055","Silicon Valley Monterey Bay",200,"San Jose","CA"]
[4,3,"028","San Francisco Bay Area",200,"San Leandro","CA"]
[4,3,"035","Marin",400,"San Rafael","CA"]
[4,4,"039","Orange County",100,"Santa Ana","CA"]
[4,4,"053","Los Padres",300,"Santa Barbara","CA"]
[4,3,"041","Redwood Empire",500,"Santa Rosa","CA"]
[3,1,"296","Central Minnesota",400,"Sartell","MN"]
[2,9,"099","Coastal Georgia",400,"Savannah","GA"]
[4,1,"609","Chief Seattle",200,"Seattle","WA"]
[2,2,"215","Norwela",500,"Shreveport","LA"]
[3,1,"733","Sioux",400,"Sioux Falls","SD"]
[3,6,"165","LaSalle",400,"South Bend","IN"]
[2,5,"549","Palmetto",400,"Spartanburg","SC"]
[4,1,"611","Inland Northwest",300,"Spokane","WA"]
[3,3,"144","Abraham Lincoln",400,"Springfield","IL"]
[3,5,"306","Ozark Trails",400,"Springfield","MO"]
[3,6,"439","Tecumseh",500,"Springfield","OH"]
[3,7,"127","Three Fires",300,"St. Charles","IL"]
[3,5,"311","Pony Express",400,"St. Joseph","MO"]
[3,3,"312","Greater St. Louis Area",100,"St. Louis","MO"]
[3,1,"250","Northern Star",100,"St. Paul","MN"]
[1,3,"373","Longhouse",400,"Syracuse","NY"]
[4,1,"612","Pacific Harbors",300,"Tacoma","WA"]
[2,4,"664","Suwannee River Area",500,"Tallahassee","FL"]
[2,4,"089","Greater Tampa Bay Area",300,"Tampa","FL"]
[2,2,"584","Caddo Area",400,"Texarkana","TX"]
[3,6,"460","Erie Shores",300,"Toledo","OH"]
[1,5,"341","Jersey Shore",400,"Toms River","NJ"]
[3,5,"197","Jayhawk Area",400,"Topeka","KS"]
[4,6,"011","Catalina",400,"Tucson","AZ"]
[2,8,"488","Indian Nations",200,"Tulsa","OK"]
[2,6,"748","Yocona Area",500,"Tupelo","MS"]
[2,9,"006","Black Warrior",400,"Tuscaloosa","AL"]
[4,2,"111","Snake River",500,"Twin Falls","ID"]
[2,2,"585","East Texas Area",400,"Tyler","TX"]
[1,3,"400","Leatherstocking",400,"Utica","NY"]
[2,9,"098","South Georgia",500,"Valdosta","GA"]
[4,4,"051","Western Los Angeles County",100,"Van Nuys","CA"]
[2,7,"596","Tidewater",400,"Virginia Beach","VA"]
[4,6,"102","Maui County",500,"Wailuku, Maui","HI"]
[1,4,"538","Chief Cornplanter",500,"Warren","PA"]
[1,3,"592","Green Mountain",400,"Waterbury","VT"]
[3,3,"173","Winnebago",500,"Waterloo","IA"]
[3,7,"651","Potawatomi Area",400,"Waukesha","WI"]
[2,7,"763","Stonewall Jackson Area",400,"Waynesboro","VA"]
[1,6,"539","Chester County",300,"West Chester","PA"]
[1,5,"690","Garden State",300,"Westampton","NJ"]
[1,2,"234","Western Massachusetts",500,"Westfield","MA"]
[3,1,"627","Samoset",300,"Weston","WI"]
[3,4,"619","Ohio River Valley",500,"Wheeling","WV"]
[3,5,"198","Quivira",300,"Wichita","KS"]
[2,2,"587","Northwest Texas",500,"Wichita Falls","TX"]
[1,4,"533","Susquehanna",500,"Williamsport","PA"]
[1,6,"081","Del-Mar-Va",200,"Wilmington","DE"]
[2,7,"425","Cape Fear",400,"Wilmington","NC"]
[2,7,"598","Shenandoah Area",500,"Winchester","VA"]
[2,7,"427","Old Hickory",300,"Winston-Salem","NC"]
[1,1,"254","Mohegan",400,"Worcester","MA"]
[4,1,"614","Grand Columbia",500,"Yakima","WA"]
[1,1,"224","Cape Cod and Islands",500,"Yarmouth Port","MA"]
[3,2,"783","Southern Shores",400,"Ypsilanti","MI"]
[3,4,"467","Muskingum Valley",500,"Zanesville","OH"]

{"sheet":"Form (3)","index":8,"n_rows":31,"n_cols":7,"rows_kept":31,"cut":false,"hidden":true,"merged":[[11,1,11,4],[15,1,16,6],[24,1,25,6],[27,1,27,6],[1,1,1,6],[2,1,2,6],[4,1,4,6],[5,2,5,4],[6,2,6,4],[7,2,7,4]]}
[]
[null,"2019 Journey to Excellence"]
[null,"Focus Criteria and Comparative Councils Selection"]
[]
[null,"Complete the fields below and submit your selections to the Strategic Performance Office at jte@scouting.org. "]
[null,"Region","Southern"]
[null,"Area"]
[null,"Council","004-Mobile Area Council, Mobile, AL"]
[]
[]
[null,"Select your council below to view your council's strategic plan expiration date"]
[]
[]
[]
[null,"Select your council below to view JTE focus objectives for 2018"]
[]
[]
[]
[null,"2019 JTE Focus Objectives "]
[null,"Column1","JTE Objective 1","JTE Objective 2","JTE Objective 3","JTE Objective 4","JTE Objective 5"]
[null,"Selections →"]
[]
[]
[null,"Select your council below to view comparative councils for 2018"]
[]
[]
[]
[null,"2019 Comparative Councils \n(Select councils  you wish to be compared in membership and finance. Input same if applicable)"]
[null,"Items","Council 1","Council 2","Council 3","Council 4","Council 5"]
[null,"Membership"]
[null,"Finance"]

{"sheet":"Form (4)","index":9,"n_rows":31,"n_cols":7,"rows_kept":31,"cut":false,"hidden":true,"merged":[[11,1,11,4],[15,1,16,6],[24,1,25,6],[27,1,27,6],[1,1,1,6],[2,1,2,6],[4,1,4,6],[5,2,5,4],[6,2,6,4],[7,2,7,4]]}
[]
[null,"2019 Journey to Excellence"]
[null,"Focus Criteria and Comparative Councils Selection"]
[]
[null,"Complete the fields below and submit your selections to the Strategic Performance Office at jte@scouting.org. "]
[null,"Region"]
[null,"Area"]
[null,"Council","004-Mobile Area Council, Mobile, AL"]
[]
[]
[null,"Select your council below to view your council's strategic plan expiration date"]
[]
[]
[]
[null,"Select your council below to view JTE focus objectives for 2018"]
[]
[]
[]
[null,"2019 JTE Focus Objectives "]
[null,"JTE","JTE Objective 1","JTE Objective 2","JTE Objective 3","JTE Objective 4","JTE Objective 5"]
[null,"Selections →"]
[]
[]
[null,"Select your council below to view comparative councils for 2018"]
[]
[]
[]
[null,"2019 Comparative Councils \n(Select councils  you wish to be compared in membership and finance. Input same if applicable)"]
[null,"Items","Council 1","Council 2","Council 3","Council 4","Council 5"]
[null,"Membership"]
[null,"Finance"]